Workbook

Sheet 1) Summary
C3: ='2) Order Form'!D4 -> ORDER FORM WINTER 23/24
C4: ='2) Order Form'!D5 -> Updated February 26th - 2024
C6: CUSTOMER INFO: | F6: SHIP TO: (IF DIFFERENT!) | I6: DELIVERY WEEK *
B7: NAME: *
B8: ADDRESS: * | I8: PAYMENT TERM *
B9: ZIP/CITY/COUNTRY: *
B10: PHONE: * | I10: CUSTOMER #
B11: E-MAIL: *
B12: INVOICE E-MAIL:
B13: ORG/VAT NR: *
B14: CONTACT PERSON: *
B15: *mandatory information
C16: NOTE / COMMENTS:
C24: ORDER SUMMARY | M24: *hide if not applicable
C25: Category | E25: PCS | F25: ="Order "&"("&'2) Order Form'!$P$3&")" -> Order (EUR) | G25: ="Discount "&"("&'2) Order Form'!$P$3&")" -> Discount (EUR) | H25: ="Discount %" -> Discount % | I25: ="Sum "&"("&'2) Order Form'!$P$3&")" -> Sum (EUR) | J25: Markup | M25: Last year purchase | N25: Change | O25: Change %
C26: Helmets & Helmet Acc. | E26: =SUMIF('2) Order Form'!$B$9:$B$848,'1) Summary'!$C26,'2) Order Form'!$I$9:$I$848) -> 0 | F26: =SUMIF('2) Order Form'!$B$9:$B$848,'1) Summary'!$C26,'2) Order Form'!$R$9:$R$848) -> 0.00 | G26: =IFERROR(SUMIF('2) Order Form'!$B$9:$B$848,'1) Summary'!$C26,'2) Order Form'!$S$9:$S$848),0) -> 0.00 | H26: =IFERROR(G26/F26,0) -> 0.0 % | I26: =F26-G26 -> 0.00 | J26: =IFERROR(SUMIF('2) Order Form'!$B$9:$B$848,'1) Summary'!$C26,'2) Order Form'!$X$9:$X$848)/I26,0) -> 0.0 | M26: 0.00 | N26: =I26-M26 -> 0.00 | O26: =IFERROR(N26/M26,"") -> 
C27: Protection | E27: =SUMIF('2) Order Form'!$B$9:$B$848,'1) Summary'!$C27,'2) Order Form'!$I$9:$I$848) -> 0 | F27: =SUMIF('2) Order Form'!$B$9:$B$848,'1) Summary'!$C27,'2) Order Form'!$R$9:$R$848) -> 0.00 | G27: =IFERROR(SUMIF('2) Order Form'!$B$9:$B$848,'1) Summary'!$C27,'2) Order Form'!$S$9:$S$848),0) -> 0.00 | H27: =IFERROR(G27/F27,0) -> 0.0 % | I27: =F27-G27 -> 0.00 | J27: =IFERROR(SUMIF('2) Order Form'!$B$9:$B$848,'1) Summary'!$C27,'2) Order Form'!$X$9:$X$848)/I27,0) -> 0.0 | M27: 0.00 | N27: =I27-M27 -> 0.00 | O27: =IFERROR(N27/M27,"") -> 
C28: Eyewear | E28: =SUMIF('2) Order Form'!$B$9:$B$848,'1) Summary'!$C28,'2) Order Form'!$I$9:$I$848) -> 0 | F28: =SUMIF('2) Order Form'!$B$9:$B$848,'1) Summary'!$C28,'2) Order Form'!$R$9:$R$848) -> 0.00 | G28: =IFERROR(SUMIF('2) Order Form'!$B$9:$B$848,'1) Summary'!$C28,'2) Order Form'!$S$9:$S$848),0) -> 0.00 | H28: =IFERROR(G28/F28,0) -> 0.0 % | I28: =F28-G28 -> 0.00 | J28: =IFERROR(SUMIF('2) Order Form'!$B$9:$B$848,'1) Summary'!$C28,'2) Order Form'!$X$9:$X$848)/I28,0) -> 0.0 | M28: 0.00 | N28: =I28-M28 -> 0.00 | O28: =IFERROR(N28/M28,"") -> 
C29: Technical Apparel | E29: =SUMIF('2) Order Form'!$B$9:$B$848,'1) Summary'!$C29,'2) Order Form'!$I$9:$I$848) -> 0 | F29: =SUMIF('2) Order Form'!$B$9:$B$848,'1) Summary'!$C29,'2) Order Form'!$R$9:$R$848) -> 0.00 | G29: =IFERROR(SUMIF('2) Order Form'!$B$9:$B$848,'1) Summary'!$C29,'2) Order Form'!$S$9:$S$848),0) -> 0.00 | H29: =IFERROR(G29/F29,0) -> 0.0 % | I29: =F29-G29 -> 0.00 | J29: =IFERROR(SUMIF('2) Order Form'!$B$9:$B$848,'1) Summary'!$C29,'2) Order Form'!$X$9:$X$848)/I29,0) -> 0.0 | M29: 0.00 | N29: =I29-M29 -> 0.00 | O29: =IFERROR(N29/M29,"") -> 
C30: Apparel & Headwear | E30: =SUMIF('2) Order Form'!$B$9:$B$848,'1) Summary'!$C30,'2) Order Form'!$I$9:$I$848) -> 0 | F30: =SUMIF('2) Order Form'!$B$9:$B$848,'1) Summary'!$C30,'2) Order Form'!$R$9:$R$848) -> 0.00 | G30: =IFERROR(SUMIF('2) Order Form'!$B$9:$B$848,'1) Summary'!$C30,'2) Order Form'!$S$9:$S$848),0) -> 0.00 | H30: =IFERROR(G30/F30,0) -> 0.0 % | I30: =F30-G30 -> 0.00 | J30: =IFERROR(SUMIF('2) Order Form'!$B$9:$B$848,'1) Summary'!$C30,'2) Order Form'!$X$9:$X$848)/I30,0) -> 0.0 | M30: 0.00 | N30: =I30-M30 -> 0.00 | O30: =IFERROR(N30/M30,"") -> 
C32: TOTALS | E32: =SUM(E26:E30) -> 0 | F32: =SUM(F26:F30) -> 0.00 | G32: =SUM(G26:G30) -> 0.00 | H32: =IFERROR(G32/F32,0) -> 0.0 % | I32: =SUM(I26:I30) -> 0.00 | J32: =IFERROR(SUM('2) Order Form'!X9:X848)/I32,0) -> 0.0 | M32: =SUM(M26:M30) -> 0.00 | N32: =I32-M32 -> 0.00 | O32: =IFERROR(N32/M32,"") -> 
C34: ="ORDER TOTALS "&"("&'2) Order Form'!$P$3&")" -> ORDER TOTALS (EUR)
C36: Total after discount | D36: ='2) Order Form'!S6 -> 0.00
C37: Markup | D37: =J32 -> 0.0 | E37: Enter VAT %
C38: Customer margin % | D38: =IFERROR((SUM('2) Order Form'!$X$9:$X$848)/(1+E38)-D36)/(SUM('2) Order Form'!$X$9:$X$848)/(1+E38)),0) -> 0.0 % | E38: 20% | F38: < < <

Sheet 2) Order Form
P2: CHOOSE CURRENCY: | R2: Total PCS | S2: =SUBTOTAL(9,I9:I789) -> 0
O3: > > > | P3: EUR | R3: Markup: | S3: =IFERROR(SUMPRODUCT(Q9:Q848,I9:I848)/SUM(T9:T848),0) -> 0.00
D4: ORDER FORM WINTER 23/24 | P4: MAIN DISCOUNT: | R4: Total before %: | S4: =SUBTOTAL(9,R9:R848) -> 0.00
D5: Updated February 26th - 2024 | O5: > > > | P5: 0% | R5: Discount: | S5: =SUBTOTAL(9,S9:S848) -> 0.00
R6: Net total: | S6: =SUM(S4-S5) -> 0.00
A8: CAT.NR | B8: CATEGORY | C8: STYLENR. | D8: PRODUCT NAME | E8: Variant | F8: COLOR [Eyewear: Lens/Frame/Strap] | G8: SIZE | H8: Qty. in pack | I8: ORDER QTY | J8: ATS W32 | K8: ="ATS WEEK "&ATS!V4-202400 -> ATS WEEK 9 | L8: ATS W40 | M8: ="ATS W"& ATS!W4-202300&" ->" -> ATS W115 -> | N8: Discount Specific | O8: Discount FINAL | P8: ="WHS"&$P$3 -> WHSEUR | Q8: ="RETAIL"&$P$3 -> RETAILEUR | R8: Order | S8: Discount | T8: Net Total | V8: EAN-code | X8: Retail value | Y8: Category | Z8: Style II | AA8: Style | AB8: Color | AC8: CCTN1 | AD8: CCTN2 | AE8: Status
A9: 1 | B9: Helmets & Helmet Acc. | C9: =INDEX(ATS!$B:$V,MATCH('2) Order Form'!$V9,ATS!$U:$U,0),1) -> 840097 | D9: =INDEX(ATS!$B:$V,MATCH('2) Order Form'!$V9,ATS!$U:$U,0),2) -> Grimnir 2Vi Mips Helmet | E9: =INDEX(ATS!$B:$V,MATCH('2) Order Form'!$V9,ATS!$U:$U,0),4) -> MASEM-SM | F9: =INDEX(ATS!$B:$V,MATCH('2) Order Form'!$V9,ATS!$U:$U,0),5) -> Matte Sea Metallic | G9: =INDEX(ATS!$B:$V,MATCH('2) Order Form'!$V9,ATS!$U:$U,0),6) -> SM | H9: =IFERROR(VLOOKUP(C9,EAN!$K:$O,5,FALSE),0) -> 1 | I9: 0 | J9: =IFERROR(VLOOKUP(V9,ATS!$U:$V,2,FALSE),0) -> 38 | K9: =IF(J9=99999,"OPEN",IF(J9>50,"50+",IF(J9<=0,"0",J9))) -> 38 | L9: =IFERROR(VLOOKUP(V9,ATS!$U:$W,3,FALSE),0) -> 38 | M9: =IF(L9=99999,"OPEN",IF(L9>50,"50+",IF(L9<=0,"0",L9))) -> 38 | N9: 0% | O9: =IF(N9<>0,N9,$P$5) -> 0% | P9: =VLOOKUP($C9,Prices!$A$3:$R$1996,MATCH('2) Order Form'!P$8,Prices!$A$2:$R$2,0),FALSE) -> 225.00 | Q9: =VLOOKUP($C9,Prices!$A$3:$R$1996,MATCH('2) Order Form'!Q$8,Prices!$A$2:$R$2,0),FALSE) -> 449.00 | R9: =I9*P9 -> 0 | S9: =R9*O9 -> 0 | T9: =R9-S9 -> 0 | V9: 7048652823625 | X9: =I9*Q9 -> 0 | Y9: =IF(A9=OFFSET(A9,-1,0),0,1) -> 1 | Z9: 0 | AA9: =IF(C9=OFFSET(C9,-1,0),0,1) -> 1 | AB9: =IF(F9=OFFSET(F9,-1,0),0,1) -> 1 | AC9: =CONCATENATE(C9,F9) -> 840097Matte Sea Metallic | AD9: =IFERROR(IF(B9="EYEWEAR",CONCATENATE(C9,"-",G9),C9),C9) -> 840097 | AE9: =INDEX(ATS!$B:$V,MATCH('2) Order Form'!$V9,ATS!$U:$U,0),7) -> Stock
A10: 1 | B10: Helmets & Helmet Acc. | C10: =INDEX(ATS!$B:$V,MATCH('2) Order Form'!$V10,ATS!$U:$U,0),1) -> 840097 | D10: =INDEX(ATS!$B:$V,MATCH('2) Order Form'!$V10,ATS!$U:$U,0),2) -> Grimnir 2Vi Mips Helmet | E10: =INDEX(ATS!$B:$V,MATCH('2) Order Form'!$V10,ATS!$U:$U,0),4) -> MASEM-ML | F10: =INDEX(ATS!$B:$V,MATCH('2) Order Form'!$V10,ATS!$U:$U,0),5) -> Matte Sea Metallic | G10: =INDEX(ATS!$B:$V,MATCH('2) Order Form'!$V10,ATS!$U:$U,0),6) -> ML | H10: =IFERROR(VLOOKUP(C10,EAN!$K:$O,5,FALSE),0) -> 1 | I10: 0 | J10: =IFERROR(VLOOKUP(V10,ATS!$U:$V,2,FALSE),0) -> 117 | K10: 50+ | L10: =IFERROR(VLOOKUP(V10,ATS!$U:$W,3,FALSE),0) -> 117 | M10: 50+ | N10: 0% | O10: 0% | P10: =VLOOKUP($C10,Prices!$A$3:$R$1996,MATCH('2) Order Form'!P$8,Prices!$A$2:$R$2,0),FALSE) -> 225.00 | Q10: =VLOOKUP($C10,Prices!$A$3:$R$1996,MATCH('2) Order Form'!Q$8,Prices!$A$2:$R$2,0),FALSE) -> 449.00 | R10: 0 | S10: 0 | T10: 0 | V10: 7048652823618 | X10: =I10*Q10 -> 0 | Y10: =IF(A10=OFFSET(A10,-1,0),0,1) -> 0 | Z10: =IF(C10=OFFSET(C10,-1,0),OFFSET(Z10,-1,0),OFFSET(Z10,-1,0)+1) -> 0 | AA10: =IF(C10=OFFSET(C10,-1,0),0,1) -> 0 | AB10: =IF(F10=OFFSET(F10,-1,0),0,1) -> 0 | AC10: =CONCATENATE(C10,F10) -> 840097Matte Sea Metallic | AD10: =IFERROR(IF(B10="EYEWEAR",CONCATENATE(C10,"-",G10),C10),C10) -> 840097 | AE10: =INDEX(ATS!$B:$V,MATCH('2) Order Form'!$V10,ATS!$U:$U,0),7) -> Stock
A11: 1 | B11: Helmets & Helmet Acc. | C11: =INDEX(ATS!$B:$V,MATCH('2) Order Form'!$V11,ATS!$U:$U,0),1) -> 840097 | D11: =INDEX(ATS!$B:$V,MATCH('2) Order Form'!$V11,ATS!$U:$U,0),2) -> Grimnir 2Vi Mips Helmet | E11: =INDEX(ATS!$B:$V,MATCH('2) Order Form'!$V11,ATS!$U:$U,0),4) -> MASEM-LXL | F11: =INDEX(ATS!$B:$V,MATCH('2) Order Form'!$V11,ATS!$U:$U,0),5) -> Matte Sea Metallic | G11: =INDEX(ATS!$B:$V,MATCH('2) Order Form'!$V11,ATS!$U:$U,0),6) -> LXL | H11: =IFERROR(VLOOKUP(C11,EAN!$K:$O,5,FALSE),0) -> 1 | I11: 0 | J11: =IFERROR(VLOOKUP(V11,ATS!$U:$V,2,FALSE),0) -> 68 | K11: 50+ | L11: =IFERROR(VLOOKUP(V11,ATS!$U:$W,3,FALSE),0) -> 68 | M11: 50+ | N11: 0% | O11: 0% | P11: =VLOOKUP($C11,Prices!$A$3:$R$1996,MATCH('2) Order Form'!P$8,Prices!$A$2:$R$2,0),FALSE) -> 225.00 | Q11: =VLOOKUP($C11,Prices!$A$3:$R$1996,MATCH('2) Order Form'!Q$8,Prices!$A$2:$R$2,0),FALSE) -> 449.00 | R11: 0 | S11: 0 | T11: 0 | V11: 7048652823601 | X11: =I11*Q11 -> 0 | Y11: =IF(A11=OFFSET(A11,-1,0),0,1) -> 0 | Z11: =IF(C11=OFFSET(C11,-1,0),OFFSET(Z11,-1,0),OFFSET(Z11,-1,0)+1) -> 0 | AA11: =IF(C11=OFFSET(C11,-1,0),0,1) -> 0 | AB11: =IF(F11=OFFSET(F11,-1,0),0,1) -> 0 | AC11: =CONCATENATE(C11,F11) -> 840097Matte Sea Metallic | AD11: =IFERROR(IF(B11="EYEWEAR",CONCATENATE(C11,"-",G11),C11),C11) -> 840097 | AE11: =INDEX(ATS!$B:$V,MATCH('2) Order Form'!$V11,ATS!$U:$U,0),7) -> Stock
A12: 1 | B12: Helmets & Helmet Acc. | C12: =INDEX(ATS!$B:$V,MATCH('2) Order Form'!$V12,ATS!$U:$U,0),1) -> 840097 | D12: =INDEX(ATS!$B:$V,MATCH('2) Order Form'!$V12,ATS!$U:$U,0),2) -> Grimnir 2Vi Mips Helmet | E12: =INDEX(ATS!$B:$V,MATCH('2) Order Form'!$V12,ATS!$U:$U,0),4) -> MNGRY-SM | F12: =INDEX(ATS!$B:$V,MATCH('2) Order Form'!$V12,ATS!$U:$U,0),5) -> Matte Nardo Gray | G12: =INDEX(ATS!$B:$V,MATCH('2) Order Form'!$V12,ATS!$U:$U,0),6) -> SM | H12: =IFERROR(VLOOKUP(C12,EAN!$K:$O,5,FALSE),0) -> 1 | I12: 0 | J12: =IFERROR(VLOOKUP(V12,ATS!$U:$V,2,FALSE),0) -> 70 | K12: 50+ | L12: =IFERROR(VLOOKUP(V12,ATS!$U:$W,3,FALSE),0) -> 70 | M12: 50+ | N12: 0% | O12: 0% | P12: =VLOOKUP($C12,Prices!$A$3:$R$1996,MATCH('2) Order Form'!P$8,Prices!$A$2:$R$2,0),FALSE) -> 225.00 | Q12: =VLOOKUP($C12,Prices!$A$3:$R$1996,MATCH('2) Order Form'!Q$8,Prices!$A$2:$R$2,0),FALSE) -> 449.00 | R12: 0 | S12: 0 | T12: 0 | V12: 7048652715272 | X12: 0 | Y12: 0 | Z12: 0 | AA12: 0 | AB12: 1 | AC12: 840097Matte Nardo Gray | AD12: 840097 | AE12: =INDEX(ATS!$B:$V,MATCH('2) Order Form'!$V12,ATS!$U:$U,0),7) -> Stock
A13: 1 | B13: Helmets & Helmet Acc. | C13: =INDEX(ATS!$B:$V,MATCH('2) Order Form'!$V13,ATS!$U:$U,0),1) -> 840097 | D13: =INDEX(ATS!$B:$V,MATCH('2) Order Form'!$V13,ATS!$U:$U,0),2) -> Grimnir 2Vi Mips Helmet | E13: =INDEX(ATS!$B:$V,MATCH('2) Order Form'!$V13,ATS!$U:$U,0),4) -> MNGRY-ML | F13: =INDEX(ATS!$B:$V,MATCH('2) Order Form'!$V13,ATS!$U:$U,0),5) -> Matte Nardo Gray | G13: =INDEX(ATS!$B:$V,MATCH('2) Order Form'!$V13,ATS!$U:$U,0),6) -> ML | H13: =IFERROR(VLOOKUP(C13,EAN!$K:$O,5,FALSE),0) -> 1 | I13: 0 | J13: =IFERROR(VLOOKUP(V13,ATS!$U:$V,2,FALSE),0) -> 62 | K13: 50+ | L13: =IFERROR(VLOOKUP(V13,ATS!$U:$W,3,FALSE),0) -> 62 | M13: 50+ | N13: 0% | O13: 0% | P13: =VLOOKUP($C13,Prices!$A$3:$R$1996,MATCH('2) Order Form'!P$8,Prices!$A$2:$R$2,0),FALSE) -> 225.00 | Q13: =VLOOKUP($C13,Prices!$A$3:$R$1996,MATCH('2) Order Form'!Q$8,Prices!$A$2:$R$2,0),FALSE) -> 449.00 | R13: 0 | S13: 0 | T13: 0 | V13: 7048652715265 | X13: 0 | Y13: 0 | Z13: 0 | AA13: 0 | AB13: 0 | AC13: 840097Matte Nardo Gray | AD13: 840097 | AE13: =INDEX(ATS!$B:$V,MATCH('2) Order Form'!$V13,ATS!$U:$U,0),7) -> Stock
A14: 1 | B14: Helmets & Helmet Acc. | C14: =INDEX(ATS!$B:$V,MATCH('2) Order Form'!$V14,ATS!$U:$U,0),1) -> 840097 | D14: =INDEX(ATS!$B:$V,MATCH('2) Order Form'!$V14,ATS!$U:$U,0),2) -> Grimnir 2Vi Mips Helmet | E14: =INDEX(ATS!$B:$V,MATCH('2) Order Form'!$V14,ATS!$U:$U,0),4) -> MNGRY-LXL | F14: =INDEX(ATS!$B:$V,MATCH('2) Order Form'!$V14,ATS!$U:$U,0),5) -> Matte Nardo Gray | G14: =INDEX(ATS!$B:$V,MATCH('2) Order Form'!$V14,ATS!$U:$U,0),6) -> LXL | H14: =IFERROR(VLOOKUP(C14,EAN!$K:$O,5,FALSE),0) -> 1 | I14: 0 | J14: =IFERROR(VLOOKUP(V14,ATS!$U:$V,2,FALSE),0) -> 48 | K14: 48 | L14: =IFERROR(VLOOKUP(V14,ATS!$U:$W,3,FALSE),0) -> 48 | M14: 48 | N14: 0% | O14: 0% | P14: =VLOOKUP($C14,Prices!$A$3:$R$1996,MATCH('2) Order Form'!P$8,Prices!$A$2:$R$2,0),FALSE) -> 225.00 | Q14: =VLOOKUP($C14,Prices!$A$3:$R$1996,MATCH('2) Order Form'!Q$8,Prices!$A$2:$R$2,0),FALSE) -> 449.00 | R14: 0 | S14: 0 | T14: 0 | V14: 7048652715258 | X14: 0 | Y14: 0 | Z14: 0 | AA14: 0 | AB14: 0 | AC14: 840097Matte Nardo Gray | AD14: 840097 | AE14: =INDEX(ATS!$B:$V,MATCH('2) Order Form'!$V14,ATS!$U:$U,0),7) -> Stock
A15: 1 | B15: Helmets & Helmet Acc. | C15: =INDEX(ATS!$B:$V,MATCH('2) Order Form'!$V15,ATS!$U:$U,0),1) -> 840097 | D15: =INDEX(ATS!$B:$V,MATCH('2) Order Form'!$V15,ATS!$U:$U,0),2) -> Grimnir 2Vi Mips Helmet | E15: =INDEX(ATS!$B:$V,MATCH('2) Order Form'!$V15,ATS!$U:$U,0),4) -> NACAR-SM | F15: =INDEX(ATS!$B:$V,MATCH('2) Order Form'!$V15,ATS!$U:$U,0),5) -> Natural Carbon | G15: =INDEX(ATS!$B:$V,MATCH('2) Order Form'!$V15,ATS!$U:$U,0),6) -> SM | H15: =IFERROR(VLOOKUP(C15,EAN!$K:$O,5,FALSE),0) -> 1 | I15: 0 | J15: =IFERROR(VLOOKUP(V15,ATS!$U:$V,2,FALSE),0) -> 93 | K15: 50+ | L15: =IFERROR(VLOOKUP(V15,ATS!$U:$W,3,FALSE),0) -> 93 | M15: 50+ | N15: 0% | O15: 0% | P15: =VLOOKUP($C15,Prices!$A$3:$R$1996,MATCH('2) Order Form'!P$8,Prices!$A$2:$R$2,0),FALSE) -> 225.00 | Q15: =VLOOKUP($C15,Prices!$A$3:$R$1996,MATCH('2) Order Form'!Q$8,Prices!$A$2:$R$2,0),FALSE) -> 449.00 | R15: 0 | S15: 0 | T15: 0 | V15: 7048652712639 | X15: 0 | Y15: 0 | Z15: 0 | AA15: 0 | AB15: 1 | AC15: 840097Natural Carbon | AD15: 840097 | AE15: =INDEX(ATS!$B:$V,MATCH('2) Order Form'!$V15,ATS!$U:$U,0),7) -> Active
A16: 1 | B16: Helmets & Helmet Acc. | C16: =INDEX(ATS!$B:$V,MATCH('2) Order Form'!$V16,ATS!$U:$U,0),1) -> 840097 | D16: =INDEX(ATS!$B:$V,MATCH('2) Order Form'!$V16,ATS!$U:$U,0),2) -> Grimnir 2Vi Mips Helmet | E16: =INDEX(ATS!$B:$V,MATCH('2) Order Form'!$V16,ATS!$U:$U,0),4) -> NACAR-ML | F16: =INDEX(ATS!$B:$V,MATCH('2) Order Form'!$V16,ATS!$U:$U,0),5) -> Natural Carbon | G16: =INDEX(ATS!$B:$V,MATCH('2) Order Form'!$V16,ATS!$U:$U,0),6) -> ML | H16: =IFERROR(VLOOKUP(C16,EAN!$K:$O,5,FALSE),0) -> 1 | I16: 0 | J16: =IFERROR(VLOOKUP(V16,ATS!$U:$V,2,FALSE),0) -> 106 | K16: 50+ | L16: =IFERROR(VLOOKUP(V16,ATS!$U:$W,3,FALSE),0) -> 106 | M16: 50+ | N16: 0% | O16: 0% | P16: =VLOOKUP($C16,Prices!$A$3:$R$1996,MATCH('2) Order Form'!P$8,Prices!$A$2:$R$2,0),FALSE) -> 225.00 | Q16: =VLOOKUP($C16,Prices!$A$3:$R$1996,MATCH('2) Order Form'!Q$8,Prices!$A$2:$R$2,0),FALSE) -> 449.00 | R16: 0 | S16: 0 | T16: 0 | V16: 7048652712622 | X16: 0 | Y16: 0 | Z16: 0 | AA16: 0 | AB16: 0 | AC16: 840097Natural Carbon | AD16: 840097 | AE16: =INDEX(ATS!$B:$V,MATCH('2) Order Form'!$V16,ATS!$U:$U,0),7) -> Active
A17: 1 | B17: Helmets & Helmet Acc. | C17: =INDEX(ATS!$B:$V,MATCH('2) Order Form'!$V17,ATS!$U:$U,0),1) -> 840097 | D17: =INDEX(ATS!$B:$V,MATCH('2) Order Form'!$V17,ATS!$U:$U,0),2) -> Grimnir 2Vi Mips Helmet | E17: =INDEX(ATS!$B:$V,MATCH('2) Order Form'!$V17,ATS!$U:$U,0),4) -> NACAR-LXL | F17: =INDEX(ATS!$B:$V,MATCH('2) Order Form'!$V17,ATS!$U:$U,0),5) -> Natural Carbon | G17: =INDEX(ATS!$B:$V,MATCH('2) Order Form'!$V17,ATS!$U:$U,0),6) -> LXL | H17: =IFERROR(VLOOKUP(C17,EAN!$K:$O,5,FALSE),0) -> 1 | I17: 0 | J17: =IFERROR(VLOOKUP(V17,ATS!$U:$V,2,FALSE),0) -> 5 | K17: 5 | L17: =IFERROR(VLOOKUP(V17,ATS!$U:$W,3,FALSE),0) -> 5 | M17: 5 | N17: 0% | O17: 0% | P17: =VLOOKUP($C17,Prices!$A$3:$R$1996,MATCH('2) Order Form'!P$8,Prices!$A$2:$R$2,0),FALSE) -> 225.00 | Q17: =VLOOKUP($C17,Prices!$A$3:$R$1996,MATCH('2) Order Form'!Q$8,Prices!$A$2:$R$2,0),FALSE) -> 449.00 | R17: 0 | S17: 0 | T17: 0 | V17: 7048652712615 | X17: 0 | Y17: 0 | Z17: 0 | AA17: 0 | AB17: 0 | AC17: 840097Natural Carbon | AD17: 840097 | AE17: =INDEX(ATS!$B:$V,MATCH('2) Order Form'!$V17,ATS!$U:$U,0),7) -> Active
A18: 1 | B18: Helmets & Helmet Acc. | C18: =INDEX(ATS!$B:$V,MATCH('2) Order Form'!$V18,ATS!$U:$U,0),1) -> 840097 | D18: =INDEX(ATS!$B:$V,MATCH('2) Order Form'!$V18,ATS!$U:$U,0),2) -> Grimnir 2Vi Mips Helmet | E18: =INDEX(ATS!$B:$V,MATCH('2) Order Form'!$V18,ATS!$U:$U,0),4) -> WOLND-SM | F18: =INDEX(ATS!$B:$V,MATCH('2) Order Form'!$V18,ATS!$U:$U,0),5) -> Woodland | G18: =INDEX(ATS!$B:$V,MATCH('2) Order Form'!$V18,ATS!$U:$U,0),6) -> SM | H18: =IFERROR(VLOOKUP(C18,EAN!$K:$O,5,FALSE),0) -> 1 | I18: 0 | J18: =IFERROR(VLOOKUP(V18,ATS!$U:$V,2,FALSE),0) -> 61 | K18: 50+ | L18: =IFERROR(VLOOKUP(V18,ATS!$U:$W,3,FALSE),0) -> 61 | M18: 50+ | N18: 0% | O18: 0% | P18: =VLOOKUP($C18,Prices!$A$3:$R$1996,MATCH('2) Order Form'!P$8,Prices!$A$2:$R$2,0),FALSE) -> 225.00 | Q18: =VLOOKUP($C18,Prices!$A$3:$R$1996,MATCH('2) Order Form'!Q$8,Prices!$A$2:$R$2,0),FALSE) -> 449.00 | R18: 0 | S18: 0 | T18: 0 | V18: 7048652967862 | X18: 0 | Y18: 0 | Z18: 0 | AA18: 0 | AB18: 1 | AC18: 840097Woodland | AD18: 840097 | AE18: =INDEX(ATS!$B:$V,MATCH('2) Order Form'!$V18,ATS!$U:$U,0),7) -> Active
A19: 1 | B19: Helmets & Helmet Acc. | C19: =INDEX(ATS!$B:$V,MATCH('2) Order Form'!$V19,ATS!$U:$U,0),1) -> 840097 | D19: =INDEX(ATS!$B:$V,MATCH('2) Order Form'!$V19,ATS!$U:$U,0),2) -> Grimnir 2Vi Mips Helmet | E19: =INDEX(ATS!$B:$V,MATCH('2) Order Form'!$V19,ATS!$U:$U,0),4) -> WOLND-ML | F19: =INDEX(ATS!$B:$V,MATCH('2) Order Form'!$V19,ATS!$U:$U,0),5) -> Woodland | G19: =INDEX(ATS!$B:$V,MATCH('2) Order Form'!$V19,ATS!$U:$U,0),6) -> ML | H19: =IFERROR(VLOOKUP(C19,EAN!$K:$O,5,FALSE),0) -> 1 | I19: 0 | J19: =IFERROR(VLOOKUP(V19,ATS!$U:$V,2,FALSE),0) -> 43 | K19: 43 | L19: =IFERROR(VLOOKUP(V19,ATS!$U:$W,3,FALSE),0) -> 43 | M19: 43 | N19: 0% | O19: 0% | P19: =VLOOKUP($C19,Prices!$A$3:$R$1996,MATCH('2) Order Form'!P$8,Prices!$A$2:$R$2,0),FALSE) -> 225.00 | Q19: =VLOOKUP($C19,Prices!$A$3:$R$1996,MATCH('2) Order Form'!Q$8,Prices!$A$2:$R$2,0),FALSE) -> 449.00 | R19: 0 | S19: 0 | T19: 0 | V19: 7048652967855 | X19: 0 | Y19: 0 | Z19: 0 | AA19: 0 | AB19: 0 | AC19: 840097Woodland | AD19: 840097 | AE19: =INDEX(ATS!$B:$V,MATCH('2) Order Form'!$V19,ATS!$U:$U,0),7) -> Active
A20: 1 | B20: Helmets & Helmet Acc. | C20: =INDEX(ATS!$B:$V,MATCH('2) Order Form'!$V20,ATS!$U:$U,0),1) -> 840097 | D20: =INDEX(ATS!$B:$V,MATCH('2) Order Form'!$V20,ATS!$U:$U,0),2) -> Grimnir 2Vi Mips Helmet | E20: =INDEX(ATS!$B:$V,MATCH('2) Order Form'!$V20,ATS!$U:$U,0),4) -> WOLND-LXL | F20: =INDEX(ATS!$B:$V,MATCH('2) Order Form'!$V20,ATS!$U:$U,0),5) -> Woodland | G20: =INDEX(ATS!$B:$V,MATCH('2) Order Form'!$V20,ATS!$U:$U,0),6) -> LXL | H20: =IFERROR(VLOOKUP(C20,EAN!$K:$O,5,FALSE),0) -> 1 | I20: 0 | J20: =IFERROR(VLOOKUP(V20,ATS!$U:$V,2,FALSE),0) -> 40 | K20: 40 | L20: =IFERROR(VLOOKUP(V20,ATS!$U:$W,3,FALSE),0) -> 40 | M20: 40 | N20: 0% | O20: 0% | P20: =VLOOKUP($C20,Prices!$A$3:$R$1996,MATCH('2) Order Form'!P$8,Prices!$A$2:$R$2,0),FALSE) -> 225.00 | Q20: =VLOOKUP($C20,Prices!$A$3:$R$1996,MATCH('2) Order Form'!Q$8,Prices!$A$2:$R$2,0),FALSE) -> 449.00 | R20: 0 | S20: 0 | T20: 0 | V20: 7048652967848 | X20: 0 | Y20: 0 | Z20: 0 | AA20: 0 | AB20: 0 | AC20: 840097Woodland | AD20: 840097 | AE20: =INDEX(ATS!$B:$V,MATCH('2) Order Form'!$V20,ATS!$U:$U,0),7) -> Active
A21: 1 | B21: Helmets & Helmet Acc. | C21: =INDEX(ATS!$B:$V,MATCH('2) Order Form'!$V21,ATS!$U:$U,0),1) -> 840094 | D21: =INDEX(ATS!$B:$V,MATCH('2) Order Form'!$V21,ATS!$U:$U,0),2) -> Trooper 2Vi Mips Helmet | E21: =INDEX(ATS!$B:$V,MATCH('2) Order Form'!$V21,ATS!$U:$U,0),4) -> DTBLK-SM | F21: =INDEX(ATS!$B:$V,MATCH('2) Order Form'!$V21,ATS!$U:$U,0),5) -> Dirt Black | G21: =INDEX(ATS!$B:$V,MATCH('2) Order Form'!$V21,ATS!$U:$U,0),6) -> SM | H21: =IFERROR(VLOOKUP(C21,EAN!$K:$O,5,FALSE),0) -> 1 | I21: 0 | J21: =IFERROR(VLOOKUP(V21,ATS!$U:$V,2,FALSE),0) -> 69 | K21: 50+ | L21: =IFERROR(VLOOKUP(V21,ATS!$U:$W,3,FALSE),0) -> 69 | M21: 50+ | N21: 0% | O21: 0% | P21: =VLOOKUP($C21,Prices!$A$3:$R$1996,MATCH('2) Order Form'!P$8,Prices!$A$2:$R$2,0),FALSE) -> 160.00 | Q21: =VLOOKUP($C21,Prices!$A$3:$R$1996,MATCH('2) Order Form'!Q$8,Prices!$A$2:$R$2,0),FALSE) -> 319.00 | R21: 0 | S21: 0 | T21: 0 | V21: 7048652714077 | X21: 0 | Y21: 0 | Z21: 1 | AA21: 1 | AB21: 1 | AC21: 840094Dirt Black | AD21: 840094 | AE21: =INDEX(ATS!$B:$V,MATCH('2) Order Form'!$V21,ATS!$U:$U,0),7) -> Active
A22: 1 | B22: Helmets & Helmet Acc. | C22: =INDEX(ATS!$B:$V,MATCH('2) Order Form'!$V22,ATS!$U:$U,0),1) -> 840094 | D22: =INDEX(ATS!$B:$V,MATCH('2) Order Form'!$V22,ATS!$U:$U,0),2) -> Trooper 2Vi Mips Helmet | E22: =INDEX(ATS!$B:$V,MATCH('2) Order Form'!$V22,ATS!$U:$U,0),4) -> DTBLK-ML | F22: =INDEX(ATS!$B:$V,MATCH('2) Order Form'!$V22,ATS!$U:$U,0),5) -> Dirt Black | G22: =INDEX(ATS!$B:$V,MATCH('2) Order Form'!$V22,ATS!$U:$U,0),6) -> ML | H22: =IFERROR(VLOOKUP(C22,EAN!$K:$O,5,FALSE),0) -> 1 | I22: 0 | J22: =IFERROR(VLOOKUP(V22,ATS!$U:$V,2,FALSE),0) -> 5 | K22: 5 | L22: =IFERROR(VLOOKUP(V22,ATS!$U:$W,3,FALSE),0) -> 5 | M22: 5 | N22: 0% | O22: 0% | P22: =VLOOKUP($C22,Prices!$A$3:$R$1996,MATCH('2) Order Form'!P$8,Prices!$A$2:$R$2,0),FALSE) -> 160.00 | Q22: =VLOOKUP($C22,Prices!$A$3:$R$1996,MATCH('2) Order Form'!Q$8,Prices!$A$2:$R$2,0),FALSE) -> 319.00 | R22: 0 | S22: 0 | T22: 0 | V22: 7048652714060 | X22: 0 | Y22: 0 | Z22: 1 | AA22: 0 | AB22: 0 | AC22: 840094Dirt Black | AD22: 840094 | AE22: =INDEX(ATS!$B:$V,MATCH('2) Order Form'!$V22,ATS!$U:$U,0),7) -> Active
A23: 1 | B23: Helmets & Helmet Acc. | C23: =INDEX(ATS!$B:$V,MATCH('2) Order Form'!$V23,ATS!$U:$U,0),1) -> 840094 | D23: =INDEX(ATS!$B:$V,MATCH('2) Order Form'!$V23,ATS!$U:$U,0),2) -> Trooper 2Vi Mips Helmet | E23: =INDEX(ATS!$B:$V,MATCH('2) Order Form'!$V23,ATS!$U:$U,0),4) -> DTBLK-LXL | F23: =INDEX(ATS!$B:$V,MATCH('2) Order Form'!$V23,ATS!$U:$U,0),5) -> Dirt Black | G23: =INDEX(ATS!$B:$V,MATCH('2) Order Form'!$V23,ATS!$U:$U,0),6) -> LXL | H23: =IFERROR(VLOOKUP(C23,EAN!$K:$O,5,FALSE),0) -> 1 | I23: 0 | J23: =IFERROR(VLOOKUP(V23,ATS!$U:$V,2,FALSE),0) -> 5 | K23: 5 | L23: =IFERROR(VLOOKUP(V23,ATS!$U:$W,3,FALSE),0) -> 5 | M23: 5 | N23: 0% | O23: 0% | P23: =VLOOKUP($C23,Prices!$A$3:$R$1996,MATCH('2) Order Form'!P$8,Prices!$A$2:$R$2,0),FALSE) -> 160.00 | Q23: =VLOOKUP($C23,Prices!$A$3:$R$1996,MATCH('2) Order Form'!Q$8,Prices!$A$2:$R$2,0),FALSE) -> 319.00 | R23: 0 | S23: 0 | T23: 0 | V23: 7048652714053 | X23: 0 | Y23: 0 | Z23: 1 | AA23: 0 | AB23: 0 | AC23: 840094Dirt Black | AD23: 840094 | AE23: =INDEX(ATS!$B:$V,MATCH('2) Order Form'!$V23,ATS!$U:$U,0),7) -> Active
A24: 1 | B24: Helmets & Helmet Acc. | C24: =INDEX(ATS!$B:$V,MATCH('2) Order Form'!$V24,ATS!$U:$U,0),1) -> 840094 | D24: =INDEX(ATS!$B:$V,MATCH('2) Order Form'!$V24,ATS!$U:$U,0),2) -> Trooper 2Vi Mips Helmet | E24: =INDEX(ATS!$B:$V,MATCH('2) Order Form'!$V24,ATS!$U:$U,0),4) -> GSWHT-SM | F24: =INDEX(ATS!$B:$V,MATCH('2) Order Form'!$V24,ATS!$U:$U,0),5) -> Gloss White | G24: =INDEX(ATS!$B:$V,MATCH('2) Order Form'!$V24,ATS!$U:$U,0),6) -> SM | H24: =IFERROR(VLOOKUP(C24,EAN!$K:$O,5,FALSE),0) -> 1 | I24: 0 | J24: =IFERROR(VLOOKUP(V24,ATS!$U:$V,2,FALSE),0) -> 34 | K24: 34 | L24: =IFERROR(VLOOKUP(V24,ATS!$U:$W,3,FALSE),0) -> 34 | M24: 34 | N24: 0% | O24: 0% | P24: =VLOOKUP($C24,Prices!$A$3:$R$1996,MATCH('2) Order Form'!P$8,Prices!$A$2:$R$2,0),FALSE) -> 160.00 | Q24: =VLOOKUP($C24,Prices!$A$3:$R$1996,MATCH('2) Order Form'!Q$8,Prices!$A$2:$R$2,0),FALSE) -> 319.00 | R24: 0 | S24: 0 | T24: 0 | V24: 7048652714107 | X24: 0 | Y24: 0 | Z24: 1 | AA24: 0 | AB24: 1 | AC24: 840094Gloss White | AD24: 840094 | AE24: =INDEX(ATS!$B:$V,MATCH('2) Order Form'!$V24,ATS!$U:$U,0),7) -> Active
A25: 1 | B25: Helmets & Helmet Acc. | C25: =INDEX(ATS!$B:$V,MATCH('2) Order Form'!$V25,ATS!$U:$U,0),1) -> 840094 | D25: =INDEX(ATS!$B:$V,MATCH('2) Order Form'!$V25,ATS!$U:$U,0),2) -> Trooper 2Vi Mips Helmet | E25: =INDEX(ATS!$B:$V,MATCH('2) Order Form'!$V25,ATS!$U:$U,0),4) -> GSWHT-ML | F25: =INDEX(ATS!$B:$V,MATCH('2) Order Form'!$V25,ATS!$U:$U,0),5) -> Gloss White | G25: =INDEX(ATS!$B:$V,MATCH('2) Order Form'!$V25,ATS!$U:$U,0),6) -> ML | H25: =IFERROR(VLOOKUP(C25,EAN!$K:$O,5,FALSE),0) -> 1 | I25: 0 | J25: =IFERROR(VLOOKUP(V25,ATS!$U:$V,2,FALSE),0) -> 10 | K25: 10 | L25: =IFERROR(VLOOKUP(V25,ATS!$U:$W,3,FALSE),0) -> 10 | M25: 10 | N25: 0% | O25: 0% | P25: =VLOOKUP($C25,Prices!$A$3:$R$1996,MATCH('2) Order Form'!P$8,Prices!$A$2:$R$2,0),FALSE) -> 160.00 | Q25: =VLOOKUP($C25,Prices!$A$3:$R$1996,MATCH('2) Order Form'!Q$8,Prices!$A$2:$R$2,0),FALSE) -> 319.00 | R25: 0 | S25: 0 | T25: 0 | V25: 7048652714091 | X25: 0 | Y25: 0 | Z25: 1 | AA25: 0 | AB25: 0 | AC25: 840094Gloss White | AD25: 840094 | AE25: =INDEX(ATS!$B:$V,MATCH('2) Order Form'!$V25,ATS!$U:$U,0),7) -> Active
A26: 1 | B26: Helmets & Helmet Acc. | C26: =INDEX(ATS!$B:$V,MATCH('2) Order Form'!$V26,ATS!$U:$U,0),1) -> 840094 | D26: =INDEX(ATS!$B:$V,MATCH('2) Order Form'!$V26,ATS!$U:$U,0),2) -> Trooper 2Vi Mips Helmet | E26: =INDEX(ATS!$B:$V,MATCH('2) Order Form'!$V26,ATS!$U:$U,0),4) -> GSWHT-LXL | F26: =INDEX(ATS!$B:$V,MATCH('2) Order Form'!$V26,ATS!$U:$U,0),5) -> Gloss White | G26: =INDEX(ATS!$B:$V,MATCH('2) Order Form'!$V26,ATS!$U:$U,0),6) -> LXL | H26: =IFERROR(VLOOKUP(C26,EAN!$K:$O,5,FALSE),0) -> 1 | I26: 0 | J26: =IFERROR(VLOOKUP(V26,ATS!$U:$V,2,FALSE),0) -> 2 | K26: 2 | L26: =IFERROR(VLOOKUP(V26,ATS!$U:$W,3,FALSE),0) -> 2 | M26: 2 | N26: 0% | O26: 0% | P26: =VLOOKUP($C26,Prices!$A$3:$R$1996,MATCH('2) Order Form'!P$8,Prices!$A$2:$R$2,0),FALSE) -> 160.00 | Q26: =VLOOKUP($C26,Prices!$A$3:$R$1996,MATCH('2) Order Form'!Q$8,Prices!$A$2:$R$2,0),FALSE) -> 319.00 | R26: 0 | S26: 0 | T26: 0 | V26: 7048652714084 | X26: 0 | Y26: 0 | Z26: 1 | AA26: 0 | AB26: 0 | AC26: 840094Gloss White | AD26: 840094 | AE26: =INDEX(ATS!$B:$V,MATCH('2) Order Form'!$V26,ATS!$U:$U,0),7) -> Active
A27: 1 | B27: Helmets & Helmet Acc. | C27: =INDEX(ATS!$B:$V,MATCH('2) Order Form'!$V27,ATS!$U:$U,0),1) -> 840094 | D27: =INDEX(ATS!$B:$V,MATCH('2) Order Form'!$V27,ATS!$U:$U,0),2) -> Trooper 2Vi Mips Helmet | E27: =INDEX(ATS!$B:$V,MATCH('2) Order Form'!$V27,ATS!$U:$U,0),4) -> MASEM-SM | F27: =INDEX(ATS!$B:$V,MATCH('2) Order Form'!$V27,ATS!$U:$U,0),5) -> Matte Sea Metallic | G27: =INDEX(ATS!$B:$V,MATCH('2) Order Form'!$V27,ATS!$U:$U,0),6) -> SM | H27: =IFERROR(VLOOKUP(C27,EAN!$K:$O,5,FALSE),0) -> 1 | I27: 0 | J27: =IFERROR(VLOOKUP(V27,ATS!$U:$V,2,FALSE),0) -> 39 | K27: 39 | L27: =IFERROR(VLOOKUP(V27,ATS!$U:$W,3,FALSE),0) -> 39 | M27: 39 | N27: 0% | O27: 0% | P27: =VLOOKUP($C27,Prices!$A$3:$R$1996,MATCH('2) Order Form'!P$8,Prices!$A$2:$R$2,0),FALSE) -> 160.00 | Q27: =VLOOKUP($C27,Prices!$A$3:$R$1996,MATCH('2) Order Form'!Q$8,Prices!$A$2:$R$2,0),FALSE) -> 319.00 | R27: 0 | S27: 0 | T27: 0 | V27: 7048652823359 | X27: 0 | Y27: 0 | Z27: 1 | AA27: 0 | AB27: 1 | AC27: 840094Matte Sea Metallic | AD27: 840094 | AE27: =INDEX(ATS!$B:$V,MATCH('2) Order Form'!$V27,ATS!$U:$U,0),7) -> Stock
A28: 1 | B28: Helmets & Helmet Acc. | C28: =INDEX(ATS!$B:$V,MATCH('2) Order Form'!$V28,ATS!$U:$U,0),1) -> 840094 | D28: =INDEX(ATS!$B:$V,MATCH('2) Order Form'!$V28,ATS!$U:$U,0),2) -> Trooper 2Vi Mips Helmet | E28: =INDEX(ATS!$B:$V,MATCH('2) Order Form'!$V28,ATS!$U:$U,0),4) -> MASEM-ML | F28: =INDEX(ATS!$B:$V,MATCH('2) Order Form'!$V28,ATS!$U:$U,0),5) -> Matte Sea Metallic | G28: =INDEX(ATS!$B:$V,MATCH('2) Order Form'!$V28,ATS!$U:$U,0),6) -> ML | H28: =IFERROR(VLOOKUP(C28,EAN!$K:$O,5,FALSE),0) -> 1 | I28: 0 | J28: =IFERROR(VLOOKUP(V28,ATS!$U:$V,2,FALSE),0) -> 1 | K28: 1 | L28: =IFERROR(VLOOKUP(V28,ATS!$U:$W,3,FALSE),0) -> 1 | M28: 1 | N28: 0% | O28: 0% | P28: =VLOOKUP($C28,Prices!$A$3:$R$1996,MATCH('2) Order Form'!P$8,Prices!$A$2:$R$2,0),FALSE) -> 160.00 | Q28: =VLOOKUP($C28,Prices!$A$3:$R$1996,MATCH('2) Order Form'!Q$8,Prices!$A$2:$R$2,0),FALSE) -> 319.00 | R28: 0 | S28: 0 | T28: 0 | V28: 7048652823342 | X28: 0 | Y28: 0 | Z28: 1 | AA28: 0 | AB28: 0 | AC28: 840094Matte Sea Metallic | AD28: 840094 | AE28: =INDEX(ATS!$B:$V,MATCH('2) Order Form'!$V28,ATS!$U:$U,0),7) -> Stock
A29: 1 | B29: Helmets & Helmet Acc. | C29: =INDEX(ATS!$B:$V,MATCH('2) Order Form'!$V29,ATS!$U:$U,0),1) -> 840094 | D29: =INDEX(ATS!$B:$V,MATCH('2) Order Form'!$V29,ATS!$U:$U,0),2) -> Trooper 2Vi Mips Helmet | E29: =INDEX(ATS!$B:$V,MATCH('2) Order Form'!$V29,ATS!$U:$U,0),4) -> MASEM-LXL | F29: =INDEX(ATS!$B:$V,MATCH('2) Order Form'!$V29,ATS!$U:$U,0),5) -> Matte Sea Metallic | G29: =INDEX(ATS!$B:$V,MATCH('2) Order Form'!$V29,ATS!$U:$U,0),6) -> LXL | H29: =IFERROR(VLOOKUP(C29,EAN!$K:$O,5,FALSE),0) -> 1 | I29: 0 | J29: =IFERROR(VLOOKUP(V29,ATS!$U:$V,2,FALSE),0) -> 0 | K29: 0 | L29: =IFERROR(VLOOKUP(V29,ATS!$U:$W,3,FALSE),0) -> 0 | M29: 0 | N29: 0% | O29: 0% | P29: =VLOOKUP($C29,Prices!$A$3:$R$1996,MATCH('2) Order Form'!P$8,Prices!$A$2:$R$2,0),FALSE) -> 160.00 | Q29: =VLOOKUP($C29,Prices!$A$3:$R$1996,MATCH('2) Order Form'!Q$8,Prices!$A$2:$R$2,0),FALSE) -> 319.00 | R29: 0 | S29: 0 | T29: 0 | V29: 7048652823335 | X29: 0 | Y29: 0 | Z29: 1 | AA29: 0 | AB29: 0 | AC29: 840094Matte Sea Metallic | AD29: 840094 | AE29: =INDEX(ATS!$B:$V,MATCH('2) Order Form'!$V29,ATS!$U:$U,0),7) -> Stock
A30: 1 | B30: Helmets & Helmet Acc. | C30: =INDEX(ATS!$B:$V,MATCH('2) Order Form'!$V30,ATS!$U:$U,0),1) -> 840094 | D30: =INDEX(ATS!$B:$V,MATCH('2) Order Form'!$V30,ATS!$U:$U,0),2) -> Trooper 2Vi Mips Helmet | E30: =INDEX(ATS!$B:$V,MATCH('2) Order Form'!$V30,ATS!$U:$U,0),4) -> MBRWH-SM | F30: =INDEX(ATS!$B:$V,MATCH('2) Order Form'!$V30,ATS!$U:$U,0),5) -> Matte Bronco White | G30: =INDEX(ATS!$B:$V,MATCH('2) Order Form'!$V30,ATS!$U:$U,0),6) -> SM | H30: =IFERROR(VLOOKUP(C30,EAN!$K:$O,5,FALSE),0) -> 1 | I30: 0 | J30: =IFERROR(VLOOKUP(V30,ATS!$U:$V,2,FALSE),0) -> 10 | K30: 10 | L30: =IFERROR(VLOOKUP(V30,ATS!$U:$W,3,FALSE),0) -> 10 | M30: 10 | N30: 0% | O30: 0% | P30: =VLOOKUP($C30,Prices!$A$3:$R$1996,MATCH('2) Order Form'!P$8,Prices!$A$2:$R$2,0),FALSE) -> 160.00 | Q30: =VLOOKUP($C30,Prices!$A$3:$R$1996,MATCH('2) Order Form'!Q$8,Prices!$A$2:$R$2,0),FALSE) -> 319.00 | R30: 0 | S30: 0 | T30: 0 | V30: 7048652823380 | X30: 0 | Y30: 0 | Z30: 1 | AA30: 0 | AB30: 1 | AC30: 840094Matte Bronco White | AD30: 840094 | AE30: =INDEX(ATS!$B:$V,MATCH('2) Order Form'!$V30,ATS!$U:$U,0),7) -> Active
A31: 1 | B31: Helmets & Helmet Acc. | C31: =INDEX(ATS!$B:$V,MATCH('2) Order Form'!$V31,ATS!$U:$U,0),1) -> 840094 | D31: =INDEX(ATS!$B:$V,MATCH('2) Order Form'!$V31,ATS!$U:$U,0),2) -> Trooper 2Vi Mips Helmet | E31: =INDEX(ATS!$B:$V,MATCH('2) Order Form'!$V31,ATS!$U:$U,0),4) -> MBRWH-ML | F31: =INDEX(ATS!$B:$V,MATCH('2) Order Form'!$V31,ATS!$U:$U,0),5) -> Matte Bronco White | G31: =INDEX(ATS!$B:$V,MATCH('2) Order Form'!$V31,ATS!$U:$U,0),6) -> ML | H31: =IFERROR(VLOOKUP(C31,EAN!$K:$O,5,FALSE),0) -> 1 | I31: 0 | J31: =IFERROR(VLOOKUP(V31,ATS!$U:$V,2,FALSE),0) -> 1055 | K31: 50+ | L31: =IFERROR(VLOOKUP(V31,ATS!$U:$W,3,FALSE),0) -> 1055 | M31: 50+ | N31: 0% | O31: 0% | P31: =VLOOKUP($C31,Prices!$A$3:$R$1996,MATCH('2) Order Form'!P$8,Prices!$A$2:$R$2,0),FALSE) -> 160.00 | Q31: =VLOOKUP($C31,Prices!$A$3:$R$1996,MATCH('2) Order Form'!Q$8,Prices!$A$2:$R$2,0),FALSE) -> 319.00 | R31: 0 | S31: 0 | T31: 0 | V31: 7048652823373 | X31: 0 | Y31: 0 | Z31: 1 | AA31: 0 | AB31: 0 | AC31: 840094Matte Bronco White | AD31: 840094 | AE31: =INDEX(ATS!$B:$V,MATCH('2) Order Form'!$V31,ATS!$U:$U,0),7) -> Active
A32: 1 | B32: Helmets & Helmet Acc. | C32: =INDEX(ATS!$B:$V,MATCH('2) Order Form'!$V32,ATS!$U:$U,0),1) -> 840094 | D32: =INDEX(ATS!$B:$V,MATCH('2) Order Form'!$V32,ATS!$U:$U,0),2) -> Trooper 2Vi Mips Helmet | E32: =INDEX(ATS!$B:$V,MATCH('2) Order Form'!$V32,ATS!$U:$U,0),4) -> MBRWH-LXL | F32: =INDEX(ATS!$B:$V,MATCH('2) Order Form'!$V32,ATS!$U:$U,0),5) -> Matte Bronco White | G32: =INDEX(ATS!$B:$V,MATCH('2) Order Form'!$V32,ATS!$U:$U,0),6) -> LXL | H32: =IFERROR(VLOOKUP(C32,EAN!$K:$O,5,FALSE),0) -> 1 | I32: 0 | J32: =IFERROR(VLOOKUP(V32,ATS!$U:$V,2,FALSE),0) -> 20 | K32: 20 | L32: =IFERROR(VLOOKUP(V32,ATS!$U:$W,3,FALSE),0) -> 20 | M32: 20 | N32: 0% | O32: 0% | P32: =VLOOKUP($C32,Prices!$A$3:$R$1996,MATCH('2) Order Form'!P$8,Prices!$A$2:$R$2,0),FALSE) -> 160.00 | Q32: =VLOOKUP($C32,Prices!$A$3:$R$1996,MATCH('2) Order Form'!Q$8,Prices!$A$2:$R$2,0),FALSE) -> 319.00 | R32: 0 | S32: 0 | T32: 0 | V32: 7048652823366 | X32: 0 | Y32: 0 | Z32: 1 | AA32: 0 | AB32: 0 | AC32: 840094Matte Bronco White | AD32: 840094 | AE32: =INDEX(ATS!$B:$V,MATCH('2) Order Form'!$V32,ATS!$U:$U,0),7) -> Active
A33: 1 | B33: Helmets & Helmet Acc. | C33: =INDEX(ATS!$B:$V,MATCH('2) Order Form'!$V33,ATS!$U:$U,0),1) -> 840094 | D33: =INDEX(ATS!$B:$V,MATCH('2) Order Form'!$V33,ATS!$U:$U,0),2) -> Trooper 2Vi Mips Helmet | E33: =INDEX(ATS!$B:$V,MATCH('2) Order Form'!$V33,ATS!$U:$U,0),4) -> MBUOE-SM | F33: =INDEX(ATS!$B:$V,MATCH('2) Order Form'!$V33,ATS!$U:$U,0),5) -> Matte Burning Orange | G33: =INDEX(ATS!$B:$V,MATCH('2) Order Form'!$V33,ATS!$U:$U,0),6) -> SM | H33: =IFERROR(VLOOKUP(C33,EAN!$K:$O,5,FALSE),0) -> 1 | I33: 0 | J33: =IFERROR(VLOOKUP(V33,ATS!$U:$V,2,FALSE),0) -> 17 | K33: 17 | L33: =IFERROR(VLOOKUP(V33,ATS!$U:$W,3,FALSE),0) -> 17 | M33: 17 | N33: 0% | O33: 0% | P33: =VLOOKUP($C33,Prices!$A$3:$R$1996,MATCH('2) Order Form'!P$8,Prices!$A$2:$R$2,0),FALSE) -> 160.00 | Q33: =VLOOKUP($C33,Prices!$A$3:$R$1996,MATCH('2) Order Form'!Q$8,Prices!$A$2:$R$2,0),FALSE) -> 319.00 | R33: 0 | S33: 0 | T33: 0 | V33: 7048652823410 | X33: 0 | Y33: 0 | Z33: 1 | AA33: 0 | AB33: 1 | AC33: 840094Matte Burning Orange | AD33: 840094 | AE33: =INDEX(ATS!$B:$V,MATCH('2) Order Form'!$V33,ATS!$U:$U,0),7) -> Stock
A34: 1 | B34: Helmets & Helmet Acc. | C34: =INDEX(ATS!$B:$V,MATCH('2) Order Form'!$V34,ATS!$U:$U,0),1) -> 840094 | D34: =INDEX(ATS!$B:$V,MATCH('2) Order Form'!$V34,ATS!$U:$U,0),2) -> Trooper 2Vi Mips Helmet | E34: =INDEX(ATS!$B:$V,MATCH('2) Order Form'!$V34,ATS!$U:$U,0),4) -> MBUOE-ML | F34: =INDEX(ATS!$B:$V,MATCH('2) Order Form'!$V34,ATS!$U:$U,0),5) -> Matte Burning Orange | G34: =INDEX(ATS!$B:$V,MATCH('2) Order Form'!$V34,ATS!$U:$U,0),6) -> ML | H34: =IFERROR(VLOOKUP(C34,EAN!$K:$O,5,FALSE),0) -> 1 | I34: 0 | J34: =IFERROR(VLOOKUP(V34,ATS!$U:$V,2,FALSE),0) -> 34 | K34: 34 | L34: =IFERROR(VLOOKUP(V34,ATS!$U:$W,3,FALSE),0) -> 34 | M34: 34 | N34: 0% | O34: 0% | P34: =VLOOKUP($C34,Prices!$A$3:$R$1996,MATCH('2) Order Form'!P$8,Prices!$A$2:$R$2,0),FALSE) -> 160.00 | Q34: =VLOOKUP($C34,Prices!$A$3:$R$1996,MATCH('2) Order Form'!Q$8,Prices!$A$2:$R$2,0),FALSE) -> 319.00 | R34: 0 | S34: 0 | T34: 0 | V34: 7048652823403 | X34: 0 | Y34: 0 | Z34: 1 | AA34: 0 | AB34: 0 | AC34: 840094Matte Burning Orange | AD34: 840094 | AE34: =INDEX(ATS!$B:$V,MATCH('2) Order Form'!$V34,ATS!$U:$U,0),7) -> Stock
A35: 1 | B35: Helmets & Helmet Acc. | C35: =INDEX(ATS!$B:$V,MATCH('2) Order Form'!$V35,ATS!$U:$U,0),1) -> 840094 | D35: =INDEX(ATS!$B:$V,MATCH('2) Order Form'!$V35,ATS!$U:$U,0),2) -> Trooper 2Vi Mips Helmet | E35: =INDEX(ATS!$B:$V,MATCH('2) Order Form'!$V35,ATS!$U:$U,0),4) -> MBUOE-LXL | F35: =INDEX(ATS!$B:$V,MATCH('2) Order Form'!$V35,ATS!$U:$U,0),5) -> Matte Burning Orange | G35: =INDEX(ATS!$B:$V,MATCH('2) Order Form'!$V35,ATS!$U:$U,0),6) -> LXL | H35: =IFERROR(VLOOKUP(C35,EAN!$K:$O,5,FALSE),0) -> 1 | I35: 0 | J35: =IFERROR(VLOOKUP(V35,ATS!$U:$V,2,FALSE),0) -> 1 | K35: 1 | L35: =IFERROR(VLOOKUP(V35,ATS!$U:$W,3,FALSE),0) -> 1 | M35: 1 | N35: 0% | O35: 0% | P35: =VLOOKUP($C35,Prices!$A$3:$R$1996,MATCH('2) Order Form'!P$8,Prices!$A$2:$R$2,0),FALSE) -> 160.00 | Q35: =VLOOKUP($C35,Prices!$A$3:$R$1996,MATCH('2) Order Form'!Q$8,Prices!$A$2:$R$2,0),FALSE) -> 319.00 | R35: 0 | S35: 0 | T35: 0 | V35: 7048652823397 | X35: 0 | Y35: 0 | Z35: 1 | AA35: 0 | AB35: 0 | AC35: 840094Matte Burning Orange | AD35: 840094 | AE35: =INDEX(ATS!$B:$V,MATCH('2) Order Form'!$V35,ATS!$U:$U,0),7) -> Stock
A36: 1 | B36: Helmets & Helmet Acc. | C36: =INDEX(ATS!$B:$V,MATCH('2) Order Form'!$V36,ATS!$U:$U,0),1) -> 840094 | D36: =INDEX(ATS!$B:$V,MATCH('2) Order Form'!$V36,ATS!$U:$U,0),2) -> Trooper 2Vi Mips Helmet | E36: =INDEX(ATS!$B:$V,MATCH('2) Order Form'!$V36,ATS!$U:$U,0),4) -> MTURQ-SM | F36: =INDEX(ATS!$B:$V,MATCH('2) Order Form'!$V36,ATS!$U:$U,0),5) -> Misty Turquoise | G36: =INDEX(ATS!$B:$V,MATCH('2) Order Form'!$V36,ATS!$U:$U,0),6) -> SM | H36: =IFERROR(VLOOKUP(C36,EAN!$K:$O,5,FALSE),0) -> 1 | I36: 0 | J36: =IFERROR(VLOOKUP(V36,ATS!$U:$V,2,FALSE),0) -> 16 | K36: 16 | L36: =IFERROR(VLOOKUP(V36,ATS!$U:$W,3,FALSE),0) -> 16 | M36: 16 | N36: 0% | O36: 0% | P36: =VLOOKUP($C36,Prices!$A$3:$R$1996,MATCH('2) Order Form'!P$8,Prices!$A$2:$R$2,0),FALSE) -> 160.00 | Q36: =VLOOKUP($C36,Prices!$A$3:$R$1996,MATCH('2) Order Form'!Q$8,Prices!$A$2:$R$2,0),FALSE) -> 319.00 | R36: 0 | S36: 0 | T36: 0 | V36: 7048652966322 | X36: 0 | Y36: 0 | Z36: 1 | AA36: 0 | AB36: 1 | AC36: 840094Misty Turquoise | AD36: 840094 | AE36: =INDEX(ATS!$B:$V,MATCH('2) Order Form'!$V36,ATS!$U:$U,0),7) -> Stock
A37: 1 | B37: Helmets & Helmet Acc. | C37: =INDEX(ATS!$B:$V,MATCH('2) Order Form'!$V37,ATS!$U:$U,0),1) -> 840094 | D37: =INDEX(ATS!$B:$V,MATCH('2) Order Form'!$V37,ATS!$U:$U,0),2) -> Trooper 2Vi Mips Helmet | E37: =INDEX(ATS!$B:$V,MATCH('2) Order Form'!$V37,ATS!$U:$U,0),4) -> MTURQ-ML | F37: =INDEX(ATS!$B:$V,MATCH('2) Order Form'!$V37,ATS!$U:$U,0),5) -> Misty Turquoise | G37: =INDEX(ATS!$B:$V,MATCH('2) Order Form'!$V37,ATS!$U:$U,0),6) -> ML | H37: =IFERROR(VLOOKUP(C37,EAN!$K:$O,5,FALSE),0) -> 1 | I37: 0 | J37: =IFERROR(VLOOKUP(V37,ATS!$U:$V,2,FALSE),0) -> 41 | K37: 41 | L37: =IFERROR(VLOOKUP(V37,ATS!$U:$W,3,FALSE),0) -> 41 | M37: 41 | N37: 0% | O37: 0% | P37: =VLOOKUP($C37,Prices!$A$3:$R$1996,MATCH('2) Order Form'!P$8,Prices!$A$2:$R$2,0),FALSE) -> 160.00 | Q37: =VLOOKUP($C37,Prices!$A$3:$R$1996,MATCH('2) Order Form'!Q$8,Prices!$A$2:$R$2,0),FALSE) -> 319.00 | R37: 0 | S37: 0 | T37: 0 | V37: 7048652966315 | X37: 0 | Y37: 0 | Z37: 1 | AA37: 0 | AB37: 0 | AC37: 840094Misty Turquoise | AD37: 840094 | AE37: =INDEX(ATS!$B:$V,MATCH('2) Order Form'!$V37,ATS!$U:$U,0),7) -> Stock
A38: 1 | B38: Helmets & Helmet Acc. | C38: =INDEX(ATS!$B:$V,MATCH('2) Order Form'!$V38,ATS!$U:$U,0),1) -> 840094 | D38: =INDEX(ATS!$B:$V,MATCH('2) Order Form'!$V38,ATS!$U:$U,0),2) -> Trooper 2Vi Mips Helmet | E38: =INDEX(ATS!$B:$V,MATCH('2) Order Form'!$V38,ATS!$U:$U,0),4) -> MTURQ-LXL | F38: =INDEX(ATS!$B:$V,MATCH('2) Order Form'!$V38,ATS!$U:$U,0),5) -> Misty Turquoise | G38: =INDEX(ATS!$B:$V,MATCH('2) Order Form'!$V38,ATS!$U:$U,0),6) -> LXL | H38: =IFERROR(VLOOKUP(C38,EAN!$K:$O,5,FALSE),0) -> 1 | I38: 0 | J38: =IFERROR(VLOOKUP(V38,ATS!$U:$V,2,FALSE),0) -> 41 | K38: 41 | L38: =IFERROR(VLOOKUP(V38,ATS!$U:$W,3,FALSE),0) -> 41 | M38: 41 | N38: 0% | O38: 0% | P38: =VLOOKUP($C38,Prices!$A$3:$R$1996,MATCH('2) Order Form'!P$8,Prices!$A$2:$R$2,0),FALSE) -> 160.00 | Q38: =VLOOKUP($C38,Prices!$A$3:$R$1996,MATCH('2) Order Form'!Q$8,Prices!$A$2:$R$2,0),FALSE) -> 319.00 | R38: 0 | S38: 0 | T38: 0 | V38: 7048652966308 | X38: 0 | Y38: 0 | Z38: 1 | AA38: 0 | AB38: 0 | AC38: 840094Misty Turquoise | AD38: 840094 | AE38: =INDEX(ATS!$B:$V,MATCH('2) Order Form'!$V38,ATS!$U:$U,0),7) -> Stock
A39: 1 | B39: Helmets & Helmet Acc. | C39: =INDEX(ATS!$B:$V,MATCH('2) Order Form'!$V39,ATS!$U:$U,0),1) -> 840094 | D39: =INDEX(ATS!$B:$V,MATCH('2) Order Form'!$V39,ATS!$U:$U,0),2) -> Trooper 2Vi Mips Helmet | E39: =INDEX(ATS!$B:$V,MATCH('2) Order Form'!$V39,ATS!$U:$U,0),4) -> WOLND-SM | F39: =INDEX(ATS!$B:$V,MATCH('2) Order Form'!$V39,ATS!$U:$U,0),5) -> Woodland | G39: =INDEX(ATS!$B:$V,MATCH('2) Order Form'!$V39,ATS!$U:$U,0),6) -> SM | H39: =IFERROR(VLOOKUP(C39,EAN!$K:$O,5,FALSE),0) -> 1 | I39: 0 | J39: =IFERROR(VLOOKUP(V39,ATS!$U:$V,2,FALSE),0) -> 11 | K39: 11 | L39: =IFERROR(VLOOKUP(V39,ATS!$U:$W,3,FALSE),0) -> 11 | M39: 11 | N39: 0% | O39: 0% | P39: =VLOOKUP($C39,Prices!$A$3:$R$1996,MATCH('2) Order Form'!P$8,Prices!$A$2:$R$2,0),FALSE) -> 160.00 | Q39: =VLOOKUP($C39,Prices!$A$3:$R$1996,MATCH('2) Order Form'!Q$8,Prices!$A$2:$R$2,0),FALSE) -> 319.00 | R39: 0 | S39: 0 | T39: 0 | V39: 7048652966353 | X39: 0 | Y39: 0 | Z39: 1 | AA39: 0 | AB39: 1 | AC39: 840094Woodland | AD39: 840094 | AE39: =INDEX(ATS!$B:$V,MATCH('2) Order Form'!$V39,ATS!$U:$U,0),7) -> Stock
A40: 1 | B40: Helmets & Helmet Acc. | C40: =INDEX(ATS!$B:$V,MATCH('2) Order Form'!$V40,ATS!$U:$U,0),1) -> 840094 | D40: =INDEX(ATS!$B:$V,MATCH('2) Order Form'!$V40,ATS!$U:$U,0),2) -> Trooper 2Vi Mips Helmet | E40: =INDEX(ATS!$B:$V,MATCH('2) Order Form'!$V40,ATS!$U:$U,0),4) -> WOLND-ML | F40: =INDEX(ATS!$B:$V,MATCH('2) Order Form'!$V40,ATS!$U:$U,0),5) -> Woodland | G40: =INDEX(ATS!$B:$V,MATCH('2) Order Form'!$V40,ATS!$U:$U,0),6) -> ML | H40: =IFERROR(VLOOKUP(C40,EAN!$K:$O,5,FALSE),0) -> 1 | I40: 0 | J40: =IFERROR(VLOOKUP(V40,ATS!$U:$V,2,FALSE),0) -> 0 | K40: 0 | L40: =IFERROR(VLOOKUP(V40,ATS!$U:$W,3,FALSE),0) -> 0 | M40: 0 | N40: 0% | O40: 0% | P40: =VLOOKUP($C40,Prices!$A$3:$R$1996,MATCH('2) Order Form'!P$8,Prices!$A$2:$R$2,0),FALSE) -> 160.00 | Q40: =VLOOKUP($C40,Prices!$A$3:$R$1996,MATCH('2) Order Form'!Q$8,Prices!$A$2:$R$2,0),FALSE) -> 319.00 | R40: 0 | S40: 0 | T40: 0 | V40: 7048652966346 | X40: 0 | Y40: 0 | Z40: 1 | AA40: 0 | AB40: 0 | AC40: 840094Woodland | AD40: 840094 | AE40: =INDEX(ATS!$B:$V,MATCH('2) Order Form'!$V40,ATS!$U:$U,0),7) -> Stock
A41: 1 | B41: Helmets & Helmet Acc. | C41: =INDEX(ATS!$B:$V,MATCH('2) Order Form'!$V41,ATS!$U:$U,0),1) -> 840094 | D41: =INDEX(ATS!$B:$V,MATCH('2) Order Form'!$V41,ATS!$U:$U,0),2) -> Trooper 2Vi Mips Helmet | E41: =INDEX(ATS!$B:$V,MATCH('2) Order Form'!$V41,ATS!$U:$U,0),4) -> WOLND-LXL | F41: =INDEX(ATS!$B:$V,MATCH('2) Order Form'!$V41,ATS!$U:$U,0),5) -> Woodland | G41: =INDEX(ATS!$B:$V,MATCH('2) Order Form'!$V41,ATS!$U:$U,0),6) -> LXL | H41: =IFERROR(VLOOKUP(C41,EAN!$K:$O,5,FALSE),0) -> 1 | I41: 0 | J41: =IFERROR(VLOOKUP(V41,ATS!$U:$V,2,FALSE),0) -> 0 | K41: =IF(J41=99999,"OPEN",IF(J41>50,"50+",IF(J41<=0,"0",J41))) -> 0 | L41: =IFERROR(VLOOKUP(V41,ATS!$U:$W,3,FALSE),0) -> 0 | M41: =IF(L41=99999,"OPEN",IF(L41>50,"50+",IF(L41<=0,"0",L41))) -> 0 | N41: 0% | O41: 0% | P41: =VLOOKUP($C41,Prices!$A$3:$R$1996,MATCH('2) Order Form'!P$8,Prices!$A$2:$R$2,0),FALSE) -> 160.00 | Q41: =VLOOKUP($C41,Prices!$A$3:$R$1996,MATCH('2) Order Form'!Q$8,Prices!$A$2:$R$2,0),FALSE) -> 319.00 | R41: =I41*P41 -> 0 | S41: =R41*O41 -> 0 | T41: =R41-S41 -> 0 | V41: 7048652966339 | X41: 0 | Y41: 0 | Z41: 1 | AA41: 0 | AB41: 0 | AC41: 840094Woodland | AD41: 840094 | AE41: =INDEX(ATS!$B:$V,MATCH('2) Order Form'!$V41,ATS!$U:$U,0),7) -> Stock
A42: 1 | B42: Helmets & Helmet Acc. | C42: =INDEX(ATS!$B:$V,MATCH('2) Order Form'!$V42,ATS!$U:$U,0),1) -> 840053 | D42: =INDEX(ATS!$B:$V,MATCH('2) Order Form'!$V42,ATS!$U:$U,0),2) -> Switcher Mips Helmet | E42: =INDEX(ATS!$B:$V,MATCH('2) Order Form'!$V42,ATS!$U:$U,0),4) -> BARBM-SM | F42: =INDEX(ATS!$B:$V,MATCH('2) Order Form'!$V42,ATS!$U:$U,0),5) -> Barbera Metallic | G42: =INDEX(ATS!$B:$V,MATCH('2) Order Form'!$V42,ATS!$U:$U,0),6) -> SM | H42: =IFERROR(VLOOKUP(C42,EAN!$K:$O,5,FALSE),0) -> 1 | I42: 0 | J42: =IFERROR(VLOOKUP(V42,ATS!$U:$V,2,FALSE),0) -> 112 | K42: 50+ | L42: =IFERROR(VLOOKUP(V42,ATS!$U:$W,3,FALSE),0) -> 112 | M42: 50+ | N42: 0% | O42: 0% | P42: =VLOOKUP($C42,Prices!$A$3:$R$1996,MATCH('2) Order Form'!P$8,Prices!$A$2:$R$2,0),FALSE) -> 135.00 | Q42: =VLOOKUP($C42,Prices!$A$3:$R$1996,MATCH('2) Order Form'!Q$8,Prices!$A$2:$R$2,0),FALSE) -> 269.00 | R42: 0 | S42: 0 | T42: 0 | V42: 7048652966056 | X42: 0 | Y42: 0 | Z42: 2 | AA42: 1 | AB42: 1 | AC42: 840053Barbera Metallic | AD42: 840053 | AE42: =INDEX(ATS!$B:$V,MATCH('2) Order Form'!$V42,ATS!$U:$U,0),7) -> Stock
A43: 1 | B43: Helmets & Helmet Acc. | C43: =INDEX(ATS!$B:$V,MATCH('2) Order Form'!$V43,ATS!$U:$U,0),1) -> 840053 | D43: =INDEX(ATS!$B:$V,MATCH('2) Order Form'!$V43,ATS!$U:$U,0),2) -> Switcher Mips Helmet | E43: =INDEX(ATS!$B:$V,MATCH('2) Order Form'!$V43,ATS!$U:$U,0),4) -> BARBM-ML | F43: =INDEX(ATS!$B:$V,MATCH('2) Order Form'!$V43,ATS!$U:$U,0),5) -> Barbera Metallic | G43: =INDEX(ATS!$B:$V,MATCH('2) Order Form'!$V43,ATS!$U:$U,0),6) -> ML | H43: =IFERROR(VLOOKUP(C43,EAN!$K:$O,5,FALSE),0) -> 1 | I43: 0 | J43: =IFERROR(VLOOKUP(V43,ATS!$U:$V,2,FALSE),0) -> 183 | K43: 50+ | L43: =IFERROR(VLOOKUP(V43,ATS!$U:$W,3,FALSE),0) -> 183 | M43: 50+ | N43: 0% | O43: 0% | P43: =VLOOKUP($C43,Prices!$A$3:$R$1996,MATCH('2) Order Form'!P$8,Prices!$A$2:$R$2,0),FALSE) -> 135.00 | Q43: =VLOOKUP($C43,Prices!$A$3:$R$1996,MATCH('2) Order Form'!Q$8,Prices!$A$2:$R$2,0),FALSE) -> 269.00 | R43: 0 | S43: 0 | T43: 0 | V43: 7048652966049 | X43: 0 | Y43: 0 | Z43: 2 | AA43: 0 | AB43: 0 | AC43: 840053Barbera Metallic | AD43: 840053 | AE43: =INDEX(ATS!$B:$V,MATCH('2) Order Form'!$V43,ATS!$U:$U,0),7) -> Stock
A44: 1 | B44: Helmets & Helmet Acc. | C44: =INDEX(ATS!$B:$V,MATCH('2) Order Form'!$V44,ATS!$U:$U,0),1) -> 840053 | D44: =INDEX(ATS!$B:$V,MATCH('2) Order Form'!$V44,ATS!$U:$U,0),2) -> Switcher Mips Helmet | E44: =INDEX(ATS!$B:$V,MATCH('2) Order Form'!$V44,ATS!$U:$U,0),4) -> BARBM-LXL | F44: =INDEX(ATS!$B:$V,MATCH('2) Order Form'!$V44,ATS!$U:$U,0),5) -> Barbera Metallic | G44: =INDEX(ATS!$B:$V,MATCH('2) Order Form'!$V44,ATS!$U:$U,0),6) -> LXL | H44: =IFERROR(VLOOKUP(C44,EAN!$K:$O,5,FALSE),0) -> 1 | I44: 0 | J44: =IFERROR(VLOOKUP(V44,ATS!$U:$V,2,FALSE),0) -> 117 | K44: 50+ | L44: =IFERROR(VLOOKUP(V44,ATS!$U:$W,3,FALSE),0) -> 117 | M44: 50+ | N44: 0% | O44: 0% | P44: =VLOOKUP($C44,Prices!$A$3:$R$1996,MATCH('2) Order Form'!P$8,Prices!$A$2:$R$2,0),FALSE) -> 135.00 | Q44: =VLOOKUP($C44,Prices!$A$3:$R$1996,MATCH('2) Order Form'!Q$8,Prices!$A$2:$R$2,0),FALSE) -> 269.00 | R44: 0 | S44: 0 | T44: 0 | V44: 7048652966032 | X44: 0 | Y44: 0 | Z44: 2 | AA44: 0 | AB44: 0 | AC44: 840053Barbera Metallic | AD44: 840053 | AE44: =INDEX(ATS!$B:$V,MATCH('2) Order Form'!$V44,ATS!$U:$U,0),7) -> Stock
A45: 1 | B45: Helmets & Helmet Acc. | C45: =INDEX(ATS!$B:$V,MATCH('2) Order Form'!$V45,ATS!$U:$U,0),1) -> 840053 | D45: =INDEX(ATS!$B:$V,MATCH('2) Order Form'!$V45,ATS!$U:$U,0),2) -> Switcher Mips Helmet | E45: =INDEX(ATS!$B:$V,MATCH('2) Order Form'!$V45,ATS!$U:$U,0),4) -> BARBM-XXL | F45: =INDEX(ATS!$B:$V,MATCH('2) Order Form'!$V45,ATS!$U:$U,0),5) -> Barbera Metallic | G45: =INDEX(ATS!$B:$V,MATCH('2) Order Form'!$V45,ATS!$U:$U,0),6) -> XXL | H45: =IFERROR(VLOOKUP(C45,EAN!$K:$O,5,FALSE),0) -> 1 | I45: 0 | J45: =IFERROR(VLOOKUP(V45,ATS!$U:$V,2,FALSE),0) -> 33 | K45: 33 | L45: =IFERROR(VLOOKUP(V45,ATS!$U:$W,3,FALSE),0) -> 33 | M45: 33 | N45: 0% | O45: 0% | P45: =VLOOKUP($C45,Prices!$A$3:$R$1996,MATCH('2) Order Form'!P$8,Prices!$A$2:$R$2,0),FALSE) -> 135.00 | Q45: =VLOOKUP($C45,Prices!$A$3:$R$1996,MATCH('2) Order Form'!Q$8,Prices!$A$2:$R$2,0),FALSE) -> 269.00 | R45: 0 | S45: 0 | T45: 0 | V45: 7048652968746 | X45: 0 | Y45: 0 | Z45: 2 | AA45: 0 | AB45: 0 | AC45: 840053Barbera Metallic | AD45: 840053 | AE45: =INDEX(ATS!$B:$V,MATCH('2) Order Form'!$V45,ATS!$U:$U,0),7) -> Stock
A46: 1 | B46: Helmets & Helmet Acc. | C46: =INDEX(ATS!$B:$V,MATCH('2) Order Form'!$V46,ATS!$U:$U,0),1) -> 840053 | D46: =INDEX(ATS!$B:$V,MATCH('2) Order Form'!$V46,ATS!$U:$U,0),2) -> Switcher Mips Helmet | E46: =INDEX(ATS!$B:$V,MATCH('2) Order Form'!$V46,ATS!$U:$U,0),4) -> DTBLK-SM | F46: =INDEX(ATS!$B:$V,MATCH('2) Order Form'!$V46,ATS!$U:$U,0),5) -> Dirt Black | G46: =INDEX(ATS!$B:$V,MATCH('2) Order Form'!$V46,ATS!$U:$U,0),6) -> SM | H46: =IFERROR(VLOOKUP(C46,EAN!$K:$O,5,FALSE),0) -> 1 | I46: 0 | J46: =IFERROR(VLOOKUP(V46,ATS!$U:$V,2,FALSE),0) -> 190 | K46: 50+ | L46: =IFERROR(VLOOKUP(V46,ATS!$U:$W,3,FALSE),0) -> 190 | M46: 50+ | N46: 0% | O46: 0% | P46: =VLOOKUP($C46,Prices!$A$3:$R$1996,MATCH('2) Order Form'!P$8,Prices!$A$2:$R$2,0),FALSE) -> 135.00 | Q46: =VLOOKUP($C46,Prices!$A$3:$R$1996,MATCH('2) Order Form'!Q$8,Prices!$A$2:$R$2,0),FALSE) -> 269.00 | R46: 0 | S46: 0 | T46: 0 | V46: 7048652463135 | X46: 0 | Y46: 0 | Z46: 2 | AA46: 0 | AB46: 1 | AC46: 840053Dirt Black | AD46: 840053 | AE46: =INDEX(ATS!$B:$V,MATCH('2) Order Form'!$V46,ATS!$U:$U,0),7) -> Active
A47: 1 | B47: Helmets & Helmet Acc. | C47: =INDEX(ATS!$B:$V,MATCH('2) Order Form'!$V47,ATS!$U:$U,0),1) -> 840053 | D47: =INDEX(ATS!$B:$V,MATCH('2) Order Form'!$V47,ATS!$U:$U,0),2) -> Switcher Mips Helmet | E47: =INDEX(ATS!$B:$V,MATCH('2) Order Form'!$V47,ATS!$U:$U,0),4) -> DTBLK-ML | F47: =INDEX(ATS!$B:$V,MATCH('2) Order Form'!$V47,ATS!$U:$U,0),5) -> Dirt Black | G47: =INDEX(ATS!$B:$V,MATCH('2) Order Form'!$V47,ATS!$U:$U,0),6) -> ML | H47: =IFERROR(VLOOKUP(C47,EAN!$K:$O,5,FALSE),0) -> 1 | I47: 0 | J47: =IFERROR(VLOOKUP(V47,ATS!$U:$V,2,FALSE),0) -> 29 | K47: 29 | L47: =IFERROR(VLOOKUP(V47,ATS!$U:$W,3,FALSE),0) -> 29 | M47: 29 | N47: 0% | O47: 0% | P47: =VLOOKUP($C47,Prices!$A$3:$R$1996,MATCH('2) Order Form'!P$8,Prices!$A$2:$R$2,0),FALSE) -> 135.00 | Q47: =VLOOKUP($C47,Prices!$A$3:$R$1996,MATCH('2) Order Form'!Q$8,Prices!$A$2:$R$2,0),FALSE) -> 269.00 | R47: 0 | S47: 0 | T47: 0 | V47: 7048652463128 | X47: 0 | Y47: 0 | Z47: 2 | AA47: 0 | AB47: 0 | AC47: 840053Dirt Black | AD47: 840053 | AE47: =INDEX(ATS!$B:$V,MATCH('2) Order Form'!$V47,ATS!$U:$U,0),7) -> Active
A48: 1 | B48: Helmets & Helmet Acc. | C48: =INDEX(ATS!$B:$V,MATCH('2) Order Form'!$V48,ATS!$U:$U,0),1) -> 840053 | D48: =INDEX(ATS!$B:$V,MATCH('2) Order Form'!$V48,ATS!$U:$U,0),2) -> Switcher Mips Helmet | E48: =INDEX(ATS!$B:$V,MATCH('2) Order Form'!$V48,ATS!$U:$U,0),4) -> DTBLK-LXL | F48: =INDEX(ATS!$B:$V,MATCH('2) Order Form'!$V48,ATS!$U:$U,0),5) -> Dirt Black | G48: =INDEX(ATS!$B:$V,MATCH('2) Order Form'!$V48,ATS!$U:$U,0),6) -> LXL | H48: =IFERROR(VLOOKUP(C48,EAN!$K:$O,5,FALSE),0) -> 1 | I48: 0 | J48: =IFERROR(VLOOKUP(V48,ATS!$U:$V,2,FALSE),0) -> 15 | K48: 15 | L48: =IFERROR(VLOOKUP(V48,ATS!$U:$W,3,FALSE),0) -> 15 | M48: 15 | N48: 0% | O48: 0% | P48: =VLOOKUP($C48,Prices!$A$3:$R$1996,MATCH('2) Order Form'!P$8,Prices!$A$2:$R$2,0),FALSE) -> 135.00 | Q48: =VLOOKUP($C48,Prices!$A$3:$R$1996,MATCH('2) Order Form'!Q$8,Prices!$A$2:$R$2,0),FALSE) -> 269.00 | R48: 0 | S48: 0 | T48: 0 | V48: 7048652463111 | X48: 0 | Y48: 0 | Z48: 2 | AA48: 0 | AB48: 0 | AC48: 840053Dirt Black | AD48: 840053 | AE48: =INDEX(ATS!$B:$V,MATCH('2) Order Form'!$V48,ATS!$U:$U,0),7) -> Active
A49: 1 | B49: Helmets & Helmet Acc. | C49: =INDEX(ATS!$B:$V,MATCH('2) Order Form'!$V49,ATS!$U:$U,0),1) -> 840053 | D49: =INDEX(ATS!$B:$V,MATCH('2) Order Form'!$V49,ATS!$U:$U,0),2) -> Switcher Mips Helmet | E49: =INDEX(ATS!$B:$V,MATCH('2) Order Form'!$V49,ATS!$U:$U,0),4) -> DTBLK-XXL | F49: =INDEX(ATS!$B:$V,MATCH('2) Order Form'!$V49,ATS!$U:$U,0),5) -> Dirt Black | G49: =INDEX(ATS!$B:$V,MATCH('2) Order Form'!$V49,ATS!$U:$U,0),6) -> XXL | H49: =IFERROR(VLOOKUP(C49,EAN!$K:$O,5,FALSE),0) -> 1 | I49: 0 | J49: =IFERROR(VLOOKUP(V49,ATS!$U:$V,2,FALSE),0) -> 0 | K49: 0 | L49: =IFERROR(VLOOKUP(V49,ATS!$U:$W,3,FALSE),0) -> 0 | M49: 0 | N49: 0% | O49: 0% | P49: =VLOOKUP($C49,Prices!$A$3:$R$1996,MATCH('2) Order Form'!P$8,Prices!$A$2:$R$2,0),FALSE) -> 135.00 | Q49: =VLOOKUP($C49,Prices!$A$3:$R$1996,MATCH('2) Order Form'!Q$8,Prices!$A$2:$R$2,0),FALSE) -> 269.00 | R49: 0 | S49: 0 | T49: 0 | V49: 7048652607683 | X49: 0 | Y49: 0 | Z49: 2 | AA49: 0 | AB49: 0 | AC49: 840053Dirt Black | AD49: 840053 | AE49: =INDEX(ATS!$B:$V,MATCH('2) Order Form'!$V49,ATS!$U:$U,0),7) -> Active
A50: 1 | B50: Helmets & Helmet Acc. | C50: =INDEX(ATS!$B:$V,MATCH('2) Order Form'!$V50,ATS!$U:$U,0),1) -> 840053 | D50: =INDEX(ATS!$B:$V,MATCH('2) Order Form'!$V50,ATS!$U:$U,0),2) -> Switcher Mips Helmet | E50: =INDEX(ATS!$B:$V,MATCH('2) Order Form'!$V50,ATS!$U:$U,0),4) -> GSWHT-SM | F50: =INDEX(ATS!$B:$V,MATCH('2) Order Form'!$V50,ATS!$U:$U,0),5) -> Gloss White | G50: =INDEX(ATS!$B:$V,MATCH('2) Order Form'!$V50,ATS!$U:$U,0),6) -> SM | H50: =IFERROR(VLOOKUP(C50,EAN!$K:$O,5,FALSE),0) -> 1 | I50: 0 | J50: =IFERROR(VLOOKUP(V50,ATS!$U:$V,2,FALSE),0) -> 5 | K50: 5 | L50: =IFERROR(VLOOKUP(V50,ATS!$U:$W,3,FALSE),0) -> 5 | M50: 5 | N50: 0% | O50: =IF(N50<>0,N50,$P$5) -> 0% | P50: =VLOOKUP($C50,Prices!$A$3:$R$1996,MATCH('2) Order Form'!P$8,Prices!$A$2:$R$2,0),FALSE) -> 135.00 | Q50: =VLOOKUP($C50,Prices!$A$3:$R$1996,MATCH('2) Order Form'!Q$8,Prices!$A$2:$R$2,0),FALSE) -> 269.00 | R50: 0 | S50: 0 | T50: 0 | V50: 7048652186300 | X50: 0 | Y50: 0 | Z50: 2 | AA50: 0 | AB50: 1 | AC50: 840053Gloss White | AD50: 840053 | AE50: =INDEX(ATS!$B:$V,MATCH('2) Order Form'!$V50,ATS!$U:$U,0),7) -> Active
A51: 1 | B51: Helmets & Helmet Acc. | C51: =INDEX(ATS!$B:$V,MATCH('2) Order Form'!$V51,ATS!$U:$U,0),1) -> 840053 | D51: =INDEX(ATS!$B:$V,MATCH('2) Order Form'!$V51,ATS!$U:$U,0),2) -> Switcher Mips Helmet | E51: =INDEX(ATS!$B:$V,MATCH('2) Order Form'!$V51,ATS!$U:$U,0),4) -> GSWHT-ML | F51: =INDEX(ATS!$B:$V,MATCH('2) Order Form'!$V51,ATS!$U:$U,0),5) -> Gloss White | G51: =INDEX(ATS!$B:$V,MATCH('2) Order Form'!$V51,ATS!$U:$U,0),6) -> ML | H51: =IFERROR(VLOOKUP(C51,EAN!$K:$O,5,FALSE),0) -> 1 | I51: 0 | J51: =IFERROR(VLOOKUP(V51,ATS!$U:$V,2,FALSE),0) -> 98 | K51: 50+ | L51: =IFERROR(VLOOKUP(V51,ATS!$U:$W,3,FALSE),0) -> 98 | M51: 50+ | N51: 0% | O51: 0% | P51: =VLOOKUP($C51,Prices!$A$3:$R$1996,MATCH('2) Order Form'!P$8,Prices!$A$2:$R$2,0),FALSE) -> 135.00 | Q51: =VLOOKUP($C51,Prices!$A$3:$R$1996,MATCH('2) Order Form'!Q$8,Prices!$A$2:$R$2,0),FALSE) -> 269.00 | R51: 0 | S51: 0 | T51: 0 | V51: 7048652186294 | X51: 0 | Y51: 0 | Z51: 2 | AA51: 0 | AB51: 0 | AC51: 840053Gloss White | AD51: 840053 | AE51: =INDEX(ATS!$B:$V,MATCH('2) Order Form'!$V51,ATS!$U:$U,0),7) -> Active
A52: 1 | B52: Helmets & Helmet Acc. | C52: =INDEX(ATS!$B:$V,MATCH('2) Order Form'!$V52,ATS!$U:$U,0),1) -> 840053 | D52: =INDEX(ATS!$B:$V,MATCH('2) Order Form'!$V52,ATS!$U:$U,0),2) -> Switcher Mips Helmet | E52: =INDEX(ATS!$B:$V,MATCH('2) Order Form'!$V52,ATS!$U:$U,0),4) -> GSWHT-LXL | F52: =INDEX(ATS!$B:$V,MATCH('2) Order Form'!$V52,ATS!$U:$U,0),5) -> Gloss White | G52: =INDEX(ATS!$B:$V,MATCH('2) Order Form'!$V52,ATS!$U:$U,0),6) -> LXL | H52: =IFERROR(VLOOKUP(C52,EAN!$K:$O,5,FALSE),0) -> 1 | I52: 0 | J52: =IFERROR(VLOOKUP(V52,ATS!$U:$V,2,FALSE),0) -> 116 | K52: 50+ | L52: =IFERROR(VLOOKUP(V52,ATS!$U:$W,3,FALSE),0) -> 116 | M52: 50+ | N52: 0% | O52: 0% | P52: =VLOOKUP($C52,Prices!$A$3:$R$1996,MATCH('2) Order Form'!P$8,Prices!$A$2:$R$2,0),FALSE) -> 135.00 | Q52: =VLOOKUP($C52,Prices!$A$3:$R$1996,MATCH('2) Order Form'!Q$8,Prices!$A$2:$R$2,0),FALSE) -> 269.00 | R52: 0 | S52: 0 | T52: 0 | V52: 7048652186287 | X52: 0 | Y52: 0 | Z52: 2 | AA52: 0 | AB52: 0 | AC52: 840053Gloss White | AD52: 840053 | AE52: =INDEX(ATS!$B:$V,MATCH('2) Order Form'!$V52,ATS!$U:$U,0),7) -> Active
A53: 1 | B53: Helmets & Helmet Acc. | C53: =INDEX(ATS!$B:$V,MATCH('2) Order Form'!$V53,ATS!$U:$U,0),1) -> 840053 | D53: =INDEX(ATS!$B:$V,MATCH('2) Order Form'!$V53,ATS!$U:$U,0),2) -> Switcher Mips Helmet | E53: =INDEX(ATS!$B:$V,MATCH('2) Order Form'!$V53,ATS!$U:$U,0),4) -> GSWHT-XXL | F53: =INDEX(ATS!$B:$V,MATCH('2) Order Form'!$V53,ATS!$U:$U,0),5) -> Gloss White | G53: =INDEX(ATS!$B:$V,MATCH('2) Order Form'!$V53,ATS!$U:$U,0),6) -> XXL | H53: =IFERROR(VLOOKUP(C53,EAN!$K:$O,5,FALSE),0) -> 1 | I53: 0 | J53: =IFERROR(VLOOKUP(V53,ATS!$U:$V,2,FALSE),0) -> 24 | K53: 24 | L53: =IFERROR(VLOOKUP(V53,ATS!$U:$W,3,FALSE),0) -> 24 | M53: 24 | N53: 0% | O53: 0% | P53: =VLOOKUP($C53,Prices!$A$3:$R$1996,MATCH('2) Order Form'!P$8,Prices!$A$2:$R$2,0),FALSE) -> 135.00 | Q53: =VLOOKUP($C53,Prices!$A$3:$R$1996,MATCH('2) Order Form'!Q$8,Prices!$A$2:$R$2,0),FALSE) -> 269.00 | R53: 0 | S53: 0 | T53: 0 | V53: 7048652607690 | X53: 0 | Y53: 0 | Z53: 2 | AA53: 0 | AB53: 0 | AC53: 840053Gloss White | AD53: 840053 | AE53: =INDEX(ATS!$B:$V,MATCH('2) Order Form'!$V53,ATS!$U:$U,0),7) -> Active
A54: 1 | B54: Helmets & Helmet Acc. | C54: =INDEX(ATS!$B:$V,MATCH('2) Order Form'!$V54,ATS!$U:$U,0),1) -> 840053 | D54: =INDEX(ATS!$B:$V,MATCH('2) Order Form'!$V54,ATS!$U:$U,0),2) -> Switcher Mips Helmet | E54: =INDEX(ATS!$B:$V,MATCH('2) Order Form'!$V54,ATS!$U:$U,0),4) -> MASEM-SM | F54: =INDEX(ATS!$B:$V,MATCH('2) Order Form'!$V54,ATS!$U:$U,0),5) -> Matte Sea Metallic | G54: =INDEX(ATS!$B:$V,MATCH('2) Order Form'!$V54,ATS!$U:$U,0),6) -> SM | H54: =IFERROR(VLOOKUP(C54,EAN!$K:$O,5,FALSE),0) -> 1 | I54: 0 | J54: =IFERROR(VLOOKUP(V54,ATS!$U:$V,2,FALSE),0) -> 21 | K54: 21 | L54: =IFERROR(VLOOKUP(V54,ATS!$U:$W,3,FALSE),0) -> 21 | M54: 21 | N54: 0% | O54: =IF(N54<>0,N54,$P$5) -> 0% | P54: =VLOOKUP($C54,Prices!$A$3:$R$1996,MATCH('2) Order Form'!P$8,Prices!$A$2:$R$2,0),FALSE) -> 135.00 | Q54: =VLOOKUP($C54,Prices!$A$3:$R$1996,MATCH('2) Order Form'!Q$8,Prices!$A$2:$R$2,0),FALSE) -> 269.00 | R54: 0 | S54: 0 | T54: 0 | V54: 7048652822666 | X54: 0 | Y54: 0 | Z54: 2 | AA54: 0 | AB54: 1 | AC54: 840053Matte Sea Metallic | AD54: 840053 | AE54: =INDEX(ATS!$B:$V,MATCH('2) Order Form'!$V54,ATS!$U:$U,0),7) -> Stock
A55: 1 | B55: Helmets & Helmet Acc. | C55: =INDEX(ATS!$B:$V,MATCH('2) Order Form'!$V55,ATS!$U:$U,0),1) -> 840053 | D55: =INDEX(ATS!$B:$V,MATCH('2) Order Form'!$V55,ATS!$U:$U,0),2) -> Switcher Mips Helmet | E55: =INDEX(ATS!$B:$V,MATCH('2) Order Form'!$V55,ATS!$U:$U,0),4) -> MASEM-ML | F55: =INDEX(ATS!$B:$V,MATCH('2) Order Form'!$V55,ATS!$U:$U,0),5) -> Matte Sea Metallic | G55: =INDEX(ATS!$B:$V,MATCH('2) Order Form'!$V55,ATS!$U:$U,0),6) -> ML | H55: =IFERROR(VLOOKUP(C55,EAN!$K:$O,5,FALSE),0) -> 1 | I55: 0 | J55: =IFERROR(VLOOKUP(V55,ATS!$U:$V,2,FALSE),0) -> 14 | K55: 14 | L55: =IFERROR(VLOOKUP(V55,ATS!$U:$W,3,FALSE),0) -> 14 | M55: 14 | N55: 0% | O55: =IF(N55<>0,N55,$P$5) -> 0% | P55: =VLOOKUP($C55,Prices!$A$3:$R$1996,MATCH('2) Order Form'!P$8,Prices!$A$2:$R$2,0),FALSE) -> 135.00 | Q55: =VLOOKUP($C55,Prices!$A$3:$R$1996,MATCH('2) Order Form'!Q$8,Prices!$A$2:$R$2,0),FALSE) -> 269.00 | R55: 0 | S55: 0 | T55: 0 | V55: 7048652822659 | X55: 0 | Y55: 0 | Z55: 2 | AA55: 0 | AB55: 0 | AC55: 840053Matte Sea Metallic | AD55: 840053 | AE55: =INDEX(ATS!$B:$V,MATCH('2) Order Form'!$V55,ATS!$U:$U,0),7) -> Stock
A56: 1 | B56: Helmets & Helmet Acc. | C56: =INDEX(ATS!$B:$V,MATCH('2) Order Form'!$V56,ATS!$U:$U,0),1) -> 840053 | D56: =INDEX(ATS!$B:$V,MATCH('2) Order Form'!$V56,ATS!$U:$U,0),2) -> Switcher Mips Helmet | E56: =INDEX(ATS!$B:$V,MATCH('2) Order Form'!$V56,ATS!$U:$U,0),4) -> MASEM-LXL | F56: =INDEX(ATS!$B:$V,MATCH('2) Order Form'!$V56,ATS!$U:$U,0),5) -> Matte Sea Metallic | G56: =INDEX(ATS!$B:$V,MATCH('2) Order Form'!$V56,ATS!$U:$U,0),6) -> LXL | H56: =IFERROR(VLOOKUP(C56,EAN!$K:$O,5,FALSE),0) -> 1 | I56: 0 | J56: =IFERROR(VLOOKUP(V56,ATS!$U:$V,2,FALSE),0) -> 38 | K56: 38 | L56: =IFERROR(VLOOKUP(V56,ATS!$U:$W,3,FALSE),0) -> 38 | M56: 38 | N56: 0% | O56: =IF(N56<>0,N56,$P$5) -> 0% | P56: =VLOOKUP($C56,Prices!$A$3:$R$1996,MATCH('2) Order Form'!P$8,Prices!$A$2:$R$2,0),FALSE) -> 135.00 | Q56: =VLOOKUP($C56,Prices!$A$3:$R$1996,MATCH('2) Order Form'!Q$8,Prices!$A$2:$R$2,0),FALSE) -> 269.00 | R56: 0 | S56: 0 | T56: 0 | V56: 7048652822642 | X56: 0 | Y56: 0 | Z56: 2 | AA56: 0 | AB56: 0 | AC56: 840053Matte Sea Metallic | AD56: 840053 | AE56: =INDEX(ATS!$B:$V,MATCH('2) Order Form'!$V56,ATS!$U:$U,0),7) -> Stock
A57: 1 | B57: Helmets & Helmet Acc. | C57: =INDEX(ATS!$B:$V,MATCH('2) Order Form'!$V57,ATS!$U:$U,0),1) -> 840053 | D57: =INDEX(ATS!$B:$V,MATCH('2) Order Form'!$V57,ATS!$U:$U,0),2) -> Switcher Mips Helmet | E57: =INDEX(ATS!$B:$V,MATCH('2) Order Form'!$V57,ATS!$U:$U,0),4) -> MASEM-XXL | F57: =INDEX(ATS!$B:$V,MATCH('2) Order Form'!$V57,ATS!$U:$U,0),5) -> Matte Sea Metallic | G57: =INDEX(ATS!$B:$V,MATCH('2) Order Form'!$V57,ATS!$U:$U,0),6) -> XXL | H57: =IFERROR(VLOOKUP(C57,EAN!$K:$O,5,FALSE),0) -> 1 | I57: 0 | J57: =IFERROR(VLOOKUP(V57,ATS!$U:$V,2,FALSE),0) -> 11 | K57: =IF(J57=99999,"OPEN",IF(J57>50,"50+",IF(J57<=0,"0",J57))) -> 11 | L57: =IFERROR(VLOOKUP(V57,ATS!$U:$W,3,FALSE),0) -> 11 | M57: =IF(L57=99999,"OPEN",IF(L57>50,"50+",IF(L57<=0,"0",L57))) -> 11 | N57: 0% | O57: =IF(N57<>0,N57,$P$5) -> 0% | P57: =VLOOKUP($C57,Prices!$A$3:$R$1996,MATCH('2) Order Form'!P$8,Prices!$A$2:$R$2,0),FALSE) -> 135.00 | Q57: =VLOOKUP($C57,Prices!$A$3:$R$1996,MATCH('2) Order Form'!Q$8,Prices!$A$2:$R$2,0),FALSE) -> 269.00 | R57: =I57*P57 -> 0 | S57: =R57*O57 -> 0 | T57: =R57-S57 -> 0 | V57: 7048652822673 | X57: 0 | Y57: 0 | Z57: 2 | AA57: 0 | AB57: 0 | AC57: 840053Matte Sea Metallic | AD57: 840053 | AE57: =INDEX(ATS!$B:$V,MATCH('2) Order Form'!$V57,ATS!$U:$U,0),7) -> Stock
A58: 1 | B58: Helmets & Helmet Acc. | C58: =INDEX(ATS!$B:$V,MATCH('2) Order Form'!$V58,ATS!$U:$U,0),1) -> 840053 | D58: =INDEX(ATS!$B:$V,MATCH('2) Order Form'!$V58,ATS!$U:$U,0),2) -> Switcher Mips Helmet | E58: =INDEX(ATS!$B:$V,MATCH('2) Order Form'!$V58,ATS!$U:$U,0),4) -> MBUOE-SM | F58: =INDEX(ATS!$B:$V,MATCH('2) Order Form'!$V58,ATS!$U:$U,0),5) -> Matte Burning Orange | G58: =INDEX(ATS!$B:$V,MATCH('2) Order Form'!$V58,ATS!$U:$U,0),6) -> SM | H58: =IFERROR(VLOOKUP(C58,EAN!$K:$O,5,FALSE),0) -> 1 | I58: 0 | J58: =IFERROR(VLOOKUP(V58,ATS!$U:$V,2,FALSE),0) -> 61 | K58: 50+ | L58: =IFERROR(VLOOKUP(V58,ATS!$U:$W,3,FALSE),0) -> 61 | M58: 50+ | N58: 0% | O58: =IF(N58<>0,N58,$P$5) -> 0% | P58: =VLOOKUP($C58,Prices!$A$3:$R$1996,MATCH('2) Order Form'!P$8,Prices!$A$2:$R$2,0),FALSE) -> 135.00 | Q58: =VLOOKUP($C58,Prices!$A$3:$R$1996,MATCH('2) Order Form'!Q$8,Prices!$A$2:$R$2,0),FALSE) -> 269.00 | R58: 0 | S58: 0 | T58: 0 | V58: 7048652822741 | X58: 0 | Y58: 0 | Z58: 2 | AA58: 0 | AB58: 1 | AC58: 840053Matte Burning Orange | AD58: 840053 | AE58: =INDEX(ATS!$B:$V,MATCH('2) Order Form'!$V58,ATS!$U:$U,0),7) -> Stock
A59: 1 | B59: Helmets & Helmet Acc. | C59: =INDEX(ATS!$B:$V,MATCH('2) Order Form'!$V59,ATS!$U:$U,0),1) -> 840053 | D59: =INDEX(ATS!$B:$V,MATCH('2) Order Form'!$V59,ATS!$U:$U,0),2) -> Switcher Mips Helmet | E59: =INDEX(ATS!$B:$V,MATCH('2) Order Form'!$V59,ATS!$U:$U,0),4) -> MBUOE-ML | F59: =INDEX(ATS!$B:$V,MATCH('2) Order Form'!$V59,ATS!$U:$U,0),5) -> Matte Burning Orange | G59: =INDEX(ATS!$B:$V,MATCH('2) Order Form'!$V59,ATS!$U:$U,0),6) -> ML | H59: =IFERROR(VLOOKUP(C59,EAN!$K:$O,5,FALSE),0) -> 1 | I59: 0 | J59: =IFERROR(VLOOKUP(V59,ATS!$U:$V,2,FALSE),0) -> 42 | K59: 42 | L59: =IFERROR(VLOOKUP(V59,ATS!$U:$W,3,FALSE),0) -> 42 | M59: 42 | N59: 0% | O59: 0% | P59: =VLOOKUP($C59,Prices!$A$3:$R$1996,MATCH('2) Order Form'!P$8,Prices!$A$2:$R$2,0),FALSE) -> 135.00 | Q59: =VLOOKUP($C59,Prices!$A$3:$R$1996,MATCH('2) Order Form'!Q$8,Prices!$A$2:$R$2,0),FALSE) -> 269.00 | R59: 0 | S59: 0 | T59: 0 | V59: 7048652822734 | X59: 0 | Y59: 0 | Z59: 2 | AA59: 0 | AB59: 0 | AC59: 840053Matte Burning Orange | AD59: 840053 | AE59: =INDEX(ATS!$B:$V,MATCH('2) Order Form'!$V59,ATS!$U:$U,0),7) -> Stock
A60: 1 | B60: Helmets & Helmet Acc. | C60: =INDEX(ATS!$B:$V,MATCH('2) Order Form'!$V60,ATS!$U:$U,0),1) -> 840053 | D60: =INDEX(ATS!$B:$V,MATCH('2) Order Form'!$V60,ATS!$U:$U,0),2) -> Switcher Mips Helmet | E60: =INDEX(ATS!$B:$V,MATCH('2) Order Form'!$V60,ATS!$U:$U,0),4) -> MBUOE-LXL | F60: =INDEX(ATS!$B:$V,MATCH('2) Order Form'!$V60,ATS!$U:$U,0),5) -> Matte Burning Orange | G60: =INDEX(ATS!$B:$V,MATCH('2) Order Form'!$V60,ATS!$U:$U,0),6) -> LXL | H60: =IFERROR(VLOOKUP(C60,EAN!$K:$O,5,FALSE),0) -> 1 | I60: 0 | J60: =IFERROR(VLOOKUP(V60,ATS!$U:$V,2,FALSE),0) -> 80 | K60: 50+ | L60: =IFERROR(VLOOKUP(V60,ATS!$U:$W,3,FALSE),0) -> 80 | M60: 50+ | N60: 0% | O60: 0% | P60: =VLOOKUP($C60,Prices!$A$3:$R$1996,MATCH('2) Order Form'!P$8,Prices!$A$2:$R$2,0),FALSE) -> 135.00 | Q60: =VLOOKUP($C60,Prices!$A$3:$R$1996,MATCH('2) Order Form'!Q$8,Prices!$A$2:$R$2,0),FALSE) -> 269.00 | R60: 0 | S60: 0 | T60: 0 | V60: 7048652822727 | X60: 0 | Y60: 0 | Z60: 2 | AA60: 0 | AB60: 0 | AC60: 840053Matte Burning Orange | AD60: 840053 | AE60: =INDEX(ATS!$B:$V,MATCH('2) Order Form'!$V60,ATS!$U:$U,0),7) -> Stock
A61: 1 | B61: Helmets & Helmet Acc. | C61: =INDEX(ATS!$B:$V,MATCH('2) Order Form'!$V61,ATS!$U:$U,0),1) -> 840053 | D61: =INDEX(ATS!$B:$V,MATCH('2) Order Form'!$V61,ATS!$U:$U,0),2) -> Switcher Mips Helmet | E61: =INDEX(ATS!$B:$V,MATCH('2) Order Form'!$V61,ATS!$U:$U,0),4) -> MBUOE-XXL | F61: =INDEX(ATS!$B:$V,MATCH('2) Order Form'!$V61,ATS!$U:$U,0),5) -> Matte Burning Orange | G61: =INDEX(ATS!$B:$V,MATCH('2) Order Form'!$V61,ATS!$U:$U,0),6) -> XXL | H61: =IFERROR(VLOOKUP(C61,EAN!$K:$O,5,FALSE),0) -> 1 | I61: 0 | J61: =IFERROR(VLOOKUP(V61,ATS!$U:$V,2,FALSE),0) -> 57 | K61: =IF(J61=99999,"OPEN",IF(J61>50,"50+",IF(J61<=0,"0",J61))) -> 50+ | L61: =IFERROR(VLOOKUP(V61,ATS!$U:$W,3,FALSE),0) -> 57 | M61: =IF(L61=99999,"OPEN",IF(L61>50,"50+",IF(L61<=0,"0",L61))) -> 50+ | N61: 0% | O61: =IF(N61<>0,N61,$P$5) -> 0% | P61: =VLOOKUP($C61,Prices!$A$3:$R$1996,MATCH('2) Order Form'!P$8,Prices!$A$2:$R$2,0),FALSE) -> 135.00 | Q61: =VLOOKUP($C61,Prices!$A$3:$R$1996,MATCH('2) Order Form'!Q$8,Prices!$A$2:$R$2,0),FALSE) -> 269.00 | R61: =I61*P61 -> 0 | S61: =R61*O61 -> 0 | T61: =R61-S61 -> 0 | V61: 7048652822758 | X61: 0 | Y61: 0 | Z61: 2 | AA61: 0 | AB61: 0 | AC61: 840053Matte Burning Orange | AD61: 840053 | AE61: =INDEX(ATS!$B:$V,MATCH('2) Order Form'!$V61,ATS!$U:$U,0),7) -> Stock
A62: 1 | B62: Helmets & Helmet Acc. | C62: =INDEX(ATS!$B:$V,MATCH('2) Order Form'!$V62,ATS!$U:$U,0),1) -> 840053 | D62: =INDEX(ATS!$B:$V,MATCH('2) Order Form'!$V62,ATS!$U:$U,0),2) -> Switcher Mips Helmet | E62: =INDEX(ATS!$B:$V,MATCH('2) Order Form'!$V62,ATS!$U:$U,0),4) -> WOLND-SM | F62: =INDEX(ATS!$B:$V,MATCH('2) Order Form'!$V62,ATS!$U:$U,0),5) -> Woodland | G62: =INDEX(ATS!$B:$V,MATCH('2) Order Form'!$V62,ATS!$U:$U,0),6) -> SM | H62: =IFERROR(VLOOKUP(C62,EAN!$K:$O,5,FALSE),0) -> 1 | I62: 0 | J62: =IFERROR(VLOOKUP(V62,ATS!$U:$V,2,FALSE),0) -> 37 | K62: 37 | L62: =IFERROR(VLOOKUP(V62,ATS!$U:$W,3,FALSE),0) -> 37 | M62: 37 | N62: 0% | O62: =IF(N62<>0,N62,$P$5) -> 0% | P62: =VLOOKUP($C62,Prices!$A$3:$R$1996,MATCH('2) Order Form'!P$8,Prices!$A$2:$R$2,0),FALSE) -> 135.00 | Q62: =VLOOKUP($C62,Prices!$A$3:$R$1996,MATCH('2) Order Form'!Q$8,Prices!$A$2:$R$2,0),FALSE) -> 269.00 | R62: 0 | S62: 0 | T62: 0 | V62: 7048652966117 | X62: 0 | Y62: 0 | Z62: 2 | AA62: 0 | AB62: 1 | AC62: 840053Woodland | AD62: 840053 | AE62: =INDEX(ATS!$B:$V,MATCH('2) Order Form'!$V62,ATS!$U:$U,0),7) -> Stock
A63: 1 | B63: Helmets & Helmet Acc. | C63: =INDEX(ATS!$B:$V,MATCH('2) Order Form'!$V63,ATS!$U:$U,0),1) -> 840053 | D63: =INDEX(ATS!$B:$V,MATCH('2) Order Form'!$V63,ATS!$U:$U,0),2) -> Switcher Mips Helmet | E63: =INDEX(ATS!$B:$V,MATCH('2) Order Form'!$V63,ATS!$U:$U,0),4) -> WOLND-ML | F63: =INDEX(ATS!$B:$V,MATCH('2) Order Form'!$V63,ATS!$U:$U,0),5) -> Woodland | G63: =INDEX(ATS!$B:$V,MATCH('2) Order Form'!$V63,ATS!$U:$U,0),6) -> ML | H63: =IFERROR(VLOOKUP(C63,EAN!$K:$O,5,FALSE),0) -> 1 | I63: 0 | J63: =IFERROR(VLOOKUP(V63,ATS!$U:$V,2,FALSE),0) -> 0 | K63: 0 | L63: =IFERROR(VLOOKUP(V63,ATS!$U:$W,3,FALSE),0) -> 0 | M63: 0 | N63: 0% | O63: 0% | P63: =VLOOKUP($C63,Prices!$A$3:$R$1996,MATCH('2) Order Form'!P$8,Prices!$A$2:$R$2,0),FALSE) -> 135.00 | Q63: =VLOOKUP($C63,Prices!$A$3:$R$1996,MATCH('2) Order Form'!Q$8,Prices!$A$2:$R$2,0),FALSE) -> 269.00 | R63: 0 | S63: 0 | T63: 0 | V63: 7048652966100 | X63: 0 | Y63: 0 | Z63: 2 | AA63: 0 | AB63: 0 | AC63: 840053Woodland | AD63: 840053 | AE63: =INDEX(ATS!$B:$V,MATCH('2) Order Form'!$V63,ATS!$U:$U,0),7) -> Stock
A64: 1 | B64: Helmets & Helmet Acc. | C64: =INDEX(ATS!$B:$V,MATCH('2) Order Form'!$V64,ATS!$U:$U,0),1) -> 840053 | D64: =INDEX(ATS!$B:$V,MATCH('2) Order Form'!$V64,ATS!$U:$U,0),2) -> Switcher Mips Helmet | E64: =INDEX(ATS!$B:$V,MATCH('2) Order Form'!$V64,ATS!$U:$U,0),4) -> WOLND-LXL | F64: =INDEX(ATS!$B:$V,MATCH('2) Order Form'!$V64,ATS!$U:$U,0),5) -> Woodland | G64: =INDEX(ATS!$B:$V,MATCH('2) Order Form'!$V64,ATS!$U:$U,0),6) -> LXL | H64: =IFERROR(VLOOKUP(C64,EAN!$K:$O,5,FALSE),0) -> 1 | I64: 0 | J64: =IFERROR(VLOOKUP(V64,ATS!$U:$V,2,FALSE),0) -> 0 | K64: 0 | L64: =IFERROR(VLOOKUP(V64,ATS!$U:$W,3,FALSE),0) -> 0 | M64: 0 | N64: 0% | O64: 0% | P64: =VLOOKUP($C64,Prices!$A$3:$R$1996,MATCH('2) Order Form'!P$8,Prices!$A$2:$R$2,0),FALSE) -> 135.00 | Q64: =VLOOKUP($C64,Prices!$A$3:$R$1996,MATCH('2) Order Form'!Q$8,Prices!$A$2:$R$2,0),FALSE) -> 269.00 | R64: 0 | S64: 0 | T64: 0 | V64: 7048652966094 | X64: 0 | Y64: 0 | Z64: 2 | AA64: 0 | AB64: 0 | AC64: 840053Woodland | AD64: 840053 | AE64: =INDEX(ATS!$B:$V,MATCH('2) Order Form'!$V64,ATS!$U:$U,0),7) -> Stock
A65: 1 | B65: Helmets & Helmet Acc. | C65: =INDEX(ATS!$B:$V,MATCH('2) Order Form'!$V65,ATS!$U:$U,0),1) -> 840053 | D65: =INDEX(ATS!$B:$V,MATCH('2) Order Form'!$V65,ATS!$U:$U,0),2) -> Switcher Mips Helmet | E65: =INDEX(ATS!$B:$V,MATCH('2) Order Form'!$V65,ATS!$U:$U,0),4) -> WOLND-XXL | F65: =INDEX(ATS!$B:$V,MATCH('2) Order Form'!$V65,ATS!$U:$U,0),5) -> Woodland | G65: =INDEX(ATS!$B:$V,MATCH('2) Order Form'!$V65,ATS!$U:$U,0),6) -> XXL | H65: =IFERROR(VLOOKUP(C65,EAN!$K:$O,5,FALSE),0) -> 1 | I65: 0 | J65: =IFERROR(VLOOKUP(V65,ATS!$U:$V,2,FALSE),0) -> 29 | K65: 29 | L65: =IFERROR(VLOOKUP(V65,ATS!$U:$W,3,FALSE),0) -> 29 | M65: 29 | N65: 0% | O65: 0% | P65: =VLOOKUP($C65,Prices!$A$3:$R$1996,MATCH('2) Order Form'!P$8,Prices!$A$2:$R$2,0),FALSE) -> 135.00 | Q65: =VLOOKUP($C65,Prices!$A$3:$R$1996,MATCH('2) Order Form'!Q$8,Prices!$A$2:$R$2,0),FALSE) -> 269.00 | R65: 0 | S65: 0 | T65: 0 | V65: 7048652968753 | X65: 0 | Y65: 0 | Z65: 2 | AA65: 0 | AB65: 0 | AC65: 840053Woodland | AD65: 840053 | AE65: =INDEX(ATS!$B:$V,MATCH('2) Order Form'!$V65,ATS!$U:$U,0),7) -> Stock
A66: 1 | B66: Helmets & Helmet Acc. | C66: =INDEX(ATS!$B:$V,MATCH('2) Order Form'!$V66,ATS!$U:$U,0),1) -> 840102 | D66: =INDEX(ATS!$B:$V,MATCH('2) Order Form'!$V66,ATS!$U:$U,0),2) -> Igniter 2Vi MIPS Helmet | E66: =INDEX(ATS!$B:$V,MATCH('2) Order Form'!$V66,ATS!$U:$U,0),4) -> BARBM-SM | F66: =INDEX(ATS!$B:$V,MATCH('2) Order Form'!$V66,ATS!$U:$U,0),5) -> Barbera Metallic | G66: =INDEX(ATS!$B:$V,MATCH('2) Order Form'!$V66,ATS!$U:$U,0),6) -> SM | H66: =IFERROR(VLOOKUP(C66,EAN!$K:$O,5,FALSE),0) -> 1 | I66: 0 | J66: =IFERROR(VLOOKUP(V66,ATS!$U:$V,2,FALSE),0) -> 33 | K66: 33 | L66: =IFERROR(VLOOKUP(V66,ATS!$U:$W,3,FALSE),0) -> 33 | M66: 33 | N66: 0% | O66: 0% | P66: =VLOOKUP($C66,Prices!$A$3:$R$1996,MATCH('2) Order Form'!P$8,Prices!$A$2:$R$2,0),FALSE) -> 125.00 | Q66: =VLOOKUP($C66,Prices!$A$3:$R$1996,MATCH('2) Order Form'!Q$8,Prices!$A$2:$R$2,0),FALSE) -> 249.00 | R66: 0 | S66: 0 | T66: 0 | V66: 7048652966476 | X66: 0 | Y66: 0 | Z66: 3 | AA66: 1 | AB66: 1 | AC66: 840102Barbera Metallic | AD66: 840102 | AE66: =INDEX(ATS!$B:$V,MATCH('2) Order Form'!$V66,ATS!$U:$U,0),7) -> Stock
A67: 1 | B67: Helmets & Helmet Acc. | C67: =INDEX(ATS!$B:$V,MATCH('2) Order Form'!$V67,ATS!$U:$U,0),1) -> 840102 | D67: =INDEX(ATS!$B:$V,MATCH('2) Order Form'!$V67,ATS!$U:$U,0),2) -> Igniter 2Vi MIPS Helmet | E67: =INDEX(ATS!$B:$V,MATCH('2) Order Form'!$V67,ATS!$U:$U,0),4) -> BARBM-ML | F67: =INDEX(ATS!$B:$V,MATCH('2) Order Form'!$V67,ATS!$U:$U,0),5) -> Barbera Metallic | G67: =INDEX(ATS!$B:$V,MATCH('2) Order Form'!$V67,ATS!$U:$U,0),6) -> ML | H67: =IFERROR(VLOOKUP(C67,EAN!$K:$O,5,FALSE),0) -> 1 | I67: 0 | J67: =IFERROR(VLOOKUP(V67,ATS!$U:$V,2,FALSE),0) -> 80 | K67: 50+ | L67: =IFERROR(VLOOKUP(V67,ATS!$U:$W,3,FALSE),0) -> 80 | M67: 50+ | N67: 0% | O67: 0% | P67: =VLOOKUP($C67,Prices!$A$3:$R$1996,MATCH('2) Order Form'!P$8,Prices!$A$2:$R$2,0),FALSE) -> 125.00 | Q67: =VLOOKUP($C67,Prices!$A$3:$R$1996,MATCH('2) Order Form'!Q$8,Prices!$A$2:$R$2,0),FALSE) -> 249.00 | R67: 0 | S67: 0 | T67: 0 | V67: 7048652966469 | X67: 0 | Y67: 0 | Z67: 3 | AA67: 0 | AB67: 0 | AC67: 840102Barbera Metallic | AD67: 840102 | AE67: =INDEX(ATS!$B:$V,MATCH('2) Order Form'!$V67,ATS!$U:$U,0),7) -> Stock
A68: 1 | B68: Helmets & Helmet Acc. | C68: =INDEX(ATS!$B:$V,MATCH('2) Order Form'!$V68,ATS!$U:$U,0),1) -> 840102 | D68: =INDEX(ATS!$B:$V,MATCH('2) Order Form'!$V68,ATS!$U:$U,0),2) -> Igniter 2Vi MIPS Helmet | E68: =INDEX(ATS!$B:$V,MATCH('2) Order Form'!$V68,ATS!$U:$U,0),4) -> BARBM-LXL | F68: =INDEX(ATS!$B:$V,MATCH('2) Order Form'!$V68,ATS!$U:$U,0),5) -> Barbera Metallic | G68: =INDEX(ATS!$B:$V,MATCH('2) Order Form'!$V68,ATS!$U:$U,0),6) -> LXL | H68: =IFERROR(VLOOKUP(C68,EAN!$K:$O,5,FALSE),0) -> 1 | I68: 0 | J68: =IFERROR(VLOOKUP(V68,ATS!$U:$V,2,FALSE),0) -> 37 | K68: 37 | L68: =IFERROR(VLOOKUP(V68,ATS!$U:$W,3,FALSE),0) -> 37 | M68: 37 | N68: 0% | O68: 0% | P68: =VLOOKUP($C68,Prices!$A$3:$R$1996,MATCH('2) Order Form'!P$8,Prices!$A$2:$R$2,0),FALSE) -> 125.00 | Q68: =VLOOKUP($C68,Prices!$A$3:$R$1996,MATCH('2) Order Form'!Q$8,Prices!$A$2:$R$2,0),FALSE) -> 249.00 | R68: 0 | S68: 0 | T68: 0 | V68: 7048652966452 | X68: 0 | Y68: 0 | Z68: 3 | AA68: 0 | AB68: 0 | AC68: 840102Barbera Metallic | AD68: 840102 | AE68: =INDEX(ATS!$B:$V,MATCH('2) Order Form'!$V68,ATS!$U:$U,0),7) -> Stock
A69: 1 | B69: Helmets & Helmet Acc. | C69: =INDEX(ATS!$B:$V,MATCH('2) Order Form'!$V69,ATS!$U:$U,0),1) -> 840102 | D69: =INDEX(ATS!$B:$V,MATCH('2) Order Form'!$V69,ATS!$U:$U,0),2) -> Igniter 2Vi MIPS Helmet | E69: =INDEX(ATS!$B:$V,MATCH('2) Order Form'!$V69,ATS!$U:$U,0),4) -> DTBLK-SM | F69: =INDEX(ATS!$B:$V,MATCH('2) Order Form'!$V69,ATS!$U:$U,0),5) -> Dirt Black | G69: =INDEX(ATS!$B:$V,MATCH('2) Order Form'!$V69,ATS!$U:$U,0),6) -> SM | H69: =IFERROR(VLOOKUP(C69,EAN!$K:$O,5,FALSE),0) -> 1 | I69: 0 | J69: =IFERROR(VLOOKUP(V69,ATS!$U:$V,2,FALSE),0) -> 183 | K69: 50+ | L69: =IFERROR(VLOOKUP(V69,ATS!$U:$W,3,FALSE),0) -> 183 | M69: 50+ | N69: 0% | O69: 0% | P69: =VLOOKUP($C69,Prices!$A$3:$R$1996,MATCH('2) Order Form'!P$8,Prices!$A$2:$R$2,0),FALSE) -> 125.00 | Q69: =VLOOKUP($C69,Prices!$A$3:$R$1996,MATCH('2) Order Form'!Q$8,Prices!$A$2:$R$2,0),FALSE) -> 249.00 | R69: 0 | S69: 0 | T69: 0 | V69: 7048652832405 | X69: 0 | Y69: 0 | Z69: 3 | AA69: 0 | AB69: 1 | AC69: 840102Dirt Black | AD69: 840102 | AE69: =INDEX(ATS!$B:$V,MATCH('2) Order Form'!$V69,ATS!$U:$U,0),7) -> Active
A70: 1 | B70: Helmets & Helmet Acc. | C70: =INDEX(ATS!$B:$V,MATCH('2) Order Form'!$V70,ATS!$U:$U,0),1) -> 840102 | D70: =INDEX(ATS!$B:$V,MATCH('2) Order Form'!$V70,ATS!$U:$U,0),2) -> Igniter 2Vi MIPS Helmet | E70: =INDEX(ATS!$B:$V,MATCH('2) Order Form'!$V70,ATS!$U:$U,0),4) -> DTBLK-ML | F70: =INDEX(ATS!$B:$V,MATCH('2) Order Form'!$V70,ATS!$U:$U,0),5) -> Dirt Black | G70: =INDEX(ATS!$B:$V,MATCH('2) Order Form'!$V70,ATS!$U:$U,0),6) -> ML | H70: =IFERROR(VLOOKUP(C70,EAN!$K:$O,5,FALSE),0) -> 1 | I70: 0 | J70: =IFERROR(VLOOKUP(V70,ATS!$U:$V,2,FALSE),0) -> 170 | K70: 50+ | L70: =IFERROR(VLOOKUP(V70,ATS!$U:$W,3,FALSE),0) -> 170 | M70: 50+ | N70: 0% | O70: 0% | P70: =VLOOKUP($C70,Prices!$A$3:$R$1996,MATCH('2) Order Form'!P$8,Prices!$A$2:$R$2,0),FALSE) -> 125.00 | Q70: =VLOOKUP($C70,Prices!$A$3:$R$1996,MATCH('2) Order Form'!Q$8,Prices!$A$2:$R$2,0),FALSE) -> 249.00 | R70: 0 | S70: 0 | T70: 0 | V70: 7048652832399 | X70: 0 | Y70: 0 | Z70: 3 | AA70: 0 | AB70: 0 | AC70: 840102Dirt Black | AD70: 840102 | AE70: =INDEX(ATS!$B:$V,MATCH('2) Order Form'!$V70,ATS!$U:$U,0),7) -> Active
A71: 1 | B71: Helmets & Helmet Acc. | C71: =INDEX(ATS!$B:$V,MATCH('2) Order Form'!$V71,ATS!$U:$U,0),1) -> 840102 | D71: =INDEX(ATS!$B:$V,MATCH('2) Order Form'!$V71,ATS!$U:$U,0),2) -> Igniter 2Vi MIPS Helmet | E71: =INDEX(ATS!$B:$V,MATCH('2) Order Form'!$V71,ATS!$U:$U,0),4) -> DTBLK-LXL | F71: =INDEX(ATS!$B:$V,MATCH('2) Order Form'!$V71,ATS!$U:$U,0),5) -> Dirt Black | G71: =INDEX(ATS!$B:$V,MATCH('2) Order Form'!$V71,ATS!$U:$U,0),6) -> LXL | H71: =IFERROR(VLOOKUP(C71,EAN!$K:$O,5,FALSE),0) -> 1 | I71: 0 | J71: =IFERROR(VLOOKUP(V71,ATS!$U:$V,2,FALSE),0) -> 234 | K71: 50+ | L71: =IFERROR(VLOOKUP(V71,ATS!$U:$W,3,FALSE),0) -> 234 | M71: 50+ | N71: 0% | O71: 0% | P71: =VLOOKUP($C71,Prices!$A$3:$R$1996,MATCH('2) Order Form'!P$8,Prices!$A$2:$R$2,0),FALSE) -> 125.00 | Q71: =VLOOKUP($C71,Prices!$A$3:$R$1996,MATCH('2) Order Form'!Q$8,Prices!$A$2:$R$2,0),FALSE) -> 249.00 | R71: 0 | S71: 0 | T71: 0 | V71: 7048652832382 | X71: 0 | Y71: 0 | Z71: 3 | AA71: 0 | AB71: 0 | AC71: 840102Dirt Black | AD71: 840102 | AE71: =INDEX(ATS!$B:$V,MATCH('2) Order Form'!$V71,ATS!$U:$U,0),7) -> Active
A72: 1 | B72: Helmets & Helmet Acc. | C72: =INDEX(ATS!$B:$V,MATCH('2) Order Form'!$V72,ATS!$U:$U,0),1) -> 840102 | D72: =INDEX(ATS!$B:$V,MATCH('2) Order Form'!$V72,ATS!$U:$U,0),2) -> Igniter 2Vi MIPS Helmet | E72: =INDEX(ATS!$B:$V,MATCH('2) Order Form'!$V72,ATS!$U:$U,0),4) -> GSWHT-SM | F72: =INDEX(ATS!$B:$V,MATCH('2) Order Form'!$V72,ATS!$U:$U,0),5) -> Gloss White | G72: =INDEX(ATS!$B:$V,MATCH('2) Order Form'!$V72,ATS!$U:$U,0),6) -> SM | H72: =IFERROR(VLOOKUP(C72,EAN!$K:$O,5,FALSE),0) -> 1 | I72: 0 | J72: =IFERROR(VLOOKUP(V72,ATS!$U:$V,2,FALSE),0) -> 0 | K72: 0 | L72: =IFERROR(VLOOKUP(V72,ATS!$U:$W,3,FALSE),0) -> 0 | M72: 0 | N72: 0% | O72: 0% | P72: =VLOOKUP($C72,Prices!$A$3:$R$1996,MATCH('2) Order Form'!P$8,Prices!$A$2:$R$2,0),FALSE) -> 125.00 | Q72: =VLOOKUP($C72,Prices!$A$3:$R$1996,MATCH('2) Order Form'!Q$8,Prices!$A$2:$R$2,0),FALSE) -> 249.00 | R72: 0 | S72: 0 | T72: 0 | V72: 7048652832436 | X72: 0 | Y72: 0 | Z72: 3 | AA72: 0 | AB72: 1 | AC72: 840102Gloss White | AD72: 840102 | AE72: =INDEX(ATS!$B:$V,MATCH('2) Order Form'!$V72,ATS!$U:$U,0),7) -> Active
A73: 1 | B73: Helmets & Helmet Acc. | C73: =INDEX(ATS!$B:$V,MATCH('2) Order Form'!$V73,ATS!$U:$U,0),1) -> 840102 | D73: =INDEX(ATS!$B:$V,MATCH('2) Order Form'!$V73,ATS!$U:$U,0),2) -> Igniter 2Vi MIPS Helmet | E73: =INDEX(ATS!$B:$V,MATCH('2) Order Form'!$V73,ATS!$U:$U,0),4) -> GSWHT-ML | F73: =INDEX(ATS!$B:$V,MATCH('2) Order Form'!$V73,ATS!$U:$U,0),5) -> Gloss White | G73: =INDEX(ATS!$B:$V,MATCH('2) Order Form'!$V73,ATS!$U:$U,0),6) -> ML | H73: =IFERROR(VLOOKUP(C73,EAN!$K:$O,5,FALSE),0) -> 1 | I73: 0 | J73: =IFERROR(VLOOKUP(V73,ATS!$U:$V,2,FALSE),0) -> 210 | K73: =IF(J73=99999,"OPEN",IF(J73>50,"50+",IF(J73<=0,"0",J73))) -> 50+ | L73: =IFERROR(VLOOKUP(V73,ATS!$U:$W,3,FALSE),0) -> 210 | M73: =IF(L73=99999,"OPEN",IF(L73>50,"50+",IF(L73<=0,"0",L73))) -> 50+ | N73: 0% | O73: 0% | P73: =VLOOKUP($C73,Prices!$A$3:$R$1996,MATCH('2) Order Form'!P$8,Prices!$A$2:$R$2,0),FALSE) -> 125.00 | Q73: =VLOOKUP($C73,Prices!$A$3:$R$1996,MATCH('2) Order Form'!Q$8,Prices!$A$2:$R$2,0),FALSE) -> 249.00 | R73: =I73*P73 -> 0 | S73: =R73*O73 -> 0 | T73: =R73-S73 -> 0 | V73: 7048652832429 | X73: 0 | Y73: 0 | Z73: 3 | AA73: 0 | AB73: 0 | AC73: 840102Gloss White | AD73: 840102 | AE73: =INDEX(ATS!$B:$V,MATCH('2) Order Form'!$V73,ATS!$U:$U,0),7) -> Active
A74: 1 | B74: Helmets & Helmet Acc. | C74: =INDEX(ATS!$B:$V,MATCH('2) Order Form'!$V74,ATS!$U:$U,0),1) -> 840102 | D74: =INDEX(ATS!$B:$V,MATCH('2) Order Form'!$V74,ATS!$U:$U,0),2) -> Igniter 2Vi MIPS Helmet | E74: =INDEX(ATS!$B:$V,MATCH('2) Order Form'!$V74,ATS!$U:$U,0),4) -> GSWHT-LXL | F74: =INDEX(ATS!$B:$V,MATCH('2) Order Form'!$V74,ATS!$U:$U,0),5) -> Gloss White | G74: =INDEX(ATS!$B:$V,MATCH('2) Order Form'!$V74,ATS!$U:$U,0),6) -> LXL | H74: =IFERROR(VLOOKUP(C74,EAN!$K:$O,5,FALSE),0) -> 1 | I74: 0 | J74: =IFERROR(VLOOKUP(V74,ATS!$U:$V,2,FALSE),0) -> 27 | K74: 27 | L74: =IFERROR(VLOOKUP(V74,ATS!$U:$W,3,FALSE),0) -> 27 | M74: 27 | N74: 0% | O74: 0% | P74: =VLOOKUP($C74,Prices!$A$3:$R$1996,MATCH('2) Order Form'!P$8,Prices!$A$2:$R$2,0),FALSE) -> 125.00 | Q74: =VLOOKUP($C74,Prices!$A$3:$R$1996,MATCH('2) Order Form'!Q$8,Prices!$A$2:$R$2,0),FALSE) -> 249.00 | R74: 0 | S74: 0 | T74: 0 | V74: 7048652832412 | X74: 0 | Y74: 0 | Z74: 3 | AA74: 0 | AB74: 0 | AC74: 840102Gloss White | AD74: 840102 | AE74: =INDEX(ATS!$B:$V,MATCH('2) Order Form'!$V74,ATS!$U:$U,0),7) -> Active
A75: 1 | B75: Helmets & Helmet Acc. | C75: =INDEX(ATS!$B:$V,MATCH('2) Order Form'!$V75,ATS!$U:$U,0),1) -> 840102 | D75: =INDEX(ATS!$B:$V,MATCH('2) Order Form'!$V75,ATS!$U:$U,0),2) -> Igniter 2Vi MIPS Helmet | E75: =INDEX(ATS!$B:$V,MATCH('2) Order Form'!$V75,ATS!$U:$U,0),4) -> MASEM-SM | F75: =INDEX(ATS!$B:$V,MATCH('2) Order Form'!$V75,ATS!$U:$U,0),5) -> Matte Sea Metallic | G75: =INDEX(ATS!$B:$V,MATCH('2) Order Form'!$V75,ATS!$U:$U,0),6) -> SM | H75: =IFERROR(VLOOKUP(C75,EAN!$K:$O,5,FALSE),0) -> 1 | I75: 0 | J75: =IFERROR(VLOOKUP(V75,ATS!$U:$V,2,FALSE),0) -> 42 | K75: 42 | L75: =IFERROR(VLOOKUP(V75,ATS!$U:$W,3,FALSE),0) -> 42 | M75: 42 | N75: 0% | O75: 0% | P75: =VLOOKUP($C75,Prices!$A$3:$R$1996,MATCH('2) Order Form'!P$8,Prices!$A$2:$R$2,0),FALSE) -> 125.00 | Q75: =VLOOKUP($C75,Prices!$A$3:$R$1996,MATCH('2) Order Form'!Q$8,Prices!$A$2:$R$2,0),FALSE) -> 249.00 | R75: 0 | S75: 0 | T75: 0 | V75: 7048652832467 | X75: =I75*Q75 -> 0 | Y75: =IF(A75=OFFSET(A75,-1,0),0,1) -> 0 | Z75: =IF(C75=OFFSET(C75,-1,0),OFFSET(Z75,-1,0),OFFSET(Z75,-1,0)+1) -> 3 | AA75: =IF(C75=OFFSET(C75,-1,0),0,1) -> 0 | AB75: =IF(F75=OFFSET(F75,-1,0),0,1) -> 1 | AC75: =CONCATENATE(C75,F75) -> 840102Matte Sea Metallic | AD75: =IFERROR(IF(B75="EYEWEAR",CONCATENATE(C75,"-",G75),C75),C75) -> 840102 | AE75: =INDEX(ATS!$B:$V,MATCH('2) Order Form'!$V75,ATS!$U:$U,0),7) -> Stock
A76: 1 | B76: Helmets & Helmet Acc. | C76: =INDEX(ATS!$B:$V,MATCH('2) Order Form'!$V76,ATS!$U:$U,0),1) -> 840102 | D76: =INDEX(ATS!$B:$V,MATCH('2) Order Form'!$V76,ATS!$U:$U,0),2) -> Igniter 2Vi MIPS Helmet | E76: =INDEX(ATS!$B:$V,MATCH('2) Order Form'!$V76,ATS!$U:$U,0),4) -> MASEM-ML | F76: =INDEX(ATS!$B:$V,MATCH('2) Order Form'!$V76,ATS!$U:$U,0),5) -> Matte Sea Metallic | G76: =INDEX(ATS!$B:$V,MATCH('2) Order Form'!$V76,ATS!$U:$U,0),6) -> ML | H76: =IFERROR(VLOOKUP(C76,EAN!$K:$O,5,FALSE),0) -> 1 | I76: 0 | J76: =IFERROR(VLOOKUP(V76,ATS!$U:$V,2,FALSE),0) -> 2 | K76: 2 | L76: =IFERROR(VLOOKUP(V76,ATS!$U:$W,3,FALSE),0) -> 2 | M76: 2 | N76: 0% | O76: 0% | P76: =VLOOKUP($C76,Prices!$A$3:$R$1996,MATCH('2) Order Form'!P$8,Prices!$A$2:$R$2,0),FALSE) -> 125.00 | Q76: =VLOOKUP($C76,Prices!$A$3:$R$1996,MATCH('2) Order Form'!Q$8,Prices!$A$2:$R$2,0),FALSE) -> 249.00 | R76: 0 | S76: 0 | T76: 0 | V76: 7048652832450 | X76: 0 | Y76: 0 | Z76: 3 | AA76: 0 | AB76: 0 | AC76: 840102Matte Sea Metallic | AD76: 840102 | AE76: =INDEX(ATS!$B:$V,MATCH('2) Order Form'!$V76,ATS!$U:$U,0),7) -> Stock
A77: 1 | B77: Helmets & Helmet Acc. | C77: =INDEX(ATS!$B:$V,MATCH('2) Order Form'!$V77,ATS!$U:$U,0),1) -> 840102 | D77: =INDEX(ATS!$B:$V,MATCH('2) Order Form'!$V77,ATS!$U:$U,0),2) -> Igniter 2Vi MIPS Helmet | E77: =INDEX(ATS!$B:$V,MATCH('2) Order Form'!$V77,ATS!$U:$U,0),4) -> MASEM-LXL | F77: =INDEX(ATS!$B:$V,MATCH('2) Order Form'!$V77,ATS!$U:$U,0),5) -> Matte Sea Metallic | G77: =INDEX(ATS!$B:$V,MATCH('2) Order Form'!$V77,ATS!$U:$U,0),6) -> LXL | H77: =IFERROR(VLOOKUP(C77,EAN!$K:$O,5,FALSE),0) -> 1 | I77: 0 | J77: =IFERROR(VLOOKUP(V77,ATS!$U:$V,2,FALSE),0) -> 0 | K77: 0 | L77: =IFERROR(VLOOKUP(V77,ATS!$U:$W,3,FALSE),0) -> 0 | M77: 0 | N77: 0% | O77: 0% | P77: =VLOOKUP($C77,Prices!$A$3:$R$1996,MATCH('2) Order Form'!P$8,Prices!$A$2:$R$2,0),FALSE) -> 125.00 | Q77: =VLOOKUP($C77,Prices!$A$3:$R$1996,MATCH('2) Order Form'!Q$8,Prices!$A$2:$R$2,0),FALSE) -> 249.00 | R77: 0 | S77: 0 | T77: 0 | V77: 7048652832443 | X77: 0 | Y77: 0 | Z77: 3 | AA77: 0 | AB77: 0 | AC77: 840102Matte Sea Metallic | AD77: 840102 | AE77: =INDEX(ATS!$B:$V,MATCH('2) Order Form'!$V77,ATS!$U:$U,0),7) -> Stock
A78: 1 | B78: Helmets & Helmet Acc. | C78: =INDEX(ATS!$B:$V,MATCH('2) Order Form'!$V78,ATS!$U:$U,0),1) -> 840102 | D78: =INDEX(ATS!$B:$V,MATCH('2) Order Form'!$V78,ATS!$U:$U,0),2) -> Igniter 2Vi MIPS Helmet | E78: =INDEX(ATS!$B:$V,MATCH('2) Order Form'!$V78,ATS!$U:$U,0),4) -> MBRWH-SM | F78: =INDEX(ATS!$B:$V,MATCH('2) Order Form'!$V78,ATS!$U:$U,0),5) -> Matte Bronco White | G78: =INDEX(ATS!$B:$V,MATCH('2) Order Form'!$V78,ATS!$U:$U,0),6) -> SM | H78: =IFERROR(VLOOKUP(C78,EAN!$K:$O,5,FALSE),0) -> 1 | I78: 0 | J78: =IFERROR(VLOOKUP(V78,ATS!$U:$V,2,FALSE),0) -> 61 | K78: 50+ | L78: =IFERROR(VLOOKUP(V78,ATS!$U:$W,3,FALSE),0) -> 61 | M78: 50+ | N78: 0% | O78: 0% | P78: =VLOOKUP($C78,Prices!$A$3:$R$1996,MATCH('2) Order Form'!P$8,Prices!$A$2:$R$2,0),FALSE) -> 125.00 | Q78: =VLOOKUP($C78,Prices!$A$3:$R$1996,MATCH('2) Order Form'!Q$8,Prices!$A$2:$R$2,0),FALSE) -> 249.00 | R78: 0 | S78: 0 | T78: 0 | V78: 7048652832528 | X78: 0 | Y78: 0 | Z78: 3 | AA78: 0 | AB78: 1 | AC78: 840102Matte Bronco White | AD78: 840102 | AE78: =INDEX(ATS!$B:$V,MATCH('2) Order Form'!$V78,ATS!$U:$U,0),7) -> Active
A79: 1 | B79: Helmets & Helmet Acc. | C79: =INDEX(ATS!$B:$V,MATCH('2) Order Form'!$V79,ATS!$U:$U,0),1) -> 840102 | D79: =INDEX(ATS!$B:$V,MATCH('2) Order Form'!$V79,ATS!$U:$U,0),2) -> Igniter 2Vi MIPS Helmet | E79: =INDEX(ATS!$B:$V,MATCH('2) Order Form'!$V79,ATS!$U:$U,0),4) -> MBRWH-ML | F79: =INDEX(ATS!$B:$V,MATCH('2) Order Form'!$V79,ATS!$U:$U,0),5) -> Matte Bronco White | G79: =INDEX(ATS!$B:$V,MATCH('2) Order Form'!$V79,ATS!$U:$U,0),6) -> ML | H79: =IFERROR(VLOOKUP(C79,EAN!$K:$O,5,FALSE),0) -> 1 | I79: 0 | J79: =IFERROR(VLOOKUP(V79,ATS!$U:$V,2,FALSE),0) -> 110 | K79: 50+ | L79: =IFERROR(VLOOKUP(V79,ATS!$U:$W,3,FALSE),0) -> 110 | M79: 50+ | N79: 0% | O79: 0% | P79: =VLOOKUP($C79,Prices!$A$3:$R$1996,MATCH('2) Order Form'!P$8,Prices!$A$2:$R$2,0),FALSE) -> 125.00 | Q79: =VLOOKUP($C79,Prices!$A$3:$R$1996,MATCH('2) Order Form'!Q$8,Prices!$A$2:$R$2,0),FALSE) -> 249.00 | R79: 0 | S79: 0 | T79: 0 | V79: 7048652832511 | X79: 0 | Y79: 0 | Z79: 3 | AA79: 0 | AB79: 0 | AC79: 840102Matte Bronco White | AD79: 840102 | AE79: =INDEX(ATS!$B:$V,MATCH('2) Order Form'!$V79,ATS!$U:$U,0),7) -> Active
A80: 1 | B80: Helmets & Helmet Acc. | C80: =INDEX(ATS!$B:$V,MATCH('2) Order Form'!$V80,ATS!$U:$U,0),1) -> 840102 | D80: =INDEX(ATS!$B:$V,MATCH('2) Order Form'!$V80,ATS!$U:$U,0),2) -> Igniter 2Vi MIPS Helmet | E80: =INDEX(ATS!$B:$V,MATCH('2) Order Form'!$V80,ATS!$U:$U,0),4) -> MBRWH-LXL | F80: =INDEX(ATS!$B:$V,MATCH('2) Order Form'!$V80,ATS!$U:$U,0),5) -> Matte Bronco White | G80: =INDEX(ATS!$B:$V,MATCH('2) Order Form'!$V80,ATS!$U:$U,0),6) -> LXL | H80: =IFERROR(VLOOKUP(C80,EAN!$K:$O,5,FALSE),0) -> 1 | I80: 0 | J80: =IFERROR(VLOOKUP(V80,ATS!$U:$V,2,FALSE),0) -> 126 | K80: 50+ | L80: =IFERROR(VLOOKUP(V80,ATS!$U:$W,3,FALSE),0) -> 126 | M80: 50+ | N80: 0% | O80: 0% | P80: =VLOOKUP($C80,Prices!$A$3:$R$1996,MATCH('2) Order Form'!P$8,Prices!$A$2:$R$2,0),FALSE) -> 125.00 | Q80: =VLOOKUP($C80,Prices!$A$3:$R$1996,MATCH('2) Order Form'!Q$8,Prices!$A$2:$R$2,0),FALSE) -> 249.00 | R80: 0 | S80: 0 | T80: 0 | V80: 7048652832504 | X80: 0 | Y80: 0 | Z80: 3 | AA80: 0 | AB80: 0 | AC80: 840102Matte Bronco White | AD80: 840102 | AE80: =INDEX(ATS!$B:$V,MATCH('2) Order Form'!$V80,ATS!$U:$U,0),7) -> Active
A81: 1 | B81: Helmets & Helmet Acc. | C81: =INDEX(ATS!$B:$V,MATCH('2) Order Form'!$V81,ATS!$U:$U,0),1) -> 840102 | D81: =INDEX(ATS!$B:$V,MATCH('2) Order Form'!$V81,ATS!$U:$U,0),2) -> Igniter 2Vi MIPS Helmet | E81: =INDEX(ATS!$B:$V,MATCH('2) Order Form'!$V81,ATS!$U:$U,0),4) -> MBUOE-SM | F81: =INDEX(ATS!$B:$V,MATCH('2) Order Form'!$V81,ATS!$U:$U,0),5) -> Matte Burning Orange | G81: =INDEX(ATS!$B:$V,MATCH('2) Order Form'!$V81,ATS!$U:$U,0),6) -> SM | H81: =IFERROR(VLOOKUP(C81,EAN!$K:$O,5,FALSE),0) -> 1 | I81: 0 | J81: =IFERROR(VLOOKUP(V81,ATS!$U:$V,2,FALSE),0) -> 71 | K81: 50+ | L81: =IFERROR(VLOOKUP(V81,ATS!$U:$W,3,FALSE),0) -> 71 | M81: 50+ | N81: 0% | O81: 0% | P81: =VLOOKUP($C81,Prices!$A$3:$R$1996,MATCH('2) Order Form'!P$8,Prices!$A$2:$R$2,0),FALSE) -> 125.00 | Q81: =VLOOKUP($C81,Prices!$A$3:$R$1996,MATCH('2) Order Form'!Q$8,Prices!$A$2:$R$2,0),FALSE) -> 249.00 | R81: 0 | S81: 0 | T81: 0 | V81: 7048652832559 | X81: 0 | Y81: 0 | Z81: 3 | AA81: 0 | AB81: 1 | AC81: 840102Matte Burning Orange | AD81: 840102 | AE81: =INDEX(ATS!$B:$V,MATCH('2) Order Form'!$V81,ATS!$U:$U,0),7) -> Stock
A82: 1 | B82: Helmets & Helmet Acc. | C82: =INDEX(ATS!$B:$V,MATCH('2) Order Form'!$V82,ATS!$U:$U,0),1) -> 840102 | D82: =INDEX(ATS!$B:$V,MATCH('2) Order Form'!$V82,ATS!$U:$U,0),2) -> Igniter 2Vi MIPS Helmet | E82: =INDEX(ATS!$B:$V,MATCH('2) Order Form'!$V82,ATS!$U:$U,0),4) -> MBUOE-ML | F82: =INDEX(ATS!$B:$V,MATCH('2) Order Form'!$V82,ATS!$U:$U,0),5) -> Matte Burning Orange | G82: =INDEX(ATS!$B:$V,MATCH('2) Order Form'!$V82,ATS!$U:$U,0),6) -> ML | H82: =IFERROR(VLOOKUP(C82,EAN!$K:$O,5,FALSE),0) -> 1 | I82: 0 | J82: =IFERROR(VLOOKUP(V82,ATS!$U:$V,2,FALSE),0) -> 0 | K82: 0 | L82: =IFERROR(VLOOKUP(V82,ATS!$U:$W,3,FALSE),0) -> 0 | M82: 0 | N82: 0% | O82: 0% | P82: =VLOOKUP($C82,Prices!$A$3:$R$1996,MATCH('2) Order Form'!P$8,Prices!$A$2:$R$2,0),FALSE) -> 125.00 | Q82: =VLOOKUP($C82,Prices!$A$3:$R$1996,MATCH('2) Order Form'!Q$8,Prices!$A$2:$R$2,0),FALSE) -> 249.00 | R82: 0 | S82: 0 | T82: 0 | V82: 7048652832542 | X82: 0 | Y82: 0 | Z82: 3 | AA82: 0 | AB82: 0 | AC82: 840102Matte Burning Orange | AD82: 840102 | AE82: =INDEX(ATS!$B:$V,MATCH('2) Order Form'!$V82,ATS!$U:$U,0),7) -> Stock
A83: 1 | B83: Helmets & Helmet Acc. | C83: =INDEX(ATS!$B:$V,MATCH('2) Order Form'!$V83,ATS!$U:$U,0),1) -> 840102 | D83: =INDEX(ATS!$B:$V,MATCH('2) Order Form'!$V83,ATS!$U:$U,0),2) -> Igniter 2Vi MIPS Helmet | E83: =INDEX(ATS!$B:$V,MATCH('2) Order Form'!$V83,ATS!$U:$U,0),4) -> MBUOE-LXL | F83: =INDEX(ATS!$B:$V,MATCH('2) Order Form'!$V83,ATS!$U:$U,0),5) -> Matte Burning Orange | G83: =INDEX(ATS!$B:$V,MATCH('2) Order Form'!$V83,ATS!$U:$U,0),6) -> LXL | H83: =IFERROR(VLOOKUP(C83,EAN!$K:$O,5,FALSE),0) -> 1 | I83: 0 | J83: =IFERROR(VLOOKUP(V83,ATS!$U:$V,2,FALSE),0) -> 0 | K83: 0 | L83: =IFERROR(VLOOKUP(V83,ATS!$U:$W,3,FALSE),0) -> 0 | M83: 0 | N83: 0% | O83: 0% | P83: =VLOOKUP($C83,Prices!$A$3:$R$1996,MATCH('2) Order Form'!P$8,Prices!$A$2:$R$2,0),FALSE) -> 125.00 | Q83: =VLOOKUP($C83,Prices!$A$3:$R$1996,MATCH('2) Order Form'!Q$8,Prices!$A$2:$R$2,0),FALSE) -> 249.00 | R83: 0 | S83: 0 | T83: 0 | V83: 7048652832535 | X83: 0 | Y83: 0 | Z83: 3 | AA83: 0 | AB83: 0 | AC83: 840102Matte Burning Orange | AD83: 840102 | AE83: =INDEX(ATS!$B:$V,MATCH('2) Order Form'!$V83,ATS!$U:$U,0),7) -> Stock
A84: 1 | B84: Helmets & Helmet Acc. | C84: =INDEX(ATS!$B:$V,MATCH('2) Order Form'!$V84,ATS!$U:$U,0),1) -> 840102 | D84: =INDEX(ATS!$B:$V,MATCH('2) Order Form'!$V84,ATS!$U:$U,0),2) -> Igniter 2Vi MIPS Helmet | E84: =INDEX(ATS!$B:$V,MATCH('2) Order Form'!$V84,ATS!$U:$U,0),4) -> PANTH-SM | F84: =INDEX(ATS!$B:$V,MATCH('2) Order Form'!$V84,ATS!$U:$U,0),5) -> Panther | G84: =INDEX(ATS!$B:$V,MATCH('2) Order Form'!$V84,ATS!$U:$U,0),6) -> SM | H84: =IFERROR(VLOOKUP(C84,EAN!$K:$O,5,FALSE),0) -> 1 | I84: 0 | J84: =IFERROR(VLOOKUP(V84,ATS!$U:$V,2,FALSE),0) -> 48 | K84: 48 | L84: =IFERROR(VLOOKUP(V84,ATS!$U:$W,3,FALSE),0) -> 48 | M84: 48 | N84: 0% | O84: 0% | P84: =VLOOKUP($C84,Prices!$A$3:$R$1996,MATCH('2) Order Form'!P$8,Prices!$A$2:$R$2,0),FALSE) -> 125.00 | Q84: =VLOOKUP($C84,Prices!$A$3:$R$1996,MATCH('2) Order Form'!Q$8,Prices!$A$2:$R$2,0),FALSE) -> 249.00 | R84: 0 | S84: 0 | T84: 0 | V84: 7048652966506 | X84: 0 | Y84: 0 | Z84: 3 | AA84: 0 | AB84: 1 | AC84: 840102Panther | AD84: 840102 | AE84: =INDEX(ATS!$B:$V,MATCH('2) Order Form'!$V84,ATS!$U:$U,0),7) -> Stock
A85: 1 | B85: Helmets & Helmet Acc. | C85: =INDEX(ATS!$B:$V,MATCH('2) Order Form'!$V85,ATS!$U:$U,0),1) -> 840102 | D85: =INDEX(ATS!$B:$V,MATCH('2) Order Form'!$V85,ATS!$U:$U,0),2) -> Igniter 2Vi MIPS Helmet | E85: =INDEX(ATS!$B:$V,MATCH('2) Order Form'!$V85,ATS!$U:$U,0),4) -> PANTH-ML | F85: =INDEX(ATS!$B:$V,MATCH('2) Order Form'!$V85,ATS!$U:$U,0),5) -> Panther | G85: =INDEX(ATS!$B:$V,MATCH('2) Order Form'!$V85,ATS!$U:$U,0),6) -> ML | H85: =IFERROR(VLOOKUP(C85,EAN!$K:$O,5,FALSE),0) -> 1 | I85: 0 | J85: =IFERROR(VLOOKUP(V85,ATS!$U:$V,2,FALSE),0) -> 77 | K85: 50+ | L85: =IFERROR(VLOOKUP(V85,ATS!$U:$W,3,FALSE),0) -> 77 | M85: 50+ | N85: 0% | O85: 0% | P85: =VLOOKUP($C85,Prices!$A$3:$R$1996,MATCH('2) Order Form'!P$8,Prices!$A$2:$R$2,0),FALSE) -> 125.00 | Q85: =VLOOKUP($C85,Prices!$A$3:$R$1996,MATCH('2) Order Form'!Q$8,Prices!$A$2:$R$2,0),FALSE) -> 249.00 | R85: 0 | S85: 0 | T85: 0 | V85: 7048652966490 | X85: 0 | Y85: 0 | Z85: 3 | AA85: 0 | AB85: 0 | AC85: 840102Panther | AD85: 840102 | AE85: =INDEX(ATS!$B:$V,MATCH('2) Order Form'!$V85,ATS!$U:$U,0),7) -> Stock
A86: 1 | B86: Helmets & Helmet Acc. | C86: =INDEX(ATS!$B:$V,MATCH('2) Order Form'!$V86,ATS!$U:$U,0),1) -> 840102 | D86: =INDEX(ATS!$B:$V,MATCH('2) Order Form'!$V86,ATS!$U:$U,0),2) -> Igniter 2Vi MIPS Helmet | E86: =INDEX(ATS!$B:$V,MATCH('2) Order Form'!$V86,ATS!$U:$U,0),4) -> PANTH-LXL | F86: =INDEX(ATS!$B:$V,MATCH('2) Order Form'!$V86,ATS!$U:$U,0),5) -> Panther | G86: =INDEX(ATS!$B:$V,MATCH('2) Order Form'!$V86,ATS!$U:$U,0),6) -> LXL | H86: =IFERROR(VLOOKUP(C86,EAN!$K:$O,5,FALSE),0) -> 1 | I86: 0 | J86: =IFERROR(VLOOKUP(V86,ATS!$U:$V,2,FALSE),0) -> 16 | K86: 16 | L86: =IFERROR(VLOOKUP(V86,ATS!$U:$W,3,FALSE),0) -> 16 | M86: 16 | N86: 0% | O86: 0% | P86: =VLOOKUP($C86,Prices!$A$3:$R$1996,MATCH('2) Order Form'!P$8,Prices!$A$2:$R$2,0),FALSE) -> 125.00 | Q86: =VLOOKUP($C86,Prices!$A$3:$R$1996,MATCH('2) Order Form'!Q$8,Prices!$A$2:$R$2,0),FALSE) -> 249.00 | R86: 0 | S86: 0 | T86: 0 | V86: 7048652966483 | X86: 0 | Y86: 0 | Z86: 3 | AA86: 0 | AB86: 0 | AC86: 840102Panther | AD86: 840102 | AE86: =INDEX(ATS!$B:$V,MATCH('2) Order Form'!$V86,ATS!$U:$U,0),7) -> Stock
A87: 1 | B87: Helmets & Helmet Acc. | C87: =INDEX(ATS!$B:$V,MATCH('2) Order Form'!$V87,ATS!$U:$U,0),1) -> 840102 | D87: =INDEX(ATS!$B:$V,MATCH('2) Order Form'!$V87,ATS!$U:$U,0),2) -> Igniter 2Vi MIPS Helmet | E87: =INDEX(ATS!$B:$V,MATCH('2) Order Form'!$V87,ATS!$U:$U,0),4) -> WOLND-SM | F87: =INDEX(ATS!$B:$V,MATCH('2) Order Form'!$V87,ATS!$U:$U,0),5) -> Woodland | G87: =INDEX(ATS!$B:$V,MATCH('2) Order Form'!$V87,ATS!$U:$U,0),6) -> SM | H87: =IFERROR(VLOOKUP(C87,EAN!$K:$O,5,FALSE),0) -> 1 | I87: 0 | J87: =IFERROR(VLOOKUP(V87,ATS!$U:$V,2,FALSE),0) -> 44 | K87: 44 | L87: =IFERROR(VLOOKUP(V87,ATS!$U:$W,3,FALSE),0) -> 44 | M87: 44 | N87: 0% | O87: 0% | P87: =VLOOKUP($C87,Prices!$A$3:$R$1996,MATCH('2) Order Form'!P$8,Prices!$A$2:$R$2,0),FALSE) -> 125.00 | Q87: =VLOOKUP($C87,Prices!$A$3:$R$1996,MATCH('2) Order Form'!Q$8,Prices!$A$2:$R$2,0),FALSE) -> 249.00 | R87: 0 | S87: 0 | T87: 0 | V87: 7048652966537 | X87: 0 | Y87: 0 | Z87: 3 | AA87: 0 | AB87: 1 | AC87: 840102Woodland | AD87: 840102 | AE87: =INDEX(ATS!$B:$V,MATCH('2) Order Form'!$V87,ATS!$U:$U,0),7) -> Active
A88: 1 | B88: Helmets & Helmet Acc. | C88: =INDEX(ATS!$B:$V,MATCH('2) Order Form'!$V88,ATS!$U:$U,0),1) -> 840102 | D88: =INDEX(ATS!$B:$V,MATCH('2) Order Form'!$V88,ATS!$U:$U,0),2) -> Igniter 2Vi MIPS Helmet | E88: =INDEX(ATS!$B:$V,MATCH('2) Order Form'!$V88,ATS!$U:$U,0),4) -> WOLND-ML | F88: =INDEX(ATS!$B:$V,MATCH('2) Order Form'!$V88,ATS!$U:$U,0),5) -> Woodland | G88: =INDEX(ATS!$B:$V,MATCH('2) Order Form'!$V88,ATS!$U:$U,0),6) -> ML | H88: =IFERROR(VLOOKUP(C88,EAN!$K:$O,5,FALSE),0) -> 1 | I88: 0 | J88: =IFERROR(VLOOKUP(V88,ATS!$U:$V,2,FALSE),0) -> 10 | K88: 10 | L88: =IFERROR(VLOOKUP(V88,ATS!$U:$W,3,FALSE),0) -> 10 | M88: 10 | N88: 0% | O88: 0% | P88: =VLOOKUP($C88,Prices!$A$3:$R$1996,MATCH('2) Order Form'!P$8,Prices!$A$2:$R$2,0),FALSE) -> 125.00 | Q88: =VLOOKUP($C88,Prices!$A$3:$R$1996,MATCH('2) Order Form'!Q$8,Prices!$A$2:$R$2,0),FALSE) -> 249.00 | R88: 0 | S88: 0 | T88: 0 | V88: 7048652966520 | X88: 0 | Y88: 0 | Z88: 3 | AA88: 0 | AB88: 0 | AC88: 840102Woodland | AD88: 840102 | AE88: =INDEX(ATS!$B:$V,MATCH('2) Order Form'!$V88,ATS!$U:$U,0),7) -> Active
A89: 1 | B89: Helmets & Helmet Acc. | C89: =INDEX(ATS!$B:$V,MATCH('2) Order Form'!$V89,ATS!$U:$U,0),1) -> 840102 | D89: =INDEX(ATS!$B:$V,MATCH('2) Order Form'!$V89,ATS!$U:$U,0),2) -> Igniter 2Vi MIPS Helmet | E89: =INDEX(ATS!$B:$V,MATCH('2) Order Form'!$V89,ATS!$U:$U,0),4) -> WOLND-LXL | F89: =INDEX(ATS!$B:$V,MATCH('2) Order Form'!$V89,ATS!$U:$U,0),5) -> Woodland | G89: =INDEX(ATS!$B:$V,MATCH('2) Order Form'!$V89,ATS!$U:$U,0),6) -> LXL | H89: =IFERROR(VLOOKUP(C89,EAN!$K:$O,5,FALSE),0) -> 1 | I89: 0 | J89: =IFERROR(VLOOKUP(V89,ATS!$U:$V,2,FALSE),0) -> 85 | K89: 50+ | L89: =IFERROR(VLOOKUP(V89,ATS!$U:$W,3,FALSE),0) -> 85 | M89: 50+ | N89: 0% | O89: 0% | P89: =VLOOKUP($C89,Prices!$A$3:$R$1996,MATCH('2) Order Form'!P$8,Prices!$A$2:$R$2,0),FALSE) -> 125.00 | Q89: =VLOOKUP($C89,Prices!$A$3:$R$1996,MATCH('2) Order Form'!Q$8,Prices!$A$2:$R$2,0),FALSE) -> 249.00 | R89: 0 | S89: 0 | T89: 0 | V89: 7048652966513 | X89: 0 | Y89: 0 | Z89: 3 | AA89: 0 | AB89: 0 | AC89: 840102Woodland | AD89: 840102 | AE89: =INDEX(ATS!$B:$V,MATCH('2) Order Form'!$V89,ATS!$U:$U,0),7) -> Active
A90: 1 | B90: Helmets & Helmet Acc. | C90: =INDEX(ATS!$B:$V,MATCH('2) Order Form'!$V90,ATS!$U:$U,0),1) -> 840084 | D90: =INDEX(ATS!$B:$V,MATCH('2) Order Form'!$V90,ATS!$U:$U,0),2) -> Ascender Mips Helmet | E90: =INDEX(ATS!$B:$V,MATCH('2) Order Form'!$V90,ATS!$U:$U,0),4) -> DTBLK-SM | F90: =INDEX(ATS!$B:$V,MATCH('2) Order Form'!$V90,ATS!$U:$U,0),5) -> Dirt Black | G90: =INDEX(ATS!$B:$V,MATCH('2) Order Form'!$V90,ATS!$U:$U,0),6) -> SM | H90: =IFERROR(VLOOKUP(C90,EAN!$K:$O,5,FALSE),0) -> 1 | I90: 0 | J90: =IFERROR(VLOOKUP(V90,ATS!$U:$V,2,FALSE),0) -> 19 | K90: 19 | L90: =IFERROR(VLOOKUP(V90,ATS!$U:$W,3,FALSE),0) -> 19 | M90: 19 | N90: 0% | O90: =IF(N90<>0,N90,$P$5) -> 0% | P90: =VLOOKUP($C90,Prices!$A$3:$R$1996,MATCH('2) Order Form'!P$8,Prices!$A$2:$R$2,0),FALSE) -> 115.00 | Q90: =VLOOKUP($C90,Prices!$A$3:$R$1996,MATCH('2) Order Form'!Q$8,Prices!$A$2:$R$2,0),FALSE) -> 229.00 | R90: 0 | S90: 0 | T90: 0 | V90: 7048652463456 | X90: 0 | Y90: 0 | Z90: 4 | AA90: 1 | AB90: 1 | AC90: 840084Dirt Black | AD90: 840084 | AE90: =INDEX(ATS!$B:$V,MATCH('2) Order Form'!$V90,ATS!$U:$U,0),7) -> Active
A91: 1 | B91: Helmets & Helmet Acc. | C91: =INDEX(ATS!$B:$V,MATCH('2) Order Form'!$V91,ATS!$U:$U,0),1) -> 840084 | D91: =INDEX(ATS!$B:$V,MATCH('2) Order Form'!$V91,ATS!$U:$U,0),2) -> Ascender Mips Helmet | E91: =INDEX(ATS!$B:$V,MATCH('2) Order Form'!$V91,ATS!$U:$U,0),4) -> DTBLK-ML | F91: =INDEX(ATS!$B:$V,MATCH('2) Order Form'!$V91,ATS!$U:$U,0),5) -> Dirt Black | G91: =INDEX(ATS!$B:$V,MATCH('2) Order Form'!$V91,ATS!$U:$U,0),6) -> ML | H91: =IFERROR(VLOOKUP(C91,EAN!$K:$O,5,FALSE),0) -> 1 | I91: 0 | J91: =IFERROR(VLOOKUP(V91,ATS!$U:$V,2,FALSE),0) -> 56 | K91: 50+ | L91: =IFERROR(VLOOKUP(V91,ATS!$U:$W,3,FALSE),0) -> 56 | M91: 50+ | N91: 0% | O91: 0% | P91: =VLOOKUP($C91,Prices!$A$3:$R$1996,MATCH('2) Order Form'!P$8,Prices!$A$2:$R$2,0),FALSE) -> 115.00 | Q91: =VLOOKUP($C91,Prices!$A$3:$R$1996,MATCH('2) Order Form'!Q$8,Prices!$A$2:$R$2,0),FALSE) -> 229.00 | R91: 0 | S91: 0 | T91: 0 | V91: 7048652463449 | X91: 0 | Y91: 0 | Z91: 4 | AA91: 0 | AB91: 0 | AC91: 840084Dirt Black | AD91: 840084 | AE91: =INDEX(ATS!$B:$V,MATCH('2) Order Form'!$V91,ATS!$U:$U,0),7) -> Active
A92: 1 | B92: Helmets & Helmet Acc. | C92: =INDEX(ATS!$B:$V,MATCH('2) Order Form'!$V92,ATS!$U:$U,0),1) -> 840084 | D92: =INDEX(ATS!$B:$V,MATCH('2) Order Form'!$V92,ATS!$U:$U,0),2) -> Ascender Mips Helmet | E92: =INDEX(ATS!$B:$V,MATCH('2) Order Form'!$V92,ATS!$U:$U,0),4) -> DTBLK-LXL | F92: =INDEX(ATS!$B:$V,MATCH('2) Order Form'!$V92,ATS!$U:$U,0),5) -> Dirt Black | G92: =INDEX(ATS!$B:$V,MATCH('2) Order Form'!$V92,ATS!$U:$U,0),6) -> LXL | H92: =IFERROR(VLOOKUP(C92,EAN!$K:$O,5,FALSE),0) -> 1 | I92: 0 | J92: =IFERROR(VLOOKUP(V92,ATS!$U:$V,2,FALSE),0) -> 0 | K92: 0 | L92: =IFERROR(VLOOKUP(V92,ATS!$U:$W,3,FALSE),0) -> 0 | M92: 0 | N92: 0% | O92: 0% | P92: =VLOOKUP($C92,Prices!$A$3:$R$1996,MATCH('2) Order Form'!P$8,Prices!$A$2:$R$2,0),FALSE) -> 115.00 | Q92: =VLOOKUP($C92,Prices!$A$3:$R$1996,MATCH('2) Order Form'!Q$8,Prices!$A$2:$R$2,0),FALSE) -> 229.00 | R92: =I92*P92 -> 0 | S92: =R92*O92 -> 0 | T92: =R92-S92 -> 0 | V92: 7048652463432 | X92: 0 | Y92: 0 | Z92: 4 | AA92: 0 | AB92: 0 | AC92: 840084Dirt Black | AD92: 840084 | AE92: =INDEX(ATS!$B:$V,MATCH('2) Order Form'!$V92,ATS!$U:$U,0),7) -> Active
A93: 1 | B93: Helmets & Helmet Acc. | C93: =INDEX(ATS!$B:$V,MATCH('2) Order Form'!$V93,ATS!$U:$U,0),1) -> 840084 | D93: =INDEX(ATS!$B:$V,MATCH('2) Order Form'!$V93,ATS!$U:$U,0),2) -> Ascender Mips Helmet | E93: =INDEX(ATS!$B:$V,MATCH('2) Order Form'!$V93,ATS!$U:$U,0),4) -> MASEM-SM | F93: =INDEX(ATS!$B:$V,MATCH('2) Order Form'!$V93,ATS!$U:$U,0),5) -> Matte Sea Metallic | G93: =INDEX(ATS!$B:$V,MATCH('2) Order Form'!$V93,ATS!$U:$U,0),6) -> SM | H93: =IFERROR(VLOOKUP(C93,EAN!$K:$O,5,FALSE),0) -> 1 | I93: 0 | J93: =IFERROR(VLOOKUP(V93,ATS!$U:$V,2,FALSE),0) -> 92 | K93: =IF(J93=99999,"OPEN",IF(J93>50,"50+",IF(J93<=0,"0",J93))) -> 50+ | L93: =IFERROR(VLOOKUP(V93,ATS!$U:$W,3,FALSE),0) -> 92 | M93: =IF(L93=99999,"OPEN",IF(L93>50,"50+",IF(L93<=0,"0",L93))) -> 50+ | N93: 0% | O93: 0% | P93: =VLOOKUP($C93,Prices!$A$3:$R$1996,MATCH('2) Order Form'!P$8,Prices!$A$2:$R$2,0),FALSE) -> 115.00 | Q93: =VLOOKUP($C93,Prices!$A$3:$R$1996,MATCH('2) Order Form'!Q$8,Prices!$A$2:$R$2,0),FALSE) -> 229.00 | R93: 0 | S93: 0 | T93: 0 | V93: 7048652823021 | X93: 0 | Y93: 0 | Z93: 4 | AA93: 0 | AB93: 1 | AC93: 840084Matte Sea Metallic | AD93: 840084 | AE93: =INDEX(ATS!$B:$V,MATCH('2) Order Form'!$V93,ATS!$U:$U,0),7) -> Stock
A94: 1 | B94: Helmets & Helmet Acc. | C94: =INDEX(ATS!$B:$V,MATCH('2) Order Form'!$V94,ATS!$U:$U,0),1) -> 840084 | D94: =INDEX(ATS!$B:$V,MATCH('2) Order Form'!$V94,ATS!$U:$U,0),2) -> Ascender Mips Helmet | E94: =INDEX(ATS!$B:$V,MATCH('2) Order Form'!$V94,ATS!$U:$U,0),4) -> MASEM-ML | F94: =INDEX(ATS!$B:$V,MATCH('2) Order Form'!$V94,ATS!$U:$U,0),5) -> Matte Sea Metallic | G94: =INDEX(ATS!$B:$V,MATCH('2) Order Form'!$V94,ATS!$U:$U,0),6) -> ML | H94: =IFERROR(VLOOKUP(C94,EAN!$K:$O,5,FALSE),0) -> 1 | I94: 0 | J94: =IFERROR(VLOOKUP(V94,ATS!$U:$V,2,FALSE),0) -> 105 | K94: 50+ | L94: =IFERROR(VLOOKUP(V94,ATS!$U:$W,3,FALSE),0) -> 105 | M94: 50+ | N94: 0% | O94: =IF(N94<>0,N94,$P$5) -> 0% | P94: =VLOOKUP($C94,Prices!$A$3:$R$1996,MATCH('2) Order Form'!P$8,Prices!$A$2:$R$2,0),FALSE) -> 115.00 | Q94: =VLOOKUP($C94,Prices!$A$3:$R$1996,MATCH('2) Order Form'!Q$8,Prices!$A$2:$R$2,0),FALSE) -> 229.00 | R94: 0 | S94: 0 | T94: 0 | V94: 7048652823014 | X94: 0 | Y94: 0 | Z94: 4 | AA94: 0 | AB94: 0 | AC94: 840084Matte Sea Metallic | AD94: 840084 | AE94: =INDEX(ATS!$B:$V,MATCH('2) Order Form'!$V94,ATS!$U:$U,0),7) -> Stock
A95: 1 | B95: Helmets & Helmet Acc. | C95: =INDEX(ATS!$B:$V,MATCH('2) Order Form'!$V95,ATS!$U:$U,0),1) -> 840084 | D95: =INDEX(ATS!$B:$V,MATCH('2) Order Form'!$V95,ATS!$U:$U,0),2) -> Ascender Mips Helmet | E95: =INDEX(ATS!$B:$V,MATCH('2) Order Form'!$V95,ATS!$U:$U,0),4) -> MASEM-LXL | F95: =INDEX(ATS!$B:$V,MATCH('2) Order Form'!$V95,ATS!$U:$U,0),5) -> Matte Sea Metallic | G95: =INDEX(ATS!$B:$V,MATCH('2) Order Form'!$V95,ATS!$U:$U,0),6) -> LXL | H95: =IFERROR(VLOOKUP(C95,EAN!$K:$O,5,FALSE),0) -> 1 | I95: 0 | J95: =IFERROR(VLOOKUP(V95,ATS!$U:$V,2,FALSE),0) -> 59 | K95: 50+ | L95: =IFERROR(VLOOKUP(V95,ATS!$U:$W,3,FALSE),0) -> 59 | M95: 50+ | N95: 0% | O95: 0% | P95: =VLOOKUP($C95,Prices!$A$3:$R$1996,MATCH('2) Order Form'!P$8,Prices!$A$2:$R$2,0),FALSE) -> 115.00 | Q95: =VLOOKUP($C95,Prices!$A$3:$R$1996,MATCH('2) Order Form'!Q$8,Prices!$A$2:$R$2,0),FALSE) -> 229.00 | R95: 0 | S95: 0 | T95: 0 | V95: 7048652823007 | X95: 0 | Y95: 0 | Z95: 4 | AA95: 0 | AB95: 0 | AC95: 840084Matte Sea Metallic | AD95: 840084 | AE95: =INDEX(ATS!$B:$V,MATCH('2) Order Form'!$V95,ATS!$U:$U,0),7) -> Stock
A96: 1 | B96: Helmets & Helmet Acc. | C96: =INDEX(ATS!$B:$V,MATCH('2) Order Form'!$V96,ATS!$U:$U,0),1) -> 840084 | D96: =INDEX(ATS!$B:$V,MATCH('2) Order Form'!$V96,ATS!$U:$U,0),2) -> Ascender Mips Helmet | E96: =INDEX(ATS!$B:$V,MATCH('2) Order Form'!$V96,ATS!$U:$U,0),4) -> MBBLU-SM | F96: =INDEX(ATS!$B:$V,MATCH('2) Order Form'!$V96,ATS!$U:$U,0),5) -> Matte Bird Blue | G96: =INDEX(ATS!$B:$V,MATCH('2) Order Form'!$V96,ATS!$U:$U,0),6) -> SM | H96: =IFERROR(VLOOKUP(C96,EAN!$K:$O,5,FALSE),0) -> 1 | I96: 0 | J96: =IFERROR(VLOOKUP(V96,ATS!$U:$V,2,FALSE),0) -> 17 | K96: 17 | L96: =IFERROR(VLOOKUP(V96,ATS!$U:$W,3,FALSE),0) -> 17 | M96: 17 | N96: 0% | O96: 0% | P96: =VLOOKUP($C96,Prices!$A$3:$R$1996,MATCH('2) Order Form'!P$8,Prices!$A$2:$R$2,0),FALSE) -> 115.00 | Q96: =VLOOKUP($C96,Prices!$A$3:$R$1996,MATCH('2) Order Form'!Q$8,Prices!$A$2:$R$2,0),FALSE) -> 229.00 | R96: 0 | S96: 0 | T96: 0 | V96: 7048652714619 | X96: 0 | Y96: 0 | Z96: 4 | AA96: 0 | AB96: 1 | AC96: 840084Matte Bird Blue | AD96: 840084 | AE96: =INDEX(ATS!$B:$V,MATCH('2) Order Form'!$V96,ATS!$U:$U,0),7) -> Active
A97: 1 | B97: Helmets & Helmet Acc. | C97: =INDEX(ATS!$B:$V,MATCH('2) Order Form'!$V97,ATS!$U:$U,0),1) -> 840084 | D97: =INDEX(ATS!$B:$V,MATCH('2) Order Form'!$V97,ATS!$U:$U,0),2) -> Ascender Mips Helmet | E97: =INDEX(ATS!$B:$V,MATCH('2) Order Form'!$V97,ATS!$U:$U,0),4) -> MBBLU-ML | F97: =INDEX(ATS!$B:$V,MATCH('2) Order Form'!$V97,ATS!$U:$U,0),5) -> Matte Bird Blue | G97: =INDEX(ATS!$B:$V,MATCH('2) Order Form'!$V97,ATS!$U:$U,0),6) -> ML | H97: =IFERROR(VLOOKUP(C97,EAN!$K:$O,5,FALSE),0) -> 1 | I97: 0 | J97: =IFERROR(VLOOKUP(V97,ATS!$U:$V,2,FALSE),0) -> 32 | K97: 32 | L97: =IFERROR(VLOOKUP(V97,ATS!$U:$W,3,FALSE),0) -> 32 | M97: 32 | N97: 0% | O97: 0% | P97: =VLOOKUP($C97,Prices!$A$3:$R$1996,MATCH('2) Order Form'!P$8,Prices!$A$2:$R$2,0),FALSE) -> 115.00 | Q97: =VLOOKUP($C97,Prices!$A$3:$R$1996,MATCH('2) Order Form'!Q$8,Prices!$A$2:$R$2,0),FALSE) -> 229.00 | R97: 0 | S97: 0 | T97: 0 | V97: 7048652714602 | X97: 0 | Y97: 0 | Z97: 4 | AA97: 0 | AB97: 0 | AC97: 840084Matte Bird Blue | AD97: 840084 | AE97: =INDEX(ATS!$B:$V,MATCH('2) Order Form'!$V97,ATS!$U:$U,0),7) -> Active
A98: 1 | B98: Helmets & Helmet Acc. | C98: =INDEX(ATS!$B:$V,MATCH('2) Order Form'!$V98,ATS!$U:$U,0),1) -> 840084 | D98: =INDEX(ATS!$B:$V,MATCH('2) Order Form'!$V98,ATS!$U:$U,0),2) -> Ascender Mips Helmet | E98: =INDEX(ATS!$B:$V,MATCH('2) Order Form'!$V98,ATS!$U:$U,0),4) -> MBBLU-LXL | F98: =INDEX(ATS!$B:$V,MATCH('2) Order Form'!$V98,ATS!$U:$U,0),5) -> Matte Bird Blue | G98: =INDEX(ATS!$B:$V,MATCH('2) Order Form'!$V98,ATS!$U:$U,0),6) -> LXL | H98: =IFERROR(VLOOKUP(C98,EAN!$K:$O,5,FALSE),0) -> 1 | I98: 0 | J98: =IFERROR(VLOOKUP(V98,ATS!$U:$V,2,FALSE),0) -> 69 | K98: 50+ | L98: =IFERROR(VLOOKUP(V98,ATS!$U:$W,3,FALSE),0) -> 69 | M98: 50+ | N98: 0% | O98: 0% | P98: =VLOOKUP($C98,Prices!$A$3:$R$1996,MATCH('2) Order Form'!P$8,Prices!$A$2:$R$2,0),FALSE) -> 115.00 | Q98: =VLOOKUP($C98,Prices!$A$3:$R$1996,MATCH('2) Order Form'!Q$8,Prices!$A$2:$R$2,0),FALSE) -> 229.00 | R98: 0 | S98: 0 | T98: 0 | V98: 7048652714596 | X98: 0 | Y98: 0 | Z98: 4 | AA98: 0 | AB98: 0 | AC98: 840084Matte Bird Blue | AD98: 840084 | AE98: =INDEX(ATS!$B:$V,MATCH('2) Order Form'!$V98,ATS!$U:$U,0),7) -> Active
A99: 1 | B99: Helmets & Helmet Acc. | C99: =INDEX(ATS!$B:$V,MATCH('2) Order Form'!$V99,ATS!$U:$U,0),1) -> 840084 | D99: =INDEX(ATS!$B:$V,MATCH('2) Order Form'!$V99,ATS!$U:$U,0),2) -> Ascender Mips Helmet | E99: =INDEX(ATS!$B:$V,MATCH('2) Order Form'!$V99,ATS!$U:$U,0),4) -> MBUOE-SM | F99: =INDEX(ATS!$B:$V,MATCH('2) Order Form'!$V99,ATS!$U:$U,0),5) -> Matte Burning Orange | G99: =INDEX(ATS!$B:$V,MATCH('2) Order Form'!$V99,ATS!$U:$U,0),6) -> SM | H99: =IFERROR(VLOOKUP(C99,EAN!$K:$O,5,FALSE),0) -> 1 | I99: 0 | J99: =IFERROR(VLOOKUP(V99,ATS!$U:$V,2,FALSE),0) -> 99 | K99: 50+ | L99: =IFERROR(VLOOKUP(V99,ATS!$U:$W,3,FALSE),0) -> 99 | M99: 50+ | N99: 0% | O99: 0% | P99: =VLOOKUP($C99,Prices!$A$3:$R$1996,MATCH('2) Order Form'!P$8,Prices!$A$2:$R$2,0),FALSE) -> 115.00 | Q99: =VLOOKUP($C99,Prices!$A$3:$R$1996,MATCH('2) Order Form'!Q$8,Prices!$A$2:$R$2,0),FALSE) -> 229.00 | R99: 0 | S99: 0 | T99: 0 | V99: 7048652823052 | X99: 0 | Y99: 0 | Z99: 4 | AA99: 0 | AB99: 1 | AC99: 840084Matte Burning Orange | AD99: 840084 | AE99: =INDEX(ATS!$B:$V,MATCH('2) Order Form'!$V99,ATS!$U:$U,0),7) -> Stock
A100: 1 | B100: Helmets & Helmet Acc. | C100: =INDEX(ATS!$B:$V,MATCH('2) Order Form'!$V100,ATS!$U:$U,0),1) -> 840084 | D100: =INDEX(ATS!$B:$V,MATCH('2) Order Form'!$V100,ATS!$U:$U,0),2) -> Ascender Mips Helmet | E100: =INDEX(ATS!$B:$V,MATCH('2) Order Form'!$V100,ATS!$U:$U,0),4) -> MBUOE-ML | F100: =INDEX(ATS!$B:$V,MATCH('2) Order Form'!$V100,ATS!$U:$U,0),5) -> Matte Burning Orange | G100: =INDEX(ATS!$B:$V,MATCH('2) Order Form'!$V100,ATS!$U:$U,0),6) -> ML | H100: =IFERROR(VLOOKUP(C100,EAN!$K:$O,5,FALSE),0) -> 1 | I100: 0 | J100: =IFERROR(VLOOKUP(V100,ATS!$U:$V,2,FALSE),0) -> 97 | K100: 50+ | L100: =IFERROR(VLOOKUP(V100,ATS!$U:$W,3,FALSE),0) -> 97 | M100: 50+ | N100: 0% | O100: =IF(N100<>0,N100,$P$5) -> 0% | P100: =VLOOKUP($C100,Prices!$A$3:$R$1996,MATCH('2) Order Form'!P$8,Prices!$A$2:$R$2,0),FALSE) -> 115.00 | Q100: =VLOOKUP($C100,Prices!$A$3:$R$1996,MATCH('2) Order Form'!Q$8,Prices!$A$2:$R$2,0),FALSE) -> 229.00 | R100: 0 | S100: 0 | T100: 0 | V100: 7048652823045 | X100: 0 | Y100: 0 | Z100: 4 | AA100: 0 | AB100: 0 | AC100: 840084Matte Burning Orange | AD100: 840084 | AE100: =INDEX(ATS!$B:$V,MATCH('2) Order Form'!$V100,ATS!$U:$U,0),7) -> Stock
A101: 1 | B101: Helmets & Helmet Acc. | C101: =INDEX(ATS!$B:$V,MATCH('2) Order Form'!$V101,ATS!$U:$U,0),1) -> 840084 | D101: =INDEX(ATS!$B:$V,MATCH('2) Order Form'!$V101,ATS!$U:$U,0),2) -> Ascender Mips Helmet | E101: =INDEX(ATS!$B:$V,MATCH('2) Order Form'!$V101,ATS!$U:$U,0),4) -> MBUOE-LXL | F101: =INDEX(ATS!$B:$V,MATCH('2) Order Form'!$V101,ATS!$U:$U,0),5) -> Matte Burning Orange | G101: =INDEX(ATS!$B:$V,MATCH('2) Order Form'!$V101,ATS!$U:$U,0),6) -> LXL | H101: =IFERROR(VLOOKUP(C101,EAN!$K:$O,5,FALSE),0) -> 1 | I101: 0 | J101: =IFERROR(VLOOKUP(V101,ATS!$U:$V,2,FALSE),0) -> 62 | K101: 50+ | L101: =IFERROR(VLOOKUP(V101,ATS!$U:$W,3,FALSE),0) -> 62 | M101: 50+ | N101: 0% | O101: 0% | P101: =VLOOKUP($C101,Prices!$A$3:$R$1996,MATCH('2) Order Form'!P$8,Prices!$A$2:$R$2,0),FALSE) -> 115.00 | Q101: =VLOOKUP($C101,Prices!$A$3:$R$1996,MATCH('2) Order Form'!Q$8,Prices!$A$2:$R$2,0),FALSE) -> 229.00 | R101: 0 | S101: 0 | T101: 0 | V101: 7048652823038 | X101: 0 | Y101: 0 | Z101: 4 | AA101: 0 | AB101: 0 | AC101: 840084Matte Burning Orange | AD101: 840084 | AE101: =INDEX(ATS!$B:$V,MATCH('2) Order Form'!$V101,ATS!$U:$U,0),7) -> Stock
A102: 1 | B102: Helmets & Helmet Acc. | C102: =INDEX(ATS!$B:$V,MATCH('2) Order Form'!$V102,ATS!$U:$U,0),1) -> 840080 | D102: =INDEX(ATS!$B:$V,MATCH('2) Order Form'!$V102,ATS!$U:$U,0),2) -> Ascender | E102: =INDEX(ATS!$B:$V,MATCH('2) Order Form'!$V102,ATS!$U:$U,0),4) -> DTBLK-SM | F102: =INDEX(ATS!$B:$V,MATCH('2) Order Form'!$V102,ATS!$U:$U,0),5) -> Dirt Black | G102: =INDEX(ATS!$B:$V,MATCH('2) Order Form'!$V102,ATS!$U:$U,0),6) -> SM | H102: =IFERROR(VLOOKUP(C102,EAN!$K:$O,5,FALSE),0) -> 1 | I102: 0 | J102: =IFERROR(VLOOKUP(V102,ATS!$U:$V,2,FALSE),0) -> 0 | K102: =IF(J102=99999,"OPEN",IF(J102>50,"50+",IF(J102<=0,"0",J102))) -> 0 | L102: =IFERROR(VLOOKUP(V102,ATS!$U:$W,3,FALSE),0) -> 0 | M102: =IF(L102=99999,"OPEN",IF(L102>50,"50+",IF(L102<=0,"0",L102))) -> 0 | N102: 0% | O102: =IF(N102<>0,N102,$P$5) -> 0% | P102: =VLOOKUP($C102,Prices!$A$3:$R$1996,MATCH('2) Order Form'!P$8,Prices!$A$2:$R$2,0),FALSE) -> 100.00 | Q102: =VLOOKUP($C102,Prices!$A$3:$R$1996,MATCH('2) Order Form'!Q$8,Prices!$A$2:$R$2,0),FALSE) -> 199.00 | R102: =I102*P102 -> 0 | S102: =R102*O102 -> 0 | T102: =R102-S102 -> 0 | V102: 7048652463579 | X102: 0 | Y102: 0 | Z102: 5 | AA102: 1 | AB102: 1 | AC102: 840080Dirt Black | AD102: 840080 | AE102: =INDEX(ATS!$B:$V,MATCH('2) Order Form'!$V102,ATS!$U:$U,0),7) -> Active
A103: 1 | B103: Helmets & Helmet Acc. | C103: =INDEX(ATS!$B:$V,MATCH('2) Order Form'!$V103,ATS!$U:$U,0),1) -> 840080 | D103: =INDEX(ATS!$B:$V,MATCH('2) Order Form'!$V103,ATS!$U:$U,0),2) -> Ascender | E103: =INDEX(ATS!$B:$V,MATCH('2) Order Form'!$V103,ATS!$U:$U,0),4) -> DTBLK-ML | F103: =INDEX(ATS!$B:$V,MATCH('2) Order Form'!$V103,ATS!$U:$U,0),5) -> Dirt Black | G103: =INDEX(ATS!$B:$V,MATCH('2) Order Form'!$V103,ATS!$U:$U,0),6) -> ML | H103: =IFERROR(VLOOKUP(C103,EAN!$K:$O,5,FALSE),0) -> 1 | I103: 0 | J103: =IFERROR(VLOOKUP(V103,ATS!$U:$V,2,FALSE),0) -> 0 | K103: 0 | L103: =IFERROR(VLOOKUP(V103,ATS!$U:$W,3,FALSE),0) -> 0 | M103: 0 | N103: 0% | O103: 0% | P103: =VLOOKUP($C103,Prices!$A$3:$R$1996,MATCH('2) Order Form'!P$8,Prices!$A$2:$R$2,0),FALSE) -> 100.00 | Q103: =VLOOKUP($C103,Prices!$A$3:$R$1996,MATCH('2) Order Form'!Q$8,Prices!$A$2:$R$2,0),FALSE) -> 199.00 | R103: 0 | S103: 0 | T103: 0 | V103: 7048652463562 | X103: 0 | Y103: 0 | Z103: 5 | AA103: 0 | AB103: 0 | AC103: 840080Dirt Black | AD103: 840080 | AE103: =INDEX(ATS!$B:$V,MATCH('2) Order Form'!$V103,ATS!$U:$U,0),7) -> Active
A104: 1 | B104: Helmets & Helmet Acc. | C104: =INDEX(ATS!$B:$V,MATCH('2) Order Form'!$V104,ATS!$U:$U,0),1) -> 840080 | D104: =INDEX(ATS!$B:$V,MATCH('2) Order Form'!$V104,ATS!$U:$U,0),2) -> Ascender | E104: =INDEX(ATS!$B:$V,MATCH('2) Order Form'!$V104,ATS!$U:$U,0),4) -> DTBLK-LXL | F104: =INDEX(ATS!$B:$V,MATCH('2) Order Form'!$V104,ATS!$U:$U,0),5) -> Dirt Black | G104: =INDEX(ATS!$B:$V,MATCH('2) Order Form'!$V104,ATS!$U:$U,0),6) -> LXL | H104: =IFERROR(VLOOKUP(C104,EAN!$K:$O,5,FALSE),0) -> 1 | I104: 0 | J104: =IFERROR(VLOOKUP(V104,ATS!$U:$V,2,FALSE),0) -> 0 | K104: 0 | L104: =IFERROR(VLOOKUP(V104,ATS!$U:$W,3,FALSE),0) -> 0 | M104: 0 | N104: 0% | O104: 0% | P104: =VLOOKUP($C104,Prices!$A$3:$R$1996,MATCH('2) Order Form'!P$8,Prices!$A$2:$R$2,0),FALSE) -> 100.00 | Q104: =VLOOKUP($C104,Prices!$A$3:$R$1996,MATCH('2) Order Form'!Q$8,Prices!$A$2:$R$2,0),FALSE) -> 199.00 | R104: 0 | S104: 0 | T104: 0 | V104: 7048652463555 | X104: 0 | Y104: 0 | Z104: 5 | AA104: 0 | AB104: 0 | AC104: 840080Dirt Black | AD104: 840080 | AE104: =INDEX(ATS!$B:$V,MATCH('2) Order Form'!$V104,ATS!$U:$U,0),7) -> Active
A105: 1 | B105: Helmets & Helmet Acc. | C105: =INDEX(ATS!$B:$V,MATCH('2) Order Form'!$V105,ATS!$U:$U,0),1) -> 840080 | D105: =INDEX(ATS!$B:$V,MATCH('2) Order Form'!$V105,ATS!$U:$U,0),2) -> Ascender | E105: =INDEX(ATS!$B:$V,MATCH('2) Order Form'!$V105,ATS!$U:$U,0),4) -> MASEM-SM | F105: =INDEX(ATS!$B:$V,MATCH('2) Order Form'!$V105,ATS!$U:$U,0),5) -> Matte Sea Metallic | G105: =INDEX(ATS!$B:$V,MATCH('2) Order Form'!$V105,ATS!$U:$U,0),6) -> SM | H105: =IFERROR(VLOOKUP(C105,EAN!$K:$O,5,FALSE),0) -> 1 | I105: 0 | J105: =IFERROR(VLOOKUP(V105,ATS!$U:$V,2,FALSE),0) -> 40 | K105: 40 | L105: =IFERROR(VLOOKUP(V105,ATS!$U:$W,3,FALSE),0) -> 40 | M105: 40 | N105: 0% | O105: =IF(N105<>0,N105,$P$5) -> 0% | P105: =VLOOKUP($C105,Prices!$A$3:$R$1996,MATCH('2) Order Form'!P$8,Prices!$A$2:$R$2,0),FALSE) -> 100.00 | Q105: =VLOOKUP($C105,Prices!$A$3:$R$1996,MATCH('2) Order Form'!Q$8,Prices!$A$2:$R$2,0),FALSE) -> 199.00 | R105: 0 | S105: 0 | T105: 0 | V105: 7048652822963 | X105: 0 | Y105: 0 | Z105: 5 | AA105: 0 | AB105: 1 | AC105: 840080Matte Sea Metallic | AD105: 840080 | AE105: =INDEX(ATS!$B:$V,MATCH('2) Order Form'!$V105,ATS!$U:$U,0),7) -> Active
A106: 1 | B106: Helmets & Helmet Acc. | C106: =INDEX(ATS!$B:$V,MATCH('2) Order Form'!$V106,ATS!$U:$U,0),1) -> 840080 | D106: =INDEX(ATS!$B:$V,MATCH('2) Order Form'!$V106,ATS!$U:$U,0),2) -> Ascender | E106: =INDEX(ATS!$B:$V,MATCH('2) Order Form'!$V106,ATS!$U:$U,0),4) -> MASEM-ML | F106: =INDEX(ATS!$B:$V,MATCH('2) Order Form'!$V106,ATS!$U:$U,0),5) -> Matte Sea Metallic | G106: =INDEX(ATS!$B:$V,MATCH('2) Order Form'!$V106,ATS!$U:$U,0),6) -> ML | H106: =IFERROR(VLOOKUP(C106,EAN!$K:$O,5,FALSE),0) -> 1 | I106: 0 | J106: =IFERROR(VLOOKUP(V106,ATS!$U:$V,2,FALSE),0) -> 4 | K106: 4 | L106: =IFERROR(VLOOKUP(V106,ATS!$U:$W,3,FALSE),0) -> 4 | M106: 4 | N106: 0% | O106: 0% | P106: =VLOOKUP($C106,Prices!$A$3:$R$1996,MATCH('2) Order Form'!P$8,Prices!$A$2:$R$2,0),FALSE) -> 100.00 | Q106: =VLOOKUP($C106,Prices!$A$3:$R$1996,MATCH('2) Order Form'!Q$8,Prices!$A$2:$R$2,0),FALSE) -> 199.00 | R106: 0 | S106: 0 | T106: 0 | V106: 7048652822956 | X106: 0 | Y106: 0 | Z106: 5 | AA106: 0 | AB106: 0 | AC106: 840080Matte Sea Metallic | AD106: 840080 | AE106: =INDEX(ATS!$B:$V,MATCH('2) Order Form'!$V106,ATS!$U:$U,0),7) -> Active
A107: 1 | B107: Helmets & Helmet Acc. | C107: =INDEX(ATS!$B:$V,MATCH('2) Order Form'!$V107,ATS!$U:$U,0),1) -> 840080 | D107: =INDEX(ATS!$B:$V,MATCH('2) Order Form'!$V107,ATS!$U:$U,0),2) -> Ascender | E107: =INDEX(ATS!$B:$V,MATCH('2) Order Form'!$V107,ATS!$U:$U,0),4) -> MASEM-LXL | F107: =INDEX(ATS!$B:$V,MATCH('2) Order Form'!$V107,ATS!$U:$U,0),5) -> Matte Sea Metallic | G107: =INDEX(ATS!$B:$V,MATCH('2) Order Form'!$V107,ATS!$U:$U,0),6) -> LXL | H107: =IFERROR(VLOOKUP(C107,EAN!$K:$O,5,FALSE),0) -> 1 | I107: 0 | J107: =IFERROR(VLOOKUP(V107,ATS!$U:$V,2,FALSE),0) -> 3 | K107: 3 | L107: =IFERROR(VLOOKUP(V107,ATS!$U:$W,3,FALSE),0) -> 3 | M107: 3 | N107: 0% | O107: 0% | P107: =VLOOKUP($C107,Prices!$A$3:$R$1996,MATCH('2) Order Form'!P$8,Prices!$A$2:$R$2,0),FALSE) -> 100.00 | Q107: =VLOOKUP($C107,Prices!$A$3:$R$1996,MATCH('2) Order Form'!Q$8,Prices!$A$2:$R$2,0),FALSE) -> 199.00 | R107: 0 | S107: 0 | T107: 0 | V107: 7048652822949 | X107: 0 | Y107: 0 | Z107: 5 | AA107: 0 | AB107: 0 | AC107: 840080Matte Sea Metallic | AD107: 840080 | AE107: =INDEX(ATS!$B:$V,MATCH('2) Order Form'!$V107,ATS!$U:$U,0),7) -> Active
A108: 1 | B108: Helmets & Helmet Acc. | C108: =INDEX(ATS!$B:$V,MATCH('2) Order Form'!$V108,ATS!$U:$U,0),1) -> 840080 | D108: =INDEX(ATS!$B:$V,MATCH('2) Order Form'!$V108,ATS!$U:$U,0),2) -> Ascender | E108: =INDEX(ATS!$B:$V,MATCH('2) Order Form'!$V108,ATS!$U:$U,0),4) -> MBBLU-SM | F108: =INDEX(ATS!$B:$V,MATCH('2) Order Form'!$V108,ATS!$U:$U,0),5) -> Matte Bird Blue | G108: =INDEX(ATS!$B:$V,MATCH('2) Order Form'!$V108,ATS!$U:$U,0),6) -> SM | H108: =IFERROR(VLOOKUP(C108,EAN!$K:$O,5,FALSE),0) -> 1 | I108: 0 | J108: =IFERROR(VLOOKUP(V108,ATS!$U:$V,2,FALSE),0) -> 15 | K108: 15 | L108: =IFERROR(VLOOKUP(V108,ATS!$U:$W,3,FALSE),0) -> 15 | M108: 15 | N108: 0% | O108: 0% | P108: =VLOOKUP($C108,Prices!$A$3:$R$1996,MATCH('2) Order Form'!P$8,Prices!$A$2:$R$2,0),FALSE) -> 100.00 | Q108: =VLOOKUP($C108,Prices!$A$3:$R$1996,MATCH('2) Order Form'!Q$8,Prices!$A$2:$R$2,0),FALSE) -> 199.00 | R108: 0 | S108: 0 | T108: 0 | V108: 7048652713193 | X108: 0 | Y108: 0 | Z108: 5 | AA108: 0 | AB108: 1 | AC108: 840080Matte Bird Blue | AD108: 840080 | AE108: =INDEX(ATS!$B:$V,MATCH('2) Order Form'!$V108,ATS!$U:$U,0),7) -> Active
A109: 1 | B109: Helmets & Helmet Acc. | C109: =INDEX(ATS!$B:$V,MATCH('2) Order Form'!$V109,ATS!$U:$U,0),1) -> 840080 | D109: =INDEX(ATS!$B:$V,MATCH('2) Order Form'!$V109,ATS!$U:$U,0),2) -> Ascender | E109: =INDEX(ATS!$B:$V,MATCH('2) Order Form'!$V109,ATS!$U:$U,0),4) -> MBBLU-ML | F109: =INDEX(ATS!$B:$V,MATCH('2) Order Form'!$V109,ATS!$U:$U,0),5) -> Matte Bird Blue | G109: =INDEX(ATS!$B:$V,MATCH('2) Order Form'!$V109,ATS!$U:$U,0),6) -> ML | H109: =IFERROR(VLOOKUP(C109,EAN!$K:$O,5,FALSE),0) -> 1 | I109: 0 | J109: =IFERROR(VLOOKUP(V109,ATS!$U:$V,2,FALSE),0) -> 9 | K109: 9 | L109: =IFERROR(VLOOKUP(V109,ATS!$U:$W,3,FALSE),0) -> 9 | M109: 9 | N109: 0% | O109: 0% | P109: =VLOOKUP($C109,Prices!$A$3:$R$1996,MATCH('2) Order Form'!P$8,Prices!$A$2:$R$2,0),FALSE) -> 100.00 | Q109: =VLOOKUP($C109,Prices!$A$3:$R$1996,MATCH('2) Order Form'!Q$8,Prices!$A$2:$R$2,0),FALSE) -> 199.00 | R109: 0 | S109: 0 | T109: 0 | V109: 7048652713186 | X109: 0 | Y109: 0 | Z109: 5 | AA109: 0 | AB109: 0 | AC109: 840080Matte Bird Blue | AD109: 840080 | AE109: =INDEX(ATS!$B:$V,MATCH('2) Order Form'!$V109,ATS!$U:$U,0),7) -> Active
A110: 1 | B110: Helmets & Helmet Acc. | C110: =INDEX(ATS!$B:$V,MATCH('2) Order Form'!$V110,ATS!$U:$U,0),1) -> 840080 | D110: =INDEX(ATS!$B:$V,MATCH('2) Order Form'!$V110,ATS!$U:$U,0),2) -> Ascender | E110: =INDEX(ATS!$B:$V,MATCH('2) Order Form'!$V110,ATS!$U:$U,0),4) -> MBBLU-LXL | F110: =INDEX(ATS!$B:$V,MATCH('2) Order Form'!$V110,ATS!$U:$U,0),5) -> Matte Bird Blue | G110: =INDEX(ATS!$B:$V,MATCH('2) Order Form'!$V110,ATS!$U:$U,0),6) -> LXL | H110: =IFERROR(VLOOKUP(C110,EAN!$K:$O,5,FALSE),0) -> 1 | I110: 0 | J110: =IFERROR(VLOOKUP(V110,ATS!$U:$V,2,FALSE),0) -> 41 | K110: 41 | L110: =IFERROR(VLOOKUP(V110,ATS!$U:$W,3,FALSE),0) -> 41 | M110: 41 | N110: 0% | O110: =IF(N110<>0,N110,$P$5) -> 0% | P110: =VLOOKUP($C110,Prices!$A$3:$R$1996,MATCH('2) Order Form'!P$8,Prices!$A$2:$R$2,0),FALSE) -> 100.00 | Q110: =VLOOKUP($C110,Prices!$A$3:$R$1996,MATCH('2) Order Form'!Q$8,Prices!$A$2:$R$2,0),FALSE) -> 199.00 | R110: 0 | S110: 0 | T110: 0 | V110: 7048652713179 | X110: 0 | Y110: 0 | Z110: 5 | AA110: 0 | AB110: 0 | AC110: 840080Matte Bird Blue | AD110: 840080 | AE110: =INDEX(ATS!$B:$V,MATCH('2) Order Form'!$V110,ATS!$U:$U,0),7) -> Active
A111: 1 | B111: Helmets & Helmet Acc. | C111: =INDEX(ATS!$B:$V,MATCH('2) Order Form'!$V111,ATS!$U:$U,0),1) -> 840080 | D111: =INDEX(ATS!$B:$V,MATCH('2) Order Form'!$V111,ATS!$U:$U,0),2) -> Ascender | E111: =INDEX(ATS!$B:$V,MATCH('2) Order Form'!$V111,ATS!$U:$U,0),4) -> MBUOE-SM | F111: =INDEX(ATS!$B:$V,MATCH('2) Order Form'!$V111,ATS!$U:$U,0),5) -> Matte Burning Orange | G111: =INDEX(ATS!$B:$V,MATCH('2) Order Form'!$V111,ATS!$U:$U,0),6) -> SM | H111: =IFERROR(VLOOKUP(C111,EAN!$K:$O,5,FALSE),0) -> 1 | I111: 0 | J111: =IFERROR(VLOOKUP(V111,ATS!$U:$V,2,FALSE),0) -> 29 | K111: 29 | L111: =IFERROR(VLOOKUP(V111,ATS!$U:$W,3,FALSE),0) -> 29 | M111: 29 | N111: 0% | O111: 0% | P111: =VLOOKUP($C111,Prices!$A$3:$R$1996,MATCH('2) Order Form'!P$8,Prices!$A$2:$R$2,0),FALSE) -> 100.00 | Q111: =VLOOKUP($C111,Prices!$A$3:$R$1996,MATCH('2) Order Form'!Q$8,Prices!$A$2:$R$2,0),FALSE) -> 199.00 | R111: 0 | S111: 0 | T111: 0 | V111: 7048652822994 | X111: 0 | Y111: 0 | Z111: 5 | AA111: 0 | AB111: 1 | AC111: 840080Matte Burning Orange | AD111: 840080 | AE111: =INDEX(ATS!$B:$V,MATCH('2) Order Form'!$V111,ATS!$U:$U,0),7) -> Active
A112: 1 | B112: Helmets & Helmet Acc. | C112: =INDEX(ATS!$B:$V,MATCH('2) Order Form'!$V112,ATS!$U:$U,0),1) -> 840080 | D112: =INDEX(ATS!$B:$V,MATCH('2) Order Form'!$V112,ATS!$U:$U,0),2) -> Ascender | E112: =INDEX(ATS!$B:$V,MATCH('2) Order Form'!$V112,ATS!$U:$U,0),4) -> MBUOE-ML | F112: =INDEX(ATS!$B:$V,MATCH('2) Order Form'!$V112,ATS!$U:$U,0),5) -> Matte Burning Orange | G112: =INDEX(ATS!$B:$V,MATCH('2) Order Form'!$V112,ATS!$U:$U,0),6) -> ML | H112: =IFERROR(VLOOKUP(C112,EAN!$K:$O,5,FALSE),0) -> 1 | I112: 0 | J112: =IFERROR(VLOOKUP(V112,ATS!$U:$V,2,FALSE),0) -> 0 | K112: 0 | L112: =IFERROR(VLOOKUP(V112,ATS!$U:$W,3,FALSE),0) -> 0 | M112: 0 | N112: 0% | O112: 0% | P112: =VLOOKUP($C112,Prices!$A$3:$R$1996,MATCH('2) Order Form'!P$8,Prices!$A$2:$R$2,0),FALSE) -> 100.00 | Q112: =VLOOKUP($C112,Prices!$A$3:$R$1996,MATCH('2) Order Form'!Q$8,Prices!$A$2:$R$2,0),FALSE) -> 199.00 | R112: 0 | S112: 0 | T112: 0 | V112: 7048652822987 | X112: 0 | Y112: 0 | Z112: 5 | AA112: 0 | AB112: 0 | AC112: 840080Matte Burning Orange | AD112: 840080 | AE112: =INDEX(ATS!$B:$V,MATCH('2) Order Form'!$V112,ATS!$U:$U,0),7) -> Active
A113: 1 | B113: Helmets & Helmet Acc. | C113: =INDEX(ATS!$B:$V,MATCH('2) Order Form'!$V113,ATS!$U:$U,0),1) -> 840080 | D113: =INDEX(ATS!$B:$V,MATCH('2) Order Form'!$V113,ATS!$U:$U,0),2) -> Ascender | E113: =INDEX(ATS!$B:$V,MATCH('2) Order Form'!$V113,ATS!$U:$U,0),4) -> MBUOE-LXL | F113: =INDEX(ATS!$B:$V,MATCH('2) Order Form'!$V113,ATS!$U:$U,0),5) -> Matte Burning Orange | G113: =INDEX(ATS!$B:$V,MATCH('2) Order Form'!$V113,ATS!$U:$U,0),6) -> LXL | H113: =IFERROR(VLOOKUP(C113,EAN!$K:$O,5,FALSE),0) -> 1 | I113: 0 | J113: =IFERROR(VLOOKUP(V113,ATS!$U:$V,2,FALSE),0) -> 15 | K113: 15 | L113: =IFERROR(VLOOKUP(V113,ATS!$U:$W,3,FALSE),0) -> 15 | M113: 15 | N113: 0% | O113: 0% | P113: =VLOOKUP($C113,Prices!$A$3:$R$1996,MATCH('2) Order Form'!P$8,Prices!$A$2:$R$2,0),FALSE) -> 100.00 | Q113: =VLOOKUP($C113,Prices!$A$3:$R$1996,MATCH('2) Order Form'!Q$8,Prices!$A$2:$R$2,0),FALSE) -> 199.00 | R113: 0 | S113: 0 | T113: 0 | V113: 7048652822970 | X113: 0 | Y113: 0 | Z113: 5 | AA113: 0 | AB113: 0 | AC113: 840080Matte Burning Orange | AD113: 840080 | AE113: =INDEX(ATS!$B:$V,MATCH('2) Order Form'!$V113,ATS!$U:$U,0),7) -> Active
A114: 1 | B114: Helmets & Helmet Acc. | C114: =INDEX(ATS!$B:$V,MATCH('2) Order Form'!$V114,ATS!$U:$U,0),1) -> 840092 | D114: =INDEX(ATS!$B:$V,MATCH('2) Order Form'!$V114,ATS!$U:$U,0),2) -> Looper Mips Helmet | E114: =INDEX(ATS!$B:$V,MATCH('2) Order Form'!$V114,ATS!$U:$U,0),4) -> DTBLK-SM | F114: =INDEX(ATS!$B:$V,MATCH('2) Order Form'!$V114,ATS!$U:$U,0),5) -> Dirt Black | G114: =INDEX(ATS!$B:$V,MATCH('2) Order Form'!$V114,ATS!$U:$U,0),6) -> SM | H114: =IFERROR(VLOOKUP(C114,EAN!$K:$O,5,FALSE),0) -> 1 | I114: 0 | J114: =IFERROR(VLOOKUP(V114,ATS!$U:$V,2,FALSE),0) -> 10 | K114: 10 | L114: =IFERROR(VLOOKUP(V114,ATS!$U:$W,3,FALSE),0) -> 10 | M114: 10 | N114: 0% | O114: 0% | P114: =VLOOKUP($C114,Prices!$A$3:$R$1996,MATCH('2) Order Form'!P$8,Prices!$A$2:$R$2,0),FALSE) -> 95.00 | Q114: =VLOOKUP($C114,Prices!$A$3:$R$1996,MATCH('2) Order Form'!Q$8,Prices!$A$2:$R$2,0),FALSE) -> 189.00 | R114: 0 | S114: 0 | T114: 0 | V114: 7048652604897 | X114: 0 | Y114: 0 | Z114: 6 | AA114: 1 | AB114: 1 | AC114: 840092Dirt Black | AD114: 840092 | AE114: =INDEX(ATS!$B:$V,MATCH('2) Order Form'!$V114,ATS!$U:$U,0),7) -> Active
A115: 1 | B115: Helmets & Helmet Acc. | C115: =INDEX(ATS!$B:$V,MATCH('2) Order Form'!$V115,ATS!$U:$U,0),1) -> 840092 | D115: =INDEX(ATS!$B:$V,MATCH('2) Order Form'!$V115,ATS!$U:$U,0),2) -> Looper Mips Helmet | E115: =INDEX(ATS!$B:$V,MATCH('2) Order Form'!$V115,ATS!$U:$U,0),4) -> DTBLK-ML | F115: =INDEX(ATS!$B:$V,MATCH('2) Order Form'!$V115,ATS!$U:$U,0),5) -> Dirt Black | G115: =INDEX(ATS!$B:$V,MATCH('2) Order Form'!$V115,ATS!$U:$U,0),6) -> ML | H115: =IFERROR(VLOOKUP(C115,EAN!$K:$O,5,FALSE),0) -> 1 | I115: 0 | J115: =IFERROR(VLOOKUP(V115,ATS!$U:$V,2,FALSE),0) -> 14 | K115: 14 | L115: =IFERROR(VLOOKUP(V115,ATS!$U:$W,3,FALSE),0) -> 14 | M115: 14 | N115: 0% | O115: =IF(N115<>0,N115,$P$5) -> 0% | P115: =VLOOKUP($C115,Prices!$A$3:$R$1996,MATCH('2) Order Form'!P$8,Prices!$A$2:$R$2,0),FALSE) -> 95.00 | Q115: =VLOOKUP($C115,Prices!$A$3:$R$1996,MATCH('2) Order Form'!Q$8,Prices!$A$2:$R$2,0),FALSE) -> 189.00 | R115: 0 | S115: 0 | T115: 0 | V115: 7048652604880 | X115: 0 | Y115: 0 | Z115: 6 | AA115: 0 | AB115: 0 | AC115: 840092Dirt Black | AD115: 840092 | AE115: =INDEX(ATS!$B:$V,MATCH('2) Order Form'!$V115,ATS!$U:$U,0),7) -> Active
A116: 1 | B116: Helmets & Helmet Acc. | C116: =INDEX(ATS!$B:$V,MATCH('2) Order Form'!$V116,ATS!$U:$U,0),1) -> 840092 | D116: =INDEX(ATS!$B:$V,MATCH('2) Order Form'!$V116,ATS!$U:$U,0),2) -> Looper Mips Helmet | E116: =INDEX(ATS!$B:$V,MATCH('2) Order Form'!$V116,ATS!$U:$U,0),4) -> DTBLK-LXL | F116: =INDEX(ATS!$B:$V,MATCH('2) Order Form'!$V116,ATS!$U:$U,0),5) -> Dirt Black | G116: =INDEX(ATS!$B:$V,MATCH('2) Order Form'!$V116,ATS!$U:$U,0),6) -> LXL | H116: =IFERROR(VLOOKUP(C116,EAN!$K:$O,5,FALSE),0) -> 1 | I116: 0 | J116: =IFERROR(VLOOKUP(V116,ATS!$U:$V,2,FALSE),0) -> 5 | K116: 5 | L116: =IFERROR(VLOOKUP(V116,ATS!$U:$W,3,FALSE),0) -> 5 | M116: 5 | N116: 0% | O116: 0% | P116: =VLOOKUP($C116,Prices!$A$3:$R$1996,MATCH('2) Order Form'!P$8,Prices!$A$2:$R$2,0),FALSE) -> 95.00 | Q116: =VLOOKUP($C116,Prices!$A$3:$R$1996,MATCH('2) Order Form'!Q$8,Prices!$A$2:$R$2,0),FALSE) -> 189.00 | R116: 0 | S116: 0 | T116: 0 | V116: 7048652604873 | X116: 0 | Y116: 0 | Z116: 6 | AA116: 0 | AB116: 0 | AC116: 840092Dirt Black | AD116: 840092 | AE116: =INDEX(ATS!$B:$V,MATCH('2) Order Form'!$V116,ATS!$U:$U,0),7) -> Active
A117: 1 | B117: Helmets & Helmet Acc. | C117: =INDEX(ATS!$B:$V,MATCH('2) Order Form'!$V117,ATS!$U:$U,0),1) -> 840092 | D117: =INDEX(ATS!$B:$V,MATCH('2) Order Form'!$V117,ATS!$U:$U,0),2) -> Looper Mips Helmet | E117: =INDEX(ATS!$B:$V,MATCH('2) Order Form'!$V117,ATS!$U:$U,0),4) -> MBRWH-SM | F117: =INDEX(ATS!$B:$V,MATCH('2) Order Form'!$V117,ATS!$U:$U,0),5) -> Matte Bronco White | G117: =INDEX(ATS!$B:$V,MATCH('2) Order Form'!$V117,ATS!$U:$U,0),6) -> SM | H117: =IFERROR(VLOOKUP(C117,EAN!$K:$O,5,FALSE),0) -> 1 | I117: 0 | J117: =IFERROR(VLOOKUP(V117,ATS!$U:$V,2,FALSE),0) -> 0 | K117: 0 | L117: =IFERROR(VLOOKUP(V117,ATS!$U:$W,3,FALSE),0) -> 0 | M117: 0 | N117: 0% | O117: 0% | P117: =VLOOKUP($C117,Prices!$A$3:$R$1996,MATCH('2) Order Form'!P$8,Prices!$A$2:$R$2,0),FALSE) -> 95.00 | Q117: =VLOOKUP($C117,Prices!$A$3:$R$1996,MATCH('2) Order Form'!Q$8,Prices!$A$2:$R$2,0),FALSE) -> 189.00 | R117: 0 | S117: 0 | T117: 0 | V117: 7048652823267 | X117: 0 | Y117: 0 | Z117: 6 | AA117: 0 | AB117: 1 | AC117: 840092Matte Bronco White | AD117: 840092 | AE117: =INDEX(ATS!$B:$V,MATCH('2) Order Form'!$V117,ATS!$U:$U,0),7) -> Active
A118: 1 | B118: Helmets & Helmet Acc. | C118: =INDEX(ATS!$B:$V,MATCH('2) Order Form'!$V118,ATS!$U:$U,0),1) -> 840092 | D118: =INDEX(ATS!$B:$V,MATCH('2) Order Form'!$V118,ATS!$U:$U,0),2) -> Looper Mips Helmet | E118: =INDEX(ATS!$B:$V,MATCH('2) Order Form'!$V118,ATS!$U:$U,0),4) -> MBRWH-ML | F118: =INDEX(ATS!$B:$V,MATCH('2) Order Form'!$V118,ATS!$U:$U,0),5) -> Matte Bronco White | G118: =INDEX(ATS!$B:$V,MATCH('2) Order Form'!$V118,ATS!$U:$U,0),6) -> ML | H118: =IFERROR(VLOOKUP(C118,EAN!$K:$O,5,FALSE),0) -> 1 | I118: 0 | J118: =IFERROR(VLOOKUP(V118,ATS!$U:$V,2,FALSE),0) -> 20 | K118: 20 | L118: =IFERROR(VLOOKUP(V118,ATS!$U:$W,3,FALSE),0) -> 20 | M118: 20 | N118: 0% | O118: 0% | P118: =VLOOKUP($C118,Prices!$A$3:$R$1996,MATCH('2) Order Form'!P$8,Prices!$A$2:$R$2,0),FALSE) -> 95.00 | Q118: =VLOOKUP($C118,Prices!$A$3:$R$1996,MATCH('2) Order Form'!Q$8,Prices!$A$2:$R$2,0),FALSE) -> 189.00 | R118: 0 | S118: 0 | T118: 0 | V118: 7048652823250 | X118: 0 | Y118: 0 | Z118: 6 | AA118: 0 | AB118: 0 | AC118: 840092Matte Bronco White | AD118: 840092 | AE118: =INDEX(ATS!$B:$V,MATCH('2) Order Form'!$V118,ATS!$U:$U,0),7) -> Active
A119: 1 | B119: Helmets & Helmet Acc. | C119: =INDEX(ATS!$B:$V,MATCH('2) Order Form'!$V119,ATS!$U:$U,0),1) -> 840092 | D119: =INDEX(ATS!$B:$V,MATCH('2) Order Form'!$V119,ATS!$U:$U,0),2) -> Looper Mips Helmet | E119: =INDEX(ATS!$B:$V,MATCH('2) Order Form'!$V119,ATS!$U:$U,0),4) -> MBRWH-LXL | F119: =INDEX(ATS!$B:$V,MATCH('2) Order Form'!$V119,ATS!$U:$U,0),5) -> Matte Bronco White | G119: =INDEX(ATS!$B:$V,MATCH('2) Order Form'!$V119,ATS!$U:$U,0),6) -> LXL | H119: =IFERROR(VLOOKUP(C119,EAN!$K:$O,5,FALSE),0) -> 1 | I119: 0 | J119: =IFERROR(VLOOKUP(V119,ATS!$U:$V,2,FALSE),0) -> 293 | K119: 50+ | L119: =IFERROR(VLOOKUP(V119,ATS!$U:$W,3,FALSE),0) -> 293 | M119: 50+ | N119: 0% | O119: =IF(N119<>0,N119,$P$5) -> 0% | P119: =VLOOKUP($C119,Prices!$A$3:$R$1996,MATCH('2) Order Form'!P$8,Prices!$A$2:$R$2,0),FALSE) -> 95.00 | Q119: =VLOOKUP($C119,Prices!$A$3:$R$1996,MATCH('2) Order Form'!Q$8,Prices!$A$2:$R$2,0),FALSE) -> 189.00 | R119: 0 | S119: 0 | T119: 0 | V119: 7048652823243 | X119: 0 | Y119: 0 | Z119: 6 | AA119: 0 | AB119: 0 | AC119: 840092Matte Bronco White | AD119: 840092 | AE119: =INDEX(ATS!$B:$V,MATCH('2) Order Form'!$V119,ATS!$U:$U,0),7) -> Active
A120: 1 | B120: Helmets & Helmet Acc. | C120: =INDEX(ATS!$B:$V,MATCH('2) Order Form'!$V120,ATS!$U:$U,0),1) -> 840092 | D120: =INDEX(ATS!$B:$V,MATCH('2) Order Form'!$V120,ATS!$U:$U,0),2) -> Looper Mips Helmet | E120: =INDEX(ATS!$B:$V,MATCH('2) Order Form'!$V120,ATS!$U:$U,0),4) -> MNGRY-SM | F120: =INDEX(ATS!$B:$V,MATCH('2) Order Form'!$V120,ATS!$U:$U,0),5) -> Matte Nardo Gray | G120: =INDEX(ATS!$B:$V,MATCH('2) Order Form'!$V120,ATS!$U:$U,0),6) -> SM | H120: =IFERROR(VLOOKUP(C120,EAN!$K:$O,5,FALSE),0) -> 1 | I120: 0 | J120: =IFERROR(VLOOKUP(V120,ATS!$U:$V,2,FALSE),0) -> 58 | K120: 50+ | L120: =IFERROR(VLOOKUP(V120,ATS!$U:$W,3,FALSE),0) -> 58 | M120: 50+ | N120: 0% | O120: 0% | P120: =VLOOKUP($C120,Prices!$A$3:$R$1996,MATCH('2) Order Form'!P$8,Prices!$A$2:$R$2,0),FALSE) -> 95.00 | Q120: =VLOOKUP($C120,Prices!$A$3:$R$1996,MATCH('2) Order Form'!Q$8,Prices!$A$2:$R$2,0),FALSE) -> 189.00 | R120: 0 | S120: 0 | T120: 0 | V120: 7048652605016 | X120: 0 | Y120: 0 | Z120: 6 | AA120: 0 | AB120: 1 | AC120: 840092Matte Nardo Gray | AD120: 840092 | AE120: =INDEX(ATS!$B:$V,MATCH('2) Order Form'!$V120,ATS!$U:$U,0),7) -> Stock
A121: 1 | B121: Helmets & Helmet Acc. | C121: =INDEX(ATS!$B:$V,MATCH('2) Order Form'!$V121,ATS!$U:$U,0),1) -> 840092 | D121: =INDEX(ATS!$B:$V,MATCH('2) Order Form'!$V121,ATS!$U:$U,0),2) -> Looper Mips Helmet | E121: =INDEX(ATS!$B:$V,MATCH('2) Order Form'!$V121,ATS!$U:$U,0),4) -> MNGRY-ML | F121: =INDEX(ATS!$B:$V,MATCH('2) Order Form'!$V121,ATS!$U:$U,0),5) -> Matte Nardo Gray | G121: =INDEX(ATS!$B:$V,MATCH('2) Order Form'!$V121,ATS!$U:$U,0),6) -> ML | H121: =IFERROR(VLOOKUP(C121,EAN!$K:$O,5,FALSE),0) -> 1 | I121: 0 | J121: =IFERROR(VLOOKUP(V121,ATS!$U:$V,2,FALSE),0) -> 168 | K121: 50+ | L121: =IFERROR(VLOOKUP(V121,ATS!$U:$W,3,FALSE),0) -> 168 | M121: 50+ | N121: 0% | O121: =IF(N121<>0,N121,$P$5) -> 0% | P121: =VLOOKUP($C121,Prices!$A$3:$R$1996,MATCH('2) Order Form'!P$8,Prices!$A$2:$R$2,0),FALSE) -> 95.00 | Q121: =VLOOKUP($C121,Prices!$A$3:$R$1996,MATCH('2) Order Form'!Q$8,Prices!$A$2:$R$2,0),FALSE) -> 189.00 | R121: 0 | S121: 0 | T121: 0 | V121: 7048652605009 | X121: 0 | Y121: 0 | Z121: 6 | AA121: 0 | AB121: 0 | AC121: 840092Matte Nardo Gray | AD121: 840092 | AE121: =INDEX(ATS!$B:$V,MATCH('2) Order Form'!$V121,ATS!$U:$U,0),7) -> Stock
A122: 1 | B122: Helmets & Helmet Acc. | C122: =INDEX(ATS!$B:$V,MATCH('2) Order Form'!$V122,ATS!$U:$U,0),1) -> 840092 | D122: =INDEX(ATS!$B:$V,MATCH('2) Order Form'!$V122,ATS!$U:$U,0),2) -> Looper Mips Helmet | E122: =INDEX(ATS!$B:$V,MATCH('2) Order Form'!$V122,ATS!$U:$U,0),4) -> MNGRY-LXL | F122: =INDEX(ATS!$B:$V,MATCH('2) Order Form'!$V122,ATS!$U:$U,0),5) -> Matte Nardo Gray | G122: =INDEX(ATS!$B:$V,MATCH('2) Order Form'!$V122,ATS!$U:$U,0),6) -> LXL | H122: =IFERROR(VLOOKUP(C122,EAN!$K:$O,5,FALSE),0) -> 1 | I122: 0 | J122: =IFERROR(VLOOKUP(V122,ATS!$U:$V,2,FALSE),0) -> 191 | K122: 50+ | L122: =IFERROR(VLOOKUP(V122,ATS!$U:$W,3,FALSE),0) -> 191 | M122: 50+ | N122: 0% | O122: =IF(N122<>0,N122,$P$5) -> 0% | P122: =VLOOKUP($C122,Prices!$A$3:$R$1996,MATCH('2) Order Form'!P$8,Prices!$A$2:$R$2,0),FALSE) -> 95.00 | Q122: =VLOOKUP($C122,Prices!$A$3:$R$1996,MATCH('2) Order Form'!Q$8,Prices!$A$2:$R$2,0),FALSE) -> 189.00 | R122: 0 | S122: 0 | T122: 0 | V122: 7048652604996 | X122: 0 | Y122: 0 | Z122: 6 | AA122: 0 | AB122: 0 | AC122: 840092Matte Nardo Gray | AD122: 840092 | AE122: =INDEX(ATS!$B:$V,MATCH('2) Order Form'!$V122,ATS!$U:$U,0),7) -> Stock
A123: 1 | B123: Helmets & Helmet Acc. | C123: =INDEX(ATS!$B:$V,MATCH('2) Order Form'!$V123,ATS!$U:$U,0),1) -> 840092 | D123: =INDEX(ATS!$B:$V,MATCH('2) Order Form'!$V123,ATS!$U:$U,0),2) -> Looper Mips Helmet | E123: =INDEX(ATS!$B:$V,MATCH('2) Order Form'!$V123,ATS!$U:$U,0),4) -> MTURQ-SM | F123: =INDEX(ATS!$B:$V,MATCH('2) Order Form'!$V123,ATS!$U:$U,0),5) -> Misty Turquoise | G123: =INDEX(ATS!$B:$V,MATCH('2) Order Form'!$V123,ATS!$U:$U,0),6) -> SM | H123: =IFERROR(VLOOKUP(C123,EAN!$K:$O,5,FALSE),0) -> 1 | I123: 0 | J123: =IFERROR(VLOOKUP(V123,ATS!$U:$V,2,FALSE),0) -> 63 | K123: 50+ | L123: =IFERROR(VLOOKUP(V123,ATS!$U:$W,3,FALSE),0) -> 63 | M123: 50+ | N123: 0% | O123: =IF(N123<>0,N123,$P$5) -> 0% | P123: =VLOOKUP($C123,Prices!$A$3:$R$1996,MATCH('2) Order Form'!P$8,Prices!$A$2:$R$2,0),FALSE) -> 95.00 | Q123: =VLOOKUP($C123,Prices!$A$3:$R$1996,MATCH('2) Order Form'!Q$8,Prices!$A$2:$R$2,0),FALSE) -> 189.00 | R123: 0 | S123: 0 | T123: 0 | V123: 7048652966230 | X123: 0 | Y123: 0 | Z123: 6 | AA123: 0 | AB123: 1 | AC123: 840092Misty Turquoise | AD123: 840092 | AE123: =INDEX(ATS!$B:$V,MATCH('2) Order Form'!$V123,ATS!$U:$U,0),7) -> Stock
A124: 1 | B124: Helmets & Helmet Acc. | C124: =INDEX(ATS!$B:$V,MATCH('2) Order Form'!$V124,ATS!$U:$U,0),1) -> 840092 | D124: =INDEX(ATS!$B:$V,MATCH('2) Order Form'!$V124,ATS!$U:$U,0),2) -> Looper Mips Helmet | E124: =INDEX(ATS!$B:$V,MATCH('2) Order Form'!$V124,ATS!$U:$U,0),4) -> MTURQ-ML | F124: =INDEX(ATS!$B:$V,MATCH('2) Order Form'!$V124,ATS!$U:$U,0),5) -> Misty Turquoise | G124: =INDEX(ATS!$B:$V,MATCH('2) Order Form'!$V124,ATS!$U:$U,0),6) -> ML | H124: =IFERROR(VLOOKUP(C124,EAN!$K:$O,5,FALSE),0) -> 1 | I124: 0 | J124: =IFERROR(VLOOKUP(V124,ATS!$U:$V,2,FALSE),0) -> 103 | K124: 50+ | L124: =IFERROR(VLOOKUP(V124,ATS!$U:$W,3,FALSE),0) -> 103 | M124: 50+ | N124: 0% | O124: =IF(N124<>0,N124,$P$5) -> 0% | P124: =VLOOKUP($C124,Prices!$A$3:$R$1996,MATCH('2) Order Form'!P$8,Prices!$A$2:$R$2,0),FALSE) -> 95.00 | Q124: =VLOOKUP($C124,Prices!$A$3:$R$1996,MATCH('2) Order Form'!Q$8,Prices!$A$2:$R$2,0),FALSE) -> 189.00 | R124: 0 | S124: 0 | T124: 0 | V124: 7048652966223 | X124: 0 | Y124: 0 | Z124: 6 | AA124: 0 | AB124: 0 | AC124: 840092Misty Turquoise | AD124: 840092 | AE124: =INDEX(ATS!$B:$V,MATCH('2) Order Form'!$V124,ATS!$U:$U,0),7) -> Stock
A125: 1 | B125: Helmets & Helmet Acc. | C125: =INDEX(ATS!$B:$V,MATCH('2) Order Form'!$V125,ATS!$U:$U,0),1) -> 840092 | D125: =INDEX(ATS!$B:$V,MATCH('2) Order Form'!$V125,ATS!$U:$U,0),2) -> Looper Mips Helmet | E125: =INDEX(ATS!$B:$V,MATCH('2) Order Form'!$V125,ATS!$U:$U,0),4) -> MTURQ-LXL | F125: =INDEX(ATS!$B:$V,MATCH('2) Order Form'!$V125,ATS!$U:$U,0),5) -> Misty Turquoise | G125: =INDEX(ATS!$B:$V,MATCH('2) Order Form'!$V125,ATS!$U:$U,0),6) -> LXL | H125: =IFERROR(VLOOKUP(C125,EAN!$K:$O,5,FALSE),0) -> 1 | I125: 0 | J125: =IFERROR(VLOOKUP(V125,ATS!$U:$V,2,FALSE),0) -> 43 | K125: 43 | L125: =IFERROR(VLOOKUP(V125,ATS!$U:$W,3,FALSE),0) -> 43 | M125: 43 | N125: 0% | O125: =IF(N125<>0,N125,$P$5) -> 0% | P125: =VLOOKUP($C125,Prices!$A$3:$R$1996,MATCH('2) Order Form'!P$8,Prices!$A$2:$R$2,0),FALSE) -> 95.00 | Q125: =VLOOKUP($C125,Prices!$A$3:$R$1996,MATCH('2) Order Form'!Q$8,Prices!$A$2:$R$2,0),FALSE) -> 189.00 | R125: 0 | S125: 0 | T125: 0 | V125: 7048652966216 | X125: 0 | Y125: 0 | Z125: 6 | AA125: 0 | AB125: 0 | AC125: 840092Misty Turquoise | AD125: 840092 | AE125: =INDEX(ATS!$B:$V,MATCH('2) Order Form'!$V125,ATS!$U:$U,0),7) -> Stock
A126: 1 | B126: Helmets & Helmet Acc. | C126: =INDEX(ATS!$B:$V,MATCH('2) Order Form'!$V126,ATS!$U:$U,0),1) -> 840092 | D126: =INDEX(ATS!$B:$V,MATCH('2) Order Form'!$V126,ATS!$U:$U,0),2) -> Looper Mips Helmet | E126: =INDEX(ATS!$B:$V,MATCH('2) Order Form'!$V126,ATS!$U:$U,0),4) -> PANTH-SM | F126: =INDEX(ATS!$B:$V,MATCH('2) Order Form'!$V126,ATS!$U:$U,0),5) -> Panther | G126: =INDEX(ATS!$B:$V,MATCH('2) Order Form'!$V126,ATS!$U:$U,0),6) -> SM | H126: =IFERROR(VLOOKUP(C126,EAN!$K:$O,5,FALSE),0) -> 1 | I126: 0 | J126: =IFERROR(VLOOKUP(V126,ATS!$U:$V,2,FALSE),0) -> 81 | K126: 50+ | L126: =IFERROR(VLOOKUP(V126,ATS!$U:$W,3,FALSE),0) -> 81 | M126: 50+ | N126: 0% | O126: =IF(N126<>0,N126,$P$5) -> 0% | P126: =VLOOKUP($C126,Prices!$A$3:$R$1996,MATCH('2) Order Form'!P$8,Prices!$A$2:$R$2,0),FALSE) -> 95.00 | Q126: =VLOOKUP($C126,Prices!$A$3:$R$1996,MATCH('2) Order Form'!Q$8,Prices!$A$2:$R$2,0),FALSE) -> 189.00 | R126: 0 | S126: 0 | T126: 0 | V126: 7048652966261 | X126: 0 | Y126: 0 | Z126: 6 | AA126: 0 | AB126: 1 | AC126: 840092Panther | AD126: 840092 | AE126: =INDEX(ATS!$B:$V,MATCH('2) Order Form'!$V126,ATS!$U:$U,0),7) -> Stock
A127: 1 | B127: Helmets & Helmet Acc. | C127: =INDEX(ATS!$B:$V,MATCH('2) Order Form'!$V127,ATS!$U:$U,0),1) -> 840092 | D127: =INDEX(ATS!$B:$V,MATCH('2) Order Form'!$V127,ATS!$U:$U,0),2) -> Looper Mips Helmet | E127: =INDEX(ATS!$B:$V,MATCH('2) Order Form'!$V127,ATS!$U:$U,0),4) -> PANTH-ML | F127: =INDEX(ATS!$B:$V,MATCH('2) Order Form'!$V127,ATS!$U:$U,0),5) -> Panther | G127: =INDEX(ATS!$B:$V,MATCH('2) Order Form'!$V127,ATS!$U:$U,0),6) -> ML | H127: =IFERROR(VLOOKUP(C127,EAN!$K:$O,5,FALSE),0) -> 1 | I127: 0 | J127: =IFERROR(VLOOKUP(V127,ATS!$U:$V,2,FALSE),0) -> 130 | K127: 50+ | L127: =IFERROR(VLOOKUP(V127,ATS!$U:$W,3,FALSE),0) -> 130 | M127: 50+ | N127: 0% | O127: 0% | P127: =VLOOKUP($C127,Prices!$A$3:$R$1996,MATCH('2) Order Form'!P$8,Prices!$A$2:$R$2,0),FALSE) -> 95.00 | Q127: =VLOOKUP($C127,Prices!$A$3:$R$1996,MATCH('2) Order Form'!Q$8,Prices!$A$2:$R$2,0),FALSE) -> 189.00 | R127: 0 | S127: 0 | T127: 0 | V127: 7048652966254 | X127: 0 | Y127: 0 | Z127: 6 | AA127: 0 | AB127: 0 | AC127: 840092Panther | AD127: 840092 | AE127: =INDEX(ATS!$B:$V,MATCH('2) Order Form'!$V127,ATS!$U:$U,0),7) -> Stock
A128: 1 | B128: Helmets & Helmet Acc. | C128: =INDEX(ATS!$B:$V,MATCH('2) Order Form'!$V128,ATS!$U:$U,0),1) -> 840092 | D128: =INDEX(ATS!$B:$V,MATCH('2) Order Form'!$V128,ATS!$U:$U,0),2) -> Looper Mips Helmet | E128: =INDEX(ATS!$B:$V,MATCH('2) Order Form'!$V128,ATS!$U:$U,0),4) -> PANTH-LXL | F128: =INDEX(ATS!$B:$V,MATCH('2) Order Form'!$V128,ATS!$U:$U,0),5) -> Panther | G128: =INDEX(ATS!$B:$V,MATCH('2) Order Form'!$V128,ATS!$U:$U,0),6) -> LXL | H128: =IFERROR(VLOOKUP(C128,EAN!$K:$O,5,FALSE),0) -> 1 | I128: 0 | J128: =IFERROR(VLOOKUP(V128,ATS!$U:$V,2,FALSE),0) -> 28 | K128: 28 | L128: =IFERROR(VLOOKUP(V128,ATS!$U:$W,3,FALSE),0) -> 28 | M128: 28 | N128: 0% | O128: 0% | P128: =VLOOKUP($C128,Prices!$A$3:$R$1996,MATCH('2) Order Form'!P$8,Prices!$A$2:$R$2,0),FALSE) -> 95.00 | Q128: =VLOOKUP($C128,Prices!$A$3:$R$1996,MATCH('2) Order Form'!Q$8,Prices!$A$2:$R$2,0),FALSE) -> 189.00 | R128: 0 | S128: 0 | T128: 0 | V128: 7048652966247 | X128: 0 | Y128: 0 | Z128: 6 | AA128: 0 | AB128: 0 | AC128: 840092Panther | AD128: 840092 | AE128: =INDEX(ATS!$B:$V,MATCH('2) Order Form'!$V128,ATS!$U:$U,0),7) -> Stock
A129: 1 | B129: Helmets & Helmet Acc. | C129: =INDEX(ATS!$B:$V,MATCH('2) Order Form'!$V129,ATS!$U:$U,0),1) -> 840092 | D129: =INDEX(ATS!$B:$V,MATCH('2) Order Form'!$V129,ATS!$U:$U,0),2) -> Looper Mips Helmet | E129: =INDEX(ATS!$B:$V,MATCH('2) Order Form'!$V129,ATS!$U:$U,0),4) -> WOLND-SM | F129: =INDEX(ATS!$B:$V,MATCH('2) Order Form'!$V129,ATS!$U:$U,0),5) -> Woodland | G129: =INDEX(ATS!$B:$V,MATCH('2) Order Form'!$V129,ATS!$U:$U,0),6) -> SM | H129: =IFERROR(VLOOKUP(C129,EAN!$K:$O,5,FALSE),0) -> 1 | I129: 0 | J129: =IFERROR(VLOOKUP(V129,ATS!$U:$V,2,FALSE),0) -> 32 | K129: 32 | L129: =IFERROR(VLOOKUP(V129,ATS!$U:$W,3,FALSE),0) -> 32 | M129: 32 | N129: 0% | O129: =IF(N129<>0,N129,$P$5) -> 0% | P129: =VLOOKUP($C129,Prices!$A$3:$R$1996,MATCH('2) Order Form'!P$8,Prices!$A$2:$R$2,0),FALSE) -> 95.00 | Q129: =VLOOKUP($C129,Prices!$A$3:$R$1996,MATCH('2) Order Form'!Q$8,Prices!$A$2:$R$2,0),FALSE) -> 189.00 | R129: 0 | S129: 0 | T129: 0 | V129: 7048652966292 | X129: 0 | Y129: 0 | Z129: 6 | AA129: 0 | AB129: 1 | AC129: 840092Woodland | AD129: 840092 | AE129: =INDEX(ATS!$B:$V,MATCH('2) Order Form'!$V129,ATS!$U:$U,0),7) -> Active
A130: 1 | B130: Helmets & Helmet Acc. | C130: =INDEX(ATS!$B:$V,MATCH('2) Order Form'!$V130,ATS!$U:$U,0),1) -> 840092 | D130: =INDEX(ATS!$B:$V,MATCH('2) Order Form'!$V130,ATS!$U:$U,0),2) -> Looper Mips Helmet | E130: =INDEX(ATS!$B:$V,MATCH('2) Order Form'!$V130,ATS!$U:$U,0),4) -> WOLND-ML | F130: =INDEX(ATS!$B:$V,MATCH('2) Order Form'!$V130,ATS!$U:$U,0),5) -> Woodland | G130: =INDEX(ATS!$B:$V,MATCH('2) Order Form'!$V130,ATS!$U:$U,0),6) -> ML | H130: =IFERROR(VLOOKUP(C130,EAN!$K:$O,5,FALSE),0) -> 1 | I130: 0 | J130: =IFERROR(VLOOKUP(V130,ATS!$U:$V,2,FALSE),0) -> 73 | K130: 50+ | L130: =IFERROR(VLOOKUP(V130,ATS!$U:$W,3,FALSE),0) -> 73 | M130: 50+ | N130: 0% | O130: 0% | P130: =VLOOKUP($C130,Prices!$A$3:$R$1996,MATCH('2) Order Form'!P$8,Prices!$A$2:$R$2,0),FALSE) -> 95.00 | Q130: =VLOOKUP($C130,Prices!$A$3:$R$1996,MATCH('2) Order Form'!Q$8,Prices!$A$2:$R$2,0),FALSE) -> 189.00 | R130: 0 | S130: 0 | T130: 0 | V130: 7048652966285 | X130: 0 | Y130: 0 | Z130: 6 | AA130: 0 | AB130: 0 | AC130: 840092Woodland | AD130: 840092 | AE130: =INDEX(ATS!$B:$V,MATCH('2) Order Form'!$V130,ATS!$U:$U,0),7) -> Active
A131: 1 | B131: Helmets & Helmet Acc. | C131: =INDEX(ATS!$B:$V,MATCH('2) Order Form'!$V131,ATS!$U:$U,0),1) -> 840092 | D131: =INDEX(ATS!$B:$V,MATCH('2) Order Form'!$V131,ATS!$U:$U,0),2) -> Looper Mips Helmet | E131: =INDEX(ATS!$B:$V,MATCH('2) Order Form'!$V131,ATS!$U:$U,0),4) -> WOLND-LXL | F131: =INDEX(ATS!$B:$V,MATCH('2) Order Form'!$V131,ATS!$U:$U,0),5) -> Woodland | G131: =INDEX(ATS!$B:$V,MATCH('2) Order Form'!$V131,ATS!$U:$U,0),6) -> LXL | H131: =IFERROR(VLOOKUP(C131,EAN!$K:$O,5,FALSE),0) -> 1 | I131: 0 | J131: =IFERROR(VLOOKUP(V131,ATS!$U:$V,2,FALSE),0) -> 65 | K131: 50+ | L131: =IFERROR(VLOOKUP(V131,ATS!$U:$W,3,FALSE),0) -> 65 | M131: 50+ | N131: 0% | O131: 0% | P131: =VLOOKUP($C131,Prices!$A$3:$R$1996,MATCH('2) Order Form'!P$8,Prices!$A$2:$R$2,0),FALSE) -> 95.00 | Q131: =VLOOKUP($C131,Prices!$A$3:$R$1996,MATCH('2) Order Form'!Q$8,Prices!$A$2:$R$2,0),FALSE) -> 189.00 | R131: 0 | S131: 0 | T131: 0 | V131: 7048652966278 | X131: 0 | Y131: 0 | Z131: 6 | AA131: 0 | AB131: 0 | AC131: 840092Woodland | AD131: 840092 | AE131: =INDEX(ATS!$B:$V,MATCH('2) Order Form'!$V131,ATS!$U:$U,0),7) -> Active
A132: 1 | B132: Helmets & Helmet Acc. | C132: =INDEX(ATS!$B:$V,MATCH('2) Order Form'!$V132,ATS!$U:$U,0),1) -> 840091 | D132: =INDEX(ATS!$B:$V,MATCH('2) Order Form'!$V132,ATS!$U:$U,0),2) -> Looper Helmet | E132: =INDEX(ATS!$B:$V,MATCH('2) Order Form'!$V132,ATS!$U:$U,0),4) -> DTBLK-SM | F132: =INDEX(ATS!$B:$V,MATCH('2) Order Form'!$V132,ATS!$U:$U,0),5) -> Dirt Black | G132: =INDEX(ATS!$B:$V,MATCH('2) Order Form'!$V132,ATS!$U:$U,0),6) -> SM | H132: =IFERROR(VLOOKUP(C132,EAN!$K:$O,5,FALSE),0) -> 1 | I132: 0 | J132: =IFERROR(VLOOKUP(V132,ATS!$U:$V,2,FALSE),0) -> 0 | K132: =IF(J132=99999,"OPEN",IF(J132>50,"50+",IF(J132<=0,"0",J132))) -> 0 | L132: =IFERROR(VLOOKUP(V132,ATS!$U:$W,3,FALSE),0) -> 0 | M132: =IF(L132=99999,"OPEN",IF(L132>50,"50+",IF(L132<=0,"0",L132))) -> 0 | N132: 0% | O132: =IF(N132<>0,N132,$P$5) -> 0% | P132: =VLOOKUP($C132,Prices!$A$3:$R$1996,MATCH('2) Order Form'!P$8,Prices!$A$2:$R$2,0),FALSE) -> 80.00 | Q132: =VLOOKUP($C132,Prices!$A$3:$R$1996,MATCH('2) Order Form'!Q$8,Prices!$A$2:$R$2,0),FALSE) -> 159.00 | R132: =I132*P132 -> 0 | S132: =R132*O132 -> 0 | T132: =R132-S132 -> 0 | V132: 7048652605108 | X132: 0 | Y132: 0 | Z132: 7 | AA132: 1 | AB132: 1 | AC132: 840091Dirt Black | AD132: 840091 | AE132: =INDEX(ATS!$B:$V,MATCH('2) Order Form'!$V132,ATS!$U:$U,0),7) -> Active
A133: 1 | B133: Helmets & Helmet Acc. | C133: =INDEX(ATS!$B:$V,MATCH('2) Order Form'!$V133,ATS!$U:$U,0),1) -> 840091 | D133: =INDEX(ATS!$B:$V,MATCH('2) Order Form'!$V133,ATS!$U:$U,0),2) -> Looper Helmet | E133: =INDEX(ATS!$B:$V,MATCH('2) Order Form'!$V133,ATS!$U:$U,0),4) -> DTBLK-ML | F133: =INDEX(ATS!$B:$V,MATCH('2) Order Form'!$V133,ATS!$U:$U,0),5) -> Dirt Black | G133: =INDEX(ATS!$B:$V,MATCH('2) Order Form'!$V133,ATS!$U:$U,0),6) -> ML | H133: =IFERROR(VLOOKUP(C133,EAN!$K:$O,5,FALSE),0) -> 1 | I133: 0 | J133: =IFERROR(VLOOKUP(V133,ATS!$U:$V,2,FALSE),0) -> 0 | K133: 0 | L133: =IFERROR(VLOOKUP(V133,ATS!$U:$W,3,FALSE),0) -> 0 | M133: 0 | N133: 0% | O133: =IF(N133<>0,N133,$P$5) -> 0% | P133: =VLOOKUP($C133,Prices!$A$3:$R$1996,MATCH('2) Order Form'!P$8,Prices!$A$2:$R$2,0),FALSE) -> 80.00 | Q133: =VLOOKUP($C133,Prices!$A$3:$R$1996,MATCH('2) Order Form'!Q$8,Prices!$A$2:$R$2,0),FALSE) -> 159.00 | R133: 0 | S133: 0 | T133: 0 | V133: 7048652605092 | X133: 0 | Y133: 0 | Z133: 7 | AA133: 0 | AB133: 0 | AC133: 840091Dirt Black | AD133: 840091 | AE133: =INDEX(ATS!$B:$V,MATCH('2) Order Form'!$V133,ATS!$U:$U,0),7) -> Active
A134: 1 | B134: Helmets & Helmet Acc. | C134: =INDEX(ATS!$B:$V,MATCH('2) Order Form'!$V134,ATS!$U:$U,0),1) -> 840091 | D134: =INDEX(ATS!$B:$V,MATCH('2) Order Form'!$V134,ATS!$U:$U,0),2) -> Looper Helmet | E134: =INDEX(ATS!$B:$V,MATCH('2) Order Form'!$V134,ATS!$U:$U,0),4) -> DTBLK-LXL | F134: =INDEX(ATS!$B:$V,MATCH('2) Order Form'!$V134,ATS!$U:$U,0),5) -> Dirt Black | G134: =INDEX(ATS!$B:$V,MATCH('2) Order Form'!$V134,ATS!$U:$U,0),6) -> LXL | H134: =IFERROR(VLOOKUP(C134,EAN!$K:$O,5,FALSE),0) -> 1 | I134: 0 | J134: =IFERROR(VLOOKUP(V134,ATS!$U:$V,2,FALSE),0) -> 0 | K134: 0 | L134: =IFERROR(VLOOKUP(V134,ATS!$U:$W,3,FALSE),0) -> 0 | M134: 0 | N134: 0% | O134: =IF(N134<>0,N134,$P$5) -> 0% | P134: =VLOOKUP($C134,Prices!$A$3:$R$1996,MATCH('2) Order Form'!P$8,Prices!$A$2:$R$2,0),FALSE) -> 80.00 | Q134: =VLOOKUP($C134,Prices!$A$3:$R$1996,MATCH('2) Order Form'!Q$8,Prices!$A$2:$R$2,0),FALSE) -> 159.00 | R134: 0 | S134: 0 | T134: 0 | V134: 7048652605085 | X134: 0 | Y134: 0 | Z134: 7 | AA134: 0 | AB134: 0 | AC134: 840091Dirt Black | AD134: 840091 | AE134: =INDEX(ATS!$B:$V,MATCH('2) Order Form'!$V134,ATS!$U:$U,0),7) -> Active
A135: 1 | B135: Helmets & Helmet Acc. | C135: =INDEX(ATS!$B:$V,MATCH('2) Order Form'!$V135,ATS!$U:$U,0),1) -> 840091 | D135: =INDEX(ATS!$B:$V,MATCH('2) Order Form'!$V135,ATS!$U:$U,0),2) -> Looper Helmet | E135: =INDEX(ATS!$B:$V,MATCH('2) Order Form'!$V135,ATS!$U:$U,0),4) -> MBRWH-SM | F135: =INDEX(ATS!$B:$V,MATCH('2) Order Form'!$V135,ATS!$U:$U,0),5) -> Matte Bronco White | G135: =INDEX(ATS!$B:$V,MATCH('2) Order Form'!$V135,ATS!$U:$U,0),6) -> SM | H135: =IFERROR(VLOOKUP(C135,EAN!$K:$O,5,FALSE),0) -> 1 | I135: 0 | J135: =IFERROR(VLOOKUP(V135,ATS!$U:$V,2,FALSE),0) -> 10 | K135: 10 | L135: =IFERROR(VLOOKUP(V135,ATS!$U:$W,3,FALSE),0) -> 10 | M135: 10 | N135: 0% | O135: =IF(N135<>0,N135,$P$5) -> 0% | P135: =VLOOKUP($C135,Prices!$A$3:$R$1996,MATCH('2) Order Form'!P$8,Prices!$A$2:$R$2,0),FALSE) -> 80.00 | Q135: =VLOOKUP($C135,Prices!$A$3:$R$1996,MATCH('2) Order Form'!Q$8,Prices!$A$2:$R$2,0),FALSE) -> 159.00 | R135: 0 | S135: 0 | T135: 0 | V135: 7048652823113 | X135: 0 | Y135: 0 | Z135: 7 | AA135: 0 | AB135: 1 | AC135: 840091Matte Bronco White | AD135: 840091 | AE135: =INDEX(ATS!$B:$V,MATCH('2) Order Form'!$V135,ATS!$U:$U,0),7) -> Active
A136: 1 | B136: Helmets & Helmet Acc. | C136: =INDEX(ATS!$B:$V,MATCH('2) Order Form'!$V136,ATS!$U:$U,0),1) -> 840091 | D136: =INDEX(ATS!$B:$V,MATCH('2) Order Form'!$V136,ATS!$U:$U,0),2) -> Looper Helmet | E136: =INDEX(ATS!$B:$V,MATCH('2) Order Form'!$V136,ATS!$U:$U,0),4) -> MBRWH-ML | F136: =INDEX(ATS!$B:$V,MATCH('2) Order Form'!$V136,ATS!$U:$U,0),5) -> Matte Bronco White | G136: =INDEX(ATS!$B:$V,MATCH('2) Order Form'!$V136,ATS!$U:$U,0),6) -> ML | H136: =IFERROR(VLOOKUP(C136,EAN!$K:$O,5,FALSE),0) -> 1 | I136: 0 | J136: =IFERROR(VLOOKUP(V136,ATS!$U:$V,2,FALSE),0) -> 44 | K136: 44 | L136: =IFERROR(VLOOKUP(V136,ATS!$U:$W,3,FALSE),0) -> 44 | M136: 44 | N136: 0% | O136: =IF(N136<>0,N136,$P$5) -> 0% | P136: =VLOOKUP($C136,Prices!$A$3:$R$1996,MATCH('2) Order Form'!P$8,Prices!$A$2:$R$2,0),FALSE) -> 80.00 | Q136: =VLOOKUP($C136,Prices!$A$3:$R$1996,MATCH('2) Order Form'!Q$8,Prices!$A$2:$R$2,0),FALSE) -> 159.00 | R136: 0 | S136: 0 | T136: 0 | V136: 7048652823106 | X136: 0 | Y136: 0 | Z136: 7 | AA136: 0 | AB136: 0 | AC136: 840091Matte Bronco White | AD136: 840091 | AE136: =INDEX(ATS!$B:$V,MATCH('2) Order Form'!$V136,ATS!$U:$U,0),7) -> Active
A137: 1 | B137: Helmets & Helmet Acc. | C137: =INDEX(ATS!$B:$V,MATCH('2) Order Form'!$V137,ATS!$U:$U,0),1) -> 840091 | D137: =INDEX(ATS!$B:$V,MATCH('2) Order Form'!$V137,ATS!$U:$U,0),2) -> Looper Helmet | E137: =INDEX(ATS!$B:$V,MATCH('2) Order Form'!$V137,ATS!$U:$U,0),4) -> MBRWH-LXL | F137: =INDEX(ATS!$B:$V,MATCH('2) Order Form'!$V137,ATS!$U:$U,0),5) -> Matte Bronco White | G137: =INDEX(ATS!$B:$V,MATCH('2) Order Form'!$V137,ATS!$U:$U,0),6) -> LXL | H137: =IFERROR(VLOOKUP(C137,EAN!$K:$O,5,FALSE),0) -> 1 | I137: 0 | J137: =IFERROR(VLOOKUP(V137,ATS!$U:$V,2,FALSE),0) -> 57 | K137: 50+ | L137: =IFERROR(VLOOKUP(V137,ATS!$U:$W,3,FALSE),0) -> 57 | M137: 50+ | N137: 0% | O137: =IF(N137<>0,N137,$P$5) -> 0% | P137: =VLOOKUP($C137,Prices!$A$3:$R$1996,MATCH('2) Order Form'!P$8,Prices!$A$2:$R$2,0),FALSE) -> 80.00 | Q137: =VLOOKUP($C137,Prices!$A$3:$R$1996,MATCH('2) Order Form'!Q$8,Prices!$A$2:$R$2,0),FALSE) -> 159.00 | R137: 0 | S137: 0 | T137: 0 | V137: 7048652823090 | X137: 0 | Y137: 0 | Z137: 7 | AA137: 0 | AB137: 0 | AC137: 840091Matte Bronco White | AD137: 840091 | AE137: =INDEX(ATS!$B:$V,MATCH('2) Order Form'!$V137,ATS!$U:$U,0),7) -> Active
A138: 1 | B138: Helmets & Helmet Acc. | C138: =INDEX(ATS!$B:$V,MATCH('2) Order Form'!$V138,ATS!$U:$U,0),1) -> 840091 | D138: =INDEX(ATS!$B:$V,MATCH('2) Order Form'!$V138,ATS!$U:$U,0),2) -> Looper Helmet | E138: =INDEX(ATS!$B:$V,MATCH('2) Order Form'!$V138,ATS!$U:$U,0),4) -> MNGRY-SM | F138: =INDEX(ATS!$B:$V,MATCH('2) Order Form'!$V138,ATS!$U:$U,0),5) -> Matte Nardo Gray | G138: =INDEX(ATS!$B:$V,MATCH('2) Order Form'!$V138,ATS!$U:$U,0),6) -> SM | H138: =IFERROR(VLOOKUP(C138,EAN!$K:$O,5,FALSE),0) -> 1 | I138: 0 | J138: =IFERROR(VLOOKUP(V138,ATS!$U:$V,2,FALSE),0) -> 17 | K138: 17 | L138: =IFERROR(VLOOKUP(V138,ATS!$U:$W,3,FALSE),0) -> 17 | M138: 17 | N138: 0% | O138: =IF(N138<>0,N138,$P$5) -> 0% | P138: =VLOOKUP($C138,Prices!$A$3:$R$1996,MATCH('2) Order Form'!P$8,Prices!$A$2:$R$2,0),FALSE) -> 80.00 | Q138: =VLOOKUP($C138,Prices!$A$3:$R$1996,MATCH('2) Order Form'!Q$8,Prices!$A$2:$R$2,0),FALSE) -> 159.00 | R138: 0 | S138: 0 | T138: 0 | V138: 7048652605221 | X138: 0 | Y138: 0 | Z138: 7 | AA138: 0 | AB138: 1 | AC138: 840091Matte Nardo Gray | AD138: 840091 | AE138: =INDEX(ATS!$B:$V,MATCH('2) Order Form'!$V138,ATS!$U:$U,0),7) -> Active
A139: 1 | B139: Helmets & Helmet Acc. | C139: =INDEX(ATS!$B:$V,MATCH('2) Order Form'!$V139,ATS!$U:$U,0),1) -> 840091 | D139: =INDEX(ATS!$B:$V,MATCH('2) Order Form'!$V139,ATS!$U:$U,0),2) -> Looper Helmet | E139: =INDEX(ATS!$B:$V,MATCH('2) Order Form'!$V139,ATS!$U:$U,0),4) -> MNGRY-ML | F139: =INDEX(ATS!$B:$V,MATCH('2) Order Form'!$V139,ATS!$U:$U,0),5) -> Matte Nardo Gray | G139: =INDEX(ATS!$B:$V,MATCH('2) Order Form'!$V139,ATS!$U:$U,0),6) -> ML | H139: =IFERROR(VLOOKUP(C139,EAN!$K:$O,5,FALSE),0) -> 1 | I139: 0 | J139: =IFERROR(VLOOKUP(V139,ATS!$U:$V,2,FALSE),0) -> 0 | K139: 0 | L139: =IFERROR(VLOOKUP(V139,ATS!$U:$W,3,FALSE),0) -> 0 | M139: 0 | N139: 0% | O139: =IF(N139<>0,N139,$P$5) -> 0% | P139: =VLOOKUP($C139,Prices!$A$3:$R$1996,MATCH('2) Order Form'!P$8,Prices!$A$2:$R$2,0),FALSE) -> 80.00 | Q139: =VLOOKUP($C139,Prices!$A$3:$R$1996,MATCH('2) Order Form'!Q$8,Prices!$A$2:$R$2,0),FALSE) -> 159.00 | R139: 0 | S139: 0 | T139: 0 | V139: 7048652605214 | X139: =I139*Q139 -> 0 | Y139: =IF(A139=OFFSET(A139,-1,0),0,1) -> 0 | Z139: =IF(C139=OFFSET(C139,-1,0),OFFSET(Z139,-1,0),OFFSET(Z139,-1,0)+1) -> 7 | AA139: =IF(C139=OFFSET(C139,-1,0),0,1) -> 0 | AB139: =IF(F139=OFFSET(F139,-1,0),0,1) -> 0 | AC139: =CONCATENATE(C139,F139) -> 840091Matte Nardo Gray | AD139: =IFERROR(IF(B139="EYEWEAR",CONCATENATE(C139,"-",G139),C139),C139) -> 840091 | AE139: =INDEX(ATS!$B:$V,MATCH('2) Order Form'!$V139,ATS!$U:$U,0),7) -> Active
A140: 1 | B140: Helmets & Helmet Acc. | C140: =INDEX(ATS!$B:$V,MATCH('2) Order Form'!$V140,ATS!$U:$U,0),1) -> 840091 | D140: =INDEX(ATS!$B:$V,MATCH('2) Order Form'!$V140,ATS!$U:$U,0),2) -> Looper Helmet | E140: =INDEX(ATS!$B:$V,MATCH('2) Order Form'!$V140,ATS!$U:$U,0),4) -> MNGRY-LXL | F140: =INDEX(ATS!$B:$V,MATCH('2) Order Form'!$V140,ATS!$U:$U,0),5) -> Matte Nardo Gray | G140: =INDEX(ATS!$B:$V,MATCH('2) Order Form'!$V140,ATS!$U:$U,0),6) -> LXL | H140: =IFERROR(VLOOKUP(C140,EAN!$K:$O,5,FALSE),0) -> 1 | I140: 0 | J140: =IFERROR(VLOOKUP(V140,ATS!$U:$V,2,FALSE),0) -> 17 | K140: 17 | L140: =IFERROR(VLOOKUP(V140,ATS!$U:$W,3,FALSE),0) -> 17 | M140: 17 | N140: 0% | O140: 0% | P140: =VLOOKUP($C140,Prices!$A$3:$R$1996,MATCH('2) Order Form'!P$8,Prices!$A$2:$R$2,0),FALSE) -> 80.00 | Q140: =VLOOKUP($C140,Prices!$A$3:$R$1996,MATCH('2) Order Form'!Q$8,Prices!$A$2:$R$2,0),FALSE) -> 159.00 | R140: 0 | S140: 0 | T140: 0 | V140: 7048652605207 | X140: 0 | Y140: 0 | Z140: 7 | AA140: 0 | AB140: 0 | AC140: 840091Matte Nardo Gray | AD140: 840091 | AE140: =INDEX(ATS!$B:$V,MATCH('2) Order Form'!$V140,ATS!$U:$U,0),7) -> Active
A141: 1 | B141: Helmets & Helmet Acc. | C141: =INDEX(ATS!$B:$V,MATCH('2) Order Form'!$V141,ATS!$U:$U,0),1) -> 840091 | D141: =INDEX(ATS!$B:$V,MATCH('2) Order Form'!$V141,ATS!$U:$U,0),2) -> Looper Helmet | E141: =INDEX(ATS!$B:$V,MATCH('2) Order Form'!$V141,ATS!$U:$U,0),4) -> MTURQ-SM | F141: =INDEX(ATS!$B:$V,MATCH('2) Order Form'!$V141,ATS!$U:$U,0),5) -> Misty Turquoise | G141: =INDEX(ATS!$B:$V,MATCH('2) Order Form'!$V141,ATS!$U:$U,0),6) -> SM | H141: =IFERROR(VLOOKUP(C141,EAN!$K:$O,5,FALSE),0) -> 1 | I141: 0 | J141: =IFERROR(VLOOKUP(V141,ATS!$U:$V,2,FALSE),0) -> 52 | K141: 50+ | L141: =IFERROR(VLOOKUP(V141,ATS!$U:$W,3,FALSE),0) -> 52 | M141: 50+ | N141: 0% | O141: 0% | P141: =VLOOKUP($C141,Prices!$A$3:$R$1996,MATCH('2) Order Form'!P$8,Prices!$A$2:$R$2,0),FALSE) -> 80.00 | Q141: =VLOOKUP($C141,Prices!$A$3:$R$1996,MATCH('2) Order Form'!Q$8,Prices!$A$2:$R$2,0),FALSE) -> 159.00 | R141: 0 | S141: 0 | T141: 0 | V141: 7048652966148 | X141: 0 | Y141: 0 | Z141: 7 | AA141: 0 | AB141: 1 | AC141: 840091Misty Turquoise | AD141: 840091 | AE141: =INDEX(ATS!$B:$V,MATCH('2) Order Form'!$V141,ATS!$U:$U,0),7) -> Active
A142: 1 | B142: Helmets & Helmet Acc. | C142: =INDEX(ATS!$B:$V,MATCH('2) Order Form'!$V142,ATS!$U:$U,0),1) -> 840091 | D142: =INDEX(ATS!$B:$V,MATCH('2) Order Form'!$V142,ATS!$U:$U,0),2) -> Looper Helmet | E142: =INDEX(ATS!$B:$V,MATCH('2) Order Form'!$V142,ATS!$U:$U,0),4) -> MTURQ-ML | F142: =INDEX(ATS!$B:$V,MATCH('2) Order Form'!$V142,ATS!$U:$U,0),5) -> Misty Turquoise | G142: =INDEX(ATS!$B:$V,MATCH('2) Order Form'!$V142,ATS!$U:$U,0),6) -> ML | H142: =IFERROR(VLOOKUP(C142,EAN!$K:$O,5,FALSE),0) -> 1 | I142: 0 | J142: =IFERROR(VLOOKUP(V142,ATS!$U:$V,2,FALSE),0) -> 52 | K142: 50+ | L142: =IFERROR(VLOOKUP(V142,ATS!$U:$W,3,FALSE),0) -> 52 | M142: 50+ | N142: 0% | O142: 0% | P142: =VLOOKUP($C142,Prices!$A$3:$R$1996,MATCH('2) Order Form'!P$8,Prices!$A$2:$R$2,0),FALSE) -> 80.00 | Q142: =VLOOKUP($C142,Prices!$A$3:$R$1996,MATCH('2) Order Form'!Q$8,Prices!$A$2:$R$2,0),FALSE) -> 159.00 | R142: 0 | S142: 0 | T142: 0 | V142: 7048652966131 | X142: 0 | Y142: 0 | Z142: 7 | AA142: 0 | AB142: 0 | AC142: 840091Misty Turquoise | AD142: 840091 | AE142: =INDEX(ATS!$B:$V,MATCH('2) Order Form'!$V142,ATS!$U:$U,0),7) -> Active
A143: 1 | B143: Helmets & Helmet Acc. | C143: =INDEX(ATS!$B:$V,MATCH('2) Order Form'!$V143,ATS!$U:$U,0),1) -> 840091 | D143: =INDEX(ATS!$B:$V,MATCH('2) Order Form'!$V143,ATS!$U:$U,0),2) -> Looper Helmet | E143: =INDEX(ATS!$B:$V,MATCH('2) Order Form'!$V143,ATS!$U:$U,0),4) -> MTURQ-LXL | F143: =INDEX(ATS!$B:$V,MATCH('2) Order Form'!$V143,ATS!$U:$U,0),5) -> Misty Turquoise | G143: =INDEX(ATS!$B:$V,MATCH('2) Order Form'!$V143,ATS!$U:$U,0),6) -> LXL | H143: =IFERROR(VLOOKUP(C143,EAN!$K:$O,5,FALSE),0) -> 1 | I143: 0 | J143: =IFERROR(VLOOKUP(V143,ATS!$U:$V,2,FALSE),0) -> 0 | K143: 0 | L143: =IFERROR(VLOOKUP(V143,ATS!$U:$W,3,FALSE),0) -> 0 | M143: 0 | N143: 0% | O143: =IF(N143<>0,N143,$P$5) -> 0% | P143: =VLOOKUP($C143,Prices!$A$3:$R$1996,MATCH('2) Order Form'!P$8,Prices!$A$2:$R$2,0),FALSE) -> 80.00 | Q143: =VLOOKUP($C143,Prices!$A$3:$R$1996,MATCH('2) Order Form'!Q$8,Prices!$A$2:$R$2,0),FALSE) -> 159.00 | R143: 0 | S143: 0 | T143: 0 | V143: 7048652966124 | X143: 0 | Y143: 0 | Z143: 7 | AA143: 0 | AB143: 0 | AC143: 840091Misty Turquoise | AD143: 840091 | AE143: =INDEX(ATS!$B:$V,MATCH('2) Order Form'!$V143,ATS!$U:$U,0),7) -> Active
A144: 1 | B144: Helmets & Helmet Acc. | C144: =INDEX(ATS!$B:$V,MATCH('2) Order Form'!$V144,ATS!$U:$U,0),1) -> 840091 | D144: =INDEX(ATS!$B:$V,MATCH('2) Order Form'!$V144,ATS!$U:$U,0),2) -> Looper Helmet | E144: =INDEX(ATS!$B:$V,MATCH('2) Order Form'!$V144,ATS!$U:$U,0),4) -> PANTH-SM | F144: =INDEX(ATS!$B:$V,MATCH('2) Order Form'!$V144,ATS!$U:$U,0),5) -> Panther | G144: =INDEX(ATS!$B:$V,MATCH('2) Order Form'!$V144,ATS!$U:$U,0),6) -> SM | H144: =IFERROR(VLOOKUP(C144,EAN!$K:$O,5,FALSE),0) -> 1 | I144: 0 | J144: =IFERROR(VLOOKUP(V144,ATS!$U:$V,2,FALSE),0) -> 29 | K144: 29 | L144: =IFERROR(VLOOKUP(V144,ATS!$U:$W,3,FALSE),0) -> 29 | M144: 29 | N144: 0% | O144: 0% | P144: =VLOOKUP($C144,Prices!$A$3:$R$1996,MATCH('2) Order Form'!P$8,Prices!$A$2:$R$2,0),FALSE) -> 80.00 | Q144: =VLOOKUP($C144,Prices!$A$3:$R$1996,MATCH('2) Order Form'!Q$8,Prices!$A$2:$R$2,0),FALSE) -> 159.00 | R144: 0 | S144: 0 | T144: 0 | V144: 7048652966179 | X144: 0 | Y144: 0 | Z144: 7 | AA144: 0 | AB144: 1 | AC144: 840091Panther | AD144: 840091 | AE144: =INDEX(ATS!$B:$V,MATCH('2) Order Form'!$V144,ATS!$U:$U,0),7) -> Active
A145: 1 | B145: Helmets & Helmet Acc. | C145: =INDEX(ATS!$B:$V,MATCH('2) Order Form'!$V145,ATS!$U:$U,0),1) -> 840091 | D145: =INDEX(ATS!$B:$V,MATCH('2) Order Form'!$V145,ATS!$U:$U,0),2) -> Looper Helmet | E145: =INDEX(ATS!$B:$V,MATCH('2) Order Form'!$V145,ATS!$U:$U,0),4) -> PANTH-ML | F145: =INDEX(ATS!$B:$V,MATCH('2) Order Form'!$V145,ATS!$U:$U,0),5) -> Panther | G145: =INDEX(ATS!$B:$V,MATCH('2) Order Form'!$V145,ATS!$U:$U,0),6) -> ML | H145: =IFERROR(VLOOKUP(C145,EAN!$K:$O,5,FALSE),0) -> 1 | I145: 0 | J145: =IFERROR(VLOOKUP(V145,ATS!$U:$V,2,FALSE),0) -> 22 | K145: 22 | L145: =IFERROR(VLOOKUP(V145,ATS!$U:$W,3,FALSE),0) -> 22 | M145: 22 | N145: 0% | O145: 0% | P145: =VLOOKUP($C145,Prices!$A$3:$R$1996,MATCH('2) Order Form'!P$8,Prices!$A$2:$R$2,0),FALSE) -> 80.00 | Q145: =VLOOKUP($C145,Prices!$A$3:$R$1996,MATCH('2) Order Form'!Q$8,Prices!$A$2:$R$2,0),FALSE) -> 159.00 | R145: 0 | S145: 0 | T145: 0 | V145: 7048652966162 | X145: 0 | Y145: 0 | Z145: 7 | AA145: 0 | AB145: 0 | AC145: 840091Panther | AD145: 840091 | AE145: =INDEX(ATS!$B:$V,MATCH('2) Order Form'!$V145,ATS!$U:$U,0),7) -> Active
A146: 1 | B146: Helmets & Helmet Acc. | C146: =INDEX(ATS!$B:$V,MATCH('2) Order Form'!$V146,ATS!$U:$U,0),1) -> 840091 | D146: =INDEX(ATS!$B:$V,MATCH('2) Order Form'!$V146,ATS!$U:$U,0),2) -> Looper Helmet | E146: =INDEX(ATS!$B:$V,MATCH('2) Order Form'!$V146,ATS!$U:$U,0),4) -> PANTH-LXL | F146: =INDEX(ATS!$B:$V,MATCH('2) Order Form'!$V146,ATS!$U:$U,0),5) -> Panther | G146: =INDEX(ATS!$B:$V,MATCH('2) Order Form'!$V146,ATS!$U:$U,0),6) -> LXL | H146: =IFERROR(VLOOKUP(C146,EAN!$K:$O,5,FALSE),0) -> 1 | I146: 0 | J146: =IFERROR(VLOOKUP(V146,ATS!$U:$V,2,FALSE),0) -> 0 | K146: 0 | L146: =IFERROR(VLOOKUP(V146,ATS!$U:$W,3,FALSE),0) -> 0 | M146: 0 | N146: 0% | O146: 0% | P146: =VLOOKUP($C146,Prices!$A$3:$R$1996,MATCH('2) Order Form'!P$8,Prices!$A$2:$R$2,0),FALSE) -> 80.00 | Q146: =VLOOKUP($C146,Prices!$A$3:$R$1996,MATCH('2) Order Form'!Q$8,Prices!$A$2:$R$2,0),FALSE) -> 159.00 | R146: 0 | S146: 0 | T146: 0 | V146: 7048652966155 | X146: 0 | Y146: 0 | Z146: 7 | AA146: 0 | AB146: 0 | AC146: 840091Panther | AD146: 840091 | AE146: =INDEX(ATS!$B:$V,MATCH('2) Order Form'!$V146,ATS!$U:$U,0),7) -> Active
A147: 1 | B147: Helmets & Helmet Acc. | C147: =INDEX(ATS!$B:$V,MATCH('2) Order Form'!$V147,ATS!$U:$U,0),1) -> 840091 | D147: =INDEX(ATS!$B:$V,MATCH('2) Order Form'!$V147,ATS!$U:$U,0),2) -> Looper Helmet | E147: =INDEX(ATS!$B:$V,MATCH('2) Order Form'!$V147,ATS!$U:$U,0),4) -> WOLND-SM | F147: =INDEX(ATS!$B:$V,MATCH('2) Order Form'!$V147,ATS!$U:$U,0),5) -> Woodland | G147: =INDEX(ATS!$B:$V,MATCH('2) Order Form'!$V147,ATS!$U:$U,0),6) -> SM | H147: =IFERROR(VLOOKUP(C147,EAN!$K:$O,5,FALSE),0) -> 1 | I147: 0 | J147: =IFERROR(VLOOKUP(V147,ATS!$U:$V,2,FALSE),0) -> 28 | K147: 28 | L147: =IFERROR(VLOOKUP(V147,ATS!$U:$W,3,FALSE),0) -> 28 | M147: 28 | N147: 0% | O147: =IF(N147<>0,N147,$P$5) -> 0% | P147: =VLOOKUP($C147,Prices!$A$3:$R$1996,MATCH('2) Order Form'!P$8,Prices!$A$2:$R$2,0),FALSE) -> 80.00 | Q147: =VLOOKUP($C147,Prices!$A$3:$R$1996,MATCH('2) Order Form'!Q$8,Prices!$A$2:$R$2,0),FALSE) -> 159.00 | R147: 0 | S147: 0 | T147: 0 | V147: 7048652966209 | X147: 0 | Y147: 0 | Z147: 7 | AA147: 0 | AB147: 1 | AC147: 840091Woodland | AD147: 840091 | AE147: =INDEX(ATS!$B:$V,MATCH('2) Order Form'!$V147,ATS!$U:$U,0),7) -> Active
A148: 1 | B148: Helmets & Helmet Acc. | C148: =INDEX(ATS!$B:$V,MATCH('2) Order Form'!$V148,ATS!$U:$U,0),1) -> 840091 | D148: =INDEX(ATS!$B:$V,MATCH('2) Order Form'!$V148,ATS!$U:$U,0),2) -> Looper Helmet | E148: =INDEX(ATS!$B:$V,MATCH('2) Order Form'!$V148,ATS!$U:$U,0),4) -> WOLND-ML | F148: =INDEX(ATS!$B:$V,MATCH('2) Order Form'!$V148,ATS!$U:$U,0),5) -> Woodland | G148: =INDEX(ATS!$B:$V,MATCH('2) Order Form'!$V148,ATS!$U:$U,0),6) -> ML | H148: =IFERROR(VLOOKUP(C148,EAN!$K:$O,5,FALSE),0) -> 1 | I148: 0 | J148: =IFERROR(VLOOKUP(V148,ATS!$U:$V,2,FALSE),0) -> 2 | K148: 2 | L148: =IFERROR(VLOOKUP(V148,ATS!$U:$W,3,FALSE),0) -> 2 | M148: 2 | N148: 0% | O148: =IF(N148<>0,N148,$P$5) -> 0% | P148: =VLOOKUP($C148,Prices!$A$3:$R$1996,MATCH('2) Order Form'!P$8,Prices!$A$2:$R$2,0),FALSE) -> 80.00 | Q148: =VLOOKUP($C148,Prices!$A$3:$R$1996,MATCH('2) Order Form'!Q$8,Prices!$A$2:$R$2,0),FALSE) -> 159.00 | R148: 0 | S148: 0 | T148: 0 | V148: 7048652966193 | X148: 0 | Y148: 0 | Z148: 7 | AA148: 0 | AB148: 0 | AC148: 840091Woodland | AD148: 840091 | AE148: =INDEX(ATS!$B:$V,MATCH('2) Order Form'!$V148,ATS!$U:$U,0),7) -> Active
A149: 1 | B149: Helmets & Helmet Acc. | C149: =INDEX(ATS!$B:$V,MATCH('2) Order Form'!$V149,ATS!$U:$U,0),1) -> 840091 | D149: =INDEX(ATS!$B:$V,MATCH('2) Order Form'!$V149,ATS!$U:$U,0),2) -> Looper Helmet | E149: =INDEX(ATS!$B:$V,MATCH('2) Order Form'!$V149,ATS!$U:$U,0),4) -> WOLND-LXL | F149: =INDEX(ATS!$B:$V,MATCH('2) Order Form'!$V149,ATS!$U:$U,0),5) -> Woodland | G149: =INDEX(ATS!$B:$V,MATCH('2) Order Form'!$V149,ATS!$U:$U,0),6) -> LXL | H149: =IFERROR(VLOOKUP(C149,EAN!$K:$O,5,FALSE),0) -> 1 | I149: 0 | J149: =IFERROR(VLOOKUP(V149,ATS!$U:$V,2,FALSE),0) -> 22 | K149: 22 | L149: =IFERROR(VLOOKUP(V149,ATS!$U:$W,3,FALSE),0) -> 22 | M149: 22 | N149: 0% | O149: =IF(N149<>0,N149,$P$5) -> 0% | P149: =VLOOKUP($C149,Prices!$A$3:$R$1996,MATCH('2) Order Form'!P$8,Prices!$A$2:$R$2,0),FALSE) -> 80.00 | Q149: =VLOOKUP($C149,Prices!$A$3:$R$1996,MATCH('2) Order Form'!Q$8,Prices!$A$2:$R$2,0),FALSE) -> 159.00 | R149: 0 | S149: 0 | T149: 0 | V149: 7048652966186 | X149: 0 | Y149: 0 | Z149: 7 | AA149: 0 | AB149: 0 | AC149: 840091Woodland | AD149: 840091 | AE149: =INDEX(ATS!$B:$V,MATCH('2) Order Form'!$V149,ATS!$U:$U,0),7) -> Active
A150: 1 | B150: Helmets & Helmet Acc. | C150: =INDEX(ATS!$B:$V,MATCH('2) Order Form'!$V150,ATS!$U:$U,0),1) -> 840104 | D150: =INDEX(ATS!$B:$V,MATCH('2) Order Form'!$V150,ATS!$U:$U,0),2) -> Winder Mips Helmet | E150: =INDEX(ATS!$B:$V,MATCH('2) Order Form'!$V150,ATS!$U:$U,0),4) -> DTBLK-SM | F150: =INDEX(ATS!$B:$V,MATCH('2) Order Form'!$V150,ATS!$U:$U,0),5) -> Dirt Black | G150: =INDEX(ATS!$B:$V,MATCH('2) Order Form'!$V150,ATS!$U:$U,0),6) -> SM | H150: =IFERROR(VLOOKUP(C150,EAN!$K:$O,5,FALSE),0) -> 1 | I150: 0 | J150: =IFERROR(VLOOKUP(V150,ATS!$U:$V,2,FALSE),0) -> 60 | K150: =IF(J150=99999,"OPEN",IF(J150>50,"50+",IF(J150<=0,"0",J150))) -> 50+ | L150: =IFERROR(VLOOKUP(V150,ATS!$U:$W,3,FALSE),0) -> 60 | M150: =IF(L150=99999,"OPEN",IF(L150>50,"50+",IF(L150<=0,"0",L150))) -> 50+ | N150: 0% | O150: =IF(N150<>0,N150,$P$5) -> 0% | P150: =VLOOKUP($C150,Prices!$A$3:$R$1996,MATCH('2) Order Form'!P$8,Prices!$A$2:$R$2,0),FALSE) -> 75.00 | Q150: =VLOOKUP($C150,Prices!$A$3:$R$1996,MATCH('2) Order Form'!Q$8,Prices!$A$2:$R$2,0),FALSE) -> 149.00 | R150: =I150*P150 -> 0 | S150: =R150*O150 -> 0 | T150: =R150-S150 -> 0 | V150: 7048652832825 | X150: 0 | Y150: 0 | Z150: 8 | AA150: 1 | AB150: 1 | AC150: 840104Dirt Black | AD150: 840104 | AE150: =INDEX(ATS!$B:$V,MATCH('2) Order Form'!$V150,ATS!$U:$U,0),7) -> Active
A151: 1 | B151: Helmets & Helmet Acc. | C151: =INDEX(ATS!$B:$V,MATCH('2) Order Form'!$V151,ATS!$U:$U,0),1) -> 840104 | D151: =INDEX(ATS!$B:$V,MATCH('2) Order Form'!$V151,ATS!$U:$U,0),2) -> Winder Mips Helmet | E151: =INDEX(ATS!$B:$V,MATCH('2) Order Form'!$V151,ATS!$U:$U,0),4) -> DTBLK-ML | F151: =INDEX(ATS!$B:$V,MATCH('2) Order Form'!$V151,ATS!$U:$U,0),5) -> Dirt Black | G151: =INDEX(ATS!$B:$V,MATCH('2) Order Form'!$V151,ATS!$U:$U,0),6) -> ML | H151: =IFERROR(VLOOKUP(C151,EAN!$K:$O,5,FALSE),0) -> 1 | I151: 0 | J151: =IFERROR(VLOOKUP(V151,ATS!$U:$V,2,FALSE),0) -> 5 | K151: 5 | L151: =IFERROR(VLOOKUP(V151,ATS!$U:$W,3,FALSE),0) -> 5 | M151: 5 | N151: 0% | O151: 0% | P151: =VLOOKUP($C151,Prices!$A$3:$R$1996,MATCH('2) Order Form'!P$8,Prices!$A$2:$R$2,0),FALSE) -> 75.00 | Q151: =VLOOKUP($C151,Prices!$A$3:$R$1996,MATCH('2) Order Form'!Q$8,Prices!$A$2:$R$2,0),FALSE) -> 149.00 | R151: 0 | S151: 0 | T151: 0 | V151: 7048652832818 | X151: 0 | Y151: 0 | Z151: 8 | AA151: 0 | AB151: 0 | AC151: 840104Dirt Black | AD151: 840104 | AE151: =INDEX(ATS!$B:$V,MATCH('2) Order Form'!$V151,ATS!$U:$U,0),7) -> Active
A152: 1 | B152: Helmets & Helmet Acc. | C152: =INDEX(ATS!$B:$V,MATCH('2) Order Form'!$V152,ATS!$U:$U,0),1) -> 840104 | D152: =INDEX(ATS!$B:$V,MATCH('2) Order Form'!$V152,ATS!$U:$U,0),2) -> Winder Mips Helmet | E152: =INDEX(ATS!$B:$V,MATCH('2) Order Form'!$V152,ATS!$U:$U,0),4) -> DTBLK-LXL | F152: =INDEX(ATS!$B:$V,MATCH('2) Order Form'!$V152,ATS!$U:$U,0),5) -> Dirt Black | G152: =INDEX(ATS!$B:$V,MATCH('2) Order Form'!$V152,ATS!$U:$U,0),6) -> LXL | H152: =IFERROR(VLOOKUP(C152,EAN!$K:$O,5,FALSE),0) -> 1 | I152: 0 | J152: =IFERROR(VLOOKUP(V152,ATS!$U:$V,2,FALSE),0) -> 18 | K152: 18 | L152: =IFERROR(VLOOKUP(V152,ATS!$U:$W,3,FALSE),0) -> 18 | M152: 18 | N152: 0% | O152: 0% | P152: =VLOOKUP($C152,Prices!$A$3:$R$1996,MATCH('2) Order Form'!P$8,Prices!$A$2:$R$2,0),FALSE) -> 75.00 | Q152: =VLOOKUP($C152,Prices!$A$3:$R$1996,MATCH('2) Order Form'!Q$8,Prices!$A$2:$R$2,0),FALSE) -> 149.00 | R152: 0 | S152: 0 | T152: 0 | V152: 7048652832801 | X152: 0 | Y152: 0 | Z152: 8 | AA152: 0 | AB152: 0 | AC152: 840104Dirt Black | AD152: 840104 | AE152: =INDEX(ATS!$B:$V,MATCH('2) Order Form'!$V152,ATS!$U:$U,0),7) -> Active
A153: 1 | B153: Helmets & Helmet Acc. | C153: =INDEX(ATS!$B:$V,MATCH('2) Order Form'!$V153,ATS!$U:$U,0),1) -> 840104 | D153: =INDEX(ATS!$B:$V,MATCH('2) Order Form'!$V153,ATS!$U:$U,0),2) -> Winder Mips Helmet | E153: =INDEX(ATS!$B:$V,MATCH('2) Order Form'!$V153,ATS!$U:$U,0),4) -> MASEM-SM | F153: =INDEX(ATS!$B:$V,MATCH('2) Order Form'!$V153,ATS!$U:$U,0),5) -> Matte Sea Metallic | G153: =INDEX(ATS!$B:$V,MATCH('2) Order Form'!$V153,ATS!$U:$U,0),6) -> SM | H153: =IFERROR(VLOOKUP(C153,EAN!$K:$O,5,FALSE),0) -> 1 | I153: 0 | J153: =IFERROR(VLOOKUP(V153,ATS!$U:$V,2,FALSE),0) -> 30 | K153: 30 | L153: =IFERROR(VLOOKUP(V153,ATS!$U:$W,3,FALSE),0) -> 30 | M153: 30 | N153: 0% | O153: 0% | P153: =VLOOKUP($C153,Prices!$A$3:$R$1996,MATCH('2) Order Form'!P$8,Prices!$A$2:$R$2,0),FALSE) -> 75.00 | Q153: =VLOOKUP($C153,Prices!$A$3:$R$1996,MATCH('2) Order Form'!Q$8,Prices!$A$2:$R$2,0),FALSE) -> 149.00 | R153: 0 | S153: 0 | T153: 0 | V153: 7048652832887 | X153: 0 | Y153: 0 | Z153: 8 | AA153: 0 | AB153: 1 | AC153: 840104Matte Sea Metallic | AD153: 840104 | AE153: =INDEX(ATS!$B:$V,MATCH('2) Order Form'!$V153,ATS!$U:$U,0),7) -> Stock
A154: 1 | B154: Helmets & Helmet Acc. | C154: =INDEX(ATS!$B:$V,MATCH('2) Order Form'!$V154,ATS!$U:$U,0),1) -> 840104 | D154: =INDEX(ATS!$B:$V,MATCH('2) Order Form'!$V154,ATS!$U:$U,0),2) -> Winder Mips Helmet | E154: =INDEX(ATS!$B:$V,MATCH('2) Order Form'!$V154,ATS!$U:$U,0),4) -> MASEM-ML | F154: =INDEX(ATS!$B:$V,MATCH('2) Order Form'!$V154,ATS!$U:$U,0),5) -> Matte Sea Metallic | G154: =INDEX(ATS!$B:$V,MATCH('2) Order Form'!$V154,ATS!$U:$U,0),6) -> ML | H154: =IFERROR(VLOOKUP(C154,EAN!$K:$O,5,FALSE),0) -> 1 | I154: 0 | J154: =IFERROR(VLOOKUP(V154,ATS!$U:$V,2,FALSE),0) -> 49 | K154: 49 | L154: =IFERROR(VLOOKUP(V154,ATS!$U:$W,3,FALSE),0) -> 49 | M154: 49 | N154: 0% | O154: 0% | P154: =VLOOKUP($C154,Prices!$A$3:$R$1996,MATCH('2) Order Form'!P$8,Prices!$A$2:$R$2,0),FALSE) -> 75.00 | Q154: =VLOOKUP($C154,Prices!$A$3:$R$1996,MATCH('2) Order Form'!Q$8,Prices!$A$2:$R$2,0),FALSE) -> 149.00 | R154: 0 | S154: 0 | T154: 0 | V154: 7048652832870 | X154: 0 | Y154: 0 | Z154: 8 | AA154: 0 | AB154: 0 | AC154: 840104Matte Sea Metallic | AD154: 840104 | AE154: =INDEX(ATS!$B:$V,MATCH('2) Order Form'!$V154,ATS!$U:$U,0),7) -> Stock
A155: 1 | B155: Helmets & Helmet Acc. | C155: =INDEX(ATS!$B:$V,MATCH('2) Order Form'!$V155,ATS!$U:$U,0),1) -> 840104 | D155: =INDEX(ATS!$B:$V,MATCH('2) Order Form'!$V155,ATS!$U:$U,0),2) -> Winder Mips Helmet | E155: =INDEX(ATS!$B:$V,MATCH('2) Order Form'!$V155,ATS!$U:$U,0),4) -> MASEM-LXL | F155: =INDEX(ATS!$B:$V,MATCH('2) Order Form'!$V155,ATS!$U:$U,0),5) -> Matte Sea Metallic | G155: =INDEX(ATS!$B:$V,MATCH('2) Order Form'!$V155,ATS!$U:$U,0),6) -> LXL | H155: =IFERROR(VLOOKUP(C155,EAN!$K:$O,5,FALSE),0) -> 1 | I155: 0 | J155: =IFERROR(VLOOKUP(V155,ATS!$U:$V,2,FALSE),0) -> 33 | K155: 33 | L155: =IFERROR(VLOOKUP(V155,ATS!$U:$W,3,FALSE),0) -> 33 | M155: 33 | N155: 0% | O155: 0% | P155: =VLOOKUP($C155,Prices!$A$3:$R$1996,MATCH('2) Order Form'!P$8,Prices!$A$2:$R$2,0),FALSE) -> 75.00 | Q155: =VLOOKUP($C155,Prices!$A$3:$R$1996,MATCH('2) Order Form'!Q$8,Prices!$A$2:$R$2,0),FALSE) -> 149.00 | R155: 0 | S155: 0 | T155: 0 | V155: 7048652832863 | X155: 0 | Y155: 0 | Z155: 8 | AA155: 0 | AB155: 0 | AC155: 840104Matte Sea Metallic | AD155: 840104 | AE155: =INDEX(ATS!$B:$V,MATCH('2) Order Form'!$V155,ATS!$U:$U,0),7) -> Stock
A156: 1 | B156: Helmets & Helmet Acc. | C156: =INDEX(ATS!$B:$V,MATCH('2) Order Form'!$V156,ATS!$U:$U,0),1) -> 840104 | D156: =INDEX(ATS!$B:$V,MATCH('2) Order Form'!$V156,ATS!$U:$U,0),2) -> Winder Mips Helmet | E156: =INDEX(ATS!$B:$V,MATCH('2) Order Form'!$V156,ATS!$U:$U,0),4) -> MBRWH-SM | F156: =INDEX(ATS!$B:$V,MATCH('2) Order Form'!$V156,ATS!$U:$U,0),5) -> Matte Bronco White | G156: =INDEX(ATS!$B:$V,MATCH('2) Order Form'!$V156,ATS!$U:$U,0),6) -> SM | H156: =IFERROR(VLOOKUP(C156,EAN!$K:$O,5,FALSE),0) -> 1 | I156: 0 | J156: =IFERROR(VLOOKUP(V156,ATS!$U:$V,2,FALSE),0) -> 3 | K156: 3 | L156: =IFERROR(VLOOKUP(V156,ATS!$U:$W,3,FALSE),0) -> 3 | M156: 3 | N156: 0% | O156: 0% | P156: =VLOOKUP($C156,Prices!$A$3:$R$1996,MATCH('2) Order Form'!P$8,Prices!$A$2:$R$2,0),FALSE) -> 75.00 | Q156: =VLOOKUP($C156,Prices!$A$3:$R$1996,MATCH('2) Order Form'!Q$8,Prices!$A$2:$R$2,0),FALSE) -> 149.00 | R156: 0 | S156: 0 | T156: 0 | V156: 7048652832917 | X156: 0 | Y156: 0 | Z156: 8 | AA156: 0 | AB156: 1 | AC156: 840104Matte Bronco White | AD156: 840104 | AE156: =INDEX(ATS!$B:$V,MATCH('2) Order Form'!$V156,ATS!$U:$U,0),7) -> Active
A157: 1 | B157: Helmets & Helmet Acc. | C157: =INDEX(ATS!$B:$V,MATCH('2) Order Form'!$V157,ATS!$U:$U,0),1) -> 840104 | D157: =INDEX(ATS!$B:$V,MATCH('2) Order Form'!$V157,ATS!$U:$U,0),2) -> Winder Mips Helmet | E157: =INDEX(ATS!$B:$V,MATCH('2) Order Form'!$V157,ATS!$U:$U,0),4) -> MBRWH-ML | F157: =INDEX(ATS!$B:$V,MATCH('2) Order Form'!$V157,ATS!$U:$U,0),5) -> Matte Bronco White | G157: =INDEX(ATS!$B:$V,MATCH('2) Order Form'!$V157,ATS!$U:$U,0),6) -> ML | H157: =IFERROR(VLOOKUP(C157,EAN!$K:$O,5,FALSE),0) -> 1 | I157: 0 | J157: =IFERROR(VLOOKUP(V157,ATS!$U:$V,2,FALSE),0) -> 0 | K157: 0 | L157: =IFERROR(VLOOKUP(V157,ATS!$U:$W,3,FALSE),0) -> 0 | M157: 0 | N157: 0% | O157: 0% | P157: =VLOOKUP($C157,Prices!$A$3:$R$1996,MATCH('2) Order Form'!P$8,Prices!$A$2:$R$2,0),FALSE) -> 75.00 | Q157: =VLOOKUP($C157,Prices!$A$3:$R$1996,MATCH('2) Order Form'!Q$8,Prices!$A$2:$R$2,0),FALSE) -> 149.00 | R157: 0 | S157: 0 | T157: 0 | V157: 7048652832900 | X157: 0 | Y157: 0 | Z157: 8 | AA157: 0 | AB157: 0 | AC157: 840104Matte Bronco White | AD157: 840104 | AE157: =INDEX(ATS!$B:$V,MATCH('2) Order Form'!$V157,ATS!$U:$U,0),7) -> Active
A158: 1 | B158: Helmets & Helmet Acc. | C158: =INDEX(ATS!$B:$V,MATCH('2) Order Form'!$V158,ATS!$U:$U,0),1) -> 840104 | D158: =INDEX(ATS!$B:$V,MATCH('2) Order Form'!$V158,ATS!$U:$U,0),2) -> Winder Mips Helmet | E158: =INDEX(ATS!$B:$V,MATCH('2) Order Form'!$V158,ATS!$U:$U,0),4) -> MBRWH-LXL | F158: =INDEX(ATS!$B:$V,MATCH('2) Order Form'!$V158,ATS!$U:$U,0),5) -> Matte Bronco White | G158: =INDEX(ATS!$B:$V,MATCH('2) Order Form'!$V158,ATS!$U:$U,0),6) -> LXL | H158: =IFERROR(VLOOKUP(C158,EAN!$K:$O,5,FALSE),0) -> 1 | I158: 0 | J158: =IFERROR(VLOOKUP(V158,ATS!$U:$V,2,FALSE),0) -> 151 | K158: 50+ | L158: =IFERROR(VLOOKUP(V158,ATS!$U:$W,3,FALSE),0) -> 151 | M158: 50+ | N158: 0% | O158: 0% | P158: =VLOOKUP($C158,Prices!$A$3:$R$1996,MATCH('2) Order Form'!P$8,Prices!$A$2:$R$2,0),FALSE) -> 75.00 | Q158: =VLOOKUP($C158,Prices!$A$3:$R$1996,MATCH('2) Order Form'!Q$8,Prices!$A$2:$R$2,0),FALSE) -> 149.00 | R158: 0 | S158: 0 | T158: 0 | V158: 7048652832894 | X158: 0 | Y158: 0 | Z158: 8 | AA158: 0 | AB158: 0 | AC158: 840104Matte Bronco White | AD158: 840104 | AE158: =INDEX(ATS!$B:$V,MATCH('2) Order Form'!$V158,ATS!$U:$U,0),7) -> Active
A159: 1 | B159: Helmets & Helmet Acc. | C159: =INDEX(ATS!$B:$V,MATCH('2) Order Form'!$V159,ATS!$U:$U,0),1) -> 840104 | D159: =INDEX(ATS!$B:$V,MATCH('2) Order Form'!$V159,ATS!$U:$U,0),2) -> Winder Mips Helmet | E159: =INDEX(ATS!$B:$V,MATCH('2) Order Form'!$V159,ATS!$U:$U,0),4) -> MBUOE-SM | F159: =INDEX(ATS!$B:$V,MATCH('2) Order Form'!$V159,ATS!$U:$U,0),5) -> Matte Burning Orange | G159: =INDEX(ATS!$B:$V,MATCH('2) Order Form'!$V159,ATS!$U:$U,0),6) -> SM | H159: =IFERROR(VLOOKUP(C159,EAN!$K:$O,5,FALSE),0) -> 1 | I159: 0 | J159: =IFERROR(VLOOKUP(V159,ATS!$U:$V,2,FALSE),0) -> 46 | K159: 46 | L159: =IFERROR(VLOOKUP(V159,ATS!$U:$W,3,FALSE),0) -> 46 | M159: 46 | N159: 0% | O159: 0% | P159: =VLOOKUP($C159,Prices!$A$3:$R$1996,MATCH('2) Order Form'!P$8,Prices!$A$2:$R$2,0),FALSE) -> 75.00 | Q159: =VLOOKUP($C159,Prices!$A$3:$R$1996,MATCH('2) Order Form'!Q$8,Prices!$A$2:$R$2,0),FALSE) -> 149.00 | R159: 0 | S159: 0 | T159: 0 | V159: 7048652832948 | X159: 0 | Y159: 0 | Z159: 8 | AA159: 0 | AB159: 1 | AC159: 840104Matte Burning Orange | AD159: 840104 | AE159: =INDEX(ATS!$B:$V,MATCH('2) Order Form'!$V159,ATS!$U:$U,0),7) -> Stock
A160: 1 | B160: Helmets & Helmet Acc. | C160: =INDEX(ATS!$B:$V,MATCH('2) Order Form'!$V160,ATS!$U:$U,0),1) -> 840104 | D160: =INDEX(ATS!$B:$V,MATCH('2) Order Form'!$V160,ATS!$U:$U,0),2) -> Winder Mips Helmet | E160: =INDEX(ATS!$B:$V,MATCH('2) Order Form'!$V160,ATS!$U:$U,0),4) -> MBUOE-ML | F160: =INDEX(ATS!$B:$V,MATCH('2) Order Form'!$V160,ATS!$U:$U,0),5) -> Matte Burning Orange | G160: =INDEX(ATS!$B:$V,MATCH('2) Order Form'!$V160,ATS!$U:$U,0),6) -> ML | H160: =IFERROR(VLOOKUP(C160,EAN!$K:$O,5,FALSE),0) -> 1 | I160: 0 | J160: =IFERROR(VLOOKUP(V160,ATS!$U:$V,2,FALSE),0) -> 26 | K160: 26 | L160: =IFERROR(VLOOKUP(V160,ATS!$U:$W,3,FALSE),0) -> 26 | M160: 26 | N160: 0% | O160: 0% | P160: =VLOOKUP($C160,Prices!$A$3:$R$1996,MATCH('2) Order Form'!P$8,Prices!$A$2:$R$2,0),FALSE) -> 75.00 | Q160: =VLOOKUP($C160,Prices!$A$3:$R$1996,MATCH('2) Order Form'!Q$8,Prices!$A$2:$R$2,0),FALSE) -> 149.00 | R160: 0 | S160: 0 | T160: 0 | V160: 7048652832931 | X160: 0 | Y160: 0 | Z160: 8 | AA160: 0 | AB160: 0 | AC160: 840104Matte Burning Orange | AD160: 840104 | AE160: =INDEX(ATS!$B:$V,MATCH('2) Order Form'!$V160,ATS!$U:$U,0),7) -> Stock
A161: 1 | B161: Helmets & Helmet Acc. | C161: =INDEX(ATS!$B:$V,MATCH('2) Order Form'!$V161,ATS!$U:$U,0),1) -> 840104 | D161: =INDEX(ATS!$B:$V,MATCH('2) Order Form'!$V161,ATS!$U:$U,0),2) -> Winder Mips Helmet | E161: =INDEX(ATS!$B:$V,MATCH('2) Order Form'!$V161,ATS!$U:$U,0),4) -> MBUOE-LXL | F161: =INDEX(ATS!$B:$V,MATCH('2) Order Form'!$V161,ATS!$U:$U,0),5) -> Matte Burning Orange | G161: =INDEX(ATS!$B:$V,MATCH('2) Order Form'!$V161,ATS!$U:$U,0),6) -> LXL | H161: =IFERROR(VLOOKUP(C161,EAN!$K:$O,5,FALSE),0) -> 1 | I161: 0 | J161: =IFERROR(VLOOKUP(V161,ATS!$U:$V,2,FALSE),0) -> 43 | K161: 43 | L161: =IFERROR(VLOOKUP(V161,ATS!$U:$W,3,FALSE),0) -> 43 | M161: 43 | N161: 0% | O161: 0% | P161: =VLOOKUP($C161,Prices!$A$3:$R$1996,MATCH('2) Order Form'!P$8,Prices!$A$2:$R$2,0),FALSE) -> 75.00 | Q161: =VLOOKUP($C161,Prices!$A$3:$R$1996,MATCH('2) Order Form'!Q$8,Prices!$A$2:$R$2,0),FALSE) -> 149.00 | R161: 0 | S161: 0 | T161: 0 | V161: 7048652832924 | X161: 0 | Y161: 0 | Z161: 8 | AA161: 0 | AB161: 0 | AC161: 840104Matte Burning Orange | AD161: 840104 | AE161: =INDEX(ATS!$B:$V,MATCH('2) Order Form'!$V161,ATS!$U:$U,0),7) -> Stock
A162: 1 | B162: Helmets & Helmet Acc. | C162: =INDEX(ATS!$B:$V,MATCH('2) Order Form'!$V162,ATS!$U:$U,0),1) -> 840104 | D162: =INDEX(ATS!$B:$V,MATCH('2) Order Form'!$V162,ATS!$U:$U,0),2) -> Winder Mips Helmet | E162: =INDEX(ATS!$B:$V,MATCH('2) Order Form'!$V162,ATS!$U:$U,0),4) -> MTURQ-SM | F162: =INDEX(ATS!$B:$V,MATCH('2) Order Form'!$V162,ATS!$U:$U,0),5) -> Misty Turquoise | G162: =INDEX(ATS!$B:$V,MATCH('2) Order Form'!$V162,ATS!$U:$U,0),6) -> SM | H162: =IFERROR(VLOOKUP(C162,EAN!$K:$O,5,FALSE),0) -> 1 | I162: 0 | J162: =IFERROR(VLOOKUP(V162,ATS!$U:$V,2,FALSE),0) -> 10 | K162: 10 | L162: =IFERROR(VLOOKUP(V162,ATS!$U:$W,3,FALSE),0) -> 10 | M162: 10 | N162: 0% | O162: 0% | P162: =VLOOKUP($C162,Prices!$A$3:$R$1996,MATCH('2) Order Form'!P$8,Prices!$A$2:$R$2,0),FALSE) -> 75.00 | Q162: =VLOOKUP($C162,Prices!$A$3:$R$1996,MATCH('2) Order Form'!Q$8,Prices!$A$2:$R$2,0),FALSE) -> 149.00 | R162: 0 | S162: 0 | T162: 0 | V162: 7048652966629 | X162: 0 | Y162: 0 | Z162: 8 | AA162: 0 | AB162: 1 | AC162: 840104Misty Turquoise | AD162: 840104 | AE162: =INDEX(ATS!$B:$V,MATCH('2) Order Form'!$V162,ATS!$U:$U,0),7) -> Stock
A163: 1 | B163: Helmets & Helmet Acc. | C163: =INDEX(ATS!$B:$V,MATCH('2) Order Form'!$V163,ATS!$U:$U,0),1) -> 840104 | D163: =INDEX(ATS!$B:$V,MATCH('2) Order Form'!$V163,ATS!$U:$U,0),2) -> Winder Mips Helmet | E163: =INDEX(ATS!$B:$V,MATCH('2) Order Form'!$V163,ATS!$U:$U,0),4) -> MTURQ-ML | F163: =INDEX(ATS!$B:$V,MATCH('2) Order Form'!$V163,ATS!$U:$U,0),5) -> Misty Turquoise | G163: =INDEX(ATS!$B:$V,MATCH('2) Order Form'!$V163,ATS!$U:$U,0),6) -> ML | H163: =IFERROR(VLOOKUP(C163,EAN!$K:$O,5,FALSE),0) -> 1 | I163: 0 | J163: =IFERROR(VLOOKUP(V163,ATS!$U:$V,2,FALSE),0) -> 62 | K163: 50+ | L163: =IFERROR(VLOOKUP(V163,ATS!$U:$W,3,FALSE),0) -> 62 | M163: 50+ | N163: 0% | O163: 0% | P163: =VLOOKUP($C163,Prices!$A$3:$R$1996,MATCH('2) Order Form'!P$8,Prices!$A$2:$R$2,0),FALSE) -> 75.00 | Q163: =VLOOKUP($C163,Prices!$A$3:$R$1996,MATCH('2) Order Form'!Q$8,Prices!$A$2:$R$2,0),FALSE) -> 149.00 | R163: 0 | S163: 0 | T163: 0 | V163: 7048652966612 | X163: 0 | Y163: 0 | Z163: 8 | AA163: 0 | AB163: 0 | AC163: 840104Misty Turquoise | AD163: 840104 | AE163: =INDEX(ATS!$B:$V,MATCH('2) Order Form'!$V163,ATS!$U:$U,0),7) -> Stock
A164: 1 | B164: Helmets & Helmet Acc. | C164: =INDEX(ATS!$B:$V,MATCH('2) Order Form'!$V164,ATS!$U:$U,0),1) -> 840104 | D164: =INDEX(ATS!$B:$V,MATCH('2) Order Form'!$V164,ATS!$U:$U,0),2) -> Winder Mips Helmet | E164: =INDEX(ATS!$B:$V,MATCH('2) Order Form'!$V164,ATS!$U:$U,0),4) -> MTURQ-LXL | F164: =INDEX(ATS!$B:$V,MATCH('2) Order Form'!$V164,ATS!$U:$U,0),5) -> Misty Turquoise | G164: =INDEX(ATS!$B:$V,MATCH('2) Order Form'!$V164,ATS!$U:$U,0),6) -> LXL | H164: =IFERROR(VLOOKUP(C164,EAN!$K:$O,5,FALSE),0) -> 1 | I164: 0 | J164: =IFERROR(VLOOKUP(V164,ATS!$U:$V,2,FALSE),0) -> 48 | K164: 48 | L164: =IFERROR(VLOOKUP(V164,ATS!$U:$W,3,FALSE),0) -> 48 | M164: 48 | N164: 0% | O164: 0% | P164: =VLOOKUP($C164,Prices!$A$3:$R$1996,MATCH('2) Order Form'!P$8,Prices!$A$2:$R$2,0),FALSE) -> 75.00 | Q164: =VLOOKUP($C164,Prices!$A$3:$R$1996,MATCH('2) Order Form'!Q$8,Prices!$A$2:$R$2,0),FALSE) -> 149.00 | R164: 0 | S164: 0 | T164: 0 | V164: 7048652966605 | X164: 0 | Y164: 0 | Z164: 8 | AA164: 0 | AB164: 0 | AC164: 840104Misty Turquoise | AD164: 840104 | AE164: =INDEX(ATS!$B:$V,MATCH('2) Order Form'!$V164,ATS!$U:$U,0),7) -> Stock
A165: 1 | B165: Helmets & Helmet Acc. | C165: =INDEX(ATS!$B:$V,MATCH('2) Order Form'!$V165,ATS!$U:$U,0),1) -> 840104 | D165: =INDEX(ATS!$B:$V,MATCH('2) Order Form'!$V165,ATS!$U:$U,0),2) -> Winder Mips Helmet | E165: =INDEX(ATS!$B:$V,MATCH('2) Order Form'!$V165,ATS!$U:$U,0),4) -> RGLDM-SM | F165: =INDEX(ATS!$B:$V,MATCH('2) Order Form'!$V165,ATS!$U:$U,0),5) -> Rose Gold Metallic | G165: =INDEX(ATS!$B:$V,MATCH('2) Order Form'!$V165,ATS!$U:$U,0),6) -> SM | H165: =IFERROR(VLOOKUP(C165,EAN!$K:$O,5,FALSE),0) -> 1 | I165: 0 | J165: =IFERROR(VLOOKUP(V165,ATS!$U:$V,2,FALSE),0) -> 144 | K165: 50+ | L165: =IFERROR(VLOOKUP(V165,ATS!$U:$W,3,FALSE),0) -> 144 | M165: 50+ | N165: 0% | O165: 0% | P165: =VLOOKUP($C165,Prices!$A$3:$R$1996,MATCH('2) Order Form'!P$8,Prices!$A$2:$R$2,0),FALSE) -> 75.00 | Q165: =VLOOKUP($C165,Prices!$A$3:$R$1996,MATCH('2) Order Form'!Q$8,Prices!$A$2:$R$2,0),FALSE) -> 149.00 | R165: 0 | S165: 0 | T165: 0 | V165: 7048652833006 | X165: 0 | Y165: 0 | Z165: 8 | AA165: 0 | AB165: 1 | AC165: 840104Rose Gold Metallic | AD165: 840104 | AE165: =INDEX(ATS!$B:$V,MATCH('2) Order Form'!$V165,ATS!$U:$U,0),7) -> Stock
A166: 1 | B166: Helmets & Helmet Acc. | C166: =INDEX(ATS!$B:$V,MATCH('2) Order Form'!$V166,ATS!$U:$U,0),1) -> 840104 | D166: =INDEX(ATS!$B:$V,MATCH('2) Order Form'!$V166,ATS!$U:$U,0),2) -> Winder Mips Helmet | E166: =INDEX(ATS!$B:$V,MATCH('2) Order Form'!$V166,ATS!$U:$U,0),4) -> RGLDM-ML | F166: =INDEX(ATS!$B:$V,MATCH('2) Order Form'!$V166,ATS!$U:$U,0),5) -> Rose Gold Metallic | G166: =INDEX(ATS!$B:$V,MATCH('2) Order Form'!$V166,ATS!$U:$U,0),6) -> ML | H166: =IFERROR(VLOOKUP(C166,EAN!$K:$O,5,FALSE),0) -> 1 | I166: 0 | J166: =IFERROR(VLOOKUP(V166,ATS!$U:$V,2,FALSE),0) -> 161 | K166: 50+ | L166: =IFERROR(VLOOKUP(V166,ATS!$U:$W,3,FALSE),0) -> 161 | M166: 50+ | N166: 0% | O166: 0% | P166: =VLOOKUP($C166,Prices!$A$3:$R$1996,MATCH('2) Order Form'!P$8,Prices!$A$2:$R$2,0),FALSE) -> 75.00 | Q166: =VLOOKUP($C166,Prices!$A$3:$R$1996,MATCH('2) Order Form'!Q$8,Prices!$A$2:$R$2,0),FALSE) -> 149.00 | R166: 0 | S166: 0 | T166: 0 | V166: 7048652832993 | X166: 0 | Y166: 0 | Z166: 8 | AA166: 0 | AB166: 0 | AC166: 840104Rose Gold Metallic | AD166: 840104 | AE166: =INDEX(ATS!$B:$V,MATCH('2) Order Form'!$V166,ATS!$U:$U,0),7) -> Stock
A167: 1 | B167: Helmets & Helmet Acc. | C167: =INDEX(ATS!$B:$V,MATCH('2) Order Form'!$V167,ATS!$U:$U,0),1) -> 840104 | D167: =INDEX(ATS!$B:$V,MATCH('2) Order Form'!$V167,ATS!$U:$U,0),2) -> Winder Mips Helmet | E167: =INDEX(ATS!$B:$V,MATCH('2) Order Form'!$V167,ATS!$U:$U,0),4) -> RGLDM-LXL | F167: =INDEX(ATS!$B:$V,MATCH('2) Order Form'!$V167,ATS!$U:$U,0),5) -> Rose Gold Metallic | G167: =INDEX(ATS!$B:$V,MATCH('2) Order Form'!$V167,ATS!$U:$U,0),6) -> LXL | H167: =IFERROR(VLOOKUP(C167,EAN!$K:$O,5,FALSE),0) -> 1 | I167: 0 | J167: =IFERROR(VLOOKUP(V167,ATS!$U:$V,2,FALSE),0) -> 148 | K167: 50+ | L167: =IFERROR(VLOOKUP(V167,ATS!$U:$W,3,FALSE),0) -> 148 | M167: 50+ | N167: 0% | O167: 0% | P167: =VLOOKUP($C167,Prices!$A$3:$R$1996,MATCH('2) Order Form'!P$8,Prices!$A$2:$R$2,0),FALSE) -> 75.00 | Q167: =VLOOKUP($C167,Prices!$A$3:$R$1996,MATCH('2) Order Form'!Q$8,Prices!$A$2:$R$2,0),FALSE) -> 149.00 | R167: 0 | S167: 0 | T167: 0 | V167: 7048652832986 | X167: 0 | Y167: 0 | Z167: 8 | AA167: 0 | AB167: 0 | AC167: 840104Rose Gold Metallic | AD167: 840104 | AE167: =INDEX(ATS!$B:$V,MATCH('2) Order Form'!$V167,ATS!$U:$U,0),7) -> Stock
A168: 1 | B168: Helmets & Helmet Acc. | C168: =INDEX(ATS!$B:$V,MATCH('2) Order Form'!$V168,ATS!$U:$U,0),1) -> 840104 | D168: =INDEX(ATS!$B:$V,MATCH('2) Order Form'!$V168,ATS!$U:$U,0),2) -> Winder Mips Helmet | E168: =INDEX(ATS!$B:$V,MATCH('2) Order Form'!$V168,ATS!$U:$U,0),4) -> WOLND-SM | F168: =INDEX(ATS!$B:$V,MATCH('2) Order Form'!$V168,ATS!$U:$U,0),5) -> Woodland | G168: =INDEX(ATS!$B:$V,MATCH('2) Order Form'!$V168,ATS!$U:$U,0),6) -> SM | H168: =IFERROR(VLOOKUP(C168,EAN!$K:$O,5,FALSE),0) -> 1 | I168: 0 | J168: =IFERROR(VLOOKUP(V168,ATS!$U:$V,2,FALSE),0) -> 33 | K168: 33 | L168: =IFERROR(VLOOKUP(V168,ATS!$U:$W,3,FALSE),0) -> 33 | M168: 33 | N168: 0% | O168: 0% | P168: =VLOOKUP($C168,Prices!$A$3:$R$1996,MATCH('2) Order Form'!P$8,Prices!$A$2:$R$2,0),FALSE) -> 75.00 | Q168: =VLOOKUP($C168,Prices!$A$3:$R$1996,MATCH('2) Order Form'!Q$8,Prices!$A$2:$R$2,0),FALSE) -> 149.00 | R168: 0 | S168: 0 | T168: 0 | V168: 7048652966650 | X168: 0 | Y168: 0 | Z168: 8 | AA168: 0 | AB168: 1 | AC168: 840104Woodland | AD168: 840104 | AE168: =INDEX(ATS!$B:$V,MATCH('2) Order Form'!$V168,ATS!$U:$U,0),7) -> Active
A169: 1 | B169: Helmets & Helmet Acc. | C169: =INDEX(ATS!$B:$V,MATCH('2) Order Form'!$V169,ATS!$U:$U,0),1) -> 840104 | D169: =INDEX(ATS!$B:$V,MATCH('2) Order Form'!$V169,ATS!$U:$U,0),2) -> Winder Mips Helmet | E169: =INDEX(ATS!$B:$V,MATCH('2) Order Form'!$V169,ATS!$U:$U,0),4) -> WOLND-ML | F169: =INDEX(ATS!$B:$V,MATCH('2) Order Form'!$V169,ATS!$U:$U,0),5) -> Woodland | G169: =INDEX(ATS!$B:$V,MATCH('2) Order Form'!$V169,ATS!$U:$U,0),6) -> ML | H169: =IFERROR(VLOOKUP(C169,EAN!$K:$O,5,FALSE),0) -> 1 | I169: 0 | J169: =IFERROR(VLOOKUP(V169,ATS!$U:$V,2,FALSE),0) -> 34 | K169: 34 | L169: =IFERROR(VLOOKUP(V169,ATS!$U:$W,3,FALSE),0) -> 34 | M169: 34 | N169: 0% | O169: 0% | P169: =VLOOKUP($C169,Prices!$A$3:$R$1996,MATCH('2) Order Form'!P$8,Prices!$A$2:$R$2,0),FALSE) -> 75.00 | Q169: =VLOOKUP($C169,Prices!$A$3:$R$1996,MATCH('2) Order Form'!Q$8,Prices!$A$2:$R$2,0),FALSE) -> 149.00 | R169: 0 | S169: 0 | T169: 0 | V169: 7048652966643 | X169: 0 | Y169: 0 | Z169: 8 | AA169: 0 | AB169: 0 | AC169: 840104Woodland | AD169: 840104 | AE169: =INDEX(ATS!$B:$V,MATCH('2) Order Form'!$V169,ATS!$U:$U,0),7) -> Active
A170: 1 | B170: Helmets & Helmet Acc. | C170: =INDEX(ATS!$B:$V,MATCH('2) Order Form'!$V170,ATS!$U:$U,0),1) -> 840104 | D170: =INDEX(ATS!$B:$V,MATCH('2) Order Form'!$V170,ATS!$U:$U,0),2) -> Winder Mips Helmet | E170: =INDEX(ATS!$B:$V,MATCH('2) Order Form'!$V170,ATS!$U:$U,0),4) -> WOLND-LXL | F170: =INDEX(ATS!$B:$V,MATCH('2) Order Form'!$V170,ATS!$U:$U,0),5) -> Woodland | G170: =INDEX(ATS!$B:$V,MATCH('2) Order Form'!$V170,ATS!$U:$U,0),6) -> LXL | H170: =IFERROR(VLOOKUP(C170,EAN!$K:$O,5,FALSE),0) -> 1 | I170: 0 | J170: =IFERROR(VLOOKUP(V170,ATS!$U:$V,2,FALSE),0) -> 23 | K170: 23 | L170: =IFERROR(VLOOKUP(V170,ATS!$U:$W,3,FALSE),0) -> 23 | M170: 23 | N170: 0% | O170: 0% | P170: =VLOOKUP($C170,Prices!$A$3:$R$1996,MATCH('2) Order Form'!P$8,Prices!$A$2:$R$2,0),FALSE) -> 75.00 | Q170: =VLOOKUP($C170,Prices!$A$3:$R$1996,MATCH('2) Order Form'!Q$8,Prices!$A$2:$R$2,0),FALSE) -> 149.00 | R170: 0 | S170: 0 | T170: 0 | V170: 7048652966636 | X170: 0 | Y170: 0 | Z170: 8 | AA170: 0 | AB170: 0 | AC170: 840104Woodland | AD170: 840104 | AE170: =INDEX(ATS!$B:$V,MATCH('2) Order Form'!$V170,ATS!$U:$U,0),7) -> Active
A171: 1 | B171: Helmets & Helmet Acc. | C171: =INDEX(ATS!$B:$V,MATCH('2) Order Form'!$V171,ATS!$U:$U,0),1) -> 840103 | D171: =INDEX(ATS!$B:$V,MATCH('2) Order Form'!$V171,ATS!$U:$U,0),2) -> Winder Helmet | E171: =INDEX(ATS!$B:$V,MATCH('2) Order Form'!$V171,ATS!$U:$U,0),4) -> DTBLK-SM | F171: =INDEX(ATS!$B:$V,MATCH('2) Order Form'!$V171,ATS!$U:$U,0),5) -> Dirt Black | G171: =INDEX(ATS!$B:$V,MATCH('2) Order Form'!$V171,ATS!$U:$U,0),6) -> SM | H171: =IFERROR(VLOOKUP(C171,EAN!$K:$O,5,FALSE),0) -> 1 | I171: 0 | J171: =IFERROR(VLOOKUP(V171,ATS!$U:$V,2,FALSE),0) -> 74 | K171: =IF(J171=99999,"OPEN",IF(J171>50,"50+",IF(J171<=0,"0",J171))) -> 50+ | L171: =IFERROR(VLOOKUP(V171,ATS!$U:$W,3,FALSE),0) -> 74 | M171: =IF(L171=99999,"OPEN",IF(L171>50,"50+",IF(L171<=0,"0",L171))) -> 50+ | N171: 0% | O171: =IF(N171<>0,N171,$P$5) -> 0% | P171: =VLOOKUP($C171,Prices!$A$3:$R$1996,MATCH('2) Order Form'!P$8,Prices!$A$2:$R$2,0),FALSE) -> 60.00 | Q171: =VLOOKUP($C171,Prices!$A$3:$R$1996,MATCH('2) Order Form'!Q$8,Prices!$A$2:$R$2,0),FALSE) -> 119.00 | R171: =I171*P171 -> 0 | S171: =R171*O171 -> 0 | T171: =R171-S171 -> 0 | V171: 7048652832610 | X171: 0 | Y171: 0 | Z171: 9 | AA171: 1 | AB171: 1 | AC171: 840103Dirt Black | AD171: 840103 | AE171: =INDEX(ATS!$B:$V,MATCH('2) Order Form'!$V171,ATS!$U:$U,0),7) -> Active
A172: 1 | B172: Helmets & Helmet Acc. | C172: =INDEX(ATS!$B:$V,MATCH('2) Order Form'!$V172,ATS!$U:$U,0),1) -> 840103 | D172: =INDEX(ATS!$B:$V,MATCH('2) Order Form'!$V172,ATS!$U:$U,0),2) -> Winder Helmet | E172: =INDEX(ATS!$B:$V,MATCH('2) Order Form'!$V172,ATS!$U:$U,0),4) -> DTBLK-ML | F172: =INDEX(ATS!$B:$V,MATCH('2) Order Form'!$V172,ATS!$U:$U,0),5) -> Dirt Black | G172: =INDEX(ATS!$B:$V,MATCH('2) Order Form'!$V172,ATS!$U:$U,0),6) -> ML | H172: =IFERROR(VLOOKUP(C172,EAN!$K:$O,5,FALSE),0) -> 1 | I172: 0 | J172: =IFERROR(VLOOKUP(V172,ATS!$U:$V,2,FALSE),0) -> 0 | K172: 0 | L172: =IFERROR(VLOOKUP(V172,ATS!$U:$W,3,FALSE),0) -> 0 | M172: 0 | N172: 0% | O172: 0% | P172: =VLOOKUP($C172,Prices!$A$3:$R$1996,MATCH('2) Order Form'!P$8,Prices!$A$2:$R$2,0),FALSE) -> 60.00 | Q172: =VLOOKUP($C172,Prices!$A$3:$R$1996,MATCH('2) Order Form'!Q$8,Prices!$A$2:$R$2,0),FALSE) -> 119.00 | R172: 0 | S172: 0 | T172: 0 | V172: 7048652832603 | X172: 0 | Y172: 0 | Z172: 9 | AA172: 0 | AB172: 0 | AC172: 840103Dirt Black | AD172: 840103 | AE172: =INDEX(ATS!$B:$V,MATCH('2) Order Form'!$V172,ATS!$U:$U,0),7) -> Active
A173: 1 | B173: Helmets & Helmet Acc. | C173: =INDEX(ATS!$B:$V,MATCH('2) Order Form'!$V173,ATS!$U:$U,0),1) -> 840103 | D173: =INDEX(ATS!$B:$V,MATCH('2) Order Form'!$V173,ATS!$U:$U,0),2) -> Winder Helmet | E173: =INDEX(ATS!$B:$V,MATCH('2) Order Form'!$V173,ATS!$U:$U,0),4) -> DTBLK-LXL | F173: =INDEX(ATS!$B:$V,MATCH('2) Order Form'!$V173,ATS!$U:$U,0),5) -> Dirt Black | G173: =INDEX(ATS!$B:$V,MATCH('2) Order Form'!$V173,ATS!$U:$U,0),6) -> LXL | H173: =IFERROR(VLOOKUP(C173,EAN!$K:$O,5,FALSE),0) -> 1 | I173: 0 | J173: =IFERROR(VLOOKUP(V173,ATS!$U:$V,2,FALSE),0) -> 8 | K173: 8 | L173: =IFERROR(VLOOKUP(V173,ATS!$U:$W,3,FALSE),0) -> 8 | M173: 8 | N173: 0% | O173: 0% | P173: =VLOOKUP($C173,Prices!$A$3:$R$1996,MATCH('2) Order Form'!P$8,Prices!$A$2:$R$2,0),FALSE) -> 60.00 | Q173: =VLOOKUP($C173,Prices!$A$3:$R$1996,MATCH('2) Order Form'!Q$8,Prices!$A$2:$R$2,0),FALSE) -> 119.00 | R173: 0 | S173: 0 | T173: 0 | V173: 7048652832597 | X173: 0 | Y173: 0 | Z173: 9 | AA173: 0 | AB173: 0 | AC173: 840103Dirt Black | AD173: 840103 | AE173: =INDEX(ATS!$B:$V,MATCH('2) Order Form'!$V173,ATS!$U:$U,0),7) -> Active
A174: 1 | B174: Helmets & Helmet Acc. | C174: =INDEX(ATS!$B:$V,MATCH('2) Order Form'!$V174,ATS!$U:$U,0),1) -> 840103 | D174: =INDEX(ATS!$B:$V,MATCH('2) Order Form'!$V174,ATS!$U:$U,0),2) -> Winder Helmet | E174: =INDEX(ATS!$B:$V,MATCH('2) Order Form'!$V174,ATS!$U:$U,0),4) -> MASEM-SM | F174: =INDEX(ATS!$B:$V,MATCH('2) Order Form'!$V174,ATS!$U:$U,0),5) -> Matte Sea Metallic | G174: =INDEX(ATS!$B:$V,MATCH('2) Order Form'!$V174,ATS!$U:$U,0),6) -> SM | H174: =IFERROR(VLOOKUP(C174,EAN!$K:$O,5,FALSE),0) -> 1 | I174: 0 | J174: =IFERROR(VLOOKUP(V174,ATS!$U:$V,2,FALSE),0) -> 9 | K174: 9 | L174: =IFERROR(VLOOKUP(V174,ATS!$U:$W,3,FALSE),0) -> 9 | M174: 9 | N174: 0% | O174: 0% | P174: =VLOOKUP($C174,Prices!$A$3:$R$1996,MATCH('2) Order Form'!P$8,Prices!$A$2:$R$2,0),FALSE) -> 60.00 | Q174: =VLOOKUP($C174,Prices!$A$3:$R$1996,MATCH('2) Order Form'!Q$8,Prices!$A$2:$R$2,0),FALSE) -> 119.00 | R174: 0 | S174: 0 | T174: 0 | V174: 7048652832672 | X174: 0 | Y174: 0 | Z174: 9 | AA174: 0 | AB174: 1 | AC174: 840103Matte Sea Metallic | AD174: 840103 | AE174: =INDEX(ATS!$B:$V,MATCH('2) Order Form'!$V174,ATS!$U:$U,0),7) -> Stock
A175: 1 | B175: Helmets & Helmet Acc. | C175: =INDEX(ATS!$B:$V,MATCH('2) Order Form'!$V175,ATS!$U:$U,0),1) -> 840103 | D175: =INDEX(ATS!$B:$V,MATCH('2) Order Form'!$V175,ATS!$U:$U,0),2) -> Winder Helmet | E175: =INDEX(ATS!$B:$V,MATCH('2) Order Form'!$V175,ATS!$U:$U,0),4) -> MASEM-ML | F175: =INDEX(ATS!$B:$V,MATCH('2) Order Form'!$V175,ATS!$U:$U,0),5) -> Matte Sea Metallic | G175: =INDEX(ATS!$B:$V,MATCH('2) Order Form'!$V175,ATS!$U:$U,0),6) -> ML | H175: =IFERROR(VLOOKUP(C175,EAN!$K:$O,5,FALSE),0) -> 1 | I175: 0 | J175: =IFERROR(VLOOKUP(V175,ATS!$U:$V,2,FALSE),0) -> 133 | K175: 50+ | L175: =IFERROR(VLOOKUP(V175,ATS!$U:$W,3,FALSE),0) -> 133 | M175: 50+ | N175: 0% | O175: 0% | P175: =VLOOKUP($C175,Prices!$A$3:$R$1996,MATCH('2) Order Form'!P$8,Prices!$A$2:$R$2,0),FALSE) -> 60.00 | Q175: =VLOOKUP($C175,Prices!$A$3:$R$1996,MATCH('2) Order Form'!Q$8,Prices!$A$2:$R$2,0),FALSE) -> 119.00 | R175: 0 | S175: 0 | T175: 0 | V175: 7048652832665 | X175: 0 | Y175: 0 | Z175: 9 | AA175: 0 | AB175: 0 | AC175: 840103Matte Sea Metallic | AD175: 840103 | AE175: =INDEX(ATS!$B:$V,MATCH('2) Order Form'!$V175,ATS!$U:$U,0),7) -> Stock
A176: 1 | B176: Helmets & Helmet Acc. | C176: =INDEX(ATS!$B:$V,MATCH('2) Order Form'!$V176,ATS!$U:$U,0),1) -> 840103 | D176: =INDEX(ATS!$B:$V,MATCH('2) Order Form'!$V176,ATS!$U:$U,0),2) -> Winder Helmet | E176: =INDEX(ATS!$B:$V,MATCH('2) Order Form'!$V176,ATS!$U:$U,0),4) -> MASEM-LXL | F176: =INDEX(ATS!$B:$V,MATCH('2) Order Form'!$V176,ATS!$U:$U,0),5) -> Matte Sea Metallic | G176: =INDEX(ATS!$B:$V,MATCH('2) Order Form'!$V176,ATS!$U:$U,0),6) -> LXL | H176: =IFERROR(VLOOKUP(C176,EAN!$K:$O,5,FALSE),0) -> 1 | I176: 0 | J176: =IFERROR(VLOOKUP(V176,ATS!$U:$V,2,FALSE),0) -> 87 | K176: 50+ | L176: =IFERROR(VLOOKUP(V176,ATS!$U:$W,3,FALSE),0) -> 87 | M176: 50+ | N176: 0% | O176: 0% | P176: =VLOOKUP($C176,Prices!$A$3:$R$1996,MATCH('2) Order Form'!P$8,Prices!$A$2:$R$2,0),FALSE) -> 60.00 | Q176: =VLOOKUP($C176,Prices!$A$3:$R$1996,MATCH('2) Order Form'!Q$8,Prices!$A$2:$R$2,0),FALSE) -> 119.00 | R176: 0 | S176: 0 | T176: 0 | V176: 7048652832658 | X176: 0 | Y176: 0 | Z176: 9 | AA176: 0 | AB176: 0 | AC176: 840103Matte Sea Metallic | AD176: 840103 | AE176: =INDEX(ATS!$B:$V,MATCH('2) Order Form'!$V176,ATS!$U:$U,0),7) -> Stock
A177: 1 | B177: Helmets & Helmet Acc. | C177: =INDEX(ATS!$B:$V,MATCH('2) Order Form'!$V177,ATS!$U:$U,0),1) -> 840103 | D177: =INDEX(ATS!$B:$V,MATCH('2) Order Form'!$V177,ATS!$U:$U,0),2) -> Winder Helmet | E177: =INDEX(ATS!$B:$V,MATCH('2) Order Form'!$V177,ATS!$U:$U,0),4) -> MBRWH-SM | F177: =INDEX(ATS!$B:$V,MATCH('2) Order Form'!$V177,ATS!$U:$U,0),5) -> Matte Bronco White | G177: =INDEX(ATS!$B:$V,MATCH('2) Order Form'!$V177,ATS!$U:$U,0),6) -> SM | H177: =IFERROR(VLOOKUP(C177,EAN!$K:$O,5,FALSE),0) -> 1 | I177: 0 | J177: =IFERROR(VLOOKUP(V177,ATS!$U:$V,2,FALSE),0) -> 53 | K177: 50+ | L177: =IFERROR(VLOOKUP(V177,ATS!$U:$W,3,FALSE),0) -> 53 | M177: 50+ | N177: 0% | O177: 0% | P177: =VLOOKUP($C177,Prices!$A$3:$R$1996,MATCH('2) Order Form'!P$8,Prices!$A$2:$R$2,0),FALSE) -> 60.00 | Q177: =VLOOKUP($C177,Prices!$A$3:$R$1996,MATCH('2) Order Form'!Q$8,Prices!$A$2:$R$2,0),FALSE) -> 119.00 | R177: 0 | S177: 0 | T177: 0 | V177: 7048652832702 | X177: 0 | Y177: 0 | Z177: 9 | AA177: 0 | AB177: 1 | AC177: 840103Matte Bronco White | AD177: 840103 | AE177: =INDEX(ATS!$B:$V,MATCH('2) Order Form'!$V177,ATS!$U:$U,0),7) -> Active
A178: 1 | B178: Helmets & Helmet Acc. | C178: =INDEX(ATS!$B:$V,MATCH('2) Order Form'!$V178,ATS!$U:$U,0),1) -> 840103 | D178: =INDEX(ATS!$B:$V,MATCH('2) Order Form'!$V178,ATS!$U:$U,0),2) -> Winder Helmet | E178: =INDEX(ATS!$B:$V,MATCH('2) Order Form'!$V178,ATS!$U:$U,0),4) -> MBRWH-ML | F178: =INDEX(ATS!$B:$V,MATCH('2) Order Form'!$V178,ATS!$U:$U,0),5) -> Matte Bronco White | G178: =INDEX(ATS!$B:$V,MATCH('2) Order Form'!$V178,ATS!$U:$U,0),6) -> ML | H178: =IFERROR(VLOOKUP(C178,EAN!$K:$O,5,FALSE),0) -> 1 | I178: 0 | J178: =IFERROR(VLOOKUP(V178,ATS!$U:$V,2,FALSE),0) -> 81 | K178: 50+ | L178: =IFERROR(VLOOKUP(V178,ATS!$U:$W,3,FALSE),0) -> 81 | M178: 50+ | N178: 0% | O178: 0% | P178: =VLOOKUP($C178,Prices!$A$3:$R$1996,MATCH('2) Order Form'!P$8,Prices!$A$2:$R$2,0),FALSE) -> 60.00 | Q178: =VLOOKUP($C178,Prices!$A$3:$R$1996,MATCH('2) Order Form'!Q$8,Prices!$A$2:$R$2,0),FALSE) -> 119.00 | R178: 0 | S178: 0 | T178: 0 | V178: 7048652832696 | X178: 0 | Y178: 0 | Z178: 9 | AA178: 0 | AB178: 0 | AC178: 840103Matte Bronco White | AD178: 840103 | AE178: =INDEX(ATS!$B:$V,MATCH('2) Order Form'!$V178,ATS!$U:$U,0),7) -> Active
A179: 1 | B179: Helmets & Helmet Acc. | C179: =INDEX(ATS!$B:$V,MATCH('2) Order Form'!$V179,ATS!$U:$U,0),1) -> 840103 | D179: =INDEX(ATS!$B:$V,MATCH('2) Order Form'!$V179,ATS!$U:$U,0),2) -> Winder Helmet | E179: =INDEX(ATS!$B:$V,MATCH('2) Order Form'!$V179,ATS!$U:$U,0),4) -> MBRWH-LXL | F179: =INDEX(ATS!$B:$V,MATCH('2) Order Form'!$V179,ATS!$U:$U,0),5) -> Matte Bronco White | G179: =INDEX(ATS!$B:$V,MATCH('2) Order Form'!$V179,ATS!$U:$U,0),6) -> LXL | H179: =IFERROR(VLOOKUP(C179,EAN!$K:$O,5,FALSE),0) -> 1 | I179: 0 | J179: =IFERROR(VLOOKUP(V179,ATS!$U:$V,2,FALSE),0) -> 89 | K179: 50+ | L179: =IFERROR(VLOOKUP(V179,ATS!$U:$W,3,FALSE),0) -> 89 | M179: 50+ | N179: 0% | O179: 0% | P179: =VLOOKUP($C179,Prices!$A$3:$R$1996,MATCH('2) Order Form'!P$8,Prices!$A$2:$R$2,0),FALSE) -> 60.00 | Q179: =VLOOKUP($C179,Prices!$A$3:$R$1996,MATCH('2) Order Form'!Q$8,Prices!$A$2:$R$2,0),FALSE) -> 119.00 | R179: 0 | S179: 0 | T179: 0 | V179: 7048652832689 | X179: 0 | Y179: 0 | Z179: 9 | AA179: 0 | AB179: 0 | AC179: 840103Matte Bronco White | AD179: 840103 | AE179: =INDEX(ATS!$B:$V,MATCH('2) Order Form'!$V179,ATS!$U:$U,0),7) -> Active
A180: 1 | B180: Helmets & Helmet Acc. | C180: =INDEX(ATS!$B:$V,MATCH('2) Order Form'!$V180,ATS!$U:$U,0),1) -> 840103 | D180: =INDEX(ATS!$B:$V,MATCH('2) Order Form'!$V180,ATS!$U:$U,0),2) -> Winder Helmet | E180: =INDEX(ATS!$B:$V,MATCH('2) Order Form'!$V180,ATS!$U:$U,0),4) -> MBUOE-SM | F180: =INDEX(ATS!$B:$V,MATCH('2) Order Form'!$V180,ATS!$U:$U,0),5) -> Matte Burning Orange | G180: =INDEX(ATS!$B:$V,MATCH('2) Order Form'!$V180,ATS!$U:$U,0),6) -> SM | H180: =IFERROR(VLOOKUP(C180,EAN!$K:$O,5,FALSE),0) -> 1 | I180: 0 | J180: =IFERROR(VLOOKUP(V180,ATS!$U:$V,2,FALSE),0) -> 0 | K180: 0 | L180: =IFERROR(VLOOKUP(V180,ATS!$U:$W,3,FALSE),0) -> 0 | M180: 0 | N180: 0% | O180: 0% | P180: =VLOOKUP($C180,Prices!$A$3:$R$1996,MATCH('2) Order Form'!P$8,Prices!$A$2:$R$2,0),FALSE) -> 60.00 | Q180: =VLOOKUP($C180,Prices!$A$3:$R$1996,MATCH('2) Order Form'!Q$8,Prices!$A$2:$R$2,0),FALSE) -> 119.00 | R180: 0 | S180: 0 | T180: 0 | V180: 7048652832733 | X180: 0 | Y180: 0 | Z180: 9 | AA180: 0 | AB180: 1 | AC180: 840103Matte Burning Orange | AD180: 840103 | AE180: =INDEX(ATS!$B:$V,MATCH('2) Order Form'!$V180,ATS!$U:$U,0),7) -> Stock
A181: 1 | B181: Helmets & Helmet Acc. | C181: =INDEX(ATS!$B:$V,MATCH('2) Order Form'!$V181,ATS!$U:$U,0),1) -> 840103 | D181: =INDEX(ATS!$B:$V,MATCH('2) Order Form'!$V181,ATS!$U:$U,0),2) -> Winder Helmet | E181: =INDEX(ATS!$B:$V,MATCH('2) Order Form'!$V181,ATS!$U:$U,0),4) -> MBUOE-ML | F181: =INDEX(ATS!$B:$V,MATCH('2) Order Form'!$V181,ATS!$U:$U,0),5) -> Matte Burning Orange | G181: =INDEX(ATS!$B:$V,MATCH('2) Order Form'!$V181,ATS!$U:$U,0),6) -> ML | H181: =IFERROR(VLOOKUP(C181,EAN!$K:$O,5,FALSE),0) -> 1 | I181: 0 | J181: =IFERROR(VLOOKUP(V181,ATS!$U:$V,2,FALSE),0) -> 24 | K181: 24 | L181: =IFERROR(VLOOKUP(V181,ATS!$U:$W,3,FALSE),0) -> 24 | M181: 24 | N181: 0% | O181: 0% | P181: =VLOOKUP($C181,Prices!$A$3:$R$1996,MATCH('2) Order Form'!P$8,Prices!$A$2:$R$2,0),FALSE) -> 60.00 | Q181: =VLOOKUP($C181,Prices!$A$3:$R$1996,MATCH('2) Order Form'!Q$8,Prices!$A$2:$R$2,0),FALSE) -> 119.00 | R181: 0 | S181: 0 | T181: 0 | V181: 7048652832726 | X181: 0 | Y181: 0 | Z181: 9 | AA181: 0 | AB181: 0 | AC181: 840103Matte Burning Orange | AD181: 840103 | AE181: =INDEX(ATS!$B:$V,MATCH('2) Order Form'!$V181,ATS!$U:$U,0),7) -> Stock
A182: 1 | B182: Helmets & Helmet Acc. | C182: =INDEX(ATS!$B:$V,MATCH('2) Order Form'!$V182,ATS!$U:$U,0),1) -> 840103 | D182: =INDEX(ATS!$B:$V,MATCH('2) Order Form'!$V182,ATS!$U:$U,0),2) -> Winder Helmet | E182: =INDEX(ATS!$B:$V,MATCH('2) Order Form'!$V182,ATS!$U:$U,0),4) -> MBUOE-LXL | F182: =INDEX(ATS!$B:$V,MATCH('2) Order Form'!$V182,ATS!$U:$U,0),5) -> Matte Burning Orange | G182: =INDEX(ATS!$B:$V,MATCH('2) Order Form'!$V182,ATS!$U:$U,0),6) -> LXL | H182: =IFERROR(VLOOKUP(C182,EAN!$K:$O,5,FALSE),0) -> 1 | I182: 0 | J182: =IFERROR(VLOOKUP(V182,ATS!$U:$V,2,FALSE),0) -> 49 | K182: 49 | L182: =IFERROR(VLOOKUP(V182,ATS!$U:$W,3,FALSE),0) -> 49 | M182: 49 | N182: 0% | O182: 0% | P182: =VLOOKUP($C182,Prices!$A$3:$R$1996,MATCH('2) Order Form'!P$8,Prices!$A$2:$R$2,0),FALSE) -> 60.00 | Q182: =VLOOKUP($C182,Prices!$A$3:$R$1996,MATCH('2) Order Form'!Q$8,Prices!$A$2:$R$2,0),FALSE) -> 119.00 | R182: 0 | S182: 0 | T182: 0 | V182: 7048652832719 | X182: 0 | Y182: 0 | Z182: 9 | AA182: 0 | AB182: 0 | AC182: 840103Matte Burning Orange | AD182: 840103 | AE182: =INDEX(ATS!$B:$V,MATCH('2) Order Form'!$V182,ATS!$U:$U,0),7) -> Stock
A183: 1 | B183: Helmets & Helmet Acc. | C183: =INDEX(ATS!$B:$V,MATCH('2) Order Form'!$V183,ATS!$U:$U,0),1) -> 840103 | D183: =INDEX(ATS!$B:$V,MATCH('2) Order Form'!$V183,ATS!$U:$U,0),2) -> Winder Helmet | E183: =INDEX(ATS!$B:$V,MATCH('2) Order Form'!$V183,ATS!$U:$U,0),4) -> MTURQ-SM | F183: =INDEX(ATS!$B:$V,MATCH('2) Order Form'!$V183,ATS!$U:$U,0),5) -> Misty Turquoise | G183: =INDEX(ATS!$B:$V,MATCH('2) Order Form'!$V183,ATS!$U:$U,0),6) -> SM | H183: =IFERROR(VLOOKUP(C183,EAN!$K:$O,5,FALSE),0) -> 1 | I183: 0 | J183: =IFERROR(VLOOKUP(V183,ATS!$U:$V,2,FALSE),0) -> 35 | K183: 35 | L183: =IFERROR(VLOOKUP(V183,ATS!$U:$W,3,FALSE),0) -> 35 | M183: 35 | N183: 0% | O183: 0% | P183: =VLOOKUP($C183,Prices!$A$3:$R$1996,MATCH('2) Order Form'!P$8,Prices!$A$2:$R$2,0),FALSE) -> 60.00 | Q183: =VLOOKUP($C183,Prices!$A$3:$R$1996,MATCH('2) Order Form'!Q$8,Prices!$A$2:$R$2,0),FALSE) -> 119.00 | R183: 0 | S183: 0 | T183: 0 | V183: 7048652966568 | X183: 0 | Y183: 0 | Z183: 9 | AA183: 0 | AB183: 1 | AC183: 840103Misty Turquoise | AD183: 840103 | AE183: =INDEX(ATS!$B:$V,MATCH('2) Order Form'!$V183,ATS!$U:$U,0),7) -> Stock
A184: 1 | B184: Helmets & Helmet Acc. | C184: =INDEX(ATS!$B:$V,MATCH('2) Order Form'!$V184,ATS!$U:$U,0),1) -> 840103 | D184: =INDEX(ATS!$B:$V,MATCH('2) Order Form'!$V184,ATS!$U:$U,0),2) -> Winder Helmet | E184: =INDEX(ATS!$B:$V,MATCH('2) Order Form'!$V184,ATS!$U:$U,0),4) -> MTURQ-ML | F184: =INDEX(ATS!$B:$V,MATCH('2) Order Form'!$V184,ATS!$U:$U,0),5) -> Misty Turquoise | G184: =INDEX(ATS!$B:$V,MATCH('2) Order Form'!$V184,ATS!$U:$U,0),6) -> ML | H184: =IFERROR(VLOOKUP(C184,EAN!$K:$O,5,FALSE),0) -> 1 | I184: 0 | J184: =IFERROR(VLOOKUP(V184,ATS!$U:$V,2,FALSE),0) -> 40 | K184: 40 | L184: =IFERROR(VLOOKUP(V184,ATS!$U:$W,3,FALSE),0) -> 40 | M184: 40 | N184: 0% | O184: 0% | P184: =VLOOKUP($C184,Prices!$A$3:$R$1996,MATCH('2) Order Form'!P$8,Prices!$A$2:$R$2,0),FALSE) -> 60.00 | Q184: =VLOOKUP($C184,Prices!$A$3:$R$1996,MATCH('2) Order Form'!Q$8,Prices!$A$2:$R$2,0),FALSE) -> 119.00 | R184: 0 | S184: 0 | T184: 0 | V184: 7048652966551 | X184: 0 | Y184: 0 | Z184: 9 | AA184: 0 | AB184: 0 | AC184: 840103Misty Turquoise | AD184: 840103 | AE184: =INDEX(ATS!$B:$V,MATCH('2) Order Form'!$V184,ATS!$U:$U,0),7) -> Stock
A185: 1 | B185: Helmets & Helmet Acc. | C185: =INDEX(ATS!$B:$V,MATCH('2) Order Form'!$V185,ATS!$U:$U,0),1) -> 840103 | D185: =INDEX(ATS!$B:$V,MATCH('2) Order Form'!$V185,ATS!$U:$U,0),2) -> Winder Helmet | E185: =INDEX(ATS!$B:$V,MATCH('2) Order Form'!$V185,ATS!$U:$U,0),4) -> MTURQ-LXL | F185: =INDEX(ATS!$B:$V,MATCH('2) Order Form'!$V185,ATS!$U:$U,0),5) -> Misty Turquoise | G185: =INDEX(ATS!$B:$V,MATCH('2) Order Form'!$V185,ATS!$U:$U,0),6) -> LXL | H185: =IFERROR(VLOOKUP(C185,EAN!$K:$O,5,FALSE),0) -> 1 | I185: 0 | J185: =IFERROR(VLOOKUP(V185,ATS!$U:$V,2,FALSE),0) -> 47 | K185: 47 | L185: =IFERROR(VLOOKUP(V185,ATS!$U:$W,3,FALSE),0) -> 47 | M185: 47 | N185: 0% | O185: 0% | P185: =VLOOKUP($C185,Prices!$A$3:$R$1996,MATCH('2) Order Form'!P$8,Prices!$A$2:$R$2,0),FALSE) -> 60.00 | Q185: =VLOOKUP($C185,Prices!$A$3:$R$1996,MATCH('2) Order Form'!Q$8,Prices!$A$2:$R$2,0),FALSE) -> 119.00 | R185: 0 | S185: 0 | T185: 0 | V185: 7048652966544 | X185: 0 | Y185: 0 | Z185: 9 | AA185: 0 | AB185: 0 | AC185: 840103Misty Turquoise | AD185: 840103 | AE185: =INDEX(ATS!$B:$V,MATCH('2) Order Form'!$V185,ATS!$U:$U,0),7) -> Stock
A186: 1 | B186: Helmets & Helmet Acc. | C186: =INDEX(ATS!$B:$V,MATCH('2) Order Form'!$V186,ATS!$U:$U,0),1) -> 840103 | D186: =INDEX(ATS!$B:$V,MATCH('2) Order Form'!$V186,ATS!$U:$U,0),2) -> Winder Helmet | E186: =INDEX(ATS!$B:$V,MATCH('2) Order Form'!$V186,ATS!$U:$U,0),4) -> RGLDM-SM | F186: =INDEX(ATS!$B:$V,MATCH('2) Order Form'!$V186,ATS!$U:$U,0),5) -> Rose Gold Metallic | G186: =INDEX(ATS!$B:$V,MATCH('2) Order Form'!$V186,ATS!$U:$U,0),6) -> SM | H186: =IFERROR(VLOOKUP(C186,EAN!$K:$O,5,FALSE),0) -> 1 | I186: 0 | J186: =IFERROR(VLOOKUP(V186,ATS!$U:$V,2,FALSE),0) -> 40 | K186: 40 | L186: =IFERROR(VLOOKUP(V186,ATS!$U:$W,3,FALSE),0) -> 40 | M186: 40 | N186: 0% | O186: 0% | P186: =VLOOKUP($C186,Prices!$A$3:$R$1996,MATCH('2) Order Form'!P$8,Prices!$A$2:$R$2,0),FALSE) -> 60.00 | Q186: =VLOOKUP($C186,Prices!$A$3:$R$1996,MATCH('2) Order Form'!Q$8,Prices!$A$2:$R$2,0),FALSE) -> 119.00 | R186: 0 | S186: 0 | T186: 0 | V186: 7048652832795 | X186: 0 | Y186: 0 | Z186: 9 | AA186: 0 | AB186: 1 | AC186: 840103Rose Gold Metallic | AD186: 840103 | AE186: =INDEX(ATS!$B:$V,MATCH('2) Order Form'!$V186,ATS!$U:$U,0),7) -> Stock
A187: 1 | B187: Helmets & Helmet Acc. | C187: =INDEX(ATS!$B:$V,MATCH('2) Order Form'!$V187,ATS!$U:$U,0),1) -> 840103 | D187: =INDEX(ATS!$B:$V,MATCH('2) Order Form'!$V187,ATS!$U:$U,0),2) -> Winder Helmet | E187: =INDEX(ATS!$B:$V,MATCH('2) Order Form'!$V187,ATS!$U:$U,0),4) -> RGLDM-ML | F187: =INDEX(ATS!$B:$V,MATCH('2) Order Form'!$V187,ATS!$U:$U,0),5) -> Rose Gold Metallic | G187: =INDEX(ATS!$B:$V,MATCH('2) Order Form'!$V187,ATS!$U:$U,0),6) -> ML | H187: =IFERROR(VLOOKUP(C187,EAN!$K:$O,5,FALSE),0) -> 1 | I187: 0 | J187: =IFERROR(VLOOKUP(V187,ATS!$U:$V,2,FALSE),0) -> 71 | K187: 50+ | L187: =IFERROR(VLOOKUP(V187,ATS!$U:$W,3,FALSE),0) -> 71 | M187: 50+ | N187: 0% | O187: 0% | P187: =VLOOKUP($C187,Prices!$A$3:$R$1996,MATCH('2) Order Form'!P$8,Prices!$A$2:$R$2,0),FALSE) -> 60.00 | Q187: =VLOOKUP($C187,Prices!$A$3:$R$1996,MATCH('2) Order Form'!Q$8,Prices!$A$2:$R$2,0),FALSE) -> 119.00 | R187: 0 | S187: 0 | T187: 0 | V187: 7048652832788 | X187: 0 | Y187: 0 | Z187: 9 | AA187: 0 | AB187: 0 | AC187: 840103Rose Gold Metallic | AD187: 840103 | AE187: =INDEX(ATS!$B:$V,MATCH('2) Order Form'!$V187,ATS!$U:$U,0),7) -> Stock
A188: 1 | B188: Helmets & Helmet Acc. | C188: =INDEX(ATS!$B:$V,MATCH('2) Order Form'!$V188,ATS!$U:$U,0),1) -> 840103 | D188: =INDEX(ATS!$B:$V,MATCH('2) Order Form'!$V188,ATS!$U:$U,0),2) -> Winder Helmet | E188: =INDEX(ATS!$B:$V,MATCH('2) Order Form'!$V188,ATS!$U:$U,0),4) -> RGLDM-LXL | F188: =INDEX(ATS!$B:$V,MATCH('2) Order Form'!$V188,ATS!$U:$U,0),5) -> Rose Gold Metallic | G188: =INDEX(ATS!$B:$V,MATCH('2) Order Form'!$V188,ATS!$U:$U,0),6) -> LXL | H188: =IFERROR(VLOOKUP(C188,EAN!$K:$O,5,FALSE),0) -> 1 | I188: 0 | J188: =IFERROR(VLOOKUP(V188,ATS!$U:$V,2,FALSE),0) -> 44 | K188: 44 | L188: =IFERROR(VLOOKUP(V188,ATS!$U:$W,3,FALSE),0) -> 44 | M188: 44 | N188: 0% | O188: 0% | P188: =VLOOKUP($C188,Prices!$A$3:$R$1996,MATCH('2) Order Form'!P$8,Prices!$A$2:$R$2,0),FALSE) -> 60.00 | Q188: =VLOOKUP($C188,Prices!$A$3:$R$1996,MATCH('2) Order Form'!Q$8,Prices!$A$2:$R$2,0),FALSE) -> 119.00 | R188: 0 | S188: 0 | T188: 0 | V188: 7048652832771 | X188: 0 | Y188: 0 | Z188: 9 | AA188: 0 | AB188: 0 | AC188: 840103Rose Gold Metallic | AD188: 840103 | AE188: =INDEX(ATS!$B:$V,MATCH('2) Order Form'!$V188,ATS!$U:$U,0),7) -> Stock
A189: 1 | B189: Helmets & Helmet Acc. | C189: =INDEX(ATS!$B:$V,MATCH('2) Order Form'!$V189,ATS!$U:$U,0),1) -> 840103 | D189: =INDEX(ATS!$B:$V,MATCH('2) Order Form'!$V189,ATS!$U:$U,0),2) -> Winder Helmet | E189: =INDEX(ATS!$B:$V,MATCH('2) Order Form'!$V189,ATS!$U:$U,0),4) -> WOLND-SM | F189: =INDEX(ATS!$B:$V,MATCH('2) Order Form'!$V189,ATS!$U:$U,0),5) -> Woodland | G189: =INDEX(ATS!$B:$V,MATCH('2) Order Form'!$V189,ATS!$U:$U,0),6) -> SM | H189: =IFERROR(VLOOKUP(C189,EAN!$K:$O,5,FALSE),0) -> 1 | I189: 0 | J189: =IFERROR(VLOOKUP(V189,ATS!$U:$V,2,FALSE),0) -> 24 | K189: 24 | L189: =IFERROR(VLOOKUP(V189,ATS!$U:$W,3,FALSE),0) -> 24 | M189: 24 | N189: 0% | O189: 0% | P189: =VLOOKUP($C189,Prices!$A$3:$R$1996,MATCH('2) Order Form'!P$8,Prices!$A$2:$R$2,0),FALSE) -> 60.00 | Q189: =VLOOKUP($C189,Prices!$A$3:$R$1996,MATCH('2) Order Form'!Q$8,Prices!$A$2:$R$2,0),FALSE) -> 119.00 | R189: 0 | S189: 0 | T189: 0 | V189: 7048652966599 | X189: 0 | Y189: 0 | Z189: 9 | AA189: 0 | AB189: 1 | AC189: 840103Woodland | AD189: 840103 | AE189: =INDEX(ATS!$B:$V,MATCH('2) Order Form'!$V189,ATS!$U:$U,0),7) -> Active
A190: 1 | B190: Helmets & Helmet Acc. | C190: =INDEX(ATS!$B:$V,MATCH('2) Order Form'!$V190,ATS!$U:$U,0),1) -> 840103 | D190: =INDEX(ATS!$B:$V,MATCH('2) Order Form'!$V190,ATS!$U:$U,0),2) -> Winder Helmet | E190: =INDEX(ATS!$B:$V,MATCH('2) Order Form'!$V190,ATS!$U:$U,0),4) -> WOLND-ML | F190: =INDEX(ATS!$B:$V,MATCH('2) Order Form'!$V190,ATS!$U:$U,0),5) -> Woodland | G190: =INDEX(ATS!$B:$V,MATCH('2) Order Form'!$V190,ATS!$U:$U,0),6) -> ML | H190: =IFERROR(VLOOKUP(C190,EAN!$K:$O,5,FALSE),0) -> 1 | I190: 0 | J190: =IFERROR(VLOOKUP(V190,ATS!$U:$V,2,FALSE),0) -> -24 | K190: 0 | L190: =IFERROR(VLOOKUP(V190,ATS!$U:$W,3,FALSE),0) -> -24 | M190: 0 | N190: 0% | O190: 0% | P190: =VLOOKUP($C190,Prices!$A$3:$R$1996,MATCH('2) Order Form'!P$8,Prices!$A$2:$R$2,0),FALSE) -> 60.00 | Q190: =VLOOKUP($C190,Prices!$A$3:$R$1996,MATCH('2) Order Form'!Q$8,Prices!$A$2:$R$2,0),FALSE) -> 119.00 | R190: 0 | S190: 0 | T190: 0 | V190: 7048652966582 | X190: 0 | Y190: 0 | Z190: 9 | AA190: 0 | AB190: 0 | AC190: 840103Woodland | AD190: 840103 | AE190: =INDEX(ATS!$B:$V,MATCH('2) Order Form'!$V190,ATS!$U:$U,0),7) -> Active
A191: 1 | B191: Helmets & Helmet Acc. | C191: =INDEX(ATS!$B:$V,MATCH('2) Order Form'!$V191,ATS!$U:$U,0),1) -> 840103 | D191: =INDEX(ATS!$B:$V,MATCH('2) Order Form'!$V191,ATS!$U:$U,0),2) -> Winder Helmet | E191: =INDEX(ATS!$B:$V,MATCH('2) Order Form'!$V191,ATS!$U:$U,0),4) -> WOLND-LXL | F191: =INDEX(ATS!$B:$V,MATCH('2) Order Form'!$V191,ATS!$U:$U,0),5) -> Woodland | G191: =INDEX(ATS!$B:$V,MATCH('2) Order Form'!$V191,ATS!$U:$U,0),6) -> LXL | H191: =IFERROR(VLOOKUP(C191,EAN!$K:$O,5,FALSE),0) -> 1 | I191: 0 | J191: =IFERROR(VLOOKUP(V191,ATS!$U:$V,2,FALSE),0) -> -20 | K191: 0 | L191: =IFERROR(VLOOKUP(V191,ATS!$U:$W,3,FALSE),0) -> -20 | M191: 0 | N191: 0% | O191: 0% | P191: =VLOOKUP($C191,Prices!$A$3:$R$1996,MATCH('2) Order Form'!P$8,Prices!$A$2:$R$2,0),FALSE) -> 60.00 | Q191: =VLOOKUP($C191,Prices!$A$3:$R$1996,MATCH('2) Order Form'!Q$8,Prices!$A$2:$R$2,0),FALSE) -> 119.00 | R191: 0 | S191: 0 | T191: 0 | V191: 7048652966575 | X191: 0 | Y191: 0 | Z191: 9 | AA191: 0 | AB191: 0 | AC191: 840103Woodland | AD191: 840103 | AE191: =INDEX(ATS!$B:$V,MATCH('2) Order Form'!$V191,ATS!$U:$U,0),7) -> Active
A192: 1 | B192: Helmets & Helmet Acc. | C192: =INDEX(ATS!$B:$V,MATCH('2) Order Form'!$V192,ATS!$U:$U,0),1) -> 840055 | D192: =INDEX(ATS!$B:$V,MATCH('2) Order Form'!$V192,ATS!$U:$U,0),2) -> Rooster II Mips Helmet | E192: =INDEX(ATS!$B:$V,MATCH('2) Order Form'!$V192,ATS!$U:$U,0),4) -> DTBLK-SM | F192: =INDEX(ATS!$B:$V,MATCH('2) Order Form'!$V192,ATS!$U:$U,0),5) -> Dirt Black | G192: =INDEX(ATS!$B:$V,MATCH('2) Order Form'!$V192,ATS!$U:$U,0),6) -> SM | H192: =IFERROR(VLOOKUP(C192,EAN!$K:$O,5,FALSE),0) -> 1 | I192: 0 | J192: =IFERROR(VLOOKUP(V192,ATS!$U:$V,2,FALSE),0) -> 75 | K192: 50+ | L192: =IFERROR(VLOOKUP(V192,ATS!$U:$W,3,FALSE),0) -> 75 | M192: 50+ | N192: 0% | O192: 0% | P192: =VLOOKUP($C192,Prices!$A$3:$R$1996,MATCH('2) Order Form'!P$8,Prices!$A$2:$R$2,0),FALSE) -> 300.00 | Q192: =VLOOKUP($C192,Prices!$A$3:$R$1996,MATCH('2) Order Form'!Q$8,Prices!$A$2:$R$2,0),FALSE) -> 599.00 | R192: 0 | S192: 0 | T192: 0 | V192: 7048652186355 | X192: 0 | Y192: 0 | Z192: 10 | AA192: 1 | AB192: 1 | AC192: 840055Dirt Black | AD192: 840055 | AE192: =INDEX(ATS!$B:$V,MATCH('2) Order Form'!$V192,ATS!$U:$U,0),7) -> Active
A193: 1 | B193: Helmets & Helmet Acc. | C193: =INDEX(ATS!$B:$V,MATCH('2) Order Form'!$V193,ATS!$U:$U,0),1) -> 840055 | D193: =INDEX(ATS!$B:$V,MATCH('2) Order Form'!$V193,ATS!$U:$U,0),2) -> Rooster II Mips Helmet | E193: =INDEX(ATS!$B:$V,MATCH('2) Order Form'!$V193,ATS!$U:$U,0),4) -> DTBLK-ML | F193: =INDEX(ATS!$B:$V,MATCH('2) Order Form'!$V193,ATS!$U:$U,0),5) -> Dirt Black | G193: =INDEX(ATS!$B:$V,MATCH('2) Order Form'!$V193,ATS!$U:$U,0),6) -> ML | H193: =IFERROR(VLOOKUP(C193,EAN!$K:$O,5,FALSE),0) -> 1 | I193: 0 | J193: =IFERROR(VLOOKUP(V193,ATS!$U:$V,2,FALSE),0) -> 58 | K193: 50+ | L193: =IFERROR(VLOOKUP(V193,ATS!$U:$W,3,FALSE),0) -> 58 | M193: 50+ | N193: 0% | O193: 0% | P193: =VLOOKUP($C193,Prices!$A$3:$R$1996,MATCH('2) Order Form'!P$8,Prices!$A$2:$R$2,0),FALSE) -> 300.00 | Q193: =VLOOKUP($C193,Prices!$A$3:$R$1996,MATCH('2) Order Form'!Q$8,Prices!$A$2:$R$2,0),FALSE) -> 599.00 | R193: 0 | S193: 0 | T193: 0 | V193: 7048652186348 | X193: 0 | Y193: 0 | Z193: 10 | AA193: 0 | AB193: 0 | AC193: 840055Dirt Black | AD193: 840055 | AE193: =INDEX(ATS!$B:$V,MATCH('2) Order Form'!$V193,ATS!$U:$U,0),7) -> Active
A194: 1 | B194: Helmets & Helmet Acc. | C194: =INDEX(ATS!$B:$V,MATCH('2) Order Form'!$V194,ATS!$U:$U,0),1) -> 840055 | D194: =INDEX(ATS!$B:$V,MATCH('2) Order Form'!$V194,ATS!$U:$U,0),2) -> Rooster II Mips Helmet | E194: =INDEX(ATS!$B:$V,MATCH('2) Order Form'!$V194,ATS!$U:$U,0),4) -> DTBLK-LXL | F194: =INDEX(ATS!$B:$V,MATCH('2) Order Form'!$V194,ATS!$U:$U,0),5) -> Dirt Black | G194: =INDEX(ATS!$B:$V,MATCH('2) Order Form'!$V194,ATS!$U:$U,0),6) -> LXL | H194: =IFERROR(VLOOKUP(C194,EAN!$K:$O,5,FALSE),0) -> 1 | I194: 0 | J194: =IFERROR(VLOOKUP(V194,ATS!$U:$V,2,FALSE),0) -> 27 | K194: 27 | L194: =IFERROR(VLOOKUP(V194,ATS!$U:$W,3,FALSE),0) -> 27 | M194: 27 | N194: 0% | O194: 0% | P194: =VLOOKUP($C194,Prices!$A$3:$R$1996,MATCH('2) Order Form'!P$8,Prices!$A$2:$R$2,0),FALSE) -> 300.00 | Q194: =VLOOKUP($C194,Prices!$A$3:$R$1996,MATCH('2) Order Form'!Q$8,Prices!$A$2:$R$2,0),FALSE) -> 599.00 | R194: 0 | S194: 0 | T194: 0 | V194: 7048652186331 | X194: 0 | Y194: 0 | Z194: 10 | AA194: 0 | AB194: 0 | AC194: 840055Dirt Black | AD194: 840055 | AE194: =INDEX(ATS!$B:$V,MATCH('2) Order Form'!$V194,ATS!$U:$U,0),7) -> Active
A195: 1 | B195: Helmets & Helmet Acc. | C195: =INDEX(ATS!$B:$V,MATCH('2) Order Form'!$V195,ATS!$U:$U,0),1) -> 840055 | D195: =INDEX(ATS!$B:$V,MATCH('2) Order Form'!$V195,ATS!$U:$U,0),2) -> Rooster II Mips Helmet | E195: =INDEX(ATS!$B:$V,MATCH('2) Order Form'!$V195,ATS!$U:$U,0),4) -> GSWHT-SM | F195: =INDEX(ATS!$B:$V,MATCH('2) Order Form'!$V195,ATS!$U:$U,0),5) -> Gloss White | G195: =INDEX(ATS!$B:$V,MATCH('2) Order Form'!$V195,ATS!$U:$U,0),6) -> SM | H195: =IFERROR(VLOOKUP(C195,EAN!$K:$O,5,FALSE),0) -> 1 | I195: 0 | J195: =IFERROR(VLOOKUP(V195,ATS!$U:$V,2,FALSE),0) -> 48 | K195: 48 | L195: =IFERROR(VLOOKUP(V195,ATS!$U:$W,3,FALSE),0) -> 48 | M195: 48 | N195: 0% | O195: 0% | P195: =VLOOKUP($C195,Prices!$A$3:$R$1996,MATCH('2) Order Form'!P$8,Prices!$A$2:$R$2,0),FALSE) -> 300.00 | Q195: =VLOOKUP($C195,Prices!$A$3:$R$1996,MATCH('2) Order Form'!Q$8,Prices!$A$2:$R$2,0),FALSE) -> 599.00 | R195: 0 | S195: 0 | T195: 0 | V195: 7048652186386 | X195: 0 | Y195: 0 | Z195: 10 | AA195: 0 | AB195: 1 | AC195: 840055Gloss White | AD195: 840055 | AE195: =INDEX(ATS!$B:$V,MATCH('2) Order Form'!$V195,ATS!$U:$U,0),7) -> Active
A196: 1 | B196: Helmets & Helmet Acc. | C196: =INDEX(ATS!$B:$V,MATCH('2) Order Form'!$V196,ATS!$U:$U,0),1) -> 840055 | D196: =INDEX(ATS!$B:$V,MATCH('2) Order Form'!$V196,ATS!$U:$U,0),2) -> Rooster II Mips Helmet | E196: =INDEX(ATS!$B:$V,MATCH('2) Order Form'!$V196,ATS!$U:$U,0),4) -> GSWHT-ML | F196: =INDEX(ATS!$B:$V,MATCH('2) Order Form'!$V196,ATS!$U:$U,0),5) -> Gloss White | G196: =INDEX(ATS!$B:$V,MATCH('2) Order Form'!$V196,ATS!$U:$U,0),6) -> ML | H196: =IFERROR(VLOOKUP(C196,EAN!$K:$O,5,FALSE),0) -> 1 | I196: 0 | J196: =IFERROR(VLOOKUP(V196,ATS!$U:$V,2,FALSE),0) -> 54 | K196: 50+ | L196: =IFERROR(VLOOKUP(V196,ATS!$U:$W,3,FALSE),0) -> 54 | M196: 50+ | N196: 0% | O196: 0% | P196: =VLOOKUP($C196,Prices!$A$3:$R$1996,MATCH('2) Order Form'!P$8,Prices!$A$2:$R$2,0),FALSE) -> 300.00 | Q196: =VLOOKUP($C196,Prices!$A$3:$R$1996,MATCH('2) Order Form'!Q$8,Prices!$A$2:$R$2,0),FALSE) -> 599.00 | R196: 0 | S196: 0 | T196: 0 | V196: 7048652186379 | X196: 0 | Y196: 0 | Z196: 10 | AA196: 0 | AB196: 0 | AC196: 840055Gloss White | AD196: 840055 | AE196: =INDEX(ATS!$B:$V,MATCH('2) Order Form'!$V196,ATS!$U:$U,0),7) -> Active
A197: 1 | B197: Helmets & Helmet Acc. | C197: =INDEX(ATS!$B:$V,MATCH('2) Order Form'!$V197,ATS!$U:$U,0),1) -> 840055 | D197: =INDEX(ATS!$B:$V,MATCH('2) Order Form'!$V197,ATS!$U:$U,0),2) -> Rooster II Mips Helmet | E197: =INDEX(ATS!$B:$V,MATCH('2) Order Form'!$V197,ATS!$U:$U,0),4) -> GSWHT-LXL | F197: =INDEX(ATS!$B:$V,MATCH('2) Order Form'!$V197,ATS!$U:$U,0),5) -> Gloss White | G197: =INDEX(ATS!$B:$V,MATCH('2) Order Form'!$V197,ATS!$U:$U,0),6) -> LXL | H197: =IFERROR(VLOOKUP(C197,EAN!$K:$O,5,FALSE),0) -> 1 | I197: 0 | J197: =IFERROR(VLOOKUP(V197,ATS!$U:$V,2,FALSE),0) -> 42 | K197: 42 | L197: =IFERROR(VLOOKUP(V197,ATS!$U:$W,3,FALSE),0) -> 42 | M197: 42 | N197: 0% | O197: 0% | P197: =VLOOKUP($C197,Prices!$A$3:$R$1996,MATCH('2) Order Form'!P$8,Prices!$A$2:$R$2,0),FALSE) -> 300.00 | Q197: =VLOOKUP($C197,Prices!$A$3:$R$1996,MATCH('2) Order Form'!Q$8,Prices!$A$2:$R$2,0),FALSE) -> 599.00 | R197: 0 | S197: 0 | T197: 0 | V197: 7048652186362 | X197: 0 | Y197: 0 | Z197: 10 | AA197: 0 | AB197: 0 | AC197: 840055Gloss White | AD197: 840055 | AE197: =INDEX(ATS!$B:$V,MATCH('2) Order Form'!$V197,ATS!$U:$U,0),7) -> Active
A198: 1 | B198: Helmets & Helmet Acc. | C198: =INDEX(ATS!$B:$V,MATCH('2) Order Form'!$V198,ATS!$U:$U,0),1) -> 840056 | D198: =INDEX(ATS!$B:$V,MATCH('2) Order Form'!$V198,ATS!$U:$U,0),2) -> Rooster II Mips LE Helmet | E198: =INDEX(ATS!$B:$V,MATCH('2) Order Form'!$V198,ATS!$U:$U,0),4) -> NACAR-SM | F198: =INDEX(ATS!$B:$V,MATCH('2) Order Form'!$V198,ATS!$U:$U,0),5) -> Natural Carbon | G198: =INDEX(ATS!$B:$V,MATCH('2) Order Form'!$V198,ATS!$U:$U,0),6) -> SM | H198: =IFERROR(VLOOKUP(C198,EAN!$K:$O,5,FALSE),0) -> 6 | I198: 0 | J198: =IFERROR(VLOOKUP(V198,ATS!$U:$V,2,FALSE),0) -> 102 | K198: 50+ | L198: =IFERROR(VLOOKUP(V198,ATS!$U:$W,3,FALSE),0) -> 102 | M198: 50+ | N198: 0% | O198: 0% | P198: =VLOOKUP($C198,Prices!$A$3:$R$1996,MATCH('2) Order Form'!P$8,Prices!$A$2:$R$2,0),FALSE) -> 325.00 | Q198: =VLOOKUP($C198,Prices!$A$3:$R$1996,MATCH('2) Order Form'!Q$8,Prices!$A$2:$R$2,0),FALSE) -> 649.00 | R198: 0 | S198: 0 | T198: 0 | V198: 7048652186416 | X198: 0 | Y198: 0 | Z198: 11 | AA198: 1 | AB198: 1 | AC198: 840056Natural Carbon | AD198: 840056 | AE198: =INDEX(ATS!$B:$V,MATCH('2) Order Form'!$V198,ATS!$U:$U,0),7) -> Active
A199: 1 | B199: Helmets & Helmet Acc. | C199: =INDEX(ATS!$B:$V,MATCH('2) Order Form'!$V199,ATS!$U:$U,0),1) -> 840056 | D199: =INDEX(ATS!$B:$V,MATCH('2) Order Form'!$V199,ATS!$U:$U,0),2) -> Rooster II Mips LE Helmet | E199: =INDEX(ATS!$B:$V,MATCH('2) Order Form'!$V199,ATS!$U:$U,0),4) -> NACAR-ML | F199: =INDEX(ATS!$B:$V,MATCH('2) Order Form'!$V199,ATS!$U:$U,0),5) -> Natural Carbon | G199: =INDEX(ATS!$B:$V,MATCH('2) Order Form'!$V199,ATS!$U:$U,0),6) -> ML | H199: =IFERROR(VLOOKUP(C199,EAN!$K:$O,5,FALSE),0) -> 6 | I199: 0 | J199: =IFERROR(VLOOKUP(V199,ATS!$U:$V,2,FALSE),0) -> 77 | K199: 50+ | L199: =IFERROR(VLOOKUP(V199,ATS!$U:$W,3,FALSE),0) -> 77 | M199: 50+ | N199: 0% | O199: 0% | P199: =VLOOKUP($C199,Prices!$A$3:$R$1996,MATCH('2) Order Form'!P$8,Prices!$A$2:$R$2,0),FALSE) -> 325.00 | Q199: =VLOOKUP($C199,Prices!$A$3:$R$1996,MATCH('2) Order Form'!Q$8,Prices!$A$2:$R$2,0),FALSE) -> 649.00 | R199: 0 | S199: 0 | T199: 0 | V199: 7048652186409 | X199: 0 | Y199: 0 | Z199: 11 | AA199: 0 | AB199: 0 | AC199: 840056Natural Carbon | AD199: 840056 | AE199: =INDEX(ATS!$B:$V,MATCH('2) Order Form'!$V199,ATS!$U:$U,0),7) -> Active
A200: 1 | B200: Helmets & Helmet Acc. | C200: =INDEX(ATS!$B:$V,MATCH('2) Order Form'!$V200,ATS!$U:$U,0),1) -> 840056 | D200: =INDEX(ATS!$B:$V,MATCH('2) Order Form'!$V200,ATS!$U:$U,0),2) -> Rooster II Mips LE Helmet | E200: =INDEX(ATS!$B:$V,MATCH('2) Order Form'!$V200,ATS!$U:$U,0),4) -> NACAR-LXL | F200: =INDEX(ATS!$B:$V,MATCH('2) Order Form'!$V200,ATS!$U:$U,0),5) -> Natural Carbon | G200: =INDEX(ATS!$B:$V,MATCH('2) Order Form'!$V200,ATS!$U:$U,0),6) -> LXL | H200: =IFERROR(VLOOKUP(C200,EAN!$K:$O,5,FALSE),0) -> 6 | I200: 0 | J200: =IFERROR(VLOOKUP(V200,ATS!$U:$V,2,FALSE),0) -> 57 | K200: 50+ | L200: =IFERROR(VLOOKUP(V200,ATS!$U:$W,3,FALSE),0) -> 57 | M200: 50+ | N200: 0% | O200: 0% | P200: =VLOOKUP($C200,Prices!$A$3:$R$1996,MATCH('2) Order Form'!P$8,Prices!$A$2:$R$2,0),FALSE) -> 325.00 | Q200: =VLOOKUP($C200,Prices!$A$3:$R$1996,MATCH('2) Order Form'!Q$8,Prices!$A$2:$R$2,0),FALSE) -> 649.00 | R200: 0 | S200: 0 | T200: 0 | V200: 7048652186393 | X200: 0 | Y200: 0 | Z200: 11 | AA200: 0 | AB200: 0 | AC200: 840056Natural Carbon | AD200: 840056 | AE200: =INDEX(ATS!$B:$V,MATCH('2) Order Form'!$V200,ATS!$U:$U,0),7) -> Active
A201: 1 | B201: Helmets & Helmet Acc. | C201: =INDEX(ATS!$B:$V,MATCH('2) Order Form'!$V201,ATS!$U:$U,0),1) -> 835026 | D201: =INDEX(ATS!$B:$V,MATCH('2) Order Form'!$V201,ATS!$U:$U,0),2) -> Winder Mips Helmet JR | E201: =INDEX(ATS!$B:$V,MATCH('2) Order Form'!$V201,ATS!$U:$U,0),4) -> GLBLM-XSS | F201: =INDEX(ATS!$B:$V,MATCH('2) Order Form'!$V201,ATS!$U:$U,0),5) -> Glacier Blue Metallic | G201: =INDEX(ATS!$B:$V,MATCH('2) Order Form'!$V201,ATS!$U:$U,0),6) -> XSS | H201: =IFERROR(VLOOKUP(C201,EAN!$K:$O,5,FALSE),0) -> 1 | I201: 0 | J201: =IFERROR(VLOOKUP(V201,ATS!$U:$V,2,FALSE),0) -> 44 | K201: 44 | L201: =IFERROR(VLOOKUP(V201,ATS!$U:$W,3,FALSE),0) -> 44 | M201: 44 | N201: 0% | O201: =IF(N201<>0,N201,$P$5) -> 0% | P201: =VLOOKUP($C201,Prices!$A$3:$R$1996,MATCH('2) Order Form'!P$8,Prices!$A$2:$R$2,0),FALSE) -> 65.00 | Q201: =VLOOKUP($C201,Prices!$A$3:$R$1996,MATCH('2) Order Form'!Q$8,Prices!$A$2:$R$2,0),FALSE) -> 129.00 | R201: 0 | S201: 0 | T201: 0 | V201: 7048652843760 | X201: 0 | Y201: 0 | Z201: 12 | AA201: 1 | AB201: 1 | AC201: 835026Glacier Blue Metallic | AD201: 835026 | AE201: =INDEX(ATS!$B:$V,MATCH('2) Order Form'!$V201,ATS!$U:$U,0),7) -> Active
A202: 1 | B202: Helmets & Helmet Acc. | C202: =INDEX(ATS!$B:$V,MATCH('2) Order Form'!$V202,ATS!$U:$U,0),1) -> 835026 | D202: =INDEX(ATS!$B:$V,MATCH('2) Order Form'!$V202,ATS!$U:$U,0),2) -> Winder Mips Helmet JR | E202: =INDEX(ATS!$B:$V,MATCH('2) Order Form'!$V202,ATS!$U:$U,0),4) -> GLBLM-SM | F202: =INDEX(ATS!$B:$V,MATCH('2) Order Form'!$V202,ATS!$U:$U,0),5) -> Glacier Blue Metallic | G202: =INDEX(ATS!$B:$V,MATCH('2) Order Form'!$V202,ATS!$U:$U,0),6) -> SM | H202: =IFERROR(VLOOKUP(C202,EAN!$K:$O,5,FALSE),0) -> 1 | I202: 0 | J202: =IFERROR(VLOOKUP(V202,ATS!$U:$V,2,FALSE),0) -> 88 | K202: 50+ | L202: =IFERROR(VLOOKUP(V202,ATS!$U:$W,3,FALSE),0) -> 88 | M202: 50+ | N202: 0% | O202: 0% | P202: =VLOOKUP($C202,Prices!$A$3:$R$1996,MATCH('2) Order Form'!P$8,Prices!$A$2:$R$2,0),FALSE) -> 65.00 | Q202: =VLOOKUP($C202,Prices!$A$3:$R$1996,MATCH('2) Order Form'!Q$8,Prices!$A$2:$R$2,0),FALSE) -> 129.00 | R202: 0 | S202: 0 | T202: 0 | V202: 7048652822161 | X202: 0 | Y202: 0 | Z202: 12 | AA202: 0 | AB202: 0 | AC202: 835026Glacier Blue Metallic | AD202: 835026 | AE202: =INDEX(ATS!$B:$V,MATCH('2) Order Form'!$V202,ATS!$U:$U,0),7) -> Active
... 587 more rows

Sheet Import
A1: EAN-code | B1: ORDER QTY | C1: Discount | F1: Control
A2: ='2) Order Form'!V9 -> 7048652823625 | B2: =SUBTOTAL(9,'2) Order Form'!I9) -> 0 | C2: =SUBTOTAL(9,'2) Order Form'!O9)*100 -> 0.0 | E2: Sum qty | F2: =SUM(B2:B1442) -> 0
A3: ='2) Order Form'!V10 -> 7048652823618 | B3: =SUBTOTAL(9,'2) Order Form'!I10) -> 0 | C3: =SUBTOTAL(9,'2) Order Form'!O10)*100 -> 0.0 | E3: Sum from order form | F3: ='2) Order Form'!S2:S2 -> 0
A4: ='2) Order Form'!V11 -> 7048652823601 | B4: =SUBTOTAL(9,'2) Order Form'!I11) -> 0 | C4: =SUBTOTAL(9,'2) Order Form'!O11)*100 -> 0.0 | E4: Deviation | F4: =F2-F3 -> 0
A5: ='2) Order Form'!V12 -> 7048652715272 | B5: =SUBTOTAL(9,'2) Order Form'!I12) -> 0 | C5: =SUBTOTAL(9,'2) Order Form'!O12)*100 -> 0.0
A6: ='2) Order Form'!V13 -> 7048652715265 | B6: =SUBTOTAL(9,'2) Order Form'!I13) -> 0 | C6: =SUBTOTAL(9,'2) Order Form'!O13)*100 -> 0.0
A7: ='2) Order Form'!V14 -> 7048652715258 | B7: =SUBTOTAL(9,'2) Order Form'!I14) -> 0 | C7: =SUBTOTAL(9,'2) Order Form'!O14)*100 -> 0.0
A8: ='2) Order Form'!V15 -> 7048652712639 | B8: =SUBTOTAL(9,'2) Order Form'!I15) -> 0 | C8: =SUBTOTAL(9,'2) Order Form'!O15)*100 -> 0.0
A9: ='2) Order Form'!V16 -> 7048652712622 | B9: =SUBTOTAL(9,'2) Order Form'!I16) -> 0 | C9: =SUBTOTAL(9,'2) Order Form'!O16)*100 -> 0.0
A10: ='2) Order Form'!V17 -> 7048652712615 | B10: =SUBTOTAL(9,'2) Order Form'!I17) -> 0 | C10: =SUBTOTAL(9,'2) Order Form'!O17)*100 -> 0.0
A11: ='2) Order Form'!V18 -> 7048652967862 | B11: =SUBTOTAL(9,'2) Order Form'!I18) -> 0 | C11: =SUBTOTAL(9,'2) Order Form'!O18)*100 -> 0.0
A12: ='2) Order Form'!V19 -> 7048652967855 | B12: =SUBTOTAL(9,'2) Order Form'!I19) -> 0 | C12: =SUBTOTAL(9,'2) Order Form'!O19)*100 -> 0.0
A13: ='2) Order Form'!V20 -> 7048652967848 | B13: =SUBTOTAL(9,'2) Order Form'!I20) -> 0 | C13: =SUBTOTAL(9,'2) Order Form'!O20)*100 -> 0.0
A14: ='2) Order Form'!V21 -> 7048652714077 | B14: =SUBTOTAL(9,'2) Order Form'!I21) -> 0 | C14: =SUBTOTAL(9,'2) Order Form'!O21)*100 -> 0.0
A15: ='2) Order Form'!V22 -> 7048652714060 | B15: =SUBTOTAL(9,'2) Order Form'!I22) -> 0 | C15: =SUBTOTAL(9,'2) Order Form'!O22)*100 -> 0.0
A16: ='2) Order Form'!V23 -> 7048652714053 | B16: =SUBTOTAL(9,'2) Order Form'!I23) -> 0 | C16: =SUBTOTAL(9,'2) Order Form'!O23)*100 -> 0.0
A17: ='2) Order Form'!V24 -> 7048652714107 | B17: =SUBTOTAL(9,'2) Order Form'!I24) -> 0 | C17: =SUBTOTAL(9,'2) Order Form'!O24)*100 -> 0.0
A18: ='2) Order Form'!V25 -> 7048652714091 | B18: =SUBTOTAL(9,'2) Order Form'!I25) -> 0 | C18: =SUBTOTAL(9,'2) Order Form'!O25)*100 -> 0.0
A19: ='2) Order Form'!V26 -> 7048652714084 | B19: =SUBTOTAL(9,'2) Order Form'!I26) -> 0 | C19: =SUBTOTAL(9,'2) Order Form'!O26)*100 -> 0.0
A20: ='2) Order Form'!V27 -> 7048652823359 | B20: =SUBTOTAL(9,'2) Order Form'!I27) -> 0 | C20: =SUBTOTAL(9,'2) Order Form'!O27)*100 -> 0.0
A21: ='2) Order Form'!V28 -> 7048652823342 | B21: =SUBTOTAL(9,'2) Order Form'!I28) -> 0 | C21: =SUBTOTAL(9,'2) Order Form'!O28)*100 -> 0.0
A22: ='2) Order Form'!V29 -> 7048652823335 | B22: =SUBTOTAL(9,'2) Order Form'!I29) -> 0 | C22: =SUBTOTAL(9,'2) Order Form'!O29)*100 -> 0.0
A23: ='2) Order Form'!V30 -> 7048652823380 | B23: =SUBTOTAL(9,'2) Order Form'!I30) -> 0 | C23: =SUBTOTAL(9,'2) Order Form'!O30)*100 -> 0.0
A24: ='2) Order Form'!V31 -> 7048652823373 | B24: =SUBTOTAL(9,'2) Order Form'!I31) -> 0 | C24: =SUBTOTAL(9,'2) Order Form'!O31)*100 -> 0.0
A25: ='2) Order Form'!V32 -> 7048652823366 | B25: =SUBTOTAL(9,'2) Order Form'!I32) -> 0 | C25: =SUBTOTAL(9,'2) Order Form'!O32)*100 -> 0.0
A26: ='2) Order Form'!V33 -> 7048652823410 | B26: =SUBTOTAL(9,'2) Order Form'!I33) -> 0 | C26: =SUBTOTAL(9,'2) Order Form'!O33)*100 -> 0.0
A27: ='2) Order Form'!V34 -> 7048652823403 | B27: =SUBTOTAL(9,'2) Order Form'!I34) -> 0 | C27: =SUBTOTAL(9,'2) Order Form'!O34)*100 -> 0.0
A28: ='2) Order Form'!V35 -> 7048652823397 | B28: =SUBTOTAL(9,'2) Order Form'!I35) -> 0 | C28: =SUBTOTAL(9,'2) Order Form'!O35)*100 -> 0.0
A29: ='2) Order Form'!V36 -> 7048652966322 | B29: =SUBTOTAL(9,'2) Order Form'!I36) -> 0 | C29: =SUBTOTAL(9,'2) Order Form'!O36)*100 -> 0.0
A30: ='2) Order Form'!V37 -> 7048652966315 | B30: =SUBTOTAL(9,'2) Order Form'!I37) -> 0 | C30: =SUBTOTAL(9,'2) Order Form'!O37)*100 -> 0.0
A31: ='2) Order Form'!V38 -> 7048652966308 | B31: =SUBTOTAL(9,'2) Order Form'!I38) -> 0 | C31: =SUBTOTAL(9,'2) Order Form'!O38)*100 -> 0.0
A32: ='2) Order Form'!V39 -> 7048652966353 | B32: =SUBTOTAL(9,'2) Order Form'!I39) -> 0 | C32: =SUBTOTAL(9,'2) Order Form'!O39)*100 -> 0.0
A33: ='2) Order Form'!V40 -> 7048652966346 | B33: =SUBTOTAL(9,'2) Order Form'!I40) -> 0 | C33: =SUBTOTAL(9,'2) Order Form'!O40)*100 -> 0.0
A34: ='2) Order Form'!V41 -> 7048652966339 | B34: =SUBTOTAL(9,'2) Order Form'!I41) -> 0 | C34: =SUBTOTAL(9,'2) Order Form'!O41)*100 -> 0.0
A35: ='2) Order Form'!V42 -> 7048652966056 | B35: =SUBTOTAL(9,'2) Order Form'!I42) -> 0 | C35: =SUBTOTAL(9,'2) Order Form'!O42)*100 -> 0.0
A36: ='2) Order Form'!V43 -> 7048652966049 | B36: =SUBTOTAL(9,'2) Order Form'!I43) -> 0 | C36: =SUBTOTAL(9,'2) Order Form'!O43)*100 -> 0.0
A37: ='2) Order Form'!V44 -> 7048652966032 | B37: =SUBTOTAL(9,'2) Order Form'!I44) -> 0 | C37: =SUBTOTAL(9,'2) Order Form'!O44)*100 -> 0.0
A38: ='2) Order Form'!V45 -> 7048652968746 | B38: =SUBTOTAL(9,'2) Order Form'!I45) -> 0 | C38: =SUBTOTAL(9,'2) Order Form'!O45)*100 -> 0.0
A39: ='2) Order Form'!V46 -> 7048652463135 | B39: =SUBTOTAL(9,'2) Order Form'!I46) -> 0 | C39: =SUBTOTAL(9,'2) Order Form'!O46)*100 -> 0.0
A40: ='2) Order Form'!V47 -> 7048652463128 | B40: =SUBTOTAL(9,'2) Order Form'!I47) -> 0 | C40: =SUBTOTAL(9,'2) Order Form'!O47)*100 -> 0.0
A41: ='2) Order Form'!V48 -> 7048652463111 | B41: =SUBTOTAL(9,'2) Order Form'!I48) -> 0 | C41: =SUBTOTAL(9,'2) Order Form'!O48)*100 -> 0.0
A42: ='2) Order Form'!V49 -> 7048652607683 | B42: =SUBTOTAL(9,'2) Order Form'!I49) -> 0 | C42: =SUBTOTAL(9,'2) Order Form'!O49)*100 -> 0.0
A43: ='2) Order Form'!V50 -> 7048652186300 | B43: =SUBTOTAL(9,'2) Order Form'!I50) -> 0 | C43: =SUBTOTAL(9,'2) Order Form'!O50)*100 -> 0.0
A44: ='2) Order Form'!V51 -> 7048652186294 | B44: =SUBTOTAL(9,'2) Order Form'!I51) -> 0 | C44: =SUBTOTAL(9,'2) Order Form'!O51)*100 -> 0.0
A45: ='2) Order Form'!V52 -> 7048652186287 | B45: =SUBTOTAL(9,'2) Order Form'!I52) -> 0 | C45: =SUBTOTAL(9,'2) Order Form'!O52)*100 -> 0.0
A46: ='2) Order Form'!V53 -> 7048652607690 | B46: =SUBTOTAL(9,'2) Order Form'!I53) -> 0 | C46: =SUBTOTAL(9,'2) Order Form'!O53)*100 -> 0.0
A47: ='2) Order Form'!V54 -> 7048652822666 | B47: =SUBTOTAL(9,'2) Order Form'!I54) -> 0 | C47: =SUBTOTAL(9,'2) Order Form'!O54)*100 -> 0.0
A48: ='2) Order Form'!V55 -> 7048652822659 | B48: =SUBTOTAL(9,'2) Order Form'!I55) -> 0 | C48: =SUBTOTAL(9,'2) Order Form'!O55)*100 -> 0.0
A49: ='2) Order Form'!V56 -> 7048652822642 | B49: =SUBTOTAL(9,'2) Order Form'!I56) -> 0 | C49: =SUBTOTAL(9,'2) Order Form'!O56)*100 -> 0.0
A50: ='2) Order Form'!V57 -> 7048652822673 | B50: =SUBTOTAL(9,'2) Order Form'!I57) -> 0 | C50: =SUBTOTAL(9,'2) Order Form'!O57)*100 -> 0.0
A51: ='2) Order Form'!V58 -> 7048652822741 | B51: =SUBTOTAL(9,'2) Order Form'!I58) -> 0 | C51: =SUBTOTAL(9,'2) Order Form'!O58)*100 -> 0.0
A52: ='2) Order Form'!V59 -> 7048652822734 | B52: =SUBTOTAL(9,'2) Order Form'!I59) -> 0 | C52: =SUBTOTAL(9,'2) Order Form'!O59)*100 -> 0.0
A53: ='2) Order Form'!V60 -> 7048652822727 | B53: =SUBTOTAL(9,'2) Order Form'!I60) -> 0 | C53: =SUBTOTAL(9,'2) Order Form'!O60)*100 -> 0.0
A54: ='2) Order Form'!V61 -> 7048652822758 | B54: =SUBTOTAL(9,'2) Order Form'!I61) -> 0 | C54: =SUBTOTAL(9,'2) Order Form'!O61)*100 -> 0.0
A55: ='2) Order Form'!V62 -> 7048652966117 | B55: =SUBTOTAL(9,'2) Order Form'!I62) -> 0 | C55: =SUBTOTAL(9,'2) Order Form'!O62)*100 -> 0.0
A56: ='2) Order Form'!V63 -> 7048652966100 | B56: =SUBTOTAL(9,'2) Order Form'!I63) -> 0 | C56: =SUBTOTAL(9,'2) Order Form'!O63)*100 -> 0.0
A57: ='2) Order Form'!V64 -> 7048652966094 | B57: =SUBTOTAL(9,'2) Order Form'!I64) -> 0 | C57: =SUBTOTAL(9,'2) Order Form'!O64)*100 -> 0.0
A58: ='2) Order Form'!V65 -> 7048652968753 | B58: =SUBTOTAL(9,'2) Order Form'!I65) -> 0 | C58: =SUBTOTAL(9,'2) Order Form'!O65)*100 -> 0.0
A59: ='2) Order Form'!V66 -> 7048652966476 | B59: =SUBTOTAL(9,'2) Order Form'!I66) -> 0 | C59: =SUBTOTAL(9,'2) Order Form'!O66)*100 -> 0.0
A60: ='2) Order Form'!V67 -> 7048652966469 | B60: =SUBTOTAL(9,'2) Order Form'!I67) -> 0 | C60: =SUBTOTAL(9,'2) Order Form'!O67)*100 -> 0.0
A61: ='2) Order Form'!V68 -> 7048652966452 | B61: =SUBTOTAL(9,'2) Order Form'!I68) -> 0 | C61: =SUBTOTAL(9,'2) Order Form'!O68)*100 -> 0.0
A62: ='2) Order Form'!V69 -> 7048652832405 | B62: =SUBTOTAL(9,'2) Order Form'!I69) -> 0 | C62: =SUBTOTAL(9,'2) Order Form'!O69)*100 -> 0.0
A63: ='2) Order Form'!V70 -> 7048652832399 | B63: =SUBTOTAL(9,'2) Order Form'!I70) -> 0 | C63: =SUBTOTAL(9,'2) Order Form'!O70)*100 -> 0.0
A64: ='2) Order Form'!V71 -> 7048652832382 | B64: =SUBTOTAL(9,'2) Order Form'!I71) -> 0 | C64: =SUBTOTAL(9,'2) Order Form'!O71)*100 -> 0.0
A65: ='2) Order Form'!V72 -> 7048652832436 | B65: =SUBTOTAL(9,'2) Order Form'!I72) -> 0 | C65: =SUBTOTAL(9,'2) Order Form'!O72)*100 -> 0.0
A66: ='2) Order Form'!V73 -> 7048652832429 | B66: =SUBTOTAL(9,'2) Order Form'!I73) -> 0 | C66: =SUBTOTAL(9,'2) Order Form'!O73)*100 -> 0.0
A67: ='2) Order Form'!V74 -> 7048652832412 | B67: =SUBTOTAL(9,'2) Order Form'!I74) -> 0 | C67: =SUBTOTAL(9,'2) Order Form'!O74)*100 -> 0.0
A68: ='2) Order Form'!V75 -> 7048652832467 | B68: =SUBTOTAL(9,'2) Order Form'!I75) -> 0 | C68: =SUBTOTAL(9,'2) Order Form'!O75)*100 -> 0.0
A69: ='2) Order Form'!V76 -> 7048652832450 | B69: =SUBTOTAL(9,'2) Order Form'!I76) -> 0 | C69: =SUBTOTAL(9,'2) Order Form'!O76)*100 -> 0.0
A70: ='2) Order Form'!V77 -> 7048652832443 | B70: =SUBTOTAL(9,'2) Order Form'!I77) -> 0 | C70: =SUBTOTAL(9,'2) Order Form'!O77)*100 -> 0.0
A71: ='2) Order Form'!V78 -> 7048652832528 | B71: =SUBTOTAL(9,'2) Order Form'!I78) -> 0 | C71: =SUBTOTAL(9,'2) Order Form'!O78)*100 -> 0.0
A72: ='2) Order Form'!V79 -> 7048652832511 | B72: =SUBTOTAL(9,'2) Order Form'!I79) -> 0 | C72: =SUBTOTAL(9,'2) Order Form'!O79)*100 -> 0.0
A73: ='2) Order Form'!V80 -> 7048652832504 | B73: =SUBTOTAL(9,'2) Order Form'!I80) -> 0 | C73: =SUBTOTAL(9,'2) Order Form'!O80)*100 -> 0.0
A74: ='2) Order Form'!V81 -> 7048652832559 | B74: =SUBTOTAL(9,'2) Order Form'!I81) -> 0 | C74: =SUBTOTAL(9,'2) Order Form'!O81)*100 -> 0.0
A75: ='2) Order Form'!V82 -> 7048652832542 | B75: =SUBTOTAL(9,'2) Order Form'!I82) -> 0 | C75: =SUBTOTAL(9,'2) Order Form'!O82)*100 -> 0.0
A76: ='2) Order Form'!V83 -> 7048652832535 | B76: =SUBTOTAL(9,'2) Order Form'!I83) -> 0 | C76: =SUBTOTAL(9,'2) Order Form'!O83)*100 -> 0.0
A77: ='2) Order Form'!V84 -> 7048652966506 | B77: =SUBTOTAL(9,'2) Order Form'!I84) -> 0 | C77: =SUBTOTAL(9,'2) Order Form'!O84)*100 -> 0.0
A78: ='2) Order Form'!V85 -> 7048652966490 | B78: =SUBTOTAL(9,'2) Order Form'!I85) -> 0 | C78: =SUBTOTAL(9,'2) Order Form'!O85)*100 -> 0.0
A79: ='2) Order Form'!V86 -> 7048652966483 | B79: =SUBTOTAL(9,'2) Order Form'!I86) -> 0 | C79: =SUBTOTAL(9,'2) Order Form'!O86)*100 -> 0.0
A80: ='2) Order Form'!V87 -> 7048652966537 | B80: =SUBTOTAL(9,'2) Order Form'!I87) -> 0 | C80: =SUBTOTAL(9,'2) Order Form'!O87)*100 -> 0.0
A81: ='2) Order Form'!V88 -> 7048652966520 | B81: =SUBTOTAL(9,'2) Order Form'!I88) -> 0 | C81: =SUBTOTAL(9,'2) Order Form'!O88)*100 -> 0.0
A82: ='2) Order Form'!V89 -> 7048652966513 | B82: =SUBTOTAL(9,'2) Order Form'!I89) -> 0 | C82: =SUBTOTAL(9,'2) Order Form'!O89)*100 -> 0.0
A83: ='2) Order Form'!V90 -> 7048652463456 | B83: =SUBTOTAL(9,'2) Order Form'!I90) -> 0 | C83: =SUBTOTAL(9,'2) Order Form'!O90)*100 -> 0.0
A84: ='2) Order Form'!V91 -> 7048652463449 | B84: =SUBTOTAL(9,'2) Order Form'!I91) -> 0 | C84: =SUBTOTAL(9,'2) Order Form'!O91)*100 -> 0.0
A85: ='2) Order Form'!V92 -> 7048652463432 | B85: =SUBTOTAL(9,'2) Order Form'!I92) -> 0 | C85: =SUBTOTAL(9,'2) Order Form'!O92)*100 -> 0.0
A86: ='2) Order Form'!V93 -> 7048652823021 | B86: =SUBTOTAL(9,'2) Order Form'!I93) -> 0 | C86: =SUBTOTAL(9,'2) Order Form'!O93)*100 -> 0.0
A87: ='2) Order Form'!V94 -> 7048652823014 | B87: =SUBTOTAL(9,'2) Order Form'!I94) -> 0 | C87: =SUBTOTAL(9,'2) Order Form'!O94)*100 -> 0.0
A88: ='2) Order Form'!V95 -> 7048652823007 | B88: =SUBTOTAL(9,'2) Order Form'!I95) -> 0 | C88: =SUBTOTAL(9,'2) Order Form'!O95)*100 -> 0.0
A89: ='2) Order Form'!V96 -> 7048652714619 | B89: =SUBTOTAL(9,'2) Order Form'!I96) -> 0 | C89: =SUBTOTAL(9,'2) Order Form'!O96)*100 -> 0.0
A90: ='2) Order Form'!V97 -> 7048652714602 | B90: =SUBTOTAL(9,'2) Order Form'!I97) -> 0 | C90: =SUBTOTAL(9,'2) Order Form'!O97)*100 -> 0.0
A91: ='2) Order Form'!V98 -> 7048652714596 | B91: =SUBTOTAL(9,'2) Order Form'!I98) -> 0 | C91: =SUBTOTAL(9,'2) Order Form'!O98)*100 -> 0.0
A92: ='2) Order Form'!V99 -> 7048652823052 | B92: =SUBTOTAL(9,'2) Order Form'!I99) -> 0 | C92: =SUBTOTAL(9,'2) Order Form'!O99)*100 -> 0.0
A93: ='2) Order Form'!V100 -> 7048652823045 | B93: =SUBTOTAL(9,'2) Order Form'!I100) -> 0 | C93: =SUBTOTAL(9,'2) Order Form'!O100)*100 -> 0.0
A94: ='2) Order Form'!V101 -> 7048652823038 | B94: =SUBTOTAL(9,'2) Order Form'!I101) -> 0 | C94: =SUBTOTAL(9,'2) Order Form'!O101)*100 -> 0.0
A95: ='2) Order Form'!V102 -> 7048652463579 | B95: =SUBTOTAL(9,'2) Order Form'!I102) -> 0 | C95: =SUBTOTAL(9,'2) Order Form'!O102)*100 -> 0.0
A96: ='2) Order Form'!V103 -> 7048652463562 | B96: =SUBTOTAL(9,'2) Order Form'!I103) -> 0 | C96: =SUBTOTAL(9,'2) Order Form'!O103)*100 -> 0.0
A97: ='2) Order Form'!V104 -> 7048652463555 | B97: =SUBTOTAL(9,'2) Order Form'!I104) -> 0 | C97: =SUBTOTAL(9,'2) Order Form'!O104)*100 -> 0.0
A98: ='2) Order Form'!V105 -> 7048652822963 | B98: =SUBTOTAL(9,'2) Order Form'!I105) -> 0 | C98: =SUBTOTAL(9,'2) Order Form'!O105)*100 -> 0.0
A99: ='2) Order Form'!V106 -> 7048652822956 | B99: =SUBTOTAL(9,'2) Order Form'!I106) -> 0 | C99: =SUBTOTAL(9,'2) Order Form'!O106)*100 -> 0.0
A100: ='2) Order Form'!V107 -> 7048652822949 | B100: =SUBTOTAL(9,'2) Order Form'!I107) -> 0 | C100: =SUBTOTAL(9,'2) Order Form'!O107)*100 -> 0.0
A101: ='2) Order Form'!V108 -> 7048652713193 | B101: =SUBTOTAL(9,'2) Order Form'!I108) -> 0 | C101: =SUBTOTAL(9,'2) Order Form'!O108)*100 -> 0.0
A102: ='2) Order Form'!V109 -> 7048652713186 | B102: =SUBTOTAL(9,'2) Order Form'!I109) -> 0 | C102: =SUBTOTAL(9,'2) Order Form'!O109)*100 -> 0.0
A103: ='2) Order Form'!V110 -> 7048652713179 | B103: =SUBTOTAL(9,'2) Order Form'!I110) -> 0 | C103: =SUBTOTAL(9,'2) Order Form'!O110)*100 -> 0.0
A104: ='2) Order Form'!V111 -> 7048652822994 | B104: =SUBTOTAL(9,'2) Order Form'!I111) -> 0 | C104: =SUBTOTAL(9,'2) Order Form'!O111)*100 -> 0.0
A105: ='2) Order Form'!V112 -> 7048652822987 | B105: =SUBTOTAL(9,'2) Order Form'!I112) -> 0 | C105: =SUBTOTAL(9,'2) Order Form'!O112)*100 -> 0.0
A106: ='2) Order Form'!V113 -> 7048652822970 | B106: =SUBTOTAL(9,'2) Order Form'!I113) -> 0 | C106: =SUBTOTAL(9,'2) Order Form'!O113)*100 -> 0.0
A107: ='2) Order Form'!V114 -> 7048652604897 | B107: =SUBTOTAL(9,'2) Order Form'!I114) -> 0 | C107: =SUBTOTAL(9,'2) Order Form'!O114)*100 -> 0.0
A108: ='2) Order Form'!V115 -> 7048652604880 | B108: =SUBTOTAL(9,'2) Order Form'!I115) -> 0 | C108: =SUBTOTAL(9,'2) Order Form'!O115)*100 -> 0.0
A109: ='2) Order Form'!V116 -> 7048652604873 | B109: =SUBTOTAL(9,'2) Order Form'!I116) -> 0 | C109: =SUBTOTAL(9,'2) Order Form'!O116)*100 -> 0.0
A110: ='2) Order Form'!V117 -> 7048652823267 | B110: =SUBTOTAL(9,'2) Order Form'!I117) -> 0 | C110: =SUBTOTAL(9,'2) Order Form'!O117)*100 -> 0.0
A111: ='2) Order Form'!V118 -> 7048652823250 | B111: =SUBTOTAL(9,'2) Order Form'!I118) -> 0 | C111: =SUBTOTAL(9,'2) Order Form'!O118)*100 -> 0.0
A112: ='2) Order Form'!V119 -> 7048652823243 | B112: =SUBTOTAL(9,'2) Order Form'!I119) -> 0 | C112: =SUBTOTAL(9,'2) Order Form'!O119)*100 -> 0.0
A113: ='2) Order Form'!V120 -> 7048652605016 | B113: =SUBTOTAL(9,'2) Order Form'!I120) -> 0 | C113: =SUBTOTAL(9,'2) Order Form'!O120)*100 -> 0.0
A114: ='2) Order Form'!V121 -> 7048652605009 | B114: =SUBTOTAL(9,'2) Order Form'!I121) -> 0 | C114: =SUBTOTAL(9,'2) Order Form'!O121)*100 -> 0.0
A115: ='2) Order Form'!V122 -> 7048652604996 | B115: =SUBTOTAL(9,'2) Order Form'!I122) -> 0 | C115: =SUBTOTAL(9,'2) Order Form'!O122)*100 -> 0.0
A116: ='2) Order Form'!V123 -> 7048652966230 | B116: =SUBTOTAL(9,'2) Order Form'!I123) -> 0 | C116: =SUBTOTAL(9,'2) Order Form'!O123)*100 -> 0.0
A117: ='2) Order Form'!V124 -> 7048652966223 | B117: =SUBTOTAL(9,'2) Order Form'!I124) -> 0 | C117: =SUBTOTAL(9,'2) Order Form'!O124)*100 -> 0.0
A118: ='2) Order Form'!V125 -> 7048652966216 | B118: =SUBTOTAL(9,'2) Order Form'!I125) -> 0 | C118: =SUBTOTAL(9,'2) Order Form'!O125)*100 -> 0.0
A119: ='2) Order Form'!V126 -> 7048652966261 | B119: =SUBTOTAL(9,'2) Order Form'!I126) -> 0 | C119: =SUBTOTAL(9,'2) Order Form'!O126)*100 -> 0.0
A120: ='2) Order Form'!V127 -> 7048652966254 | B120: =SUBTOTAL(9,'2) Order Form'!I127) -> 0 | C120: =SUBTOTAL(9,'2) Order Form'!O127)*100 -> 0.0
A121: ='2) Order Form'!V128 -> 7048652966247 | B121: =SUBTOTAL(9,'2) Order Form'!I128) -> 0 | C121: =SUBTOTAL(9,'2) Order Form'!O128)*100 -> 0.0
A122: ='2) Order Form'!V129 -> 7048652966292 | B122: =SUBTOTAL(9,'2) Order Form'!I129) -> 0 | C122: =SUBTOTAL(9,'2) Order Form'!O129)*100 -> 0.0
A123: ='2) Order Form'!V130 -> 7048652966285 | B123: =SUBTOTAL(9,'2) Order Form'!I130) -> 0 | C123: =SUBTOTAL(9,'2) Order Form'!O130)*100 -> 0.0
A124: ='2) Order Form'!V131 -> 7048652966278 | B124: =SUBTOTAL(9,'2) Order Form'!I131) -> 0 | C124: =SUBTOTAL(9,'2) Order Form'!O131)*100 -> 0.0
A125: ='2) Order Form'!V132 -> 7048652605108 | B125: =SUBTOTAL(9,'2) Order Form'!I132) -> 0 | C125: =SUBTOTAL(9,'2) Order Form'!O132)*100 -> 0.0
A126: ='2) Order Form'!V133 -> 7048652605092 | B126: =SUBTOTAL(9,'2) Order Form'!I133) -> 0 | C126: =SUBTOTAL(9,'2) Order Form'!O133)*100 -> 0.0
A127: ='2) Order Form'!V134 -> 7048652605085 | B127: =SUBTOTAL(9,'2) Order Form'!I134) -> 0 | C127: =SUBTOTAL(9,'2) Order Form'!O134)*100 -> 0.0
A128: ='2) Order Form'!V135 -> 7048652823113 | B128: =SUBTOTAL(9,'2) Order Form'!I135) -> 0 | C128: =SUBTOTAL(9,'2) Order Form'!O135)*100 -> 0.0
A129: ='2) Order Form'!V136 -> 7048652823106 | B129: =SUBTOTAL(9,'2) Order Form'!I136) -> 0 | C129: =SUBTOTAL(9,'2) Order Form'!O136)*100 -> 0.0
A130: ='2) Order Form'!V137 -> 7048652823090 | B130: =SUBTOTAL(9,'2) Order Form'!I137) -> 0 | C130: =SUBTOTAL(9,'2) Order Form'!O137)*100 -> 0.0
A131: ='2) Order Form'!V138 -> 7048652605221 | B131: =SUBTOTAL(9,'2) Order Form'!I138) -> 0 | C131: =SUBTOTAL(9,'2) Order Form'!O138)*100 -> 0.0
A132: ='2) Order Form'!V139 -> 7048652605214 | B132: =SUBTOTAL(9,'2) Order Form'!I139) -> 0 | C132: =SUBTOTAL(9,'2) Order Form'!O139)*100 -> 0.0
A133: ='2) Order Form'!V140 -> 7048652605207 | B133: =SUBTOTAL(9,'2) Order Form'!I140) -> 0 | C133: =SUBTOTAL(9,'2) Order Form'!O140)*100 -> 0.0
A134: ='2) Order Form'!V141 -> 7048652966148 | B134: =SUBTOTAL(9,'2) Order Form'!I141) -> 0 | C134: =SUBTOTAL(9,'2) Order Form'!O141)*100 -> 0.0
A135: ='2) Order Form'!V142 -> 7048652966131 | B135: =SUBTOTAL(9,'2) Order Form'!I142) -> 0 | C135: =SUBTOTAL(9,'2) Order Form'!O142)*100 -> 0.0
A136: ='2) Order Form'!V143 -> 7048652966124 | B136: =SUBTOTAL(9,'2) Order Form'!I143) -> 0 | C136: =SUBTOTAL(9,'2) Order Form'!O143)*100 -> 0.0
A137: ='2) Order Form'!V144 -> 7048652966179 | B137: =SUBTOTAL(9,'2) Order Form'!I144) -> 0 | C137: =SUBTOTAL(9,'2) Order Form'!O144)*100 -> 0.0
A138: ='2) Order Form'!V145 -> 7048652966162 | B138: =SUBTOTAL(9,'2) Order Form'!I145) -> 0 | C138: =SUBTOTAL(9,'2) Order Form'!O145)*100 -> 0.0
A139: ='2) Order Form'!V146 -> 7048652966155 | B139: =SUBTOTAL(9,'2) Order Form'!I146) -> 0 | C139: =SUBTOTAL(9,'2) Order Form'!O146)*100 -> 0.0
A140: ='2) Order Form'!V147 -> 7048652966209 | B140: =SUBTOTAL(9,'2) Order Form'!I147) -> 0 | C140: =SUBTOTAL(9,'2) Order Form'!O147)*100 -> 0.0
A141: ='2) Order Form'!V148 -> 7048652966193 | B141: =SUBTOTAL(9,'2) Order Form'!I148) -> 0 | C141: =SUBTOTAL(9,'2) Order Form'!O148)*100 -> 0.0
A142: ='2) Order Form'!V149 -> 7048652966186 | B142: =SUBTOTAL(9,'2) Order Form'!I149) -> 0 | C142: =SUBTOTAL(9,'2) Order Form'!O149)*100 -> 0.0
A143: ='2) Order Form'!V150 -> 7048652832825 | B143: =SUBTOTAL(9,'2) Order Form'!I150) -> 0 | C143: =SUBTOTAL(9,'2) Order Form'!O150)*100 -> 0.0
A144: ='2) Order Form'!V151 -> 7048652832818 | B144: =SUBTOTAL(9,'2) Order Form'!I151) -> 0 | C144: =SUBTOTAL(9,'2) Order Form'!O151)*100 -> 0.0
A145: ='2) Order Form'!V152 -> 7048652832801 | B145: =SUBTOTAL(9,'2) Order Form'!I152) -> 0 | C145: =SUBTOTAL(9,'2) Order Form'!O152)*100 -> 0.0
A146: ='2) Order Form'!V153 -> 7048652832887 | B146: =SUBTOTAL(9,'2) Order Form'!I153) -> 0 | C146: =SUBTOTAL(9,'2) Order Form'!O153)*100 -> 0.0
A147: ='2) Order Form'!V154 -> 7048652832870 | B147: =SUBTOTAL(9,'2) Order Form'!I154) -> 0 | C147: =SUBTOTAL(9,'2) Order Form'!O154)*100 -> 0.0
A148: ='2) Order Form'!V155 -> 7048652832863 | B148: =SUBTOTAL(9,'2) Order Form'!I155) -> 0 | C148: =SUBTOTAL(9,'2) Order Form'!O155)*100 -> 0.0
A149: ='2) Order Form'!V156 -> 7048652832917 | B149: =SUBTOTAL(9,'2) Order Form'!I156) -> 0 | C149: =SUBTOTAL(9,'2) Order Form'!O156)*100 -> 0.0
A150: ='2) Order Form'!V157 -> 7048652832900 | B150: =SUBTOTAL(9,'2) Order Form'!I157) -> 0 | C150: =SUBTOTAL(9,'2) Order Form'!O157)*100 -> 0.0
A151: ='2) Order Form'!V158 -> 7048652832894 | B151: =SUBTOTAL(9,'2) Order Form'!I158) -> 0 | C151: =SUBTOTAL(9,'2) Order Form'!O158)*100 -> 0.0
A152: ='2) Order Form'!V159 -> 7048652832948 | B152: =SUBTOTAL(9,'2) Order Form'!I159) -> 0 | C152: =SUBTOTAL(9,'2) Order Form'!O159)*100 -> 0.0
A153: ='2) Order Form'!V160 -> 7048652832931 | B153: =SUBTOTAL(9,'2) Order Form'!I160) -> 0 | C153: =SUBTOTAL(9,'2) Order Form'!O160)*100 -> 0.0
A154: ='2) Order Form'!V161 -> 7048652832924 | B154: =SUBTOTAL(9,'2) Order Form'!I161) -> 0 | C154: =SUBTOTAL(9,'2) Order Form'!O161)*100 -> 0.0
A155: ='2) Order Form'!V162 -> 7048652966629 | B155: =SUBTOTAL(9,'2) Order Form'!I162) -> 0 | C155: =SUBTOTAL(9,'2) Order Form'!O162)*100 -> 0.0
A156: ='2) Order Form'!V163 -> 7048652966612 | B156: =SUBTOTAL(9,'2) Order Form'!I163) -> 0 | C156: =SUBTOTAL(9,'2) Order Form'!O163)*100 -> 0.0
A157: ='2) Order Form'!V164 -> 7048652966605 | B157: =SUBTOTAL(9,'2) Order Form'!I164) -> 0 | C157: =SUBTOTAL(9,'2) Order Form'!O164)*100 -> 0.0
A158: ='2) Order Form'!V165 -> 7048652833006 | B158: =SUBTOTAL(9,'2) Order Form'!I165) -> 0 | C158: =SUBTOTAL(9,'2) Order Form'!O165)*100 -> 0.0
A159: ='2) Order Form'!V166 -> 7048652832993 | B159: =SUBTOTAL(9,'2) Order Form'!I166) -> 0 | C159: =SUBTOTAL(9,'2) Order Form'!O166)*100 -> 0.0
A160: ='2) Order Form'!V167 -> 7048652832986 | B160: =SUBTOTAL(9,'2) Order Form'!I167) -> 0 | C160: =SUBTOTAL(9,'2) Order Form'!O167)*100 -> 0.0
A161: ='2) Order Form'!V168 -> 7048652966650 | B161: =SUBTOTAL(9,'2) Order Form'!I168) -> 0 | C161: =SUBTOTAL(9,'2) Order Form'!O168)*100 -> 0.0
A162: ='2) Order Form'!V169 -> 7048652966643 | B162: =SUBTOTAL(9,'2) Order Form'!I169) -> 0 | C162: =SUBTOTAL(9,'2) Order Form'!O169)*100 -> 0.0
A163: ='2) Order Form'!V170 -> 7048652966636 | B163: =SUBTOTAL(9,'2) Order Form'!I170) -> 0 | C163: =SUBTOTAL(9,'2) Order Form'!O170)*100 -> 0.0
A164: ='2) Order Form'!V171 -> 7048652832610 | B164: =SUBTOTAL(9,'2) Order Form'!I171) -> 0 | C164: =SUBTOTAL(9,'2) Order Form'!O171)*100 -> 0.0
A165: ='2) Order Form'!V172 -> 7048652832603 | B165: =SUBTOTAL(9,'2) Order Form'!I172) -> 0 | C165: =SUBTOTAL(9,'2) Order Form'!O172)*100 -> 0.0
A166: ='2) Order Form'!V173 -> 7048652832597 | B166: =SUBTOTAL(9,'2) Order Form'!I173) -> 0 | C166: =SUBTOTAL(9,'2) Order Form'!O173)*100 -> 0.0
A167: ='2) Order Form'!V174 -> 7048652832672 | B167: =SUBTOTAL(9,'2) Order Form'!I174) -> 0 | C167: =SUBTOTAL(9,'2) Order Form'!O174)*100 -> 0.0
A168: ='2) Order Form'!V175 -> 7048652832665 | B168: =SUBTOTAL(9,'2) Order Form'!I175) -> 0 | C168: =SUBTOTAL(9,'2) Order Form'!O175)*100 -> 0.0
A169: ='2) Order Form'!V176 -> 7048652832658 | B169: =SUBTOTAL(9,'2) Order Form'!I176) -> 0 | C169: =SUBTOTAL(9,'2) Order Form'!O176)*100 -> 0.0
A170: ='2) Order Form'!V177 -> 7048652832702 | B170: =SUBTOTAL(9,'2) Order Form'!I177) -> 0 | C170: =SUBTOTAL(9,'2) Order Form'!O177)*100 -> 0.0
A171: ='2) Order Form'!V178 -> 7048652832696 | B171: =SUBTOTAL(9,'2) Order Form'!I178) -> 0 | C171: =SUBTOTAL(9,'2) Order Form'!O178)*100 -> 0.0
A172: ='2) Order Form'!V179 -> 7048652832689 | B172: =SUBTOTAL(9,'2) Order Form'!I179) -> 0 | C172: =SUBTOTAL(9,'2) Order Form'!O179)*100 -> 0.0
A173: ='2) Order Form'!V180 -> 7048652832733 | B173: =SUBTOTAL(9,'2) Order Form'!I180) -> 0 | C173: =SUBTOTAL(9,'2) Order Form'!O180)*100 -> 0.0
A174: ='2) Order Form'!V181 -> 7048652832726 | B174: =SUBTOTAL(9,'2) Order Form'!I181) -> 0 | C174: =SUBTOTAL(9,'2) Order Form'!O181)*100 -> 0.0
A175: ='2) Order Form'!V182 -> 7048652832719 | B175: =SUBTOTAL(9,'2) Order Form'!I182) -> 0 | C175: =SUBTOTAL(9,'2) Order Form'!O182)*100 -> 0.0
A176: ='2) Order Form'!V183 -> 7048652966568 | B176: =SUBTOTAL(9,'2) Order Form'!I183) -> 0 | C176: =SUBTOTAL(9,'2) Order Form'!O183)*100 -> 0.0
A177: ='2) Order Form'!V184 -> 7048652966551 | B177: =SUBTOTAL(9,'2) Order Form'!I184) -> 0 | C177: =SUBTOTAL(9,'2) Order Form'!O184)*100 -> 0.0
A178: ='2) Order Form'!V185 -> 7048652966544 | B178: =SUBTOTAL(9,'2) Order Form'!I185) -> 0 | C178: =SUBTOTAL(9,'2) Order Form'!O185)*100 -> 0.0
A179: ='2) Order Form'!V186 -> 7048652832795 | B179: =SUBTOTAL(9,'2) Order Form'!I186) -> 0 | C179: =SUBTOTAL(9,'2) Order Form'!O186)*100 -> 0.0
A180: ='2) Order Form'!V187 -> 7048652832788 | B180: =SUBTOTAL(9,'2) Order Form'!I187) -> 0 | C180: =SUBTOTAL(9,'2) Order Form'!O187)*100 -> 0.0
A181: ='2) Order Form'!V188 -> 7048652832771 | B181: =SUBTOTAL(9,'2) Order Form'!I188) -> 0 | C181: =SUBTOTAL(9,'2) Order Form'!O188)*100 -> 0.0
A182: ='2) Order Form'!V189 -> 7048652966599 | B182: =SUBTOTAL(9,'2) Order Form'!I189) -> 0 | C182: =SUBTOTAL(9,'2) Order Form'!O189)*100 -> 0.0
A183: ='2) Order Form'!V190 -> 7048652966582 | B183: =SUBTOTAL(9,'2) Order Form'!I190) -> 0 | C183: =SUBTOTAL(9,'2) Order Form'!O190)*100 -> 0.0
A184: ='2) Order Form'!V191 -> 7048652966575 | B184: =SUBTOTAL(9,'2) Order Form'!I191) -> 0 | C184: =SUBTOTAL(9,'2) Order Form'!O191)*100 -> 0.0
A185: ='2) Order Form'!V192 -> 7048652186355 | B185: =SUBTOTAL(9,'2) Order Form'!I192) -> 0 | C185: =SUBTOTAL(9,'2) Order Form'!O192)*100 -> 0.0
A186: ='2) Order Form'!V193 -> 7048652186348 | B186: =SUBTOTAL(9,'2) Order Form'!I193) -> 0 | C186: =SUBTOTAL(9,'2) Order Form'!O193)*100 -> 0.0
A187: ='2) Order Form'!V194 -> 7048652186331 | B187: =SUBTOTAL(9,'2) Order Form'!I194) -> 0 | C187: =SUBTOTAL(9,'2) Order Form'!O194)*100 -> 0.0
A188: ='2) Order Form'!V195 -> 7048652186386 | B188: =SUBTOTAL(9,'2) Order Form'!I195) -> 0 | C188: =SUBTOTAL(9,'2) Order Form'!O195)*100 -> 0.0
A189: ='2) Order Form'!V196 -> 7048652186379 | B189: =SUBTOTAL(9,'2) Order Form'!I196) -> 0 | C189: =SUBTOTAL(9,'2) Order Form'!O196)*100 -> 0.0
A190: ='2) Order Form'!V197 -> 7048652186362 | B190: =SUBTOTAL(9,'2) Order Form'!I197) -> 0 | C190: =SUBTOTAL(9,'2) Order Form'!O197)*100 -> 0.0
A191: ='2) Order Form'!V198 -> 7048652186416 | B191: =SUBTOTAL(9,'2) Order Form'!I198) -> 0 | C191: =SUBTOTAL(9,'2) Order Form'!O198)*100 -> 0.0
A192: ='2) Order Form'!V199 -> 7048652186409 | B192: =SUBTOTAL(9,'2) Order Form'!I199) -> 0 | C192: =SUBTOTAL(9,'2) Order Form'!O199)*100 -> 0.0
A193: ='2) Order Form'!V200 -> 7048652186393 | B193: =SUBTOTAL(9,'2) Order Form'!I200) -> 0 | C193: =SUBTOTAL(9,'2) Order Form'!O200)*100 -> 0.0
A194: ='2) Order Form'!V201 -> 7048652843760 | B194: =SUBTOTAL(9,'2) Order Form'!I201) -> 0 | C194: =SUBTOTAL(9,'2) Order Form'!O201)*100 -> 0.0
A195: ='2) Order Form'!V202 -> 7048652822161 | B195: =SUBTOTAL(9,'2) Order Form'!I202) -> 0 | C195: =SUBTOTAL(9,'2) Order Form'!O202)*100 -> 0.0
A196: ='2) Order Form'!V203 -> 7048652843784 | B196: =SUBTOTAL(9,'2) Order Form'!I203) -> 0 | C196: =SUBTOTAL(9,'2) Order Form'!O203)*100 -> 0.0
A197: ='2) Order Form'!V204 -> 7048652822208 | B197: =SUBTOTAL(9,'2) Order Form'!I204) -> 0 | C197: =SUBTOTAL(9,'2) Order Form'!O204)*100 -> 0.0
A198: ='2) Order Form'!V205 -> 7048652843791 | B198: =SUBTOTAL(9,'2) Order Form'!I205) -> 0 | C198: =SUBTOTAL(9,'2) Order Form'!O205)*100 -> 0.0
A199: ='2) Order Form'!V206 -> 7048652822222 | B199: =SUBTOTAL(9,'2) Order Form'!I206) -> 0 | C199: =SUBTOTAL(9,'2) Order Form'!O206)*100 -> 0.0
A200: ='2) Order Form'!V207 -> 7048652843807 | B200: =SUBTOTAL(9,'2) Order Form'!I207) -> 0 | C200: =SUBTOTAL(9,'2) Order Form'!O207)*100 -> 0.0
... 592 more rows

Sheet ATS (hidden)
B1: Item Availability weeks Excel | T1: IKKE GJØR NOEN ENDRINGER I DISSE KOLONNENE | AB1: Ikke med i Elastic | AG1: =IFERROR(VLOOKUP(AA4,'2) Order Form'!$V$640:$V$761,1,FALSE),"Ikke med I order form") -> Ikke med I order form
B2: SKIGUTANE\PETULR : 26.02.24 | C2: Item Variant Status "Active&Stock"
B3: No. | C3: Description | D3: Location Filter | E3: Variant Color | F3: Color Description | G3: Variant Size | H3: Variant Status | I3: Week 1 | J3: Week 2 | K3: Week 3 | L3: Week 4 | M3: Week 5 | N3: Week 6 | O3: Week 7 | P3: Week 7 | Q3: Week 7 | R3: Week 7 | T3: SKU | U3: Cross-Reference No. | V3: W1 | W3: W2 | Y3: Med I order form? | AA3: EAN fra Elastic | AB3: Sjekk mot Order Form | AG3: Sjekk mot Elastic
A4: =SUM(U4) -> 0 | B4: 810050 | C4: Net | I4: 202409 | J4: 202410 | K4: 202411 | L4: 202412 | M4: 202413 | N4: 202414 | O4: 202415 | P4: 202415 | Q4: 202415 | R4: 202415 | T4: =CONCATENATE(B4,"-",E4) -> 810050- | U4: =IF(C4="NET","",IF(C4="","",IFERROR(VLOOKUP(T4,EAN!$A:$B,2,FALSE),"MANGLER - MÅ OPPDATERE EAN-FANEN"))) ->  | V4: =I4 -> 202409 | W4: =R4 -> 202415 | Y4: =IF(C4="NET","",IFERROR(VLOOKUP(U4,'2) Order Form'!$V$201:$V$266,1,FALSE),"Ikke med I order form")) ->  | AA4: 7048652712639 | AB4: =IFERROR(VLOOKUP(AA4,'2) Order Form'!$V$9:$V$895,1,FALSE),"Ikke med I order form") -> 7048652712639 | AC4: =VLOOKUP(AA4,ATS!$A$4:$H$2762,2,FALSE) -> 840097 | AD4: =VLOOKUP(AA4,ATS!$A$4:$G$2762,3,FALSE) -> Grimnir 2Vi Mips Helmet | AE4: =VLOOKUP(AA4,ATS!$A$4:$G$2762,5,FALSE) -> NACAR-SM | AG4: =IFERROR(VLOOKUP('2) Order Form'!$V9,$AA$4:$AA$2500,1,FALSE),"Ikke med i Elastic") -> 7048652823625 | AH4: =SUM('2) Order Form'!V9) -> 7048652823625 | AI4: =INDEX(ATS!$B:$V,MATCH(ATS!$AH4,ATS!$U:$U,0),1) -> 840097 | AJ4: =INDEX(ATS!$B:$V,MATCH(ATS!$AH4,ATS!$U:$U,0),2) -> Grimnir 2Vi Mips Helmet | AK4: =INDEX(ATS!$B:$V,MATCH(ATS!$AH4,ATS!$U:$U,0),4) -> MASEM-SM
A5: =SUM(U5) -> 0 | B5: 810050 | C5: Rocker Visor | D5: DBS | E5: CLGRY-OS | F5: Charcoal Gray | G5: OS | H5: Stock | I5: 4 | J5: 4 | K5: 4 | L5: 4 | M5: 4 | N5: 4 | O5: 4 | P5: 4 | Q5: 4 | R5: 4 | T5: 810050-CLGRY-OS | U5: =IF(C5="NET","",IF(C5="","",IFERROR(VLOOKUP(T5,EAN!$A:$B,2,FALSE),"MANGLER - MÅ OPPDATERE EAN-FANEN"))) -> MANGLER - MÅ OPPDATERE EAN-FANEN | V5: =I5 -> 4 | W5: =R5 -> 4 | Y5: =IF(C5="NET","",IFERROR(VLOOKUP(U5,'2) Order Form'!$V$9:$V$894,1,FALSE),"Ikke med I order form")) -> Ikke med I order form | AA5: 7048652712639 | AB5: =IFERROR(VLOOKUP(AA5,'2) Order Form'!$V$9:$V$895,1,FALSE),"Ikke med I order form") -> 7048652712639 | AC5: =VLOOKUP(AA5,ATS!$A$4:$H$2762,2,FALSE) -> 840097 | AD5: =VLOOKUP(AA5,ATS!$A$4:$G$2762,3,FALSE) -> Grimnir 2Vi Mips Helmet | AE5: =VLOOKUP(AA5,ATS!$A$4:$G$2762,5,FALSE) -> NACAR-SM | AG5: =IFERROR(VLOOKUP('2) Order Form'!$V10,$AA$4:$AA$2500,1,FALSE),"Ikke med i Elastic") -> 7048652823618 | AH5: =SUM('2) Order Form'!V10) -> 7048652823618 | AI5: =INDEX(ATS!$B:$V,MATCH(ATS!$AH5,ATS!$U:$U,0),1) -> 840097 | AJ5: =INDEX(ATS!$B:$V,MATCH(ATS!$AH5,ATS!$U:$U,0),2) -> Grimnir 2Vi Mips Helmet | AK5: =INDEX(ATS!$B:$V,MATCH(ATS!$AH5,ATS!$U:$U,0),4) -> MASEM-ML
A6: 0 | B6: 810050 | C6: Rocker Visor | D6: DBS | E6: DPUMC-OS | F6: Deep Purple Metallic | G6: OS | H6: Stock | I6: 20 | J6: 20 | K6: 20 | L6: 20 | M6: 20 | N6: 20 | O6: 20 | P6: 20 | Q6: 20 | R6: 20 | T6: 810050-DPUMC-OS | U6: =IF(C6="NET","",IF(C6="","",IFERROR(VLOOKUP(T6,EAN!$A:$B,2,FALSE),"MANGLER - MÅ OPPDATERE EAN-FANEN"))) -> MANGLER - MÅ OPPDATERE EAN-FANEN | V6: =I6 -> 20 | W6: =R6 -> 20 | Y6: =IF(C6="NET","",IFERROR(VLOOKUP(U6,'2) Order Form'!$V$9:$V$894,1,FALSE),"Ikke med I order form")) -> Ikke med I order form | AA6: 7048652712622 | AB6: =IFERROR(VLOOKUP(AA6,'2) Order Form'!$V$9:$V$895,1,FALSE),"Ikke med I order form") -> 7048652712622 | AC6: =VLOOKUP(AA6,ATS!$A$4:$H$2762,2,FALSE) -> 840097 | AD6: =VLOOKUP(AA6,ATS!$A$4:$G$2762,3,FALSE) -> Grimnir 2Vi Mips Helmet | AE6: =VLOOKUP(AA6,ATS!$A$4:$G$2762,5,FALSE) -> NACAR-ML | AG6: =IFERROR(VLOOKUP('2) Order Form'!$V11,$AA$4:$AA$2500,1,FALSE),"Ikke med i Elastic") -> 7048652823601 | AH6: =SUM('2) Order Form'!V11) -> 7048652823601 | AI6: =INDEX(ATS!$B:$V,MATCH(ATS!$AH6,ATS!$U:$U,0),1) -> 840097 | AJ6: =INDEX(ATS!$B:$V,MATCH(ATS!$AH6,ATS!$U:$U,0),2) -> Grimnir 2Vi Mips Helmet | AK6: =INDEX(ATS!$B:$V,MATCH(ATS!$AH6,ATS!$U:$U,0),4) -> MASEM-LXL
A7: 0 | B7: 810050 | C7: Rocker Visor | D7: DBS | E7: DTBLK-OS | F7: Dirt Black | G7: OS | H7: Active | I7: 75 | J7: 75 | K7: 75 | L7: 75 | M7: 75 | N7: 75 | O7: 119 | P7: 119 | Q7: 119 | R7: 119 | T7: 810050-DTBLK-OS | U7: =IF(C7="NET","",IF(C7="","",IFERROR(VLOOKUP(T7,EAN!$A:$B,2,FALSE),"MANGLER - MÅ OPPDATERE EAN-FANEN"))) -> MANGLER - MÅ OPPDATERE EAN-FANEN | V7: 75 | W7: 119 | Y7: =IF(C7="NET","",IFERROR(VLOOKUP(U7,'2) Order Form'!$V$9:$V$894,1,FALSE),"Ikke med I order form")) -> Ikke med I order form | AA7: 7048652712622 | AB7: =IFERROR(VLOOKUP(AA7,'2) Order Form'!$V$9:$V$895,1,FALSE),"Ikke med I order form") -> 7048652712622 | AC7: =VLOOKUP(AA7,ATS!$A$4:$H$2762,2,FALSE) -> 840097 | AD7: =VLOOKUP(AA7,ATS!$A$4:$G$2762,3,FALSE) -> Grimnir 2Vi Mips Helmet | AE7: =VLOOKUP(AA7,ATS!$A$4:$G$2762,5,FALSE) -> NACAR-ML | AG7: =IFERROR(VLOOKUP('2) Order Form'!$V12,$AA$4:$AA$2500,1,FALSE),"Ikke med i Elastic") -> 7048652715272 | AH7: =SUM('2) Order Form'!V12) -> 7048652715272 | AI7: =INDEX(ATS!$B:$V,MATCH(ATS!$AH7,ATS!$U:$U,0),1) -> 840097 | AJ7: =INDEX(ATS!$B:$V,MATCH(ATS!$AH7,ATS!$U:$U,0),2) -> Grimnir 2Vi Mips Helmet | AK7: =INDEX(ATS!$B:$V,MATCH(ATS!$AH7,ATS!$U:$U,0),4) -> MNGRY-SM
A8: 0 | B8: 810050 | C8: Rocker Visor | D8: DBS | E8: EHRED-OS | F8: Earth Red | G8: OS | H8: Stock | I8: 1 | J8: 1 | K8: 1 | L8: 1 | M8: 1 | N8: 1 | O8: 1 | P8: 1 | Q8: 1 | R8: 1 | T8: 810050-EHRED-OS | U8: =IF(C8="NET","",IF(C8="","",IFERROR(VLOOKUP(T8,EAN!$A:$B,2,FALSE),"MANGLER - MÅ OPPDATERE EAN-FANEN"))) -> MANGLER - MÅ OPPDATERE EAN-FANEN | V8: 1 | W8: 1 | Y8: =IF(C8="NET","",IFERROR(VLOOKUP(U8,'2) Order Form'!$V$9:$V$894,1,FALSE),"Ikke med I order form")) -> Ikke med I order form | AA8: 7048652712615 | AB8: =IFERROR(VLOOKUP(AA8,'2) Order Form'!$V$9:$V$895,1,FALSE),"Ikke med I order form") -> 7048652712615 | AC8: =VLOOKUP(AA8,ATS!$A$4:$H$2762,2,FALSE) -> 840097 | AD8: =VLOOKUP(AA8,ATS!$A$4:$G$2762,3,FALSE) -> Grimnir 2Vi Mips Helmet | AE8: =VLOOKUP(AA8,ATS!$A$4:$G$2762,5,FALSE) -> NACAR-LXL | AG8: =IFERROR(VLOOKUP('2) Order Form'!$V13,$AA$4:$AA$2500,1,FALSE),"Ikke med i Elastic") -> 7048652715265 | AH8: =SUM('2) Order Form'!V13) -> 7048652715265 | AI8: =INDEX(ATS!$B:$V,MATCH(ATS!$AH8,ATS!$U:$U,0),1) -> 840097 | AJ8: =INDEX(ATS!$B:$V,MATCH(ATS!$AH8,ATS!$U:$U,0),2) -> Grimnir 2Vi Mips Helmet | AK8: =INDEX(ATS!$B:$V,MATCH(ATS!$AH8,ATS!$U:$U,0),4) -> MNGRY-ML
A9: 0 | B9: 810050 | C9: Rocker Visor | D9: DBS | E9: GSWHT-OS | F9: Gloss White | G9: OS | H9: Active | I9: 0 | J9: 0 | K9: 0 | L9: 0 | M9: 0 | N9: 0 | O9: 24 | P9: 24 | Q9: 24 | R9: 24 | T9: 810050-GSWHT-OS | U9: =IF(C9="NET","",IF(C9="","",IFERROR(VLOOKUP(T9,EAN!$A:$B,2,FALSE),"MANGLER - MÅ OPPDATERE EAN-FANEN"))) -> MANGLER - MÅ OPPDATERE EAN-FANEN | V9: 0 | W9: 24 | Y9: =IF(C9="NET","",IFERROR(VLOOKUP(U9,'2) Order Form'!$V$9:$V$894,1,FALSE),"Ikke med I order form")) -> Ikke med I order form | AA9: 7048652712615 | AB9: =IFERROR(VLOOKUP(AA9,'2) Order Form'!$V$9:$V$895,1,FALSE),"Ikke med I order form") -> 7048652712615 | AC9: =VLOOKUP(AA9,ATS!$A$4:$H$2762,2,FALSE) -> 840097 | AD9: =VLOOKUP(AA9,ATS!$A$4:$G$2762,3,FALSE) -> Grimnir 2Vi Mips Helmet | AE9: =VLOOKUP(AA9,ATS!$A$4:$G$2762,5,FALSE) -> NACAR-LXL | AG9: =IFERROR(VLOOKUP('2) Order Form'!$V14,$AA$4:$AA$2500,1,FALSE),"Ikke med i Elastic") -> 7048652715258 | AH9: =SUM('2) Order Form'!V14) -> 7048652715258 | AI9: =INDEX(ATS!$B:$V,MATCH(ATS!$AH9,ATS!$U:$U,0),1) -> 840097 | AJ9: =INDEX(ATS!$B:$V,MATCH(ATS!$AH9,ATS!$U:$U,0),2) -> Grimnir 2Vi Mips Helmet | AK9: =INDEX(ATS!$B:$V,MATCH(ATS!$AH9,ATS!$U:$U,0),4) -> MNGRY-LXL
A10: 0 | B10: 810050 | C10: Rocker Visor | D10: DBS | E10: MBUOE-OS | F10: Matte Burning Orange | G10: OS | H10: Stock | I10: 9 | J10: 9 | K10: 9 | L10: 9 | M10: 9 | N10: 9 | O10: 9 | P10: 9 | Q10: 9 | R10: 9 | T10: 810050-MBUOE-OS | U10: =IF(C10="NET","",IF(C10="","",IFERROR(VLOOKUP(T10,EAN!$A:$B,2,FALSE),"MANGLER - MÅ OPPDATERE EAN-FANEN"))) -> MANGLER - MÅ OPPDATERE EAN-FANEN | V10: 9 | W10: 9 | Y10: =IF(C10="NET","",IFERROR(VLOOKUP(U10,'2) Order Form'!$V$9:$V$894,1,FALSE),"Ikke med I order form")) -> Ikke med I order form | AA10: 7048652715272 | AB10: =IFERROR(VLOOKUP(AA10,'2) Order Form'!$V$9:$V$895,1,FALSE),"Ikke med I order form") -> 7048652715272 | AC10: =VLOOKUP(AA10,ATS!$A$4:$H$2762,2,FALSE) -> 840097 | AD10: =VLOOKUP(AA10,ATS!$A$4:$G$2762,3,FALSE) -> Grimnir 2Vi Mips Helmet | AE10: =VLOOKUP(AA10,ATS!$A$4:$G$2762,5,FALSE) -> MNGRY-SM | AG10: =IFERROR(VLOOKUP('2) Order Form'!$V15,$AA$4:$AA$2500,1,FALSE),"Ikke med i Elastic") -> 7048652712639 | AH10: =SUM('2) Order Form'!V15) -> 7048652712639 | AI10: =INDEX(ATS!$B:$V,MATCH(ATS!$AH10,ATS!$U:$U,0),1) -> 840097 | AJ10: =INDEX(ATS!$B:$V,MATCH(ATS!$AH10,ATS!$U:$U,0),2) -> Grimnir 2Vi Mips Helmet | AK10: =INDEX(ATS!$B:$V,MATCH(ATS!$AH10,ATS!$U:$U,0),4) -> NACAR-SM
A11: 0 | B11: 810050 | C11: Rocker Visor | D11: DBS | E11: MEAME-OS | F11: Matte Aquamarine | G11: OS | H11: Stock | I11: 8 | J11: 8 | K11: 8 | L11: 8 | M11: 8 | N11: 8 | O11: 8 | P11: 8 | Q11: 8 | R11: 8 | T11: 810050-MEAME-OS | U11: =IF(C11="NET","",IF(C11="","",IFERROR(VLOOKUP(T11,EAN!$A:$B,2,FALSE),"MANGLER - MÅ OPPDATERE EAN-FANEN"))) -> MANGLER - MÅ OPPDATERE EAN-FANEN | V11: 8 | W11: 8 | Y11: =IF(C11="NET","",IFERROR(VLOOKUP(U11,'2) Order Form'!$V$9:$V$894,1,FALSE),"Ikke med I order form")) -> Ikke med I order form | AA11: 7048652715272 | AB11: =IFERROR(VLOOKUP(AA11,'2) Order Form'!$V$9:$V$895,1,FALSE),"Ikke med I order form") -> 7048652715272 | AC11: =VLOOKUP(AA11,ATS!$A$4:$H$2762,2,FALSE) -> 840097 | AD11: =VLOOKUP(AA11,ATS!$A$4:$G$2762,3,FALSE) -> Grimnir 2Vi Mips Helmet | AE11: =VLOOKUP(AA11,ATS!$A$4:$G$2762,5,FALSE) -> MNGRY-SM | AG11: =IFERROR(VLOOKUP('2) Order Form'!$V16,$AA$4:$AA$2500,1,FALSE),"Ikke med i Elastic") -> 7048652712622 | AH11: =SUM('2) Order Form'!V16) -> 7048652712622 | AI11: =INDEX(ATS!$B:$V,MATCH(ATS!$AH11,ATS!$U:$U,0),1) -> 840097 | AJ11: =INDEX(ATS!$B:$V,MATCH(ATS!$AH11,ATS!$U:$U,0),2) -> Grimnir 2Vi Mips Helmet | AK11: =INDEX(ATS!$B:$V,MATCH(ATS!$AH11,ATS!$U:$U,0),4) -> NACAR-ML
A12: 0 | B12: 810050 | C12: Rocker Visor | D12: DBS | E12: MFLUO-OS | F12: Matte Fluo | G12: OS | H12: Stock | I12: 17 | J12: 17 | K12: 17 | L12: 17 | M12: 17 | N12: 17 | O12: 17 | P12: 17 | Q12: 17 | R12: 17 | T12: 810050-MFLUO-OS | U12: =IF(C12="NET","",IF(C12="","",IFERROR(VLOOKUP(T12,EAN!$A:$B,2,FALSE),"MANGLER - MÅ OPPDATERE EAN-FANEN"))) -> MANGLER - MÅ OPPDATERE EAN-FANEN | V12: 17 | W12: 17 | Y12: =IF(C12="NET","",IFERROR(VLOOKUP(U12,'2) Order Form'!$V$9:$V$894,1,FALSE),"Ikke med I order form")) -> Ikke med I order form | AA12: 7048652715265 | AB12: =IFERROR(VLOOKUP(AA12,'2) Order Form'!$V$9:$V$895,1,FALSE),"Ikke med I order form") -> 7048652715265 | AC12: =VLOOKUP(AA12,ATS!$A$4:$H$2762,2,FALSE) -> 840097 | AD12: =VLOOKUP(AA12,ATS!$A$4:$G$2762,3,FALSE) -> Grimnir 2Vi Mips Helmet | AE12: =VLOOKUP(AA12,ATS!$A$4:$G$2762,5,FALSE) -> MNGRY-ML | AG12: =IFERROR(VLOOKUP('2) Order Form'!$V17,$AA$4:$AA$2500,1,FALSE),"Ikke med i Elastic") -> 7048652712615 | AH12: =SUM('2) Order Form'!V17) -> 7048652712615 | AI12: =INDEX(ATS!$B:$V,MATCH(ATS!$AH12,ATS!$U:$U,0),1) -> 840097 | AJ12: =INDEX(ATS!$B:$V,MATCH(ATS!$AH12,ATS!$U:$U,0),2) -> Grimnir 2Vi Mips Helmet | AK12: =INDEX(ATS!$B:$V,MATCH(ATS!$AH12,ATS!$U:$U,0),4) -> NACAR-LXL
A13: 0 | B13: 810050 | C13: Rocker Visor | D13: DBS | E13: MNBME-OS | F13: Matte Navy Blue Metallic | G13: OS | H13: Stock | I13: 23 | J13: 23 | K13: 23 | L13: 23 | M13: 23 | N13: 23 | O13: 23 | P13: 23 | Q13: 23 | R13: 23 | T13: 810050-MNBME-OS | U13: =IF(C13="NET","",IF(C13="","",IFERROR(VLOOKUP(T13,EAN!$A:$B,2,FALSE),"MANGLER - MÅ OPPDATERE EAN-FANEN"))) -> MANGLER - MÅ OPPDATERE EAN-FANEN | V13: 23 | W13: 23 | Y13: =IF(C13="NET","",IFERROR(VLOOKUP(U13,'2) Order Form'!$V$9:$V$894,1,FALSE),"Ikke med I order form")) -> Ikke med I order form | AA13: 7048652715265 | AB13: =IFERROR(VLOOKUP(AA13,'2) Order Form'!$V$9:$V$895,1,FALSE),"Ikke med I order form") -> 7048652715265 | AC13: =VLOOKUP(AA13,ATS!$A$4:$H$2762,2,FALSE) -> 840097 | AD13: =VLOOKUP(AA13,ATS!$A$4:$G$2762,3,FALSE) -> Grimnir 2Vi Mips Helmet | AE13: =VLOOKUP(AA13,ATS!$A$4:$G$2762,5,FALSE) -> MNGRY-ML | AG13: =IFERROR(VLOOKUP('2) Order Form'!$V18,$AA$4:$AA$2500,1,FALSE),"Ikke med i Elastic") -> 7048652967862 | AH13: =SUM('2) Order Form'!V18) -> 7048652967862 | AI13: =INDEX(ATS!$B:$V,MATCH(ATS!$AH13,ATS!$U:$U,0),1) -> 840097 | AJ13: =INDEX(ATS!$B:$V,MATCH(ATS!$AH13,ATS!$U:$U,0),2) -> Grimnir 2Vi Mips Helmet | AK13: =INDEX(ATS!$B:$V,MATCH(ATS!$AH13,ATS!$U:$U,0),4) -> WOLND-SM
A14: 0 | B14: 810050 | C14: Rocker Visor | D14: DBS | E14: MSGMC-OS | F14: Matte Slate Gray Metallic | G14: OS | H14: Stock | I14: 15 | J14: 15 | K14: 15 | L14: 15 | M14: 15 | N14: 15 | O14: 15 | P14: 15 | Q14: 15 | R14: 15 | T14: 810050-MSGMC-OS | U14: =IF(C14="NET","",IF(C14="","",IFERROR(VLOOKUP(T14,EAN!$A:$B,2,FALSE),"MANGLER - MÅ OPPDATERE EAN-FANEN"))) -> MANGLER - MÅ OPPDATERE EAN-FANEN | V14: 15 | W14: 15 | Y14: =IF(C14="NET","",IFERROR(VLOOKUP(U14,'2) Order Form'!$V$9:$V$894,1,FALSE),"Ikke med I order form")) -> Ikke med I order form | AA14: 7048652715258 | AB14: =IFERROR(VLOOKUP(AA14,'2) Order Form'!$V$9:$V$895,1,FALSE),"Ikke med I order form") -> 7048652715258 | AC14: =VLOOKUP(AA14,ATS!$A$4:$H$2762,2,FALSE) -> 840097 | AD14: =VLOOKUP(AA14,ATS!$A$4:$G$2762,3,FALSE) -> Grimnir 2Vi Mips Helmet | AE14: =VLOOKUP(AA14,ATS!$A$4:$G$2762,5,FALSE) -> MNGRY-LXL | AG14: =IFERROR(VLOOKUP('2) Order Form'!$V19,$AA$4:$AA$2500,1,FALSE),"Ikke med i Elastic") -> 7048652967855 | AH14: =SUM('2) Order Form'!V19) -> 7048652967855 | AI14: =INDEX(ATS!$B:$V,MATCH(ATS!$AH14,ATS!$U:$U,0),1) -> 840097 | AJ14: =INDEX(ATS!$B:$V,MATCH(ATS!$AH14,ATS!$U:$U,0),2) -> Grimnir 2Vi Mips Helmet | AK14: =INDEX(ATS!$B:$V,MATCH(ATS!$AH14,ATS!$U:$U,0),4) -> WOLND-ML
A15: 0 | B15: 810051 | C15: Net | I15: 202409 | J15: 202410 | K15: 202411 | L15: 202412 | M15: 202413 | N15: 202414 | O15: 202415 | P15: 202415 | Q15: 202415 | R15: 202415 | T15: 810051- | U15: =IF(C15="NET","",IF(C15="","",IFERROR(VLOOKUP(T15,EAN!$A:$B,2,FALSE),"MANGLER - MÅ OPPDATERE EAN-FANEN"))) ->  | V15: 202409 | W15: 202415 | Y15: =IF(C15="NET","",IFERROR(VLOOKUP(U15,'2) Order Form'!$V$9:$V$894,1,FALSE),"Ikke med I order form")) ->  | AA15: 7048652715258 | AB15: =IFERROR(VLOOKUP(AA15,'2) Order Form'!$V$9:$V$895,1,FALSE),"Ikke med I order form") -> 7048652715258 | AC15: =VLOOKUP(AA15,ATS!$A$4:$H$2762,2,FALSE) -> 840097 | AD15: =VLOOKUP(AA15,ATS!$A$4:$G$2762,3,FALSE) -> Grimnir 2Vi Mips Helmet | AE15: =VLOOKUP(AA15,ATS!$A$4:$G$2762,5,FALSE) -> MNGRY-LXL | AG15: =IFERROR(VLOOKUP('2) Order Form'!$V20,$AA$4:$AA$2500,1,FALSE),"Ikke med i Elastic") -> 7048652967848 | AH15: =SUM('2) Order Form'!V20) -> 7048652967848 | AI15: =INDEX(ATS!$B:$V,MATCH(ATS!$AH15,ATS!$U:$U,0),1) -> 840097 | AJ15: =INDEX(ATS!$B:$V,MATCH(ATS!$AH15,ATS!$U:$U,0),2) -> Grimnir 2Vi Mips Helmet | AK15: =INDEX(ATS!$B:$V,MATCH(ATS!$AH15,ATS!$U:$U,0),4) -> WOLND-LXL
A16: 0 | B16: 810051 | C16: Rocker/Wanderer Earpads | D16: DBS | E16: DTBLK-OS | F16: Dirt Black | G16: OS | H16: Active | I16: 0 | J16: 0 | K16: 0 | L16: 0 | M16: 0 | N16: 0 | O16: 200 | P16: 200 | Q16: 200 | R16: 200 | T16: 810051-DTBLK-OS | U16: =IF(C16="NET","",IF(C16="","",IFERROR(VLOOKUP(T16,EAN!$A:$B,2,FALSE),"MANGLER - MÅ OPPDATERE EAN-FANEN"))) -> MANGLER - MÅ OPPDATERE EAN-FANEN | V16: 0 | W16: 200 | Y16: =IF(C16="NET","",IFERROR(VLOOKUP(U16,'2) Order Form'!$V$9:$V$894,1,FALSE),"Ikke med I order form")) -> Ikke med I order form | AA16: 7048652823625 | AB16: =IFERROR(VLOOKUP(AA16,'2) Order Form'!$V$9:$V$895,1,FALSE),"Ikke med I order form") -> 7048652823625 | AC16: =VLOOKUP(AA16,ATS!$A$4:$H$2762,2,FALSE) -> 840097 | AD16: =VLOOKUP(AA16,ATS!$A$4:$G$2762,3,FALSE) -> Grimnir 2Vi Mips Helmet | AE16: =VLOOKUP(AA16,ATS!$A$4:$G$2762,5,FALSE) -> MASEM-SM | AG16: =IFERROR(VLOOKUP('2) Order Form'!$V21,$AA$4:$AA$2500,1,FALSE),"Ikke med i Elastic") -> 7048652714077 | AH16: =SUM('2) Order Form'!V21) -> 7048652714077 | AI16: =INDEX(ATS!$B:$V,MATCH(ATS!$AH16,ATS!$U:$U,0),1) -> 840094 | AJ16: =INDEX(ATS!$B:$V,MATCH(ATS!$AH16,ATS!$U:$U,0),2) -> Trooper 2Vi Mips Helmet | AK16: =INDEX(ATS!$B:$V,MATCH(ATS!$AH16,ATS!$U:$U,0),4) -> DTBLK-SM
A17: 0 | B17: 810052 | C17: Net | I17: 202409 | J17: 202410 | K17: 202411 | L17: 202412 | M17: 202413 | N17: 202414 | O17: 202415 | P17: 202415 | Q17: 202415 | R17: 202415 | T17: 810052- | U17: =IF(C17="NET","",IF(C17="","",IFERROR(VLOOKUP(T17,EAN!$A:$B,2,FALSE),"MANGLER - MÅ OPPDATERE EAN-FANEN"))) ->  | V17: 202409 | W17: 202415 | Y17: =IF(C17="NET","",IFERROR(VLOOKUP(U17,'2) Order Form'!$V$9:$V$894,1,FALSE),"Ikke med I order form")) ->  | AA17: 7048652823625 | AB17: =IFERROR(VLOOKUP(AA17,'2) Order Form'!$V$9:$V$895,1,FALSE),"Ikke med I order form") -> 7048652823625 | AC17: =VLOOKUP(AA17,ATS!$A$4:$H$2762,2,FALSE) -> 840097 | AD17: =VLOOKUP(AA17,ATS!$A$4:$G$2762,3,FALSE) -> Grimnir 2Vi Mips Helmet | AE17: =VLOOKUP(AA17,ATS!$A$4:$G$2762,5,FALSE) -> MASEM-SM | AG17: =IFERROR(VLOOKUP('2) Order Form'!$V22,$AA$4:$AA$2500,1,FALSE),"Ikke med i Elastic") -> 7048652714060 | AH17: =SUM('2) Order Form'!V22) -> 7048652714060 | AI17: =INDEX(ATS!$B:$V,MATCH(ATS!$AH17,ATS!$U:$U,0),1) -> 840094 | AJ17: =INDEX(ATS!$B:$V,MATCH(ATS!$AH17,ATS!$U:$U,0),2) -> Trooper 2Vi Mips Helmet | AK17: =INDEX(ATS!$B:$V,MATCH(ATS!$AH17,ATS!$U:$U,0),4) -> DTBLK-ML
A18: 0 | B18: 810052 | C18: Bike Helmet Case | D18: DBS | E18: TEBLK-OS | F18: True Black | G18: OS | H18: Active | I18: 611 | J18: 611 | K18: 611 | L18: 611 | M18: 611 | N18: 611 | O18: 611 | P18: 611 | Q18: 611 | R18: 611 | T18: 810052-TEBLK-OS | U18: =IF(C18="NET","",IF(C18="","",IFERROR(VLOOKUP(T18,EAN!$A:$B,2,FALSE),"MANGLER - MÅ OPPDATERE EAN-FANEN"))) -> MANGLER - MÅ OPPDATERE EAN-FANEN | V18: 611 | W18: 611 | Y18: =IF(C18="NET","",IFERROR(VLOOKUP(U18,'2) Order Form'!$V$9:$V$894,1,FALSE),"Ikke med I order form")) -> Ikke med I order form | AA18: 7048652823625 | AB18: =IFERROR(VLOOKUP(AA18,'2) Order Form'!$V$9:$V$895,1,FALSE),"Ikke med I order form") -> 7048652823625 | AC18: =VLOOKUP(AA18,ATS!$A$4:$H$2762,2,FALSE) -> 840097 | AD18: =VLOOKUP(AA18,ATS!$A$4:$G$2762,3,FALSE) -> Grimnir 2Vi Mips Helmet | AE18: =VLOOKUP(AA18,ATS!$A$4:$G$2762,5,FALSE) -> MASEM-SM | AG18: =IFERROR(VLOOKUP('2) Order Form'!$V23,$AA$4:$AA$2500,1,FALSE),"Ikke med i Elastic") -> 7048652714053 | AH18: =SUM('2) Order Form'!V23) -> 7048652714053 | AI18: =INDEX(ATS!$B:$V,MATCH(ATS!$AH18,ATS!$U:$U,0),1) -> 840094 | AJ18: =INDEX(ATS!$B:$V,MATCH(ATS!$AH18,ATS!$U:$U,0),2) -> Trooper 2Vi Mips Helmet | AK18: =INDEX(ATS!$B:$V,MATCH(ATS!$AH18,ATS!$U:$U,0),4) -> DTBLK-LXL
A19: 0 | B19: 810057 | C19: Net | I19: 202409 | J19: 202410 | K19: 202411 | L19: 202412 | M19: 202413 | N19: 202414 | O19: 202415 | P19: 202415 | Q19: 202415 | R19: 202415 | T19: 810057- | U19: =IF(C19="NET","",IF(C19="","",IFERROR(VLOOKUP(T19,EAN!$A:$B,2,FALSE),"MANGLER - MÅ OPPDATERE EAN-FANEN"))) ->  | V19: 202409 | W19: 202415 | Y19: =IF(C19="NET","",IFERROR(VLOOKUP(U19,'2) Order Form'!$V$9:$V$894,1,FALSE),"Ikke med I order form")) ->  | AA19: 7048652823618 | AB19: =IFERROR(VLOOKUP(AA19,'2) Order Form'!$V$9:$V$895,1,FALSE),"Ikke med I order form") -> 7048652823618 | AC19: =VLOOKUP(AA19,ATS!$A$4:$H$2762,2,FALSE) -> 840097 | AD19: =VLOOKUP(AA19,ATS!$A$4:$G$2762,3,FALSE) -> Grimnir 2Vi Mips Helmet | AE19: =VLOOKUP(AA19,ATS!$A$4:$G$2762,5,FALSE) -> MASEM-ML | AG19: =IFERROR(VLOOKUP('2) Order Form'!$V24,$AA$4:$AA$2500,1,FALSE),"Ikke med i Elastic") -> 7048652714107 | AH19: =SUM('2) Order Form'!V24) -> 7048652714107 | AI19: =INDEX(ATS!$B:$V,MATCH(ATS!$AH19,ATS!$U:$U,0),1) -> 840094 | AJ19: =INDEX(ATS!$B:$V,MATCH(ATS!$AH19,ATS!$U:$U,0),2) -> Trooper 2Vi Mips Helmet | AK19: =INDEX(ATS!$B:$V,MATCH(ATS!$AH19,ATS!$U:$U,0),4) -> GSWHT-SM
A20: 0 | B20: 810057 | C20: Dissenter Visor (+Jr) | D20: DBS | E20: BRWHT-OS | F20: Bronco White | G20: OS | H20: Stock | I20: 8 | J20: 8 | K20: 8 | L20: 8 | M20: 8 | N20: 8 | O20: 8 | P20: 8 | Q20: 8 | R20: 8 | T20: 810057-BRWHT-OS | U20: =IF(C20="NET","",IF(C20="","",IFERROR(VLOOKUP(T20,EAN!$A:$B,2,FALSE),"MANGLER - MÅ OPPDATERE EAN-FANEN"))) -> MANGLER - MÅ OPPDATERE EAN-FANEN | V20: 8 | W20: 8 | Y20: =IF(C20="NET","",IFERROR(VLOOKUP(U20,'2) Order Form'!$V$9:$V$894,1,FALSE),"Ikke med I order form")) -> Ikke med I order form | AA20: 7048652823618 | AB20: =IFERROR(VLOOKUP(AA20,'2) Order Form'!$V$9:$V$895,1,FALSE),"Ikke med I order form") -> 7048652823618 | AC20: =VLOOKUP(AA20,ATS!$A$4:$H$2762,2,FALSE) -> 840097 | AD20: =VLOOKUP(AA20,ATS!$A$4:$G$2762,3,FALSE) -> Grimnir 2Vi Mips Helmet | AE20: =VLOOKUP(AA20,ATS!$A$4:$G$2762,5,FALSE) -> MASEM-ML | AG20: =IFERROR(VLOOKUP('2) Order Form'!$V25,$AA$4:$AA$2500,1,FALSE),"Ikke med i Elastic") -> 7048652714091 | AH20: =SUM('2) Order Form'!V25) -> 7048652714091 | AI20: =INDEX(ATS!$B:$V,MATCH(ATS!$AH20,ATS!$U:$U,0),1) -> 840094 | AJ20: =INDEX(ATS!$B:$V,MATCH(ATS!$AH20,ATS!$U:$U,0),2) -> Trooper 2Vi Mips Helmet | AK20: =INDEX(ATS!$B:$V,MATCH(ATS!$AH20,ATS!$U:$U,0),4) -> GSWHT-ML
A21: 0 | B21: 810057 | C21: Dissenter Visor (+Jr) | D21: DBS | E21: DALIM-OS | F21: Dark Lilac Metallic | G21: OS | H21: Stock | I21: 4 | J21: 4 | K21: 4 | L21: 4 | M21: 4 | N21: 4 | O21: 4 | P21: 4 | Q21: 4 | R21: 4 | T21: 810057-DALIM-OS | U21: =IF(C21="NET","",IF(C21="","",IFERROR(VLOOKUP(T21,EAN!$A:$B,2,FALSE),"MANGLER - MÅ OPPDATERE EAN-FANEN"))) -> MANGLER - MÅ OPPDATERE EAN-FANEN | V21: 4 | W21: 4 | Y21: =IF(C21="NET","",IFERROR(VLOOKUP(U21,'2) Order Form'!$V$9:$V$894,1,FALSE),"Ikke med I order form")) -> Ikke med I order form | AA21: 7048652823618 | AB21: =IFERROR(VLOOKUP(AA21,'2) Order Form'!$V$9:$V$895,1,FALSE),"Ikke med I order form") -> 7048652823618 | AC21: =VLOOKUP(AA21,ATS!$A$4:$H$2762,2,FALSE) -> 840097 | AD21: =VLOOKUP(AA21,ATS!$A$4:$G$2762,3,FALSE) -> Grimnir 2Vi Mips Helmet | AE21: =VLOOKUP(AA21,ATS!$A$4:$G$2762,5,FALSE) -> MASEM-ML | AG21: =IFERROR(VLOOKUP('2) Order Form'!$V26,$AA$4:$AA$2500,1,FALSE),"Ikke med i Elastic") -> 7048652714084 | AH21: =SUM('2) Order Form'!V26) -> 7048652714084 | AI21: =INDEX(ATS!$B:$V,MATCH(ATS!$AH21,ATS!$U:$U,0),1) -> 840094 | AJ21: =INDEX(ATS!$B:$V,MATCH(ATS!$AH21,ATS!$U:$U,0),2) -> Trooper 2Vi Mips Helmet | AK21: =INDEX(ATS!$B:$V,MATCH(ATS!$AH21,ATS!$U:$U,0),4) -> GSWHT-LXL
A22: 0 | B22: 810057 | C22: Dissenter Visor (+Jr) | D22: DBS | E22: DUSK-OS | F22: Dusk | G22: OS | H22: Stock | I22: 5 | J22: 5 | K22: 5 | L22: 5 | M22: 5 | N22: 5 | O22: 5 | P22: 5 | Q22: 5 | R22: 5 | T22: 810057-DUSK-OS | U22: =IF(C22="NET","",IF(C22="","",IFERROR(VLOOKUP(T22,EAN!$A:$B,2,FALSE),"MANGLER - MÅ OPPDATERE EAN-FANEN"))) -> MANGLER - MÅ OPPDATERE EAN-FANEN | V22: 5 | W22: 5 | Y22: =IF(C22="NET","",IFERROR(VLOOKUP(U22,'2) Order Form'!$V$9:$V$894,1,FALSE),"Ikke med I order form")) -> Ikke med I order form | AA22: 7048652823601 | AB22: =IFERROR(VLOOKUP(AA22,'2) Order Form'!$V$9:$V$895,1,FALSE),"Ikke med I order form") -> 7048652823601 | AC22: =VLOOKUP(AA22,ATS!$A$4:$H$2762,2,FALSE) -> 840097 | AD22: =VLOOKUP(AA22,ATS!$A$4:$G$2762,3,FALSE) -> Grimnir 2Vi Mips Helmet | AE22: =VLOOKUP(AA22,ATS!$A$4:$G$2762,5,FALSE) -> MASEM-LXL | AG22: =IFERROR(VLOOKUP('2) Order Form'!$V27,$AA$4:$AA$2500,1,FALSE),"Ikke med i Elastic") -> 7048652823359 | AH22: =SUM('2) Order Form'!V27) -> 7048652823359 | AI22: =INDEX(ATS!$B:$V,MATCH(ATS!$AH22,ATS!$U:$U,0),1) -> 840094 | AJ22: =INDEX(ATS!$B:$V,MATCH(ATS!$AH22,ATS!$U:$U,0),2) -> Trooper 2Vi Mips Helmet | AK22: =INDEX(ATS!$B:$V,MATCH(ATS!$AH22,ATS!$U:$U,0),4) -> MASEM-SM
A23: 0 | B23: 810057 | C23: Dissenter Visor (+Jr) | D23: DBS | E23: GLBLM-OS | F23: Glacier Blue Metallic | G23: OS | H23: Stock | I23: 8 | J23: 8 | K23: 8 | L23: 8 | M23: 8 | N23: 8 | O23: 8 | P23: 8 | Q23: 8 | R23: 8 | T23: 810057-GLBLM-OS | U23: =IF(C23="NET","",IF(C23="","",IFERROR(VLOOKUP(T23,EAN!$A:$B,2,FALSE),"MANGLER - MÅ OPPDATERE EAN-FANEN"))) -> MANGLER - MÅ OPPDATERE EAN-FANEN | V23: 8 | W23: 8 | Y23: =IF(C23="NET","",IFERROR(VLOOKUP(U23,'2) Order Form'!$V$9:$V$894,1,FALSE),"Ikke med I order form")) -> Ikke med I order form | AA23: 7048652823601 | AB23: =IFERROR(VLOOKUP(AA23,'2) Order Form'!$V$9:$V$895,1,FALSE),"Ikke med I order form") -> 7048652823601 | AC23: =VLOOKUP(AA23,ATS!$A$4:$H$2762,2,FALSE) -> 840097 | AD23: =VLOOKUP(AA23,ATS!$A$4:$G$2762,3,FALSE) -> Grimnir 2Vi Mips Helmet | AE23: =VLOOKUP(AA23,ATS!$A$4:$G$2762,5,FALSE) -> MASEM-LXL | AG23: =IFERROR(VLOOKUP('2) Order Form'!$V28,$AA$4:$AA$2500,1,FALSE),"Ikke med i Elastic") -> 7048652823342 | AH23: =SUM('2) Order Form'!V28) -> 7048652823342 | AI23: =INDEX(ATS!$B:$V,MATCH(ATS!$AH23,ATS!$U:$U,0),1) -> 840094 | AJ23: =INDEX(ATS!$B:$V,MATCH(ATS!$AH23,ATS!$U:$U,0),2) -> Trooper 2Vi Mips Helmet | AK23: =INDEX(ATS!$B:$V,MATCH(ATS!$AH23,ATS!$U:$U,0),4) -> MASEM-ML
A24: 0 | B24: 810057 | C24: Dissenter Visor (+Jr) | D24: DBS | E24: MBLCK-OS | F24: Matte Black | G24: OS | H24: Active | I24: 34 | J24: 34 | K24: 34 | L24: 34 | M24: 34 | N24: 34 | O24: 34 | P24: 34 | Q24: 34 | R24: 34 | T24: 810057-MBLCK-OS | U24: =IF(C24="NET","",IF(C24="","",IFERROR(VLOOKUP(T24,EAN!$A:$B,2,FALSE),"MANGLER - MÅ OPPDATERE EAN-FANEN"))) -> MANGLER - MÅ OPPDATERE EAN-FANEN | V24: 34 | W24: 34 | Y24: =IF(C24="NET","",IFERROR(VLOOKUP(U24,'2) Order Form'!$V$9:$V$894,1,FALSE),"Ikke med I order form")) -> Ikke med I order form | AA24: 7048652823601 | AB24: =IFERROR(VLOOKUP(AA24,'2) Order Form'!$V$9:$V$895,1,FALSE),"Ikke med I order form") -> 7048652823601 | AC24: =VLOOKUP(AA24,ATS!$A$4:$H$2762,2,FALSE) -> 840097 | AD24: =VLOOKUP(AA24,ATS!$A$4:$G$2762,3,FALSE) -> Grimnir 2Vi Mips Helmet | AE24: =VLOOKUP(AA24,ATS!$A$4:$G$2762,5,FALSE) -> MASEM-LXL | AG24: =IFERROR(VLOOKUP('2) Order Form'!$V29,$AA$4:$AA$2500,1,FALSE),"Ikke med i Elastic") -> 7048652823335 | AH24: =SUM('2) Order Form'!V29) -> 7048652823335 | AI24: =INDEX(ATS!$B:$V,MATCH(ATS!$AH24,ATS!$U:$U,0),1) -> 840094 | AJ24: =INDEX(ATS!$B:$V,MATCH(ATS!$AH24,ATS!$U:$U,0),2) -> Trooper 2Vi Mips Helmet | AK24: =INDEX(ATS!$B:$V,MATCH(ATS!$AH24,ATS!$U:$U,0),4) -> MASEM-LXL
A25: 0 | B25: 810057 | C25: Dissenter Visor (+Jr) | D25: DBS | E25: MCDGY-OS | F25: Matte Cloud Gray | G25: OS | H25: Stock | I25: 18 | J25: 18 | K25: 18 | L25: 18 | M25: 18 | N25: 18 | O25: 18 | P25: 18 | Q25: 18 | R25: 18 | T25: 810057-MCDGY-OS | U25: =IF(C25="NET","",IF(C25="","",IFERROR(VLOOKUP(T25,EAN!$A:$B,2,FALSE),"MANGLER - MÅ OPPDATERE EAN-FANEN"))) -> MANGLER - MÅ OPPDATERE EAN-FANEN | V25: 18 | W25: 18 | Y25: =IF(C25="NET","",IFERROR(VLOOKUP(U25,'2) Order Form'!$V$9:$V$894,1,FALSE),"Ikke med I order form")) -> Ikke med I order form | AA25: 7048652967862 | AB25: =IFERROR(VLOOKUP(AA25,'2) Order Form'!$V$9:$V$895,1,FALSE),"Ikke med I order form") -> 7048652967862 | AC25: =VLOOKUP(AA25,ATS!$A$4:$H$2762,2,FALSE) -> 840097 | AD25: =VLOOKUP(AA25,ATS!$A$4:$G$2762,3,FALSE) -> Grimnir 2Vi Mips Helmet | AE25: =VLOOKUP(AA25,ATS!$A$4:$G$2762,5,FALSE) -> WOLND-SM | AG25: =IFERROR(VLOOKUP('2) Order Form'!$V30,$AA$4:$AA$2500,1,FALSE),"Ikke med i Elastic") -> 7048652823380 | AH25: =SUM('2) Order Form'!V30) -> 7048652823380 | AI25: =INDEX(ATS!$B:$V,MATCH(ATS!$AH25,ATS!$U:$U,0),1) -> 840094 | AJ25: =INDEX(ATS!$B:$V,MATCH(ATS!$AH25,ATS!$U:$U,0),2) -> Trooper 2Vi Mips Helmet | AK25: =INDEX(ATS!$B:$V,MATCH(ATS!$AH25,ATS!$U:$U,0),4) -> MBRWH-SM
A26: 0 | B26: 810057 | C26: Dissenter Visor (+Jr) | D26: DBS | E26: MEAME-OS | F26: Matte Aquamarine | G26: OS | H26: Stock | I26: 24 | J26: 24 | K26: 24 | L26: 24 | M26: 24 | N26: 24 | O26: 24 | P26: 24 | Q26: 24 | R26: 24 | T26: 810057-MEAME-OS | U26: =IF(C26="NET","",IF(C26="","",IFERROR(VLOOKUP(T26,EAN!$A:$B,2,FALSE),"MANGLER - MÅ OPPDATERE EAN-FANEN"))) -> MANGLER - MÅ OPPDATERE EAN-FANEN | V26: 24 | W26: 24 | Y26: =IF(C26="NET","",IFERROR(VLOOKUP(U26,'2) Order Form'!$V$9:$V$894,1,FALSE),"Ikke med I order form")) -> Ikke med I order form | AA26: 7048652967862 | AB26: =IFERROR(VLOOKUP(AA26,'2) Order Form'!$V$9:$V$895,1,FALSE),"Ikke med I order form") -> 7048652967862 | AC26: =VLOOKUP(AA26,ATS!$A$4:$H$2762,2,FALSE) -> 840097 | AD26: =VLOOKUP(AA26,ATS!$A$4:$G$2762,3,FALSE) -> Grimnir 2Vi Mips Helmet | AE26: =VLOOKUP(AA26,ATS!$A$4:$G$2762,5,FALSE) -> WOLND-SM | AG26: =IFERROR(VLOOKUP('2) Order Form'!$V31,$AA$4:$AA$2500,1,FALSE),"Ikke med i Elastic") -> 7048652823373 | AH26: =SUM('2) Order Form'!V31) -> 7048652823373 | AI26: =INDEX(ATS!$B:$V,MATCH(ATS!$AH26,ATS!$U:$U,0),1) -> 840094 | AJ26: =INDEX(ATS!$B:$V,MATCH(ATS!$AH26,ATS!$U:$U,0),2) -> Trooper 2Vi Mips Helmet | AK26: =INDEX(ATS!$B:$V,MATCH(ATS!$AH26,ATS!$U:$U,0),4) -> MBRWH-ML
A27: 0 | B27: 810057 | C27: Dissenter Visor (+Jr) | D27: DBS | E27: MEHRD-OS | F27: Matte Earth Red | G27: OS | H27: Stock | I27: 16 | J27: 16 | K27: 16 | L27: 16 | M27: 16 | N27: 16 | O27: 16 | P27: 16 | Q27: 16 | R27: 16 | T27: 810057-MEHRD-OS | U27: =IF(C27="NET","",IF(C27="","",IFERROR(VLOOKUP(T27,EAN!$A:$B,2,FALSE),"MANGLER - MÅ OPPDATERE EAN-FANEN"))) -> MANGLER - MÅ OPPDATERE EAN-FANEN | V27: 16 | W27: 16 | Y27: =IF(C27="NET","",IFERROR(VLOOKUP(U27,'2) Order Form'!$V$9:$V$894,1,FALSE),"Ikke med I order form")) -> Ikke med I order form | AA27: 7048652967855 | AB27: =IFERROR(VLOOKUP(AA27,'2) Order Form'!$V$9:$V$895,1,FALSE),"Ikke med I order form") -> 7048652967855 | AC27: =VLOOKUP(AA27,ATS!$A$4:$H$2762,2,FALSE) -> 840097 | AD27: =VLOOKUP(AA27,ATS!$A$4:$G$2762,3,FALSE) -> Grimnir 2Vi Mips Helmet | AE27: =VLOOKUP(AA27,ATS!$A$4:$G$2762,5,FALSE) -> WOLND-ML | AG27: =IFERROR(VLOOKUP('2) Order Form'!$V32,$AA$4:$AA$2500,1,FALSE),"Ikke med i Elastic") -> 7048652823366 | AH27: =SUM('2) Order Form'!V32) -> 7048652823366 | AI27: =INDEX(ATS!$B:$V,MATCH(ATS!$AH27,ATS!$U:$U,0),1) -> 840094 | AJ27: =INDEX(ATS!$B:$V,MATCH(ATS!$AH27,ATS!$U:$U,0),2) -> Trooper 2Vi Mips Helmet | AK27: =INDEX(ATS!$B:$V,MATCH(ATS!$AH27,ATS!$U:$U,0),4) -> MBRWH-LXL
A28: 0 | B28: 810057 | C28: Dissenter Visor (+Jr) | D28: DBS | E28: MFGRN-OS | F28: Matte Forest Green | G28: OS | H28: Stock | I28: 10 | J28: 10 | K28: 10 | L28: 10 | M28: 10 | N28: 10 | O28: 10 | P28: 10 | Q28: 10 | R28: 10 | T28: 810057-MFGRN-OS | U28: =IF(C28="NET","",IF(C28="","",IFERROR(VLOOKUP(T28,EAN!$A:$B,2,FALSE),"MANGLER - MÅ OPPDATERE EAN-FANEN"))) -> MANGLER - MÅ OPPDATERE EAN-FANEN | V28: 10 | W28: 10 | Y28: =IF(C28="NET","",IFERROR(VLOOKUP(U28,'2) Order Form'!$V$9:$V$894,1,FALSE),"Ikke med I order form")) -> Ikke med I order form | AA28: 7048652967855 | AB28: =IFERROR(VLOOKUP(AA28,'2) Order Form'!$V$9:$V$895,1,FALSE),"Ikke med I order form") -> 7048652967855 | AC28: =VLOOKUP(AA28,ATS!$A$4:$H$2762,2,FALSE) -> 840097 | AD28: =VLOOKUP(AA28,ATS!$A$4:$G$2762,3,FALSE) -> Grimnir 2Vi Mips Helmet | AE28: =VLOOKUP(AA28,ATS!$A$4:$G$2762,5,FALSE) -> WOLND-ML | AG28: =IFERROR(VLOOKUP('2) Order Form'!$V33,$AA$4:$AA$2500,1,FALSE),"Ikke med i Elastic") -> 7048652823410 | AH28: =SUM('2) Order Form'!V33) -> 7048652823410 | AI28: =INDEX(ATS!$B:$V,MATCH(ATS!$AH28,ATS!$U:$U,0),1) -> 840094 | AJ28: =INDEX(ATS!$B:$V,MATCH(ATS!$AH28,ATS!$U:$U,0),2) -> Trooper 2Vi Mips Helmet | AK28: =INDEX(ATS!$B:$V,MATCH(ATS!$AH28,ATS!$U:$U,0),4) -> MBUOE-SM
A29: 0 | B29: 810057 | C29: Dissenter Visor (+Jr) | D29: DBS | E29: MFLUO-OS | F29: Matte Fluo | G29: OS | H29: Stock | I29: 8 | J29: 8 | K29: 8 | L29: 8 | M29: 8 | N29: 8 | O29: 8 | P29: 8 | Q29: 8 | R29: 8 | T29: 810057-MFLUO-OS | U29: =IF(C29="NET","",IF(C29="","",IFERROR(VLOOKUP(T29,EAN!$A:$B,2,FALSE),"MANGLER - MÅ OPPDATERE EAN-FANEN"))) -> MANGLER - MÅ OPPDATERE EAN-FANEN | V29: 8 | W29: 8 | Y29: =IF(C29="NET","",IFERROR(VLOOKUP(U29,'2) Order Form'!$V$9:$V$894,1,FALSE),"Ikke med I order form")) -> Ikke med I order form | AA29: 7048652967848 | AB29: =IFERROR(VLOOKUP(AA29,'2) Order Form'!$V$9:$V$895,1,FALSE),"Ikke med I order form") -> 7048652967848 | AC29: =VLOOKUP(AA29,ATS!$A$4:$H$2762,2,FALSE) -> 840097 | AD29: =VLOOKUP(AA29,ATS!$A$4:$G$2762,3,FALSE) -> Grimnir 2Vi Mips Helmet | AE29: =VLOOKUP(AA29,ATS!$A$4:$G$2762,5,FALSE) -> WOLND-LXL | AG29: =IFERROR(VLOOKUP('2) Order Form'!$V34,$AA$4:$AA$2500,1,FALSE),"Ikke med i Elastic") -> 7048652823403 | AH29: =SUM('2) Order Form'!V34) -> 7048652823403 | AI29: =INDEX(ATS!$B:$V,MATCH(ATS!$AH29,ATS!$U:$U,0),1) -> 840094 | AJ29: =INDEX(ATS!$B:$V,MATCH(ATS!$AH29,ATS!$U:$U,0),2) -> Trooper 2Vi Mips Helmet | AK29: =INDEX(ATS!$B:$V,MATCH(ATS!$AH29,ATS!$U:$U,0),4) -> MBUOE-ML
A30: 0 | B30: 810057 | C30: Dissenter Visor (+Jr) | D30: DBS | E30: MMBLU-OS | F30: Matte Midnight Blue | G30: OS | H30: Stock | I30: 11 | J30: 11 | K30: 11 | L30: 11 | M30: 11 | N30: 11 | O30: 11 | P30: 11 | Q30: 11 | R30: 11 | T30: 810057-MMBLU-OS | U30: =IF(C30="NET","",IF(C30="","",IFERROR(VLOOKUP(T30,EAN!$A:$B,2,FALSE),"MANGLER - MÅ OPPDATERE EAN-FANEN"))) -> MANGLER - MÅ OPPDATERE EAN-FANEN | V30: 11 | W30: 11 | Y30: =IF(C30="NET","",IFERROR(VLOOKUP(U30,'2) Order Form'!$V$9:$V$894,1,FALSE),"Ikke med I order form")) -> Ikke med I order form | AA30: 7048652967848 | AB30: =IFERROR(VLOOKUP(AA30,'2) Order Form'!$V$9:$V$895,1,FALSE),"Ikke med I order form") -> 7048652967848 | AC30: =VLOOKUP(AA30,ATS!$A$4:$H$2762,2,FALSE) -> 840097 | AD30: =VLOOKUP(AA30,ATS!$A$4:$G$2762,3,FALSE) -> Grimnir 2Vi Mips Helmet | AE30: =VLOOKUP(AA30,ATS!$A$4:$G$2762,5,FALSE) -> WOLND-LXL | AG30: =IFERROR(VLOOKUP('2) Order Form'!$V35,$AA$4:$AA$2500,1,FALSE),"Ikke med i Elastic") -> 7048652823397 | AH30: =SUM('2) Order Form'!V35) -> 7048652823397 | AI30: =INDEX(ATS!$B:$V,MATCH(ATS!$AH30,ATS!$U:$U,0),1) -> 840094 | AJ30: =INDEX(ATS!$B:$V,MATCH(ATS!$AH30,ATS!$U:$U,0),2) -> Trooper 2Vi Mips Helmet | AK30: =INDEX(ATS!$B:$V,MATCH(ATS!$AH30,ATS!$U:$U,0),4) -> MBUOE-LXL
A31: 0 | B31: 810057 | C31: Dissenter Visor (+Jr) | D31: DBS | E31: MNAVY-OS | F31: Matte Navy | G31: OS | H31: Stock | I31: 16 | J31: 16 | K31: 16 | L31: 16 | M31: 16 | N31: 16 | O31: 16 | P31: 16 | Q31: 16 | R31: 16 | T31: 810057-MNAVY-OS | U31: =IF(C31="NET","",IF(C31="","",IFERROR(VLOOKUP(T31,EAN!$A:$B,2,FALSE),"MANGLER - MÅ OPPDATERE EAN-FANEN"))) -> MANGLER - MÅ OPPDATERE EAN-FANEN | V31: 16 | W31: 16 | Y31: =IF(C31="NET","",IFERROR(VLOOKUP(U31,'2) Order Form'!$V$9:$V$894,1,FALSE),"Ikke med I order form")) -> Ikke med I order form | AA31: 7048652714077 | AB31: =IFERROR(VLOOKUP(AA31,'2) Order Form'!$V$9:$V$895,1,FALSE),"Ikke med I order form") -> 7048652714077 | AC31: =VLOOKUP(AA31,ATS!$A$4:$H$2762,2,FALSE) -> 840094 | AD31: =VLOOKUP(AA31,ATS!$A$4:$G$2762,3,FALSE) -> Trooper 2Vi Mips Helmet | AE31: =VLOOKUP(AA31,ATS!$A$4:$G$2762,5,FALSE) -> DTBLK-SM | AG31: =IFERROR(VLOOKUP('2) Order Form'!$V36,$AA$4:$AA$2500,1,FALSE),"Ikke med i Elastic") -> 7048652966322 | AH31: =SUM('2) Order Form'!V36) -> 7048652966322 | AI31: =INDEX(ATS!$B:$V,MATCH(ATS!$AH31,ATS!$U:$U,0),1) -> 840094 | AJ31: =INDEX(ATS!$B:$V,MATCH(ATS!$AH31,ATS!$U:$U,0),2) -> Trooper 2Vi Mips Helmet | AK31: =INDEX(ATS!$B:$V,MATCH(ATS!$AH31,ATS!$U:$U,0),4) -> MTURQ-SM
A32: 0 | B32: 810057 | C32: Dissenter Visor (+Jr) | D32: DBS | E32: MNGRY-OS | F32: Matte Nardo Gray | G32: OS | H32: Stock | I32: 7 | J32: 7 | K32: 7 | L32: 7 | M32: 7 | N32: 7 | O32: 7 | P32: 7 | Q32: 7 | R32: 7 | T32: 810057-MNGRY-OS | U32: =IF(C32="NET","",IF(C32="","",IFERROR(VLOOKUP(T32,EAN!$A:$B,2,FALSE),"MANGLER - MÅ OPPDATERE EAN-FANEN"))) -> MANGLER - MÅ OPPDATERE EAN-FANEN | V32: 7 | W32: 7 | Y32: =IF(C32="NET","",IFERROR(VLOOKUP(U32,'2) Order Form'!$V$9:$V$894,1,FALSE),"Ikke med I order form")) -> Ikke med I order form | AA32: 7048652714077 | AB32: =IFERROR(VLOOKUP(AA32,'2) Order Form'!$V$9:$V$895,1,FALSE),"Ikke med I order form") -> 7048652714077 | AC32: =VLOOKUP(AA32,ATS!$A$4:$H$2762,2,FALSE) -> 840094 | AD32: =VLOOKUP(AA32,ATS!$A$4:$G$2762,3,FALSE) -> Trooper 2Vi Mips Helmet | AE32: =VLOOKUP(AA32,ATS!$A$4:$G$2762,5,FALSE) -> DTBLK-SM | AG32: =IFERROR(VLOOKUP('2) Order Form'!$V37,$AA$4:$AA$2500,1,FALSE),"Ikke med i Elastic") -> 7048652966315 | AH32: =SUM('2) Order Form'!V37) -> 7048652966315 | AI32: =INDEX(ATS!$B:$V,MATCH(ATS!$AH32,ATS!$U:$U,0),1) -> 840094 | AJ32: =INDEX(ATS!$B:$V,MATCH(ATS!$AH32,ATS!$U:$U,0),2) -> Trooper 2Vi Mips Helmet | AK32: =INDEX(ATS!$B:$V,MATCH(ATS!$AH32,ATS!$U:$U,0),4) -> MTURQ-ML
A33: 0 | B33: 810057 | C33: Dissenter Visor (+Jr) | D33: DBS | E33: MOEDB-OS | F33: Matte Olive Drab | G33: OS | H33: Stock | I33: 18 | J33: 18 | K33: 18 | L33: 18 | M33: 18 | N33: 18 | O33: 18 | P33: 18 | Q33: 18 | R33: 18 | T33: 810057-MOEDB-OS | U33: =IF(C33="NET","",IF(C33="","",IFERROR(VLOOKUP(T33,EAN!$A:$B,2,FALSE),"MANGLER - MÅ OPPDATERE EAN-FANEN"))) -> MANGLER - MÅ OPPDATERE EAN-FANEN | V33: 18 | W33: 18 | Y33: =IF(C33="NET","",IFERROR(VLOOKUP(U33,'2) Order Form'!$V$9:$V$894,1,FALSE),"Ikke med I order form")) -> Ikke med I order form | AA33: 7048652714060 | AB33: =IFERROR(VLOOKUP(AA33,'2) Order Form'!$V$9:$V$895,1,FALSE),"Ikke med I order form") -> 7048652714060 | AC33: =VLOOKUP(AA33,ATS!$A$4:$H$2762,2,FALSE) -> 840094 | AD33: =VLOOKUP(AA33,ATS!$A$4:$G$2762,3,FALSE) -> Trooper 2Vi Mips Helmet | AE33: =VLOOKUP(AA33,ATS!$A$4:$G$2762,5,FALSE) -> DTBLK-ML | AG33: =IFERROR(VLOOKUP('2) Order Form'!$V38,$AA$4:$AA$2500,1,FALSE),"Ikke med i Elastic") -> 7048652966308 | AH33: =SUM('2) Order Form'!V38) -> 7048652966308 | AI33: =INDEX(ATS!$B:$V,MATCH(ATS!$AH33,ATS!$U:$U,0),1) -> 840094 | AJ33: =INDEX(ATS!$B:$V,MATCH(ATS!$AH33,ATS!$U:$U,0),2) -> Trooper 2Vi Mips Helmet | AK33: =INDEX(ATS!$B:$V,MATCH(ATS!$AH33,ATS!$U:$U,0),4) -> MTURQ-LXL
A34: 0 | B34: 810057 | C34: Dissenter Visor (+Jr) | D34: DBS | E34: MOPRE-OS | F34: Matte Opal Purple | G34: OS | H34: Stock | I34: 15 | J34: 15 | K34: 15 | L34: 15 | M34: 15 | N34: 15 | O34: 15 | P34: 15 | Q34: 15 | R34: 15 | T34: 810057-MOPRE-OS | U34: =IF(C34="NET","",IF(C34="","",IFERROR(VLOOKUP(T34,EAN!$A:$B,2,FALSE),"MANGLER - MÅ OPPDATERE EAN-FANEN"))) -> MANGLER - MÅ OPPDATERE EAN-FANEN | V34: 15 | W34: 15 | Y34: =IF(C34="NET","",IFERROR(VLOOKUP(U34,'2) Order Form'!$V$9:$V$894,1,FALSE),"Ikke med I order form")) -> Ikke med I order form | AA34: 7048652714060 | AB34: =IFERROR(VLOOKUP(AA34,'2) Order Form'!$V$9:$V$895,1,FALSE),"Ikke med I order form") -> 7048652714060 | AC34: =VLOOKUP(AA34,ATS!$A$4:$H$2762,2,FALSE) -> 840094 | AD34: =VLOOKUP(AA34,ATS!$A$4:$G$2762,3,FALSE) -> Trooper 2Vi Mips Helmet | AE34: =VLOOKUP(AA34,ATS!$A$4:$G$2762,5,FALSE) -> DTBLK-ML | AG34: =IFERROR(VLOOKUP('2) Order Form'!$V39,$AA$4:$AA$2500,1,FALSE),"Ikke med i Elastic") -> 7048652966353 | AH34: =SUM('2) Order Form'!V39) -> 7048652966353 | AI34: =INDEX(ATS!$B:$V,MATCH(ATS!$AH34,ATS!$U:$U,0),1) -> 840094 | AJ34: =INDEX(ATS!$B:$V,MATCH(ATS!$AH34,ATS!$U:$U,0),2) -> Trooper 2Vi Mips Helmet | AK34: =INDEX(ATS!$B:$V,MATCH(ATS!$AH34,ATS!$U:$U,0),4) -> WOLND-SM
A35: 0 | B35: 810057 | C35: Dissenter Visor (+Jr) | D35: DBS | E35: MRBE-OS | F35: Matte Race Blue | G35: OS | H35: Stock | I35: 16 | J35: 16 | K35: 16 | L35: 16 | M35: 16 | N35: 16 | O35: 16 | P35: 16 | Q35: 16 | R35: 16 | T35: 810057-MRBE-OS | U35: =IF(C35="NET","",IF(C35="","",IFERROR(VLOOKUP(T35,EAN!$A:$B,2,FALSE),"MANGLER - MÅ OPPDATERE EAN-FANEN"))) -> MANGLER - MÅ OPPDATERE EAN-FANEN | V35: 16 | W35: 16 | Y35: =IF(C35="NET","",IFERROR(VLOOKUP(U35,'2) Order Form'!$V$9:$V$894,1,FALSE),"Ikke med I order form")) -> Ikke med I order form | AA35: 7048652714053 | AB35: =IFERROR(VLOOKUP(AA35,'2) Order Form'!$V$9:$V$895,1,FALSE),"Ikke med I order form") -> 7048652714053 | AC35: =VLOOKUP(AA35,ATS!$A$4:$H$2762,2,FALSE) -> 840094 | AD35: =VLOOKUP(AA35,ATS!$A$4:$G$2762,3,FALSE) -> Trooper 2Vi Mips Helmet | AE35: =VLOOKUP(AA35,ATS!$A$4:$G$2762,5,FALSE) -> DTBLK-LXL | AG35: =IFERROR(VLOOKUP('2) Order Form'!$V40,$AA$4:$AA$2500,1,FALSE),"Ikke med i Elastic") -> 7048652966346 | AH35: =SUM('2) Order Form'!V40) -> 7048652966346 | AI35: =INDEX(ATS!$B:$V,MATCH(ATS!$AH35,ATS!$U:$U,0),1) -> 840094 | AJ35: =INDEX(ATS!$B:$V,MATCH(ATS!$AH35,ATS!$U:$U,0),2) -> Trooper 2Vi Mips Helmet | AK35: =INDEX(ATS!$B:$V,MATCH(ATS!$AH35,ATS!$U:$U,0),4) -> WOLND-ML
A36: 0 | B36: 810057 | C36: Dissenter Visor (+Jr) | D36: DBS | E36: MROGD-OS | F36: Matte Rose Gold | G36: OS | H36: Stock | I36: 8 | J36: 8 | K36: 8 | L36: 8 | M36: 8 | N36: 8 | O36: 8 | P36: 8 | Q36: 8 | R36: 8 | T36: 810057-MROGD-OS | U36: =IF(C36="NET","",IF(C36="","",IFERROR(VLOOKUP(T36,EAN!$A:$B,2,FALSE),"MANGLER - MÅ OPPDATERE EAN-FANEN"))) -> MANGLER - MÅ OPPDATERE EAN-FANEN | V36: 8 | W36: 8 | Y36: =IF(C36="NET","",IFERROR(VLOOKUP(U36,'2) Order Form'!$V$9:$V$894,1,FALSE),"Ikke med I order form")) -> Ikke med I order form | AA36: 7048652714053 | AB36: =IFERROR(VLOOKUP(AA36,'2) Order Form'!$V$9:$V$895,1,FALSE),"Ikke med I order form") -> 7048652714053 | AC36: =VLOOKUP(AA36,ATS!$A$4:$H$2762,2,FALSE) -> 840094 | AD36: =VLOOKUP(AA36,ATS!$A$4:$G$2762,3,FALSE) -> Trooper 2Vi Mips Helmet | AE36: =VLOOKUP(AA36,ATS!$A$4:$G$2762,5,FALSE) -> DTBLK-LXL | AG36: =IFERROR(VLOOKUP('2) Order Form'!$V41,$AA$4:$AA$2500,1,FALSE),"Ikke med i Elastic") -> 7048652966339 | AH36: =SUM('2) Order Form'!V41) -> 7048652966339 | AI36: =INDEX(ATS!$B:$V,MATCH(ATS!$AH36,ATS!$U:$U,0),1) -> 840094 | AJ36: =INDEX(ATS!$B:$V,MATCH(ATS!$AH36,ATS!$U:$U,0),2) -> Trooper 2Vi Mips Helmet | AK36: =INDEX(ATS!$B:$V,MATCH(ATS!$AH36,ATS!$U:$U,0),4) -> WOLND-LXL
A37: 0 | B37: 810057 | C37: Dissenter Visor (+Jr) | D37: DBS | E37: MSBMC-OS | F37: Matte Slate Blue Metallic | G37: OS | H37: Stock | I37: 10 | J37: 10 | K37: 10 | L37: 10 | M37: 10 | N37: 10 | O37: 10 | P37: 10 | Q37: 10 | R37: 10 | T37: 810057-MSBMC-OS | U37: =IF(C37="NET","",IF(C37="","",IFERROR(VLOOKUP(T37,EAN!$A:$B,2,FALSE),"MANGLER - MÅ OPPDATERE EAN-FANEN"))) -> MANGLER - MÅ OPPDATERE EAN-FANEN | V37: 10 | W37: 10 | Y37: =IF(C37="NET","",IFERROR(VLOOKUP(U37,'2) Order Form'!$V$9:$V$894,1,FALSE),"Ikke med I order form")) -> Ikke med I order form | AA37: 7048652714107 | AB37: =IFERROR(VLOOKUP(AA37,'2) Order Form'!$V$9:$V$895,1,FALSE),"Ikke med I order form") -> 7048652714107 | AC37: =VLOOKUP(AA37,ATS!$A$4:$H$2762,2,FALSE) -> 840094 | AD37: =VLOOKUP(AA37,ATS!$A$4:$G$2762,3,FALSE) -> Trooper 2Vi Mips Helmet | AE37: =VLOOKUP(AA37,ATS!$A$4:$G$2762,5,FALSE) -> GSWHT-SM | AG37: =IFERROR(VLOOKUP('2) Order Form'!$V42,$AA$4:$AA$2500,1,FALSE),"Ikke med i Elastic") -> 7048652966056 | AH37: =SUM('2) Order Form'!V42) -> 7048652966056 | AI37: =INDEX(ATS!$B:$V,MATCH(ATS!$AH37,ATS!$U:$U,0),1) -> 840053 | AJ37: =INDEX(ATS!$B:$V,MATCH(ATS!$AH37,ATS!$U:$U,0),2) -> Switcher Mips Helmet | AK37: =INDEX(ATS!$B:$V,MATCH(ATS!$AH37,ATS!$U:$U,0),4) -> BARBM-SM
A38: 0 | B38: 810057 | C38: Dissenter Visor (+Jr) | D38: DBS | E38: MSEGY-OS | F38: Matte Smoke Gray | G38: OS | H38: Stock | I38: 17 | J38: 17 | K38: 17 | L38: 17 | M38: 17 | N38: 17 | O38: 17 | P38: 17 | Q38: 17 | R38: 17 | T38: 810057-MSEGY-OS | U38: =IF(C38="NET","",IF(C38="","",IFERROR(VLOOKUP(T38,EAN!$A:$B,2,FALSE),"MANGLER - MÅ OPPDATERE EAN-FANEN"))) -> MANGLER - MÅ OPPDATERE EAN-FANEN | V38: 17 | W38: 17 | Y38: =IF(C38="NET","",IFERROR(VLOOKUP(U38,'2) Order Form'!$V$9:$V$894,1,FALSE),"Ikke med I order form")) -> Ikke med I order form | AA38: 7048652714107 | AB38: =IFERROR(VLOOKUP(AA38,'2) Order Form'!$V$9:$V$895,1,FALSE),"Ikke med I order form") -> 7048652714107 | AC38: =VLOOKUP(AA38,ATS!$A$4:$H$2762,2,FALSE) -> 840094 | AD38: =VLOOKUP(AA38,ATS!$A$4:$G$2762,3,FALSE) -> Trooper 2Vi Mips Helmet | AE38: =VLOOKUP(AA38,ATS!$A$4:$G$2762,5,FALSE) -> GSWHT-SM | AG38: =IFERROR(VLOOKUP('2) Order Form'!$V43,$AA$4:$AA$2500,1,FALSE),"Ikke med i Elastic") -> 7048652966049 | AH38: =SUM('2) Order Form'!V43) -> 7048652966049 | AI38: =INDEX(ATS!$B:$V,MATCH(ATS!$AH38,ATS!$U:$U,0),1) -> 840053 | AJ38: =INDEX(ATS!$B:$V,MATCH(ATS!$AH38,ATS!$U:$U,0),2) -> Switcher Mips Helmet | AK38: =INDEX(ATS!$B:$V,MATCH(ATS!$AH38,ATS!$U:$U,0),4) -> BARBM-ML
A39: 0 | B39: 810057 | C39: Dissenter Visor (+Jr) | D39: DBS | E39: MSGMC-OS | F39: Matte Slate Gray Metallic | G39: OS | H39: Stock | I39: 17 | J39: 17 | K39: 17 | L39: 17 | M39: 17 | N39: 17 | O39: 17 | P39: 17 | Q39: 17 | R39: 17 | T39: 810057-MSGMC-OS | U39: =IF(C39="NET","",IF(C39="","",IFERROR(VLOOKUP(T39,EAN!$A:$B,2,FALSE),"MANGLER - MÅ OPPDATERE EAN-FANEN"))) -> MANGLER - MÅ OPPDATERE EAN-FANEN | V39: 17 | W39: 17 | Y39: =IF(C39="NET","",IFERROR(VLOOKUP(U39,'2) Order Form'!$V$9:$V$894,1,FALSE),"Ikke med I order form")) -> Ikke med I order form | AA39: 7048652714091 | AB39: =IFERROR(VLOOKUP(AA39,'2) Order Form'!$V$9:$V$895,1,FALSE),"Ikke med I order form") -> 7048652714091 | AC39: =VLOOKUP(AA39,ATS!$A$4:$H$2762,2,FALSE) -> 840094 | AD39: =VLOOKUP(AA39,ATS!$A$4:$G$2762,3,FALSE) -> Trooper 2Vi Mips Helmet | AE39: =VLOOKUP(AA39,ATS!$A$4:$G$2762,5,FALSE) -> GSWHT-ML | AG39: =IFERROR(VLOOKUP('2) Order Form'!$V44,$AA$4:$AA$2500,1,FALSE),"Ikke med i Elastic") -> 7048652966032 | AH39: =SUM('2) Order Form'!V44) -> 7048652966032 | AI39: =INDEX(ATS!$B:$V,MATCH(ATS!$AH39,ATS!$U:$U,0),1) -> 840053 | AJ39: =INDEX(ATS!$B:$V,MATCH(ATS!$AH39,ATS!$U:$U,0),2) -> Switcher Mips Helmet | AK39: =INDEX(ATS!$B:$V,MATCH(ATS!$AH39,ATS!$U:$U,0),4) -> BARBM-LXL
A40: 0 | B40: 810057 | C40: Dissenter Visor (+Jr) | D40: DBS | E40: MWHTE-OS | F40: Matte White | G40: OS | H40: Active | I40: 36 | J40: 36 | K40: 36 | L40: 36 | M40: 36 | N40: 36 | O40: 36 | P40: 36 | Q40: 36 | R40: 36 | T40: 810057-MWHTE-OS | U40: =IF(C40="NET","",IF(C40="","",IFERROR(VLOOKUP(T40,EAN!$A:$B,2,FALSE),"MANGLER - MÅ OPPDATERE EAN-FANEN"))) -> MANGLER - MÅ OPPDATERE EAN-FANEN | V40: 36 | W40: 36 | Y40: =IF(C40="NET","",IFERROR(VLOOKUP(U40,'2) Order Form'!$V$9:$V$894,1,FALSE),"Ikke med I order form")) -> Ikke med I order form | AA40: 7048652714091 | AB40: =IFERROR(VLOOKUP(AA40,'2) Order Form'!$V$9:$V$895,1,FALSE),"Ikke med I order form") -> 7048652714091 | AC40: =VLOOKUP(AA40,ATS!$A$4:$H$2762,2,FALSE) -> 840094 | AD40: =VLOOKUP(AA40,ATS!$A$4:$G$2762,3,FALSE) -> Trooper 2Vi Mips Helmet | AE40: =VLOOKUP(AA40,ATS!$A$4:$G$2762,5,FALSE) -> GSWHT-ML | AG40: =IFERROR(VLOOKUP('2) Order Form'!$V45,$AA$4:$AA$2500,1,FALSE),"Ikke med i Elastic") -> 7048652968746 | AH40: =SUM('2) Order Form'!V45) -> 7048652968746 | AI40: =INDEX(ATS!$B:$V,MATCH(ATS!$AH40,ATS!$U:$U,0),1) -> 840053 | AJ40: =INDEX(ATS!$B:$V,MATCH(ATS!$AH40,ATS!$U:$U,0),2) -> Switcher Mips Helmet | AK40: =INDEX(ATS!$B:$V,MATCH(ATS!$AH40,ATS!$U:$U,0),4) -> BARBM-XXL
A41: 0 | B41: 810057 | C41: Dissenter Visor (+Jr) | D41: DBS | E41: SEAME-OS | F41: Sea Metallic | G41: OS | H41: Stock | I41: 4 | J41: 4 | K41: 4 | L41: 4 | M41: 4 | N41: 4 | O41: 4 | P41: 4 | Q41: 4 | R41: 4 | T41: 810057-SEAME-OS | U41: =IF(C41="NET","",IF(C41="","",IFERROR(VLOOKUP(T41,EAN!$A:$B,2,FALSE),"MANGLER - MÅ OPPDATERE EAN-FANEN"))) -> MANGLER - MÅ OPPDATERE EAN-FANEN | V41: 4 | W41: 4 | Y41: =IF(C41="NET","",IFERROR(VLOOKUP(U41,'2) Order Form'!$V$9:$V$894,1,FALSE),"Ikke med I order form")) -> Ikke med I order form | AA41: 7048652714084 | AB41: =IFERROR(VLOOKUP(AA41,'2) Order Form'!$V$9:$V$895,1,FALSE),"Ikke med I order form") -> 7048652714084 | AC41: =VLOOKUP(AA41,ATS!$A$4:$H$2762,2,FALSE) -> 840094 | AD41: =VLOOKUP(AA41,ATS!$A$4:$G$2762,3,FALSE) -> Trooper 2Vi Mips Helmet | AE41: =VLOOKUP(AA41,ATS!$A$4:$G$2762,5,FALSE) -> GSWHT-LXL | AG41: =IFERROR(VLOOKUP('2) Order Form'!$V46,$AA$4:$AA$2500,1,FALSE),"Ikke med i Elastic") -> 7048652463135 | AH41: =SUM('2) Order Form'!V46) -> 7048652463135 | AI41: =INDEX(ATS!$B:$V,MATCH(ATS!$AH41,ATS!$U:$U,0),1) -> 840053 | AJ41: =INDEX(ATS!$B:$V,MATCH(ATS!$AH41,ATS!$U:$U,0),2) -> Switcher Mips Helmet | AK41: =INDEX(ATS!$B:$V,MATCH(ATS!$AH41,ATS!$U:$U,0),4) -> DTBLK-SM
